Workbook

Sheet ورقة3
C2: مرات محمد ناجى محمد على | D2: 2019-04-01
B5: م | C5: الاسم | D5: القيمة | E5: تنزيل | F5: الصافي | H5: المسحوبات | M5: التوريدات
A6: 1002 | B6: 1 | C6: محمد عبد الناصر ابو بكر | D6: 222 | F6: =D6-E6 -> 222 | H6: مسحوبات | J6: =SUM(I7:J103) -> 73 | K6: اليوم | M6: تنزيلات | O6: =SUM(N7:O103) -> 1060 | P6: اليوم
A7: 1004 | B7: 2 | C7: حمدان | D7: 81.5 | F7: 81.5 | H7: 2020-07-27 | I7: 13 | K7: =IF(H7="","",CHOOSE(WEEKDAY(H7),"الاحد","الاثنين","الثلاثاء","الاربعاء","الخميس","الجمعة","السبت")) -> الاثنين | L7: =IF(I7="","",SUBTOTAL(3,I$7:$N7)) ->  | M7: 2020-03-21 | P7: =IF(M7="","",CHOOSE(WEEKDAY(M7),"الاحد","الاثنين","الثلاثاء","الاربعاء","الخميس","الجمعة","السبت")) -> السبت | Q7: =IF(N7="","",SUBTOTAL(3,$N$7:N7)) -> 
A8: 1016 | B8: 3 | C8: محمد سامي عزام | D8: 25 | F8: 25 | H8: 2020-08-02 | I8: 57 | K8: =IF(H8="","",CHOOSE(WEEKDAY(H8),"الاحد","الاثنين","الثلاثاء","الاربعاء","الخميس","الجمعة","السبت")) -> الاحد | L8: =IF(I8="","",SUBTOTAL(3,I$8:$N8)) ->  | M8: 2020-03-24 | N8: 20 | P8: =IF(M8="","",CHOOSE(WEEKDAY(M8),"الاحد","الاثنين","الثلاثاء","الاربعاء","الخميس","الجمعة","السبت")) -> الثلاثاء | Q8: =IF(N8="","",SUBTOTAL(3,$N$8:N8)) -> 1
B9: 6 | C9: اعتماد سعد | D9: 231.75 | F9: 231.75 | H9: 2020-08-04 | I9: 3 | K9: الثلاثاء | L9: =IF(I9="","",SUBTOTAL(3,I$8:$N9)) ->  | M9: 2020-05-28 | N9: 20 | P9: الخميس | Q9: =IF(N9="","",SUBTOTAL(3,$N$8:N9)) -> 2
B10: 7 | C10: محمود احمد خلف | D10: 10 | F10: 10 | L10: =IF(I10="","",SUBTOTAL(3,I$8:$N10)) ->  | M10: 2020-05-30 | N10: 20 | P10: السبت | Q10: =IF(N10="","",SUBTOTAL(3,$N$8:N10)) -> 3
B11: 8 | C11: مرات محمد عبد العظيم | D11: 18.5 | F11: 18.5 | L11: =IF(I11="","",SUBTOTAL(3,I$8:$N11)) ->  | M11: 2020-05-31 | N11: 20 | P11: الاحد | Q11: =IF(N11="","",SUBTOTAL(3,$N$8:N11)) -> 4
B12: 9 | C12: محمد جمعة حسين | D12: 25.5 | F12: 25.5 | L12: =IF(I12="","",SUBTOTAL(3,I$8:$N12)) ->  | M12: 2020-06-01 | N12: 20 | P12: الاثنين | Q12: =IF(N12="","",SUBTOTAL(3,$N$8:N12)) -> 5
B13: 10 | C13: طه التليس | D13: 14.5 | F13: 14.5 | L13: =IF(I13="","",SUBTOTAL(3,I$8:$N13)) ->  | M13: 2020-06-02 | N13: 20 | P13: الثلاثاء | Q13: =IF(N13="","",SUBTOTAL(3,$N$8:N13)) -> 6
B14: 11 | C14: احمد كمال | D14: 32 | F14: 32 | L14: =IF(I14="","",SUBTOTAL(3,I$8:$N14)) ->  | M14: 2020-06-03 | N14: 20 | P14: الاربعاء | Q14: =IF(N14="","",SUBTOTAL(3,$N$8:N14)) -> 7
B15: 13 | C15: مرات عبد الله صلاح صادق | D15: 12.5 | F15: 12.5 | L15: =IF(I15="","",SUBTOTAL(3,I$8:$N15)) ->  | M15: 2020-06-06 | N15: 20 | P15: السبت | Q15: =IF(N15="","",SUBTOTAL(3,$N$8:N15)) -> 8
A16: 1005 | B16: 14 | C16: ام علي | D16: =108.5+9 -> 117.5 | F16: 117.5 | L16: =IF(I16="","",SUBTOTAL(3,I$8:$N16)) ->  | M16: 2020-06-07 | N16: 20 | P16: الاحد | Q16: =IF(N16="","",SUBTOTAL(3,$N$8:N16)) -> 9
A17: 1006 | B17: 15 | C17: مجدي عيسي | D17: 195 | F17: 195 | L17: =IF(I17="","",SUBTOTAL(3,I$8:$N17)) ->  | M17: 2020-06-08 | N17: 20 | P17: الاثنين | Q17: =IF(N17="","",SUBTOTAL(3,$N$8:N17)) -> 10
A18: 1007 | B18: 16 | C18: عبد اللطيف محمود | D18: 26.5 | F18: 26.5 | L18: =IF(I18="","",SUBTOTAL(3,I$8:$N18)) ->  | M18: 2020-06-09 | N18: 20 | P18: الثلاثاء | Q18: =IF(N18="","",SUBTOTAL(3,$N$8:N18)) -> 11
A19: 1008 | B19: 17 | C19: محمد ابو الحمد | D19: 92.5 | F19: 92.5 | L19: =IF(I19="","",SUBTOTAL(3,I$8:$N19)) ->  | M19: 2020-06-10 | N19: 20 | P19: الاربعاء | Q19: =IF(N19="","",SUBTOTAL(3,$N$8:N19)) -> 12
A20: 1009 | B20: 18 | C20: احمد زكي | D20: 116 | F20: 116 | L20: =IF(I20="","",SUBTOTAL(3,I$8:$N20)) ->  | M20: 2020-06-11 | N20: 20 | P20: الخميس | Q20: =IF(N20="","",SUBTOTAL(3,$N$8:N20)) -> 13
A21: 1010 | B21: 19 | C21: شعبان احمد طه | D21: 83 | F21: 83 | L21: =IF(I21="","",SUBTOTAL(3,I$8:$N21)) ->  | M21: 2020-06-13 | N21: 20 | P21: السبت | Q21: =IF(N21="","",SUBTOTAL(3,$N$8:N21)) -> 14
A22: 1014 | B22: 21 | C22: عادل عاشور | D22: 347.5 | F22: 347.5 | L22: =IF(I22="","",SUBTOTAL(3,I$8:$N22)) ->  | M22: 2020-06-16 | N22: 20 | P22: الثلاثاء | Q22: =IF(N22="","",SUBTOTAL(3,$N$8:N22)) -> 15
A23: 1017 | B23: 22 | C23: كمال الشمندي | D23: 333.9 | F23: 333.9 | L23: =IF(I23="","",SUBTOTAL(3,I$8:$N23)) ->  | M23: 2020-06-17 | N23: 20 | P23: الاربعاء | Q23: =IF(N23="","",SUBTOTAL(3,$N$8:N23)) -> 16
B24: 24 | C24: هاني خلف | D24: =513+12+130+92+133+118+3.75+118+118+10+16.5+86.6+115+5.5+23+10+12+10+15+115+55.5+J6 -> 1784.85 | E24: =20+30+10+28+22+10+13+20+50+50+20+20+115+O6+5+5.35+3+5 -> 1486.35 | F24: 298.5 | L24: =IF(I24="","",SUBTOTAL(3,I$8:$N24)) ->  | M24: 2020-06-20 | N24: 20 | P24: السبت | Q24: =IF(N24="","",SUBTOTAL(3,$N$8:N24)) -> 17
B25: الاجمالي | D25: =SUM(D6:D23) -> 1985.15 | E25: =SUM(E6:E23) -> 0 | F25: =SUM(F6:F23) -> 1985.15 | L25: =IF(I25="","",SUBTOTAL(3,I$8:$N25)) ->  | M25: 2020-06-21 | N25: 20 | P25: الاحد | Q25: =IF(N25="","",SUBTOTAL(3,$N$8:N25)) -> 18
L26: =IF(I26="","",SUBTOTAL(3,I$8:$N26)) ->  | M26: 2020-06-22 | N26: 20 | P26: الاثنين | Q26: =IF(N26="","",SUBTOTAL(3,$N$8:N26)) -> 19
L27: =IF(I27="","",SUBTOTAL(3,I$8:$N27)) ->  | M27: 2020-06-23 | N27: 20 | P27: الثلاثاء | Q27: =IF(N27="","",SUBTOTAL(3,$N$8:N27)) -> 20
L28: =IF(I28="","",SUBTOTAL(3,I$8:$N28)) ->  | M28: 2020-06-24 | N28: 20 | P28: الاربعاء | Q28: =IF(N28="","",SUBTOTAL(3,$N$8:N28)) -> 21
L29: =IF(I29="","",SUBTOTAL(3,I$8:$N29)) ->  | M29: 2020-06-25 | N29: 20 | P29: الخميس | Q29: =IF(N29="","",SUBTOTAL(3,$N$8:N29)) -> 22
L30: =IF(I30="","",SUBTOTAL(3,I$8:$N30)) ->  | M30: 2020-06-27 | N30: 20 | P30: السبت | Q30: =IF(N30="","",SUBTOTAL(3,$N$8:N30)) -> 23
L31: =IF(I31="","",SUBTOTAL(3,I$8:$N31)) ->  | M31: 2020-06-28 | N31: 20 | P31: الاحد | Q31: =IF(N31="","",SUBTOTAL(3,$N$8:N31)) -> 24
L32: =IF(I32="","",SUBTOTAL(3,I$8:$N32)) ->  | M32: 2020-06-29 | N32: 20 | P32: الاثنين | Q32: =IF(N32="","",SUBTOTAL(3,$N$8:N32)) -> 25
L33: =IF(I33="","",SUBTOTAL(3,I$8:$N33)) ->  | M33: 2020-06-30 | N33: 20 | P33: الثلاثاء | Q33: =IF(N33="","",SUBTOTAL(3,$N$8:N33)) -> 26
L34: =IF(I34="","",SUBTOTAL(3,I$8:$N34)) ->  | M34: 2020-07-01 | N34: 20 | P34: الاربعاء | Q34: =IF(N34="","",SUBTOTAL(3,$N$8:N34)) -> 27
L35: =IF(I35="","",SUBTOTAL(3,I$8:$N35)) ->  | M35: 2020-07-02 | N35: 20 | P35: الخميس | Q35: =IF(N35="","",SUBTOTAL(3,$N$8:N35)) -> 28
L36: =IF(I36="","",SUBTOTAL(3,I$8:$N36)) ->  | M36: 2020-07-04 | N36: 20 | P36: السبت | Q36: =IF(N36="","",SUBTOTAL(3,$N$8:N36)) -> 29
L37: =IF(I37="","",SUBTOTAL(3,I$8:$N37)) ->  | M37: 2020-07-05 | N37: 20 | P37: الاحد | Q37: =IF(N37="","",SUBTOTAL(3,$N$8:N37)) -> 30
L38: =IF(I38="","",SUBTOTAL(3,I$8:$N38)) ->  | M38: 2020-07-06 | N38: 20 | P38: الاثنين | Q38: =IF(N38="","",SUBTOTAL(3,$N$8:N38)) -> 31
L39: =IF(I39="","",SUBTOTAL(3,I$8:$N39)) ->  | M39: 2020-07-07 | P39: الثلاثاء | Q39: =IF(N39="","",SUBTOTAL(3,$N$8:N39)) -> 
L40: =IF(I40="","",SUBTOTAL(3,I$8:$N40)) ->  | M40: 2020-07-08 | N40: 20 | P40: الاربعاء | Q40: =IF(N40="","",SUBTOTAL(3,$N$8:N40)) -> 32
L41: =IF(I41="","",SUBTOTAL(3,I$8:$N41)) ->  | M41: 2020-07-09 | N41: 20 | P41: الخميس | Q41: =IF(N41="","",SUBTOTAL(3,$N$8:N41)) -> 33
L42: =IF(I42="","",SUBTOTAL(3,I$8:$N42)) ->  | M42: 2020-07-11 | N42: 20 | P42: السبت | Q42: =IF(N42="","",SUBTOTAL(3,$N$8:N42)) -> 34
L43: =IF(I43="","",SUBTOTAL(3,I$8:$N43)) ->  | M43: 2020-07-12 | N43: 20 | P43: الاحد | Q43: =IF(N43="","",SUBTOTAL(3,$N$8:N43)) -> 35
L44: =IF(I44="","",SUBTOTAL(3,I$8:$N44)) ->  | M44: 2020-07-13 | P44: الاثنين | Q44: =IF(N44="","",SUBTOTAL(3,$N$8:N44)) -> 
L45: =IF(I45="","",SUBTOTAL(3,I$8:$N45)) ->  | M45: 2020-07-14 | N45: 20 | P45: الثلاثاء | Q45: =IF(N45="","",SUBTOTAL(3,$N$8:N45)) -> 36
L46: =IF(I46="","",SUBTOTAL(3,I$8:$N46)) ->  | M46: 2020-07-15 | N46: 20 | P46: الاربعاء | Q46: =IF(N46="","",SUBTOTAL(3,$N$8:N46)) -> 37
L47: =IF(I47="","",SUBTOTAL(3,I$8:$N47)) ->  | M47: 2020-07-16 | N47: 20 | P47: الخميس | Q47: =IF(N47="","",SUBTOTAL(3,$N$8:N47)) -> 38
L48: =IF(I48="","",SUBTOTAL(3,I$8:$N48)) ->  | M48: 2020-07-18 | N48: 20 | P48: السبت | Q48: =IF(N48="","",SUBTOTAL(3,$N$8:N48)) -> 39
L49: =IF(I49="","",SUBTOTAL(3,I$8:$N49)) ->  | M49: 2020-07-19 | N49: 20 | P49: الاحد | Q49: =IF(N49="","",SUBTOTAL(3,$N$8:N49)) -> 40
L50: =IF(I50="","",SUBTOTAL(3,I$8:$N50)) ->  | M50: 2020-07-20 | N50: 20 | P50: الاثنين | Q50: =IF(N50="","",SUBTOTAL(3,$N$8:N50)) -> 41
L51: =IF(I51="","",SUBTOTAL(3,I$8:$N51)) ->  | M51: 2020-07-21 | N51: 20 | P51: الثلاثاء | Q51: =IF(N51="","",SUBTOTAL(3,$N$8:N51)) -> 42
L52: =IF(I52="","",SUBTOTAL(3,I$8:$N52)) ->  | M52: 2020-07-22 | N52: 20 | P52: الاربعاء | Q52: =IF(N52="","",SUBTOTAL(3,$N$8:N52)) -> 43
L53: =IF(I53="","",SUBTOTAL(3,I$8:$N53)) ->  | M53: 2020-07-23 | N53: 20 | P53: الخميس | Q53: =IF(N53="","",SUBTOTAL(3,$N$8:N53)) -> 44
L54: =IF(I54="","",SUBTOTAL(3,I$8:$N54)) ->  | M54: 2020-07-25 | N54: 20 | P54: السبت | Q54: =IF(N54="","",SUBTOTAL(3,$N$8:N54)) -> 45
L55: =IF(I55="","",SUBTOTAL(3,I$8:$N55)) ->  | M55: 2020-07-26 | N55: 20 | P55: الاحد | Q55: =IF(N55="","",SUBTOTAL(3,$N$8:N55)) -> 46
L56: =IF(I56="","",SUBTOTAL(3,I$8:$N56)) ->  | M56: 2020-07-27 | N56: 20 | P56: الاثنين | Q56: =IF(N56="","",SUBTOTAL(3,$N$8:N56)) -> 47
L57: =IF(I57="","",SUBTOTAL(3,I$8:$N57)) ->  | M57: 2020-07-28 | N57: 20 | P57: =IF(M57="","",CHOOSE(WEEKDAY(M57),"الاحد","الاثنين","الثلاثاء","الاربعاء","الخميس","الجمعة","السبت")) -> الثلاثاء | Q57: =IF(N57="","",SUBTOTAL(3,$N$8:N57)) -> 48
L58: =IF(I58="","",SUBTOTAL(3,I$8:$N58)) ->  | M58: 2020-07-29 | N58: 20 | P58: الاربعاء | Q58: =IF(N58="","",SUBTOTAL(3,$N$8:N58)) -> 49
L59: =IF(I59="","",SUBTOTAL(3,I$8:$N59)) ->  | M59: 2020-07-30 | P59: الخميس | Q59: =IF(N59="","",SUBTOTAL(3,$N$8:N59)) -> 
L60: =IF(I60="","",SUBTOTAL(3,I$8:$N60)) ->  | M60: 2020-08-01 | N60: 20 | P60: السبت | Q60: =IF(N60="","",SUBTOTAL(3,$N$8:N60)) -> 50
L61: =IF(I61="","",SUBTOTAL(3,I$8:$N61)) ->  | M61: 2020-08-02 | N61: 20 | P61: الاحد | Q61: =IF(N61="","",SUBTOTAL(3,$N$8:N61)) -> 51
L62: =IF(I62="","",SUBTOTAL(3,I$8:$N62)) ->  | M62: 2020-08-03 | N62: 20 | P62: الاثنين | Q62: =IF(N62="","",SUBTOTAL(3,$N$8:N62)) -> 52
L63: =IF(I63="","",SUBTOTAL(3,I$8:$N63)) ->  | M63: 2020-08-04 | N63: 20 | P63: الثلاثاء | Q63: =IF(N63="","",SUBTOTAL(3,$N$8:N63)) -> 53
L64: =IF(I64="","",SUBTOTAL(3,I$8:$N64)) ->  | M64: 2020-08-05 | P64: الاربعاء | Q64: =IF(N64="","",SUBTOTAL(3,$N$8:N64)) -> 
L65: =IF(I65="","",SUBTOTAL(3,I$8:$N65)) ->  | M65: 2020-08-06 | P65: الخميس | Q65: =IF(N65="","",SUBTOTAL(3,$N$8:N65)) -> 
L66: =IF(I66="","",SUBTOTAL(3,I$8:$N66)) ->  | M66: 2020-08-08 | P66: السبت | Q66: =IF(N66="","",SUBTOTAL(3,$N$8:N66)) -> 
L67: =IF(I67="","",SUBTOTAL(3,I$8:$N67)) ->  | M67: 2020-08-09 | P67: الاحد | Q67: =IF(N67="","",SUBTOTAL(3,$N$8:N67)) -> 
L68: =IF(I68="","",SUBTOTAL(3,I$8:$N68)) ->  | M68: 2020-08-10 | P68: الاثنين | Q68: =IF(N68="","",SUBTOTAL(3,$N$8:N68)) -> 
L69: =IF(I69="","",SUBTOTAL(3,I$8:$N69)) ->  | M69: 2020-08-11 | P69: الثلاثاء | Q69: =IF(N69="","",SUBTOTAL(3,$N$8:N69)) -> 
L70: =IF(I70="","",SUBTOTAL(3,I$8:$N70)) ->  | M70: 2020-08-12 | P70: الاربعاء | Q70: =IF(N70="","",SUBTOTAL(3,$N$8:N70)) -> 
L71: =IF(I71="","",SUBTOTAL(3,I$8:$N71)) ->  | M71: 2020-08-13 | P71: الخميس | Q71: =IF(N71="","",SUBTOTAL(3,$N$8:N71)) -> 
K72: =IF(H72="","",CHOOSE(WEEKDAY(H72),"الاحد","الاثنين","الثلاثاء","الاربعاء","الخميس","الجمعة","السبت")) ->  | L72: =IF(I72="","",SUBTOTAL(3,I$8:$N72)) ->  | M72: 2020-08-15 | P72: السبت | Q72: =IF(N72="","",SUBTOTAL(3,$N$8:N72)) -> 
L73: =IF(I73="","",SUBTOTAL(3,I$8:$N73)) ->  | M73: 2020-08-16 | P73: الاحد | Q73: =IF(N73="","",SUBTOTAL(3,$N$8:N73)) -> 
L74: =IF(I74="","",SUBTOTAL(3,I$8:$N74)) ->  | M74: 2020-08-17 | P74: الاثنين | Q74: =IF(N74="","",SUBTOTAL(3,$N$8:N74)) -> 
L75: =IF(I75="","",SUBTOTAL(3,I$8:$N75)) ->  | M75: 2020-08-18 | P75: الثلاثاء | Q75: =IF(N75="","",SUBTOTAL(3,$N$8:N75)) -> 
L76: =IF(I76="","",SUBTOTAL(3,I$8:$N76)) ->  | M76: 2020-08-19 | P76: الاربعاء | Q76: =IF(N76="","",SUBTOTAL(3,$N$8:N76)) -> 
L77: =IF(I77="","",SUBTOTAL(3,I$8:$N77)) ->  | M77: 2020-08-20 | P77: الخميس | Q77: =IF(N77="","",SUBTOTAL(3,$N$8:N77)) -> 
L78: =IF(I78="","",SUBTOTAL(3,I$8:$N78)) ->  | M78: 2020-08-22 | P78: السبت | Q78: =IF(N78="","",SUBTOTAL(3,$N$8:N78)) -> 
L79: =IF(I79="","",SUBTOTAL(3,I$8:$N79)) ->  | M79: 2020-08-23 | P79: الاحد | Q79: =IF(N79="","",SUBTOTAL(3,$N$8:N79)) -> 
L80: =IF(I80="","",SUBTOTAL(3,I$8:$N80)) ->  | M80: 2020-08-24 | P80: الاثنين | Q80: =IF(N80="","",SUBTOTAL(3,$N$8:N80)) -> 
L81: =IF(I81="","",SUBTOTAL(3,I$8:$N81)) ->  | M81: 2020-08-25 | P81: الثلاثاء | Q81: =IF(N81="","",SUBTOTAL(3,$N$8:N81)) -> 
L82: =IF(I82="","",SUBTOTAL(3,I$8:$N82)) ->  | M82: 2020-08-26 | P82: الاربعاء | Q82: =IF(N82="","",SUBTOTAL(3,$N$8:N82)) -> 
L83: =IF(I83="","",SUBTOTAL(3,I$8:$N83)) ->  | M83: 2020-08-27 | P83: الخميس | Q83: =IF(N83="","",SUBTOTAL(3,$N$8:N83)) -> 
L84: =IF(I84="","",SUBTOTAL(3,I$8:$N84)) ->  | M84: 2020-08-29 | P84: السبت | Q84: =IF(N84="","",SUBTOTAL(3,$N$8:N84)) -> 
L85: =IF(I85="","",SUBTOTAL(3,I$8:$N85)) ->  | M85: 2020-08-30 | P85: الاحد | Q85: =IF(N85="","",SUBTOTAL(3,$N$8:N85)) -> 
L86: =IF(I86="","",SUBTOTAL(3,I$8:$N86)) ->  | M86: 2020-08-31 | P86: الاثنين | Q86: =IF(N86="","",SUBTOTAL(3,$N$8:N86)) -> 
L87: =IF(I87="","",SUBTOTAL(3,I$8:$N87)) ->  | M87: 2020-09-01 | P87: الثلاثاء | Q87: =IF(N87="","",SUBTOTAL(3,$N$8:N87)) -> 
L88: =IF(I88="","",SUBTOTAL(3,I$8:$N88)) ->  | M88: 2020-09-02 | P88: الاربعاء | Q88: =IF(N88="","",SUBTOTAL(3,$N$8:N88)) -> 
L89: =IF(I89="","",SUBTOTAL(3,I$8:$N89)) ->  | M89: 2020-09-03 | P89: الخميس | Q89: =IF(N89="","",SUBTOTAL(3,$N$8:N89)) -> 
L90: =IF(I90="","",SUBTOTAL(3,I$8:$N90)) ->  | M90: 2020-09-05 | P90: السبت | Q90: =IF(N90="","",SUBTOTAL(3,$N$8:N90)) -> 
L91: =IF(I91="","",SUBTOTAL(3,I$8:$N91)) ->  | M91: 2020-09-06 | P91: الاحد | Q91: =IF(N91="","",SUBTOTAL(3,$N$8:N91)) -> 
L92: =IF(I92="","",SUBTOTAL(3,I$8:$N92)) ->  | M92: 2020-09-07 | P92: الاثنين | Q92: =IF(N92="","",SUBTOTAL(3,$N$8:N92)) -> 
L93: =IF(I93="","",SUBTOTAL(3,I$8:$N93)) ->  | M93: 2020-09-08 | P93: الثلاثاء | Q93: =IF(N93="","",SUBTOTAL(3,$N$8:N93)) -> 
L94: =IF(I94="","",SUBTOTAL(3,I$8:$N94)) ->  | M94: 2020-09-09 | P94: الاربعاء | Q94: =IF(N94="","",SUBTOTAL(3,$N$8:N94)) -> 
L95: =IF(I95="","",SUBTOTAL(3,I$8:$N95)) ->  | M95: 2020-09-10 | P95: الخميس | Q95: =IF(N95="","",SUBTOTAL(3,$N$8:N95)) -> 
L96: =IF(I96="","",SUBTOTAL(3,I$8:$N96)) ->  | M96: 2020-09-12 | P96: السبت | Q96: =IF(N96="","",SUBTOTAL(3,$N$8:N96)) -> 
L97: =IF(I97="","",SUBTOTAL(3,I$8:$N97)) ->  | M97: 2020-09-13 | P97: الاحد | Q97: =IF(N97="","",SUBTOTAL(3,$N$8:N97)) -> 
L98: =IF(I98="","",SUBTOTAL(3,I$8:$N98)) ->  | M98: 2020-09-14 | P98: الاثنين | Q98: =IF(N98="","",SUBTOTAL(3,$N$8:N98)) -> 
L99: =IF(I99="","",SUBTOTAL(3,I$8:$N99)) ->  | M99: 2020-09-15 | P99: الثلاثاء | Q99: =IF(N99="","",SUBTOTAL(3,$N$8:N99)) -> 
L100: =IF(I100="","",SUBTOTAL(3,I$8:$N100)) ->  | M100: 2020-09-16 | P100: الاربعاء | Q100: =IF(N100="","",SUBTOTAL(3,$N$8:N100)) -> 
L101: =IF(I101="","",SUBTOTAL(3,I$8:$N101)) ->  | M101: 2020-09-17 | P101: الخميس | Q101: =IF(N101="","",SUBTOTAL(3,$N$8:N101)) -> 
L102: =IF(I102="","",SUBTOTAL(3,I$8:$N102)) ->  | M102: 2020-09-19 | P102: السبت | Q102: =IF(N102="","",SUBTOTAL(3,$N$8:N102)) -> 
L103: =IF(I103="","",SUBTOTAL(3,I$8:$N103)) ->  | M103: 2020-09-20 | P103: الاحد | Q103: =IF(N103="","",SUBTOTAL(3,$N$8:N103)) -> 
Q104: =IF(N102="","",SUBTOTAL(3,$N$8:N102)) -> 
Q105: =IF(N103="","",SUBTOTAL(3,$N$8:N103)) -> 
Q106: =IF(N104="","",SUBTOTAL(3,$N$8:N104)) -> 
Q107: =IF(N105="","",SUBTOTAL(3,$N$8:N105)) -> 
Q108: =IF(N106="","",SUBTOTAL(3,$N$8:N106)) -> 
Q109: =IF(N107="","",SUBTOTAL(3,$N$8:N107)) -> 
Q110: =IF(N108="","",SUBTOTAL(3,$N$8:N108)) -> 
Q111: =IF(N109="","",SUBTOTAL(3,$N$8:N109)) -> 
Q112: =IF(N110="","",SUBTOTAL(3,$N$8:N110)) -> 
Q113: =IF(N111="","",SUBTOTAL(3,$N$8:N111)) -> 
Q114: =IF(N112="","",SUBTOTAL(3,$N$8:N112)) -> 
Q115: =IF(N113="","",SUBTOTAL(3,$N$8:N113)) -> 
Q116: =IF(N114="","",SUBTOTAL(3,$N$8:N114)) -> 
Q117: =IF(N115="","",SUBTOTAL(3,$N$8:N115)) -> 
Q118: =IF(N116="","",SUBTOTAL(3,$N$8:N116)) -> 

Sheet ورقة1
G4: العدد | H4: صافي الشهر | I4: العدد | J4: صافي الشهر | K4: العدد | L4: صافي الشهر | M4: العدد | N4: صافي الشهر | O4: العدد | P4: صافي الشهر | Q4: العدد | R4: صافي الشهر | S4: العدد | T4: صافي الشهر | U4: العدد | V4: صافي الشهر | W4: العدد | X4: صافي الشهر | Y4: العدد | Z4: صافي الشهر | AA4: العدد | AB4: صافي الشهر | AC4: العدد | AD4: صافي الشهر
G5: =SUBTOTAL(2,G9:G151) -> 31 | H5: =G6-H6 -> 269.6 | I5: =SUBTOTAL(2,I9:I151) -> 35 | J5: =I6-J6 -> 2844.7 | K5: =SUBTOTAL(2,K9:K151) -> 38 | L5: =K6-L6 -> 1227.65 | M5: =SUBTOTAL(2,M9:M151) -> 35 | N5: =M6-N6 -> 2147.25 | O5: =SUBTOTAL(2,O9:O151) -> 39 | P5: =O6-P6 -> 2387.3 | Q5: =SUBTOTAL(2,Q9:Q151) -> 54 | R5: =Q6-R6 -> 3224.95 | S5: =SUBTOTAL(2,S9:S151) -> 76 | T5: =S6-T6 -> 595.5 | U5: =SUBTOTAL(2,U9:U151) -> 16 | V5: =U6-V6 -> 88 | W5: =SUBTOTAL(2,W9:W151) -> 0 | X5: =W6-X6 -> 0 | Y5: =SUBTOTAL(2,Y9:Y151) -> 0 | Z5: =Y6-Z6 -> 0 | AA5: =SUBTOTAL(2,AA9:AA151) -> 0 | AB5: =AA6-AB6 -> 0 | AC5: =SUBTOTAL(2,AC9:AC151) -> 0 | AD5: =AC6-AD6 -> 0
B6: الاجمالي | D6: =TODAY() -> 2020-08-04 | F6: =SUM(F9:F205) -> 10003.25 | G6: =SUM(G9:G205) -> 5213.45 | H6: 4943.85 | I6: =SUM(I9:I205) -> 5207.45 | J6: =SUM(J9:J205) -> 2362.75 | K6: =SUM(K9:K205) -> 4518.1 | L6: 3290.45 | M6: =SUM(M9:M205) -> 5800.4 | N6: 3653.15 | O6: 5706.05 | P6: 3318.75 | Q6: 8294.7 | R6: 5069.75 | S6: 9054.25 | T6: 8458.75 | U6: 1096 | V6: 1008 | W6: 0 | X6: 0 | Y6: 0 | Z6: 0 | AA6: 0 | AB6: 0 | AC6: 0 | AD6: 0 | AE6: =(F6+G6+I6+K6+M6+O6+Q6+S6+U6+W6+Y6+AA6+AC6)-(H6+J6+L6+N6+P6+R6+T6+V6+X6+Z6+AB6+AD6) -> 22788.2 | AF6: =SUM(AE9:AE97) -> 14560.45 | AL6: q r | AM6: s t | AN6: u v | AO6: w x | AP6: y z
AF7: الشهر | AG7: 1 | AH7: 2 | AI7: 3 | AJ7: 4 | AK7: 5 | AL7: 6 | AM7: 7 | AN7: 8 | AO7: 9 | AP7: 10 | AQ7: 11 | AR7: 12
A8: الكود | B8: م | C8: الاسم | D8: اجمالي الحساب | F8: رصيد اول المدة | G8: شهر 1 | H8: تنزيلات شهر1 | I8: شهر 2 | J8: تنزيلات شهر2 | K8: شهر 3 | L8: تنزيلات شهر3 | M8: شهر 4 | N8: تنزيلات شهر4 | O8: شهر 5 | P8: تنزيلات شهر5 | Q8: شهر 6 | R8: تنزيلات شهر6 | S8: شهر 7 | T8: تنزيلات شهر7 | U8: شهر 8 | V8: تنزيلات شهر8 | W8: شهر 9 | X8: تنزيلات شهر9 | Y8: شهر 10 | Z8: تنزيلات شهر10 | AA8: شهر 11 | AB8: تنزيلات شهر11 | AC8: شهر 12 | AD8: تنزيلات شهر12 | AE8: الصافي | AG8: =SUM(AG9:AG205) -> 3358.3 | AH8: =SUM(AH9:AH205) -> 1659.45 | AI8: 1589 | AJ8: 1701.15 | AK8: 1546.5 | AL8: 3232.05 | AM8: 3902.75 | AN8: 180 | AO8: 0 | AP8: 0 | AQ8: 0 | AR8: 0
A9: 1002 | B9: =IF(C9="","",SUBTOTAL(3,$C$9:C9)) -> 1 | C9: محمد عبد الناصر ابو بكر | D9: =AE9 -> 282.5 | E9: =A9 -> 1002 | F9: 267.5 | G9: =IFERROR(VLOOKUP(A9,'شهر 1'!$A$9:$AK$46,37,0),"0") -> 0 | I9: =IFERROR(VLOOKUP(A9,'شهر 2'!$A$9:$AK$43,37,0),"0") -> 0 | K9: =IFERROR(VLOOKUP(A9,'سهر 3'!$A$9:$AK$46,37,0),"0") -> 0 | M9: =IFERROR(VLOOKUP(A9,'شهر 4'!$A$9:$AK$43,37,0),"0") -> 0 | N9: 0 | O9: =IFERROR(VLOOKUP(A9,'شهر 5'!$A$9:$AK$47,37,0),"0") -> 0 | P9: 0 | Q9: =IFERROR(VLOOKUP(A9,شهر6!$A$9:$AK$62,37,0),"0") -> 15 | S9: =IFERROR(VLOOKUP(A9,'شهر 7'!$A$9:$AK$84,37,0),"0") -> 0 | U9: =IFERROR(VLOOKUP(A9,'شهر 8'!$A$9:$AK$78,37,0),"0") -> 0 | W9: =IFERROR(VLOOKUP(A9,'شهر 9'!$A$9:$AK$78,37,0),"0") -> 0 | Y9: =IFERROR(VLOOKUP(A9,'شهر 10'!$A$9:$AK$78,37,0),"0") -> 0 | AA9: =IFERROR(VLOOKUP(A9,'شهر 11'!$A$9:$AK$78,37,0),"0") -> 0 | AC9: =IFERROR(VLOOKUP(A9,'شهر 12'!$A$9:$AK$78,37,0),"0") -> 0 | AE9: =SUM(F9,G9,I9,K9,M9,O9,Q9,S9,U9,W9,Y9,AA9,AC9)-SUM(H9,J9,L9,N9,P9,R9,T9,V9,X9,AB9,AD9) -> 282.5 | AG9: =IF(G9="0","0",IF(H9="0","0",IF(G9>H9,H9,IF(G9=H9,G9,IF(G9<H9,G9,))))) -> 0 | AH9: =IF($I9="0","0",IF($J9="0","0",IF($I9>$J9,$J9,IF($I9=$J9,"0",IF($I9<$J9,$I9,))))) -> 0 | AI9: =IF(K9="0","0",IF(L9="0","0",IF(K9>L9,L9,IF(K9=L9,K9,IF(K9<L9,K9,))))) -> 0 | AJ9: =IF(M9="0","0",IF(N9="0","0",IF(M9>N9,N9,IF(M9=N9,M9,IF(M9<N9,M9,))))) -> 0 | AK9: =IF($O9="0","0",IF($P9="0","0",IF($O9>$P9,$P9,IF($O9=$P9,$O9,IF($O9<$P9,$O9,))))) -> 0 | AL9: =IF($Q9="0","0",IF($R9="0","0",IF($Q9>$R9,$R9,IF($Q9=$R9,$Q9,IF($Q9<$R9,$Q9,))))) -> 0 | AM9: =IF(S9="0","0",IF(T9="0","0",IF(S9>T9,T9,IF(S9=T9,T9,IF(S9<T9,S9,))))) -> 0 | AN9: =IF(U9="0","0",IF(V9="0","0",IF(U9>V9,V9,IF(U9=V9,U9,IF(U9<V9,U9,))))) -> 0 | AO9: =IF(W9="0","0",IF(X9="0","0",IF(W9>X9,X9,IF(W9=X9,W9,IF(W9<X9,W9,))))) -> 0 | AP9: =IF(Y9="0","0",IF(Z9="0","0",IF(Y9>Z9,Z9,IF(Y9=Z9,Y9,IF(Y9<Z9,Y9,))))) -> 0 | AQ9: =IF(S9="0","0",IF(T9="0","0",IF(S9>T9,S9,IF(S9=T9,"0",IF(S9<T9,S9,))))) -> 0 | AR9: =IF(T9="0","0",IF(U9="0","0",IF(T9>U9,T9,IF(T9=U9,"0",IF(T9<U9,T9,))))) -> 0
A10: 1003 | B10: =IF(C10="","",SUBTOTAL(3,$C$9:C10)) -> 2 | C10: رضا جمعة حسين | D10: =AE10 -> 1056.3 | E10: =A10 -> 1003 | F10: 823.8 | G10: =IFERROR(VLOOKUP(A10,'شهر 1'!$A$9:$AK$46,37,0),"0") -> 49.25 | I10: =IFERROR(VLOOKUP(A10,'شهر 2'!$A$9:$AK$43,37,0),"0") -> 182.25 | J10: 45 | K10: =IFERROR(VLOOKUP(A10,'سهر 3'!$A$9:$AK$46,37,0),"0") -> 0 | M10: =IFERROR(VLOOKUP(A10,'شهر 4'!$A$9:$AK$43,37,0),"0") -> 24 | N10: 0 | O10: =IFERROR(VLOOKUP(A10,'شهر 5'!$A$9:$AK$47,37,0),"0") -> 0 | P10: 0 | Q10: =IFERROR(VLOOKUP(A10,شهر6!$A$9:$AK$62,37,0),"0") -> 0 | S10: =IFERROR(VLOOKUP(A10,'شهر 7'!$A$9:$AK$84,37,0),"0") -> 22 | U10: =IFERROR(VLOOKUP(A10,'شهر 8'!$A$9:$AK$78,37,0),"0") -> 0 | W10: =IFERROR(VLOOKUP(A10,'شهر 9'!$A$9:$AK$78,37,0),"0") -> 0 | Y10: =IFERROR(VLOOKUP(A10,'شهر 10'!$A$9:$AK$78,37,0),"0") -> 0 | AA10: =IFERROR(VLOOKUP(A10,'شهر 11'!$A$9:$AK$78,37,0),"0") -> 0 | AC10: =IFERROR(VLOOKUP(A10,'شهر 12'!$A$9:$AK$78,37,0),"0") -> 0 | AE10: 1056.3 | AG10: =IF(G10="0","0",IF(H10="0","0",IF(G10>H10,H10,IF(G10=H10,G10,IF(G10<H10,G10,))))) -> 0 | AH10: =IF(I10="0","0",IF(J10="0","0",IF(I10>J10,J10,IF(I10=J10,"0",IF(I10<J10,I10,))))) -> 45 | AI10: =IF(K10="0","0",IF(L10="0","0",IF(K10>L10,L10,IF(K10=L10,K10,IF(K10<L10,K10,))))) -> 0 | AJ10: =IF(M10="0","0",IF(N10="0","0",IF(M10>N10,N10,IF(M10=N10,M10,IF(M10<N10,M10,))))) -> 0 | AK10: =IF($O10="0","0",IF($P10="0","0",IF($O10>$P10,$P10,IF($O10=$P10,$O10,IF($O10<$P10,$O10,))))) -> 0 | AL10: =IF($Q10="0","0",IF($R10="0","0",IF($Q10>$R10,$R10,IF($Q10=$R10,$Q10,IF($Q10<$R10,$Q10,))))) -> 0 | AM10: =IF(S10="0","0",IF(T10="0","0",IF(S10>T10,T10,IF(S10=T10,T10,IF(S10<T10,S10,))))) -> 0 | AN10: =IF(U10="0","0",IF(V10="0","0",IF(U10>V10,V10,IF(U10=V10,U10,IF(U10<V10,U10,))))) -> 0 | AO10: =IF(W10="0","0",IF(X10="0","0",IF(W10>X10,X10,IF(W10=X10,W10,IF(W10<X10,W10,))))) -> 0 | AP10: =IF(Y10="0","0",IF(Z10="0","0",IF(Y10>Z10,Z10,IF(Y10=Z10,Y10,IF(Y10<Z10,Y10,))))) -> 0
A11: 1004 | B11: =IF(C11="","",SUBTOTAL(3,$C$9:C11)) -> 3 | C11: حمدان | D11: 81.5 | E11: 1004 | F11: 81.5 | G11: =IFERROR(VLOOKUP(A11,'شهر 1'!$A$9:$AK$46,37,0),"0") -> 0 | I11: =IFERROR(VLOOKUP(A11,'شهر 2'!$A$9:$AK$43,37,0),"0") -> 0 | K11: =IFERROR(VLOOKUP(A11,'سهر 3'!$A$9:$AK$46,37,0),"0") -> 0 | M11: =IFERROR(VLOOKUP(A11,'شهر 4'!$A$9:$AK$43,37,0),"0") -> 0 | N11: 0 | O11: =IFERROR(VLOOKUP(A11,'شهر 5'!$A$9:$AK$47,37,0),"0") -> 0 | P11: 0 | Q11: =IFERROR(VLOOKUP(A11,شهر6!$A$9:$AK$62,37,0),"0") -> 0 | S11: =IFERROR(VLOOKUP(A11,'شهر 7'!$A$9:$AK$84,37,0),"0") -> 0 | U11: =IFERROR(VLOOKUP(A11,'شهر 8'!$A$9:$AK$78,37,0),"0") -> 0 | W11: =IFERROR(VLOOKUP(A11,'شهر 9'!$A$9:$AK$78,37,0),"0") -> 0 | Y11: =IFERROR(VLOOKUP(A11,'شهر 10'!$A$9:$AK$78,37,0),"0") -> 0 | AA11: =IFERROR(VLOOKUP(A11,'شهر 11'!$A$9:$AK$78,37,0),"0") -> 0 | AC11: =IFERROR(VLOOKUP(A11,'شهر 12'!$A$9:$AK$78,37,0),"0") -> 0 | AE11: 81.5 | AG11: 0 | AH11: 0 | AI11: 0 | AJ11: 0 | AK11: 0 | AL11: 0 | AM11: 0 | AN11: 0 | AO11: 0 | AP11: 0
A12: 1005 | B12: =IF(C12="","",SUBTOTAL(3,$C$9:C12)) -> 4 | C12: ام علي | D12: 117.5 | E12: 1005 | F12: 117.5 | G12: =IFERROR(VLOOKUP(A12,'شهر 1'!$A$9:$AK$46,37,0),"0") -> 0 | I12: =IFERROR(VLOOKUP(A12,'شهر 2'!$A$9:$AK$43,37,0),"0") -> 0 | K12: =IFERROR(VLOOKUP(A12,'سهر 3'!$A$9:$AK$46,37,0),"0") -> 0 | M12: =IFERROR(VLOOKUP(A12,'شهر 4'!$A$9:$AK$43,37,0),"0") -> 0 | N12: 0 | O12: =IFERROR(VLOOKUP(A12,'شهر 5'!$A$9:$AK$47,37,0),"0") -> 0 | P12: 0 | Q12: =IFERROR(VLOOKUP(A12,شهر6!$A$9:$AK$62,37,0),"0") -> 0 | S12: =IFERROR(VLOOKUP(A12,'شهر 7'!$A$9:$AK$84,37,0),"0") -> 0 | U12: =IFERROR(VLOOKUP(A12,'شهر 8'!$A$9:$AK$78,37,0),"0") -> 0 | W12: =IFERROR(VLOOKUP(A12,'شهر 9'!$A$9:$AK$78,37,0),"0") -> 0 | Y12: =IFERROR(VLOOKUP(A12,'شهر 10'!$A$9:$AK$78,37,0),"0") -> 0 | AA12: =IFERROR(VLOOKUP(A12,'شهر 11'!$A$9:$AK$78,37,0),"0") -> 0 | AC12: =IFERROR(VLOOKUP(A12,'شهر 12'!$A$9:$AK$78,37,0),"0") -> 0 | AE12: 117.5 | AG12: 0 | AH12: 0 | AI12: 0 | AJ12: 0 | AK12: 0 | AL12: 0 | AM12: 0 | AN12: 0 | AO12: 0 | AP12: 0
A13: 1006 | B13: =IF(C13="","",SUBTOTAL(3,$C$9:C13)) -> 5 | C13: مجدي عيسي | D13: 212.75 | E13: 1006 | F13: 212.75 | G13: =IFERROR(VLOOKUP(A13,'شهر 1'!$A$9:$AK$46,37,0),"0") -> 0 | I13: =IFERROR(VLOOKUP(A13,'شهر 2'!$A$9:$AK$43,37,0),"0") -> 0 | K13: =IFERROR(VLOOKUP(A13,'سهر 3'!$A$9:$AK$46,37,0),"0") -> 0 | M13: =IFERROR(VLOOKUP(A13,'شهر 4'!$A$9:$AK$43,37,0),"0") -> 0 | N13: 0 | O13: =IFERROR(VLOOKUP(A13,'شهر 5'!$A$9:$AK$47,37,0),"0") -> 0 | P13: 0 | Q13: =IFERROR(VLOOKUP(A13,شهر6!$A$9:$AK$62,37,0),"0") -> 0 | S13: =IFERROR(VLOOKUP(A13,'شهر 7'!$A$9:$AK$84,37,0),"0") -> 0 | U13: =IFERROR(VLOOKUP(A13,'شهر 8'!$A$9:$AK$78,37,0),"0") -> 0 | W13: =IFERROR(VLOOKUP(A13,'شهر 9'!$A$9:$AK$78,37,0),"0") -> 0 | Y13: =IFERROR(VLOOKUP(A13,'شهر 10'!$A$9:$AK$78,37,0),"0") -> 0 | AA13: =IFERROR(VLOOKUP(A13,'شهر 11'!$A$9:$AK$78,37,0),"0") -> 0 | AC13: =IFERROR(VLOOKUP(A13,'شهر 12'!$A$9:$AK$78,37,0),"0") -> 0 | AE13: 212.75 | AG13: 0 | AH13: 0 | AI13: 0 | AJ13: 0 | AK13: 0 | AL13: 0 | AM13: 0 | AN13: 0 | AO13: 0 | AP13: 0
A14: 1007 | B14: =IF(C14="","",SUBTOTAL(3,$C$9:C14)) -> 6 | C14: عبد اللطيف محمود | D14: 26.5 | E14: 1007 | F14: 26.5 | G14: =IFERROR(VLOOKUP(A14,'شهر 1'!$A$9:$AK$46,37,0),"0") -> 0 | I14: =IFERROR(VLOOKUP(A14,'شهر 2'!$A$9:$AK$43,37,0),"0") -> 0 | K14: =IFERROR(VLOOKUP(A14,'سهر 3'!$A$9:$AK$46,37,0),"0") -> 0 | M14: =IFERROR(VLOOKUP(A14,'شهر 4'!$A$9:$AK$43,37,0),"0") -> 0 | N14: 0 | O14: =IFERROR(VLOOKUP(A14,'شهر 5'!$A$9:$AK$47,37,0),"0") -> 0 | P14: 0 | Q14: =IFERROR(VLOOKUP(A14,شهر6!$A$9:$AK$62,37,0),"0") -> 0 | S14: =IFERROR(VLOOKUP(A14,'شهر 7'!$A$9:$AK$84,37,0),"0") -> 0 | U14: =IFERROR(VLOOKUP(A14,'شهر 8'!$A$9:$AK$78,37,0),"0") -> 0 | W14: =IFERROR(VLOOKUP(A14,'شهر 9'!$A$9:$AK$78,37,0),"0") -> 0 | Y14: =IFERROR(VLOOKUP(A14,'شهر 10'!$A$9:$AK$78,37,0),"0") -> 0 | AA14: =IFERROR(VLOOKUP(A14,'شهر 11'!$A$9:$AK$78,37,0),"0") -> 0 | AC14: =IFERROR(VLOOKUP(A14,'شهر 12'!$A$9:$AK$78,37,0),"0") -> 0 | AE14: 26.5 | AG14: 0 | AH14: 0 | AI14: 0 | AJ14: 0 | AK14: 0 | AL14: 0 | AM14: 0 | AN14: 0 | AO14: 0 | AP14: 0
A15: 1008 | B15: =IF(C15="","",SUBTOTAL(3,$C$9:C15)) -> 7 | C15: محمد ابو الحمد | D15: 92.5 | E15: 1008 | F15: 92.5 | G15: =IFERROR(VLOOKUP(A15,'شهر 1'!$A$9:$AK$46,37,0),"0") -> 0 | I15: =IFERROR(VLOOKUP(A15,'شهر 2'!$A$9:$AK$43,37,0),"0") -> 0 | K15: =IFERROR(VLOOKUP(A15,'سهر 3'!$A$9:$AK$46,37,0),"0") -> 0 | M15: =IFERROR(VLOOKUP(A15,'شهر 4'!$A$9:$AK$43,37,0),"0") -> 0 | N15: 0 | O15: =IFERROR(VLOOKUP(A15,'شهر 5'!$A$9:$AK$47,37,0),"0") -> 0 | P15: 0 | Q15: =IFERROR(VLOOKUP(A15,شهر6!$A$9:$AK$62,37,0),"0") -> 0 | S15: =IFERROR(VLOOKUP(A15,'شهر 7'!$A$9:$AK$84,37,0),"0") -> 0 | U15: =IFERROR(VLOOKUP(A15,'شهر 8'!$A$9:$AK$78,37,0),"0") -> 0 | W15: =IFERROR(VLOOKUP(A15,'شهر 9'!$A$9:$AK$78,37,0),"0") -> 0 | Y15: =IFERROR(VLOOKUP(A15,'شهر 10'!$A$9:$AK$78,37,0),"0") -> 0 | AA15: =IFERROR(VLOOKUP(A15,'شهر 11'!$A$9:$AK$78,37,0),"0") -> 0 | AC15: =IFERROR(VLOOKUP(A15,'شهر 12'!$A$9:$AK$78,37,0),"0") -> 0 | AE15: 92.5 | AG15: 0 | AH15: 0 | AI15: 0 | AJ15: 0 | AK15: 0 | AL15: 0 | AM15: 0 | AN15: 0 | AO15: 0 | AP15: 0
A16: 1009 | B16: =IF(C16="","",SUBTOTAL(3,$C$9:C16)) -> 8 | C16: احمد زكي | D16: 86 | E16: 1009 | F16: 116 | G16: =IFERROR(VLOOKUP(A16,'شهر 1'!$A$9:$AK$46,37,0),"0") -> 0 | I16: =IFERROR(VLOOKUP(A16,'شهر 2'!$A$9:$AK$43,37,0),"0") -> 0 | K16: =IFERROR(VLOOKUP(A16,'سهر 3'!$A$9:$AK$46,37,0),"0") -> 0 | M16: =IFERROR(VLOOKUP(A16,'شهر 4'!$A$9:$AK$43,37,0),"0") -> 0 | N16: 0 | O16: =IFERROR(VLOOKUP(A16,'شهر 5'!$A$9:$AK$47,37,0),"0") -> 0 | P16: 0 | Q16: =IFERROR(VLOOKUP(A16,شهر6!$A$9:$AK$62,37,0),"0") -> 0 | S16: =IFERROR(VLOOKUP(A16,'شهر 7'!$A$9:$AK$84,37,0),"0") -> 0 | T16: 30 | U16: =IFERROR(VLOOKUP(A16,'شهر 8'!$A$9:$AK$78,37,0),"0") -> 0 | W16: =IFERROR(VLOOKUP(A16,'شهر 9'!$A$9:$AK$78,37,0),"0") -> 0 | Y16: =IFERROR(VLOOKUP(A16,'شهر 10'!$A$9:$AK$78,37,0),"0") -> 0 | AA16: =IFERROR(VLOOKUP(A16,'شهر 11'!$A$9:$AK$78,37,0),"0") -> 0 | AC16: =IFERROR(VLOOKUP(A16,'شهر 12'!$A$9:$AK$78,37,0),"0") -> 0 | AE16: 86 | AG16: 0 | AH16: 0 | AI16: 0 | AJ16: 0 | AK16: 0 | AL16: 0 | AM16: 0 | AN16: 0 | AO16: 0 | AP16: 0
A17: 1010 | B17: =IF(C17="","",SUBTOTAL(3,$C$9:C17)) -> 9 | C17: شعبان احمد طه | D17: 83 | E17: 1010 | F17: 130 | G17: =IFERROR(VLOOKUP(A17,'شهر 1'!$A$9:$AK$46,37,0),"0") -> 0 | H17: 50 | I17: =IFERROR(VLOOKUP(A17,'شهر 2'!$A$9:$AK$43,37,0),"0") -> 0 | J17: 13.5 | K17: =IFERROR(VLOOKUP(A17,'سهر 3'!$A$9:$AK$46,37,0),"0") -> 0 | M17: =IFERROR(VLOOKUP(A17,'شهر 4'!$A$9:$AK$43,37,0),"0") -> 0 | N17: 0 | O17: =IFERROR(VLOOKUP(A17,'شهر 5'!$A$9:$AK$47,37,0),"0") -> 0 | P17: 0 | Q17: =IFERROR(VLOOKUP(A17,شهر6!$A$9:$AK$62,37,0),"0") -> 0 | S17: =IFERROR(VLOOKUP(A17,'شهر 7'!$A$9:$AK$84,37,0),"0") -> 16.5 | U17: =IFERROR(VLOOKUP(A17,'شهر 8'!$A$9:$AK$78,37,0),"0") -> 0 | W17: =IFERROR(VLOOKUP(A17,'شهر 9'!$A$9:$AK$78,37,0),"0") -> 0 | Y17: =IFERROR(VLOOKUP(A17,'شهر 10'!$A$9:$AK$78,37,0),"0") -> 0 | AA17: =IFERROR(VLOOKUP(A17,'شهر 11'!$A$9:$AK$78,37,0),"0") -> 0 | AC17: =IFERROR(VLOOKUP(A17,'شهر 12'!$A$9:$AK$78,37,0),"0") -> 0 | AE17: 83 | AG17: 0 | AH17: 0 | AI17: 0 | AJ17: 0 | AK17: 0 | AL17: 0 | AM17: 0 | AN17: 0 | AO17: 0 | AP17: 0
A18: 1011 | B18: =IF(C18="","",SUBTOTAL(3,$C$9:C18)) -> 10 | C18: =IFERROR(VLOOKUP($A18,'شهر 7'!$A$9:$C$84,3,0),"") -> جمال صدقي | D18: 69.5 | E18: 1011 | G18: =IFERROR(VLOOKUP(A18,'شهر 1'!$A$9:$AK$46,37,0),"0") -> 0 | I18: =IFERROR(VLOOKUP(A18,'شهر 2'!$A$9:$AK$43,37,0),"0") -> 0 | K18: =IFERROR(VLOOKUP(A18,'سهر 3'!$A$9:$AK$46,37,0),"0") -> 0 | M18: =IFERROR(VLOOKUP(A18,'شهر 4'!$A$9:$AK$43,37,0),"0") -> 0 | N18: 0 | O18: =IFERROR(VLOOKUP(A18,'شهر 5'!$A$9:$AK$47,37,0),"0") -> 0 | P18: 0 | Q18: =IFERROR(VLOOKUP(A18,شهر6!$A$9:$AK$62,37,0),"0") -> 0 | S18: =IFERROR(VLOOKUP(A18,'شهر 7'!$A$9:$AK$84,37,0),"0") -> 122 | T18: =24.5+20 -> 44.5 | U18: =IFERROR(VLOOKUP(A18,'شهر 8'!$A$9:$AK$78,37,0),"0") -> 0 | V18: 8 | W18: =IFERROR(VLOOKUP(A18,'شهر 9'!$A$9:$AK$78,37,0),"0") -> 0 | Y18: =IFERROR(VLOOKUP(A18,'شهر 10'!$A$9:$AK$78,37,0),"0") -> 0 | AA18: =IFERROR(VLOOKUP(A18,'شهر 11'!$A$9:$AK$78,37,0),"0") -> 0 | AC18: =IFERROR(VLOOKUP(A18,'شهر 12'!$A$9:$AK$78,37,0),"0") -> 0 | AE18: 69.5 | AG18: 0 | AH18: 0 | AI18: 0 | AJ18: 0 | AK18: 0 | AL18: 0 | AM18: 44.5 | AN18: 0 | AO18: 0 | AP18: 0
A19: 1012 | B19: =IF(C19="","",SUBTOTAL(3,$C$9:C19)) -> 11 | C19: ام سعودي عبد الله | D19: 552 | E19: 1012 | F19: 492.25 | G19: =IFERROR(VLOOKUP(A19,'شهر 1'!$A$9:$AK$46,37,0),"0") -> 0 | H19: 200 | I19: =IFERROR(VLOOKUP(A19,'شهر 2'!$A$9:$AK$43,37,0),"0") -> 264.75 | K19: =IFERROR(VLOOKUP(A19,'سهر 3'!$A$9:$AK$46,37,0),"0") -> 48.75 | L19: 250 | M19: =IFERROR(VLOOKUP(A19,'شهر 4'!$A$9:$AK$43,37,0),"0") -> 56.25 | N19: 0 | O19: =IFERROR(VLOOKUP(A19,'شهر 5'!$A$9:$AK$47,37,0),"0") -> 77 | P19: 0 | Q19: =IFERROR(VLOOKUP(A19,شهر6!$A$9:$AK$62,37,0),"0") -> 0 | S19: =IFERROR(VLOOKUP(A19,'شهر 7'!$A$9:$AK$84,37,0),"0") -> 63 | U19: =IFERROR(VLOOKUP(A19,'شهر 8'!$A$9:$AK$78,37,0),"0") -> 0 | W19: =IFERROR(VLOOKUP(A19,'شهر 9'!$A$9:$AK$78,37,0),"0") -> 0 | Y19: =IFERROR(VLOOKUP(A19,'شهر 10'!$A$9:$AK$78,37,0),"0") -> 0 | AA19: =IFERROR(VLOOKUP(A19,'شهر 11'!$A$9:$AK$78,37,0),"0") -> 0 | AC19: =IFERROR(VLOOKUP(A19,'شهر 12'!$A$9:$AK$78,37,0),"0") -> 0 | AE19: 552 | AG19: 0 | AH19: 0 | AI19: 48.75 | AJ19: 0 | AK19: 0 | AL19: 0 | AM19: 0 | AN19: 0 | AO19: 0 | AP19: 0
A20: 1013 | B20: =IF(C20="","",SUBTOTAL(3,$C$9:C20)) -> 12 | C20: احمد الشيخ عيد | D20: 508.75 | E20: 1013 | F20: 263.5 | G20: =IFERROR(VLOOKUP(A20,'شهر 1'!$A$9:$AK$46,37,0),"0") -> 304 | I20: =IFERROR(VLOOKUP(A20,'شهر 2'!$A$9:$AK$43,37,0),"0") -> 131.5 | K20: =IFERROR(VLOOKUP(A20,'سهر 3'!$A$9:$AK$46,37,0),"0") -> 0 | L20: 240 | M20: =IFERROR(VLOOKUP(A20,'شهر 4'!$A$9:$AK$43,37,0),"0") -> 0 | N20: 240 | O20: =IFERROR(VLOOKUP(A20,'شهر 5'!$A$9:$AK$47,37,0),"0") -> 0 | P20: 0 | Q20: =IFERROR(VLOOKUP(A20,شهر6!$A$9:$AK$62,37,0),"0") -> 473.25 | R20: 183.5 | S20: =IFERROR(VLOOKUP(A20,'شهر 7'!$A$9:$AK$84,37,0),"0") -> 0 | U20: =IFERROR(VLOOKUP(A20,'شهر 8'!$A$9:$AK$78,37,0),"0") -> 0 | W20: =IFERROR(VLOOKUP(A20,'شهر 9'!$A$9:$AK$78,37,0),"0") -> 0 | Y20: =IFERROR(VLOOKUP(A20,'شهر 10'!$A$9:$AK$78,37,0),"0") -> 0 | AA20: =IFERROR(VLOOKUP(A20,'شهر 11'!$A$9:$AK$78,37,0),"0") -> 0 | AC20: =IFERROR(VLOOKUP(A20,'شهر 12'!$A$9:$AK$78,37,0),"0") -> 0 | AE20: 508.75 | AG20: 0 | AH20: 0 | AI20: 0 | AJ20: 0 | AK20: 0 | AL20: 183.5 | AM20: 0 | AN20: 0 | AO20: 0 | AP20: 0
A21: 1014 | B21: =IF(C21="","",SUBTOTAL(3,$C$9:C21)) -> 13 | C21: عادل عاشور | D21: 400 | E21: 1014 | F21: 400 | G21: =IFERROR(VLOOKUP(A21,'شهر 1'!$A$9:$AK$46,37,0),"0") -> 0 | I21: =IFERROR(VLOOKUP(A21,'شهر 2'!$A$9:$AK$43,37,0),"0") -> 0 | K21: =IFERROR(VLOOKUP(A21,'سهر 3'!$A$9:$AK$46,37,0),"0") -> 0 | M21: =IFERROR(VLOOKUP(A21,'شهر 4'!$A$9:$AK$43,37,0),"0") -> 0 | N21: 0 | O21: =IFERROR(VLOOKUP(A21,'شهر 5'!$A$9:$AK$47,37,0),"0") -> 0 | P21: 0 | Q21: =IFERROR(VLOOKUP(A21,شهر6!$A$9:$AK$62,37,0),"0") -> 0 | S21: =IFERROR(VLOOKUP(A21,'شهر 7'!$A$9:$AK$84,37,0),"0") -> 0 | U21: =IFERROR(VLOOKUP(A21,'شهر 8'!$A$9:$AK$78,37,0),"0") -> 0 | W21: =IFERROR(VLOOKUP(A21,'شهر 9'!$A$9:$AK$78,37,0),"0") -> 0 | Y21: =IFERROR(VLOOKUP(A21,'شهر 10'!$A$9:$AK$78,37,0),"0") -> 0 | AA21: =IFERROR(VLOOKUP(A21,'شهر 11'!$A$9:$AK$78,37,0),"0") -> 0 | AC21: =IFERROR(VLOOKUP(A21,'شهر 12'!$A$9:$AK$78,37,0),"0") -> 0 | AE21: 400 | AG21: 0 | AH21: 0 | AI21: 0 | AJ21: 0 | AK21: 0 | AL21: 0 | AM21: 0 | AN21: 0 | AO21: 0 | AP21: 0
A22: 1015 | B22: =IF(C22="","",SUBTOTAL(3,$C$9:C22)) -> 14 | C22: هيثم عزام | D22: 250.5 | E22: 1015 | F22: 1648.35 | G22: =IFERROR(VLOOKUP(A22,'شهر 1'!$A$9:$AK$46,37,0),"0") -> 726.3 | H22: 1339.1 | I22: =IFERROR(VLOOKUP(A22,'شهر 2'!$A$9:$AK$43,37,0),"0") -> 471.75 | K22: =IFERROR(VLOOKUP(A22,'سهر 3'!$A$9:$AK$46,37,0),"0") -> 341 | M22: =IFERROR(VLOOKUP(A22,'شهر 4'!$A$9:$AK$43,37,0),"0") -> 886 | N22: 2048.3 | O22: =IFERROR(VLOOKUP(A22,'شهر 5'!$A$9:$AK$47,37,0),"0") -> 813.3 | P22: 0 | Q22: =IFERROR(VLOOKUP(A22,شهر6!$A$9:$AK$62,37,0),"0") -> 756.75 | R22: 91 | S22: =IFERROR(VLOOKUP(A22,'شهر 7'!$A$9:$AK$84,37,0),"0") -> 366.75 | T22: 2281.3 | U22: =IFERROR(VLOOKUP(A22,'شهر 8'!$A$9:$AK$78,37,0),"0") -> 0 | W22: =IFERROR(VLOOKUP(A22,'شهر 9'!$A$9:$AK$78,37,0),"0") -> 0 | Y22: =IFERROR(VLOOKUP(A22,'شهر 10'!$A$9:$AK$78,37,0),"0") -> 0 | AA22: =IFERROR(VLOOKUP(A22,'شهر 11'!$A$9:$AK$78,37,0),"0") -> 0 | AC22: =IFERROR(VLOOKUP(A22,'شهر 12'!$A$9:$AK$78,37,0),"0") -> 0 | AE22: 250.5 | AG22: 726.3 | AH22: 0 | AI22: 0 | AJ22: 886 | AK22: 0 | AL22: 91 | AM22: 366.75 | AN22: 0 | AO22: 0 | AP22: 0
A23: 1016 | B23: =IF(C23="","",SUBTOTAL(3,$C$9:C23)) -> 15 | C23: محمد سامي عزام | D23: 25 | E23: 1016 | F23: 25 | G23: =IFERROR(VLOOKUP(A23,'شهر 1'!$A$9:$AK$46,37,0),"0") -> 0 | I23: =IFERROR(VLOOKUP(A23,'شهر 2'!$A$9:$AK$43,37,0),"0") -> 0 | K23: =IFERROR(VLOOKUP(A23,'سهر 3'!$A$9:$AK$46,37,0),"0") -> 0 | M23: =IFERROR(VLOOKUP(A23,'شهر 4'!$A$9:$AK$43,37,0),"0") -> 0 | N23: 0 | O23: =IFERROR(VLOOKUP(A23,'شهر 5'!$A$9:$AK$47,37,0),"0") -> 0 | P23: 0 | Q23: =IFERROR(VLOOKUP(A23,شهر6!$A$9:$AK$62,37,0),"0") -> 0 | S23: =IFERROR(VLOOKUP(A23,'شهر 7'!$A$9:$AK$84,37,0),"0") -> 0 | U23: =IFERROR(VLOOKUP(A23,'شهر 8'!$A$9:$AK$78,37,0),"0") -> 0 | W23: =IFERROR(VLOOKUP(A23,'شهر 9'!$A$9:$AK$78,37,0),"0") -> 0 | Y23: =IFERROR(VLOOKUP(A23,'شهر 10'!$A$9:$AK$78,37,0),"0") -> 0 | AA23: =IFERROR(VLOOKUP(A23,'شهر 11'!$A$9:$AK$78,37,0),"0") -> 0 | AC23: =IFERROR(VLOOKUP(A23,'شهر 12'!$A$9:$AK$78,37,0),"0") -> 0 | AE23: 25 | AG23: 0 | AH23: 0 | AI23: 0 | AJ23: 0 | AK23: 0 | AL23: 0 | AM23: 0 | AN23: 0 | AO23: 0 | AP23: 0
A24: 1017 | B24: =IF(C24="","",SUBTOTAL(3,$C$9:C24)) -> 16 | C24: كمال الشمندي | D24: 333.9 | E24: 1017 | F24: 333.9 | G24: =IFERROR(VLOOKUP(A24,'شهر 1'!$A$9:$AK$46,37,0),"0") -> 0 | I24: =IFERROR(VLOOKUP(A24,'شهر 2'!$A$9:$AK$43,37,0),"0") -> 0 | K24: =IFERROR(VLOOKUP(A24,'سهر 3'!$A$9:$AK$46,37,0),"0") -> 0 | M24: =IFERROR(VLOOKUP(A24,'شهر 4'!$A$9:$AK$43,37,0),"0") -> 0 | N24: 0 | O24: =IFERROR(VLOOKUP(A24,'شهر 5'!$A$9:$AK$47,37,0),"0") -> 0 | P24: 0 | Q24: =IFERROR(VLOOKUP(A24,شهر6!$A$9:$AK$62,37,0),"0") -> 0 | S24: =IFERROR(VLOOKUP(A24,'شهر 7'!$A$9:$AK$84,37,0),"0") -> 0 | U24: =IFERROR(VLOOKUP(A24,'شهر 8'!$A$9:$AK$78,37,0),"0") -> 0 | W24: =IFERROR(VLOOKUP(A24,'شهر 9'!$A$9:$AK$78,37,0),"0") -> 0 | Y24: =IFERROR(VLOOKUP(A24,'شهر 10'!$A$9:$AK$78,37,0),"0") -> 0 | AA24: =IFERROR(VLOOKUP(A24,'شهر 11'!$A$9:$AK$78,37,0),"0") -> 0 | AC24: =IFERROR(VLOOKUP(A24,'شهر 12'!$A$9:$AK$78,37,0),"0") -> 0 | AE24: 333.9 | AG24: 0 | AH24: 0 | AI24: 0 | AJ24: 0 | AK24: 0 | AL24: 0 | AM24: 0 | AN24: 0 | AO24: 0 | AP24: 0
A25: 1018 | B25: =IF(C25="","",SUBTOTAL(3,$C$9:C25)) -> 17 | C25: =IFERROR(VLOOKUP(A25,'شهر 1'!$A$9:$D$73,3,0),"") -> عبد الرحمن احمد | D25: 460.5 | E25: 1018 | G25: =IFERROR(VLOOKUP(A25,'شهر 1'!$A$9:$AK$46,37,0),"0") -> 380 | H25: 100 | I25: =IFERROR(VLOOKUP(A25,'شهر 2'!$A$9:$AK$43,37,0),"0") -> 222 | K25: =IFERROR(VLOOKUP(A25,'سهر 3'!$A$9:$AK$46,37,0),"0") -> 0 | M25: =IFERROR(VLOOKUP(A25,'شهر 4'!$A$9:$AK$43,37,0),"0") -> 0 | N25: 0 | O25: =IFERROR(VLOOKUP(A25,'شهر 5'!$A$9:$AK$47,37,0),"0") -> 0 | P25: 100 | Q25: =IFERROR(VLOOKUP(A25,شهر6!$A$9:$AK$62,37,0),"0") -> 35.5 | S25: =IFERROR(VLOOKUP(A25,'شهر 7'!$A$9:$AK$84,37,0),"0") -> 23 | U25: =IFERROR(VLOOKUP(A25,'شهر 8'!$A$9:$AK$78,37,0),"0") -> 0 | W25: =IFERROR(VLOOKUP(A25,'شهر 9'!$A$9:$AK$78,37,0),"0") -> 0 | Y25: =IFERROR(VLOOKUP(A25,'شهر 10'!$A$9:$AK$78,37,0),"0") -> 0 | AA25: =IFERROR(VLOOKUP(A25,'شهر 11'!$A$9:$AK$78,37,0),"0") -> 0 | AC25: =IFERROR(VLOOKUP(A25,'شهر 12'!$A$9:$AK$78,37,0),"0") -> 0 | AE25: 460.5 | AG25: 100 | AH25: 0 | AI25: 0 | AJ25: 0 | AK25: 0 | AL25: 0 | AM25: 0 | AN25: 0 | AO25: 0 | AP25: 0
A26: 1019 | B26: =IF(C26="","",SUBTOTAL(3,$C$9:C26)) -> 18 | C26: فتحي بردونة | D26: 226.5 | E26: 1019 | F26: 332.5 | G26: =IFERROR(VLOOKUP(A26,'شهر 1'!$A$9:$AK$46,37,0),"0") -> 20.5 | I26: =IFERROR(VLOOKUP(A26,'شهر 2'!$A$9:$AK$43,37,0),"0") -> 0 | K26: =IFERROR(VLOOKUP(A26,'سهر 3'!$A$9:$AK$46,37,0),"0") -> 0 | L26: 288.5 | M26: =IFERROR(VLOOKUP(A26,'شهر 4'!$A$9:$AK$43,37,0),"0") -> 8.5 | N26: 0 | O26: =IFERROR(VLOOKUP(A26,'شهر 5'!$A$9:$AK$47,37,0),"0") -> 0 | P26: 0 | Q26: =IFERROR(VLOOKUP(A26,شهر6!$A$9:$AK$62,37,0),"0") -> 47 | S26: =IFERROR(VLOOKUP(A26,'شهر 7'!$A$9:$AK$84,37,0),"0") -> 106.5 | U26: =IFERROR(VLOOKUP(A26,'شهر 8'!$A$9:$AK$78,37,0),"0") -> 0 | W26: =IFERROR(VLOOKUP(A26,'شهر 9'!$A$9:$AK$78,37,0),"0") -> 0 | Y26: =IFERROR(VLOOKUP(A26,'شهر 10'!$A$9:$AK$78,37,0),"0") -> 0 | AA26: =IFERROR(VLOOKUP(A26,'شهر 11'!$A$9:$AK$78,37,0),"0") -> 0 | AC26: =IFERROR(VLOOKUP(A26,'شهر 12'!$A$9:$AK$78,37,0),"0") -> 0 | AE26: 226.5 | AG26: 0 | AH26: 0 | AI26: 0 | AJ26: 0 | AK26: 0 | AL26: 0 | AM26: 0 | AN26: 0 | AO26: 0 | AP26: 0
A27: 1020 | B27: =IF(C27="","",SUBTOTAL(3,$C$9:C27)) -> 19 | C27: =IFERROR(VLOOKUP($A27,'شهر 7'!$A$9:$C$84,3,0),"") -> مرات محمود علي | D27: 7 | E27: 1020 | G27: =IFERROR(VLOOKUP(A27,'شهر 1'!$A$9:$AK$46,37,0),"0") -> 0 | I27: =IFERROR(VLOOKUP(A27,'شهر 2'!$A$9:$AK$43,37,0),"0") -> 0 | K27: =IFERROR(VLOOKUP(A27,'سهر 3'!$A$9:$AK$46,37,0),"0") -> 0 | M27: =IFERROR(VLOOKUP(A27,'شهر 4'!$A$9:$AK$43,37,0),"0") -> 0 | N27: 0 | O27: =IFERROR(VLOOKUP(A27,'شهر 5'!$A$9:$AK$47,37,0),"0") -> 0 | Q27: =IFERROR(VLOOKUP(A27,شهر6!$A$9:$AK$62,37,0),"0") -> 0 | S27: =IFERROR(VLOOKUP(A27,'شهر 7'!$A$9:$AK$84,37,0),"0") -> 7 | U27: =IFERROR(VLOOKUP(A27,'شهر 8'!$A$9:$AK$78,37,0),"0") -> 0 | W27: =IFERROR(VLOOKUP(A27,'شهر 9'!$A$9:$AK$78,37,0),"0") -> 0 | Y27: =IFERROR(VLOOKUP(A27,'شهر 10'!$A$9:$AK$78,37,0),"0") -> 0 | AA27: =IFERROR(VLOOKUP(A27,'شهر 11'!$A$9:$AK$78,37,0),"0") -> 0 | AC27: =IFERROR(VLOOKUP(A27,'شهر 12'!$A$9:$AK$78,37,0),"0") -> 0 | AE27: 7 | AG27: 0 | AH27: 0 | AI27: 0 | AJ27: 0 | AK27: 0 | AL27: 0 | AM27: 0 | AN27: 0 | AO27: 0 | AP27: 0
A28: 1021 | B28: =IF(C28="","",SUBTOTAL(3,$C$9:C28)) -> 20 | C28: =IFERROR(VLOOKUP(A28,'شهر 1'!$A$9:$D$73,3,0),"") -> رضا محمد احمد | D28: 134.25 | E28: 1021 | G28: =IFERROR(VLOOKUP(A28,'شهر 1'!$A$9:$AK$46,37,0),"0") -> 50.75 | I28: =IFERROR(VLOOKUP(A28,'شهر 2'!$A$9:$AK$43,37,0),"0") -> 150 | K28: =IFERROR(VLOOKUP(A28,'سهر 3'!$A$9:$AK$46,37,0),"0") -> 145 | M28: =IFERROR(VLOOKUP(A28,'شهر 4'!$A$9:$AK$43,37,0),"0") -> 38.5 | N28: 0 | O28: =IFERROR(VLOOKUP(A28,'شهر 5'!$A$9:$AK$47,37,0),"0") -> 0 | P28: 0 | Q28: =IFERROR(VLOOKUP(A28,شهر6!$A$9:$AK$62,37,0),"0") -> 11 | S28: =IFERROR(VLOOKUP(A28,'شهر 7'!$A$9:$AK$84,37,0),"0") -> 39 | T28: 300 | U28: =IFERROR(VLOOKUP(A28,'شهر 8'!$A$9:$AK$78,37,0),"0") -> 0 | W28: =IFERROR(VLOOKUP(A28,'شهر 9'!$A$9:$AK$78,37,0),"0") -> 0 | Y28: =IFERROR(VLOOKUP(A28,'شهر 10'!$A$9:$AK$78,37,0),"0") -> 0 | AA28: =IFERROR(VLOOKUP(A28,'شهر 11'!$A$9:$AK$78,37,0),"0") -> 0 | AC28: =IFERROR(VLOOKUP(A28,'شهر 12'!$A$9:$AK$78,37,0),"0") -> 0 | AE28: 134.25 | AG28: 0 | AH28: 0 | AI28: 0 | AJ28: 0 | AK28: 0 | AL28: 0 | AM28: 39 | AN28: 0 | AO28: 0 | AP28: 0
A29: 1022 | B29: =IF(C29="","",SUBTOTAL(3,$C$9:C29)) -> 21 | C29: =IFERROR(VLOOKUP($A29,'شهر 7'!$A$9:$C$84,3,0),"") -> بنت عاطف محمد ع الرزاق | D29: =AE29 -> 38 | E29: =A109 -> 1104 | G29: =IFERROR(VLOOKUP(A29,'شهر 1'!$A$9:$AK$46,37,0),"0") -> 0 | I29: =IFERROR(VLOOKUP(A29,'شهر 2'!$A$9:$AK$43,37,0),"0") -> 0 | K29: =IFERROR(VLOOKUP(A29,'سهر 3'!$A$9:$AK$46,37,0),"0") -> 0 | M29: =IFERROR(VLOOKUP(A29,'شهر 4'!$A$9:$AK$43,37,0),"0") -> 0 | O29: =IFERROR(VLOOKUP(A29,'شهر 5'!$A$9:$AK$47,37,0),"0") -> 0 | P29: 0 | Q29: =IFERROR(VLOOKUP(A29,شهر6!$A$9:$AK$62,37,0),"0") -> 0 | S29: =IFERROR(VLOOKUP(A29,'شهر 7'!$A$9:$AK$84,37,0),"0") -> 38 | U29: =IFERROR(VLOOKUP(A29,'شهر 8'!$A$9:$AK$78,37,0),"0") -> 0 | W29: =IFERROR(VLOOKUP(A29,'شهر 9'!$A$9:$AK$78,37,0),"0") -> 0 | Y29: =IFERROR(VLOOKUP(A29,'شهر 10'!$A$9:$AK$78,37,0),"0") -> 0 | AA29: =IFERROR(VLOOKUP(A29,'شهر 11'!$A$9:$AK$78,37,0),"0") -> 0 | AC29: =IFERROR(VLOOKUP(A29,'شهر 12'!$A$9:$AK$78,37,0),"0") -> 0 | AE29: 38 | AG29: 0 | AH29: 0 | AI29: 0 | AJ29: 0 | AK29: 0 | AL29: 0 | AM29: 0 | AN29: 0 | AO29: 0 | AP29: 0
A30: 1023 | B30: =IF(C30="","",SUBTOTAL(3,$C$9:C30)) -> 22 | C30: =IFERROR(VLOOKUP($A30,'شهر 5'!$A$9:$D$47,3,0),"") -> محمود طه برعي | D30: 117 | E30: 1023 | G30: =IFERROR(VLOOKUP(A30,'شهر 1'!$A$9:$AK$46,37,0),"0") -> 0 | I30: =IFERROR(VLOOKUP(A30,'شهر 2'!$A$9:$AK$43,37,0),"0") -> 0 | K30: =IFERROR(VLOOKUP(A30,'سهر 3'!$A$9:$AK$46,37,0),"0") -> 0 | M30: =IFERROR(VLOOKUP(A30,'شهر 4'!$A$9:$AK$43,37,0),"0") -> 0 | N30: 0 | O30: =IFERROR(VLOOKUP(A30,'شهر 5'!$A$9:$AK$47,37,0),"0") -> 199 | P30: 82 | Q30: =IFERROR(VLOOKUP(A30,شهر6!$A$9:$AK$62,37,0),"0") -> 0 | S30: =IFERROR(VLOOKUP(A30,'شهر 7'!$A$9:$AK$84,37,0),"0") -> 0 | U30: =IFERROR(VLOOKUP(A30,'شهر 8'!$A$9:$AK$78,37,0),"0") -> 0 | W30: =IFERROR(VLOOKUP(A30,'شهر 9'!$A$9:$AK$78,37,0),"0") -> 0 | Y30: =IFERROR(VLOOKUP(A30,'شهر 10'!$A$9:$AK$78,37,0),"0") -> 0 | AA30: =IFERROR(VLOOKUP(A30,'شهر 11'!$A$9:$AK$78,37,0),"0") -> 0 | AC30: =IFERROR(VLOOKUP(A30,'شهر 12'!$A$9:$AK$78,37,0),"0") -> 0 | AE30: 117 | AG30: 0 | AH30: 0 | AI30: 0 | AJ30: 0 | AK30: 82 | AL30: 0 | AM30: 0 | AN30: 0 | AO30: 0 | AP30: 0
A31: 1024 | B31: =IF(C31="","",SUBTOTAL(3,$C$9:C31)) -> 23 | C31: ابو وائل حسن محمود | D31: 282 | E31: 1024 | F31: 27 | G31: =IFERROR(VLOOKUP(A31,'شهر 1'!$A$9:$AK$46,37,0),"0") -> 0 | I31: =IFERROR(VLOOKUP(A31,'شهر 2'!$A$9:$AK$43,37,0),"0") -> 0 | K31: =IFERROR(VLOOKUP(A31,'سهر 3'!$A$9:$AK$46,37,0),"0") -> 60 | M31: =IFERROR(VLOOKUP(A31,'شهر 4'!$A$9:$AK$43,37,0),"0") -> 0 | N31: 0 | O31: =IFERROR(VLOOKUP(A31,'شهر 5'!$A$9:$AK$47,37,0),"0") -> 0 | P31: 0 | Q31: =IFERROR(VLOOKUP(A31,شهر6!$A$9:$AK$62,37,0),"0") -> 135 | S31: =IFERROR(VLOOKUP(A31,'شهر 7'!$A$9:$AK$84,37,0),"0") -> 60 | U31: =IFERROR(VLOOKUP(A31,'شهر 8'!$A$9:$AK$78,37,0),"0") -> 0 | W31: =IFERROR(VLOOKUP(A31,'شهر 9'!$A$9:$AK$78,37,0),"0") -> 0 | Y31: =IFERROR(VLOOKUP(A31,'شهر 10'!$A$9:$AK$78,37,0),"0") -> 0 | AA31: =IFERROR(VLOOKUP(A31,'شهر 11'!$A$9:$AK$78,37,0),"0") -> 0 | AC31: =IFERROR(VLOOKUP(A31,'شهر 12'!$A$9:$AK$78,37,0),"0") -> 0 | AE31: 282 | AG31: 0 | AH31: 0 | AI31: 0 | AJ31: 0 | AK31: 0 | AL31: 0 | AM31: 0 | AN31: 0 | AO31: 0 | AP31: 0
A32: 1025 | B32: =IF(C32="","",SUBTOTAL(3,$C$9:C32)) -> 24 | C32: ام ربيع محمد شحاتة | D32: 75 | E32: 1025 | F32: 443.5 | G32: =IFERROR(VLOOKUP(A32,'شهر 1'!$A$9:$AK$46,37,0),"0") -> 56.5 | H32: 40 | I32: =IFERROR(VLOOKUP(A32,'شهر 2'!$A$9:$AK$43,37,0),"0") -> 105 | K32: =IFERROR(VLOOKUP(A32,'سهر 3'!$A$9:$AK$46,37,0),"0") -> 45.5 | M32: =IFERROR(VLOOKUP(A32,'شهر 4'!$A$9:$AK$43,37,0),"0") -> 48 | N32: 0 | O32: =IFERROR(VLOOKUP(A32,'شهر 5'!$A$9:$AK$47,37,0),"0") -> 28.5 | P32: 687 | Q32: =IFERROR(VLOOKUP(A32,شهر6!$A$9:$AK$62,37,0),"0") -> 22 | S32: =IFERROR(VLOOKUP(A32,'شهر 7'!$A$9:$AK$84,37,0),"0") -> 38.5 | U32: =IFERROR(VLOOKUP(A32,'شهر 8'!$A$9:$AK$78,37,0),"0") -> 14.5 | W32: =IFERROR(VLOOKUP(A32,'شهر 9'!$A$9:$AK$78,37,0),"0") -> 0 | Y32: =IFERROR(VLOOKUP(A32,'شهر 10'!$A$9:$AK$78,37,0),"0") -> 0 | AA32: =IFERROR(VLOOKUP(A32,'شهر 11'!$A$9:$AK$78,37,0),"0") -> 0 | AC32: =IFERROR(VLOOKUP(A32,'شهر 12'!$A$9:$AK$78,37,0),"0") -> 0 | AE32: 75 | AG32: 40 | AH32: 0 | AI32: 0 | AJ32: 0 | AK32: 28.5 | AL32: 0 | AM32: 0 | AN32: 0 | AO32: 0 | AP32: 0
A33: 1026 | B33: =IF(C33="","",SUBTOTAL(3,$C$9:C33)) -> 25 | C33: سحر | D33: 75 | E33: 1026 | F33: 6.5 | G33: =IFERROR(VLOOKUP(A33,'شهر 1'!$A$9:$AK$46,37,0),"0") -> 227.15 | I33: =IFERROR(VLOOKUP(A33,'شهر 2'!$A$9:$AK$43,37,0),"0") -> 107.5 | J33: 200 | K33: =IFERROR(VLOOKUP(A33,'سهر 3'!$A$9:$AK$46,37,0),"0") -> 33.75 | L33: 100 | M33: =IFERROR(VLOOKUP(A33,'شهر 4'!$A$9:$AK$43,37,0),"0") -> 128.5 | N33: 137.9 | O33: =IFERROR(VLOOKUP(A33,'شهر 5'!$A$9:$AK$47,37,0),"0") -> 135.5 | P33: 0 | Q33: =IFERROR(VLOOKUP(A33,شهر6!$A$9:$AK$62,37,0),"0") -> 94 | S33: =IFERROR(VLOOKUP(A33,'شهر 7'!$A$9:$AK$84,37,0),"0") -> 154 | T33: =200+183 -> 383 | U33: =IFERROR(VLOOKUP(A33,'شهر 8'!$A$9:$AK$78,37,0),"0") -> 9 | W33: =IFERROR(VLOOKUP(A33,'شهر 9'!$A$9:$AK$78,37,0),"0") -> 0 | Y33: =IFERROR(VLOOKUP(A33,'شهر 10'!$A$9:$AK$78,37,0),"0") -> 0 | AA33: =IFERROR(VLOOKUP(A33,'شهر 11'!$A$9:$AK$78,37,0),"0") -> 0 | AC33: =IFERROR(VLOOKUP(A33,'شهر 12'!$A$9:$AK$78,37,0),"0") -> 0 | AE33: 75 | AG33: 0 | AH33: 107.5 | AI33: 33.75 | AJ33: 128.5 | AK33: 0 | AL33: 0 | AM33: 154 | AN33: 0 | AO33: 0 | AP33: 0
A34: 1027 | B34: =IF(C34="","",SUBTOTAL(3,$C$9:C34)) -> 26 | C34: بنت كمال عبد الحسيب | D34: 75 | E34: 1027 | F34: 110 | G34: =IFERROR(VLOOKUP(A34,'شهر 1'!$A$9:$AK$46,37,0),"0") -> 0 | I34: =IFERROR(VLOOKUP(A34,'شهر 2'!$A$9:$AK$43,37,0),"0") -> 0 | J34: 35 | K34: =IFERROR(VLOOKUP(A34,'سهر 3'!$A$9:$AK$46,37,0),"0") -> 0 | M34: =IFERROR(VLOOKUP(A34,'شهر 4'!$A$9:$AK$43,37,0),"0") -> 0 | N34: 0 | O34: =IFERROR(VLOOKUP(A34,'شهر 5'!$A$9:$AK$47,37,0),"0") -> 0 | P34: 0 | Q34: =IFERROR(VLOOKUP(A34,شهر6!$A$9:$AK$62,37,0),"0") -> 0 | S34: =IFERROR(VLOOKUP(A34,'شهر 7'!$A$9:$AK$84,37,0),"0") -> 0 | U34: =IFERROR(VLOOKUP(A34,'شهر 8'!$A$9:$AK$78,37,0),"0") -> 0 | W34: =IFERROR(VLOOKUP(A34,'شهر 9'!$A$9:$AK$78,37,0),"0") -> 0 | Y34: =IFERROR(VLOOKUP(A34,'شهر 10'!$A$9:$AK$78,37,0),"0") -> 0 | AA34: =IFERROR(VLOOKUP(A34,'شهر 11'!$A$9:$AK$78,37,0),"0") -> 0 | AC34: =IFERROR(VLOOKUP(A34,'شهر 12'!$A$9:$AK$78,37,0),"0") -> 0 | AE34: 75 | AG34: 0 | AH34: 0 | AI34: 0 | AJ34: 0 | AK34: 0 | AL34: 0 | AM34: 0 | AN34: 0 | AO34: 0 | AP34: 0
A35: 1028 | B35: =IF(C35="","",SUBTOTAL(3,$C$9:C35)) -> 27 | C35: محمد زغلول عبد اللطيف | D35: 175.75 | E35: 1028 | F35: 121 | G35: =IFERROR(VLOOKUP(A35,'شهر 1'!$A$9:$AK$46,37,0),"0") -> 6.75 | I35: =IFERROR(VLOOKUP(A35,'شهر 2'!$A$9:$AK$43,37,0),"0") -> 38.5 | K35: =IFERROR(VLOOKUP(A35,'سهر 3'!$A$9:$AK$46,37,0),"0") -> 9.5 | M35: =IFERROR(VLOOKUP(A35,'شهر 4'!$A$9:$AK$43,37,0),"0") -> 0 | N35: 0 | O35: =IFERROR(VLOOKUP(A35,'شهر 5'!$A$9:$AK$47,37,0),"0") -> 0 | P35: 0 | Q35: =IFERROR(VLOOKUP(A35,شهر6!$A$9:$AK$62,37,0),"0") -> 0 | S35: =IFERROR(VLOOKUP(A35,'شهر 7'!$A$9:$AK$84,37,0),"0") -> 0 | U35: =IFERROR(VLOOKUP(A35,'شهر 8'!$A$9:$AK$78,37,0),"0") -> 0 | W35: =IFERROR(VLOOKUP(A35,'شهر 9'!$A$9:$AK$78,37,0),"0") -> 0 | Y35: =IFERROR(VLOOKUP(A35,'شهر 10'!$A$9:$AK$78,37,0),"0") -> 0 | AA35: =IFERROR(VLOOKUP(A35,'شهر 11'!$A$9:$AK$78,37,0),"0") -> 0 | AC35: =IFERROR(VLOOKUP(A35,'شهر 12'!$A$9:$AK$78,37,0),"0") -> 0 | AE35: 175.75 | AG35: 0 | AH35: 0 | AI35: 0 | AJ35: 0 | AK35: 0 | AL35: 0 | AM35: 0 | AN35: 0 | AO35: 0 | AP35: 0
A36: 1029 | B36: =IF(C36="","",SUBTOTAL(3,$C$9:C36)) -> 28 | C36: =IFERROR(VLOOKUP($A36,شهر6!$A$9:$C$62,3,0),"") -> الحاجه فكرية ام صلاح ع الرحمن | D36: 47.5 | E36: 1029 | G36: =IFERROR(VLOOKUP(A36,'شهر 1'!$A$9:$AK$46,37,0),"0") -> 0 | I36: =IFERROR(VLOOKUP(A36,'شهر 2'!$A$9:$AK$43,37,0),"0") -> 0 | K36: =IFERROR(VLOOKUP(A36,'سهر 3'!$A$9:$AK$46,37,0),"0") -> 0 | M36: =IFERROR(VLOOKUP(A36,'شهر 4'!$A$9:$AK$43,37,0),"0") -> 0 | O36: =IFERROR(VLOOKUP(A36,'شهر 5'!$A$9:$AK$47,37,0),"0") -> 0 | P36: 0 | Q36: =IFERROR(VLOOKUP(A36,شهر6!$A$9:$AK$62,37,0),"0") -> 100 | S36: =IFERROR(VLOOKUP(A36,'شهر 7'!$A$9:$AK$84,37,0),"0") -> 27.5 | T36: 80 | U36: =IFERROR(VLOOKUP(A36,'شهر 8'!$A$9:$AK$78,37,0),"0") -> 0 | W36: =IFERROR(VLOOKUP(A36,'شهر 9'!$A$9:$AK$78,37,0),"0") -> 0 | Y36: =IFERROR(VLOOKUP(A36,'شهر 10'!$A$9:$AK$78,37,0),"0") -> 0 | AA36: =IFERROR(VLOOKUP(A36,'شهر 11'!$A$9:$AK$78,37,0),"0") -> 0 | AC36: =IFERROR(VLOOKUP(A36,'شهر 12'!$A$9:$AK$78,37,0),"0") -> 0 | AE36: 47.5 | AG36: 0 | AH36: 0 | AI36: 0 | AJ36: 0 | AK36: 0 | AL36: 0 | AM36: 27.5 | AN36: 0 | AO36: 0 | AP36: 0
A37: 1030 | B37: =IF(C37="","",SUBTOTAL(3,$C$9:C37)) -> 29 | C37: =IFERROR(VLOOKUP($A37,'شهر 4'!$A$10:$C$43,3,0),"") -> كمال محمد مهني | D37: 258 | E37: =A105 -> 1100 | G37: =IFERROR(VLOOKUP(A37,'شهر 1'!$A$9:$AK$46,37,0),"0") -> 0 | I37: =IFERROR(VLOOKUP(A37,'شهر 2'!$A$9:$AK$43,37,0),"0") -> 0 | K37: =IFERROR(VLOOKUP(A37,'سهر 3'!$A$9:$AK$46,37,0),"0") -> 0 | M37: =IFERROR(VLOOKUP(A37,'شهر 4'!$A$9:$AK$43,37,0),"0") -> 270 | N37: 0 | O37: =IFERROR(VLOOKUP(A37,'شهر 5'!$A$9:$AK$47,37,0),"0") -> 0 | P37: 0 | Q37: =IFERROR(VLOOKUP(A37,شهر6!$A$9:$AK$62,37,0),"0") -> 88 | R37: 100 | S37: =IFERROR(VLOOKUP(A37,'شهر 7'!$A$9:$AK$84,37,0),"0") -> 0 | U37: =IFERROR(VLOOKUP(A37,'شهر 8'!$A$9:$AK$78,37,0),"0") -> 0 | W37: =IFERROR(VLOOKUP(A37,'شهر 9'!$A$9:$AK$78,37,0),"0") -> 0 | Y37: =IFERROR(VLOOKUP(A37,'شهر 10'!$A$9:$AK$78,37,0),"0") -> 0 | AA37: =IFERROR(VLOOKUP(A37,'شهر 11'!$A$9:$AK$78,37,0),"0") -> 0 | AC37: =IFERROR(VLOOKUP(A37,'شهر 12'!$A$9:$AK$78,37,0),"0") -> 0 | AE37: 258 | AG37: 0 | AH37: 0 | AI37: 0 | AJ37: 0 | AK37: 0 | AL37: 88 | AM37: 0 | AN37: 0 | AO37: 0 | AP37: 0
A38: 1031 | B38: =IF(C38="","",SUBTOTAL(3,$C$9:C38)) -> 30 | C38: =IFERROR(VLOOKUP($A38,'شهر 8'!$A$9:$C$78,3,0),"") -> عادل علي | D38: 105 | E38: 1031 | G38: =IFERROR(VLOOKUP(A38,'شهر 1'!$A$9:$AK$46,37,0),"0") -> 0 | I38: =IFERROR(VLOOKUP(A38,'شهر 2'!$A$9:$AK$43,37,0),"0") -> 0 | K38: =IFERROR(VLOOKUP(A38,'سهر 3'!$A$9:$AK$46,37,0),"0") -> 0 | M38: =IFERROR(VLOOKUP(A38,'شهر 4'!$A$9:$AK$43,37,0),"0") -> 0 | N38: 0 | O38: =IFERROR(VLOOKUP(A38,'شهر 5'!$A$9:$AK$47,37,0),"0") -> 0 | P38: 0 | Q38: =IFERROR(VLOOKUP(A38,شهر6!$A$9:$AK$62,37,0),"0") -> 0 | S38: =IFERROR(VLOOKUP(A38,'شهر 7'!$A$9:$AK$84,37,0),"0") -> 0 | U38: =IFERROR(VLOOKUP(A38,'شهر 8'!$A$9:$AK$78,37,0),"0") -> 105 | W38: =IFERROR(VLOOKUP(A38,'شهر 9'!$A$9:$AK$78,37,0),"0") -> 0 | Y38: =IFERROR(VLOOKUP(A38,'شهر 10'!$A$9:$AK$78,37,0),"0") -> 0 | AA38: =IFERROR(VLOOKUP(A38,'شهر 11'!$A$9:$AK$78,37,0),"0") -> 0 | AC38: =IFERROR(VLOOKUP(A38,'شهر 12'!$A$9:$AK$78,37,0),"0") -> 0 | AE38: 105 | AG38: 0 | AH38: 0 | AI38: 0 | AJ38: 0 | AK38: 0 | AL38: 0 | AM38: 0 | AN38: 0 | AO38: 0 | AP38: 0
A39: 1032 | B39: =IF(C39="","",SUBTOTAL(3,$C$9:C39)) -> 31 | C39: مرات عمرو عادل | D39: 140 | E39: 1032 | F39: 934 | G39: =IFERROR(VLOOKUP(A39,'شهر 1'!$A$9:$AK$46,37,0),"0") -> 545 | H39: 800 | I39: =IFERROR(VLOOKUP(A39,'شهر 2'!$A$9:$AK$43,37,0),"0") -> 355.2 | J39: 679 | K39: =IFERROR(VLOOKUP(A39,'سهر 3'!$A$9:$AK$46,37,0),"0") -> 341.75 | L39: 686.95 | M39: =IFERROR(VLOOKUP(A39,'شهر 4'!$A$9:$AK$43,37,0),"0") -> 521 | N39: 0 | O39: =IFERROR(VLOOKUP(A39,'شهر 5'!$A$9:$AK$47,37,0),"0") -> 322 | P39: 0 | Q39: =IFERROR(VLOOKUP(A39,شهر6!$A$9:$AK$62,37,0),"0") -> 0 | R39: 853 | S39: =IFERROR(VLOOKUP(A39,'شهر 7'!$A$9:$AK$84,37,0),"0") -> 140 | U39: =IFERROR(VLOOKUP(A39,'شهر 8'!$A$9:$AK$78,37,0),"0") -> 0 | W39: =IFERROR(VLOOKUP(A39,'شهر 9'!$A$9:$AK$78,37,0),"0") -> 0 | Y39: =IFERROR(VLOOKUP(A39,'شهر 10'!$A$9:$AK$78,37,0),"0") -> 0 | AA39: =IFERROR(VLOOKUP(A39,'شهر 11'!$A$9:$AK$78,37,0),"0") -> 0 | AC39: =IFERROR(VLOOKUP(A39,'شهر 12'!$A$9:$AK$78,37,0),"0") -> 0 | AE39: 140 | AG39: 545 | AH39: 355.2 | AI39: 341.75 | AJ39: 0 | AK39: 0 | AL39: 0 | AM39: 0 | AN39: 0 | AO39: 0 | AP39: 0
A40: 1033 | B40: =IF(C40="","",SUBTOTAL(3,$C$9:C40)) -> 32 | C40: ام عمار | D40: 468 | E40: 1033 | F40: 164 | G40: =IFERROR(VLOOKUP(A40,'شهر 1'!$A$9:$AK$46,37,0),"0") -> 10 | I40: =IFERROR(VLOOKUP(A40,'شهر 2'!$A$9:$AK$43,37,0),"0") -> 10 | K40: =IFERROR(VLOOKUP(A40,'سهر 3'!$A$9:$AK$46,37,0),"0") -> 70.75 | M40: =IFERROR(VLOOKUP(A40,'شهر 4'!$A$9:$AK$43,37,0),"0") -> 0 | N40: 0 | O40: =IFERROR(VLOOKUP(A40,'شهر 5'!$A$9:$AK$47,37,0),"0") -> 128 | P40: 0 | Q40: =IFERROR(VLOOKUP(A40,شهر6!$A$9:$AK$62,37,0),"0") -> 25.25 | S40: =IFERROR(VLOOKUP(A40,'شهر 7'!$A$9:$AK$84,37,0),"0") -> 60 | U40: =IFERROR(VLOOKUP(A40,'شهر 8'!$A$9:$AK$78,37,0),"0") -> 0 | W40: =IFERROR(VLOOKUP(A40,'شهر 9'!$A$9:$AK$78,37,0),"0") -> 0 | Y40: =IFERROR(VLOOKUP(A40,'شهر 10'!$A$9:$AK$78,37,0),"0") -> 0 | AA40: =IFERROR(VLOOKUP(A40,'شهر 11'!$A$9:$AK$78,37,0),"0") -> 0 | AC40: =IFERROR(VLOOKUP(A40,'شهر 12'!$A$9:$AK$78,37,0),"0") -> 0 | AE40: 468 | AG40: 0 | AH40: 0 | AI40: 0 | AJ40: 0 | AK40: 0 | AL40: 0 | AM40: 0 | AN40: 0 | AO40: 0 | AP40: 0
A41: 1034 | B41: =IF(C41="","",SUBTOTAL(3,$C$9:C41)) -> 33 | C41: =IFERROR(VLOOKUP($A41,شهر6!$A$9:$C$62,3,0),"") -> عاطف خشاب | D41: 59.5 | E41: =A108 -> 1103 | G41: =IFERROR(VLOOKUP(A41,'شهر 1'!$A$9:$AK$46,37,0),"0") -> 0 | I41: =IFERROR(VLOOKUP(A41,'شهر 2'!$A$9:$AK$43,37,0),"0") -> 0 | K41: =IFERROR(VLOOKUP(A41,'سهر 3'!$A$9:$AK$46,37,0),"0") -> 0 | M41: =IFERROR(VLOOKUP(A41,'شهر 4'!$A$9:$AK$43,37,0),"0") -> 0 | N41: 0 | O41: =IFERROR(VLOOKUP(A41,'شهر 5'!$A$9:$AK$47,37,0),"0") -> 0 | P41: 0 | Q41: =IFERROR(VLOOKUP(A41,شهر6!$A$9:$AK$62,37,0),"0") -> 48 | S41: =IFERROR(VLOOKUP(A41,'شهر 7'!$A$9:$AK$84,37,0),"0") -> 105 | T41: =50+43.5 -> 93.5 | U41: =IFERROR(VLOOKUP(A41,'شهر 8'!$A$9:$AK$78,37,0),"0") -> 0 | W41: =IFERROR(VLOOKUP(A41,'شهر 9'!$A$9:$AK$78,37,0),"0") -> 0 | Y41: =IFERROR(VLOOKUP(A41,'شهر 10'!$A$9:$AK$78,37,0),"0") -> 0 | AA41: =IFERROR(VLOOKUP(A41,'شهر 11'!$A$9:$AK$78,37,0),"0") -> 0 | AC41: =IFERROR(VLOOKUP(A41,'شهر 12'!$A$9:$AK$78,37,0),"0") -> 0 | AE41: =SUM(F41,G41,I41,K41,M41,O41,Q41,S41,U41,W41,Y41,AA41,AC41)-SUM(H41,J41,L41,N41,P41,R41,T41,V41,X41,AB41,AD41) -> 59.5 | AG41: 0 | AH41: 0 | AI41: 0 | AJ41: 0 | AK41: 0 | AL41: 0 | AM41: 93.5 | AN41: 0 | AO41: 0 | AP41: 0
A42: 1035 | B42: =IF(C42="","",SUBTOTAL(3,$C$9:C42)) -> 34 | C42: مرات محمد احمد قياتي | D42: 126.5 | E42: 1035 | F42: 176.5 | G42: =IFERROR(VLOOKUP(A42,'شهر 1'!$A$9:$AK$46,37,0),"0") -> 0 | H42: 50 | I42: =IFERROR(VLOOKUP(A42,'شهر 2'!$A$9:$AK$43,37,0),"0") -> 0 | K42: =IFERROR(VLOOKUP(A42,'سهر 3'!$A$9:$AK$46,37,0),"0") -> 0 | M42: =IFERROR(VLOOKUP(A42,'شهر 4'!$A$9:$AK$43,37,0),"0") -> 0 | N42: 0 | O42: =IFERROR(VLOOKUP(A42,'شهر 5'!$A$9:$AK$47,37,0),"0") -> 0 | P42: 0 | Q42: =IFERROR(VLOOKUP(A42,شهر6!$A$9:$AK$62,37,0),"0") -> 0 | S42: =IFERROR(VLOOKUP(A42,'شهر 7'!$A$9:$AK$84,37,0),"0") -> 0 | U42: =IFERROR(VLOOKUP(A42,'شهر 8'!$A$9:$AK$78,37,0),"0") -> 0 | W42: =IFERROR(VLOOKUP(A42,'شهر 9'!$A$9:$AK$78,37,0),"0") -> 0 | Y42: =IFERROR(VLOOKUP(A42,'شهر 10'!$A$9:$AK$78,37,0),"0") -> 0 | AA42: =IFERROR(VLOOKUP(A42,'شهر 11'!$A$9:$AK$78,37,0),"0") -> 0 | AC42: =IFERROR(VLOOKUP(A42,'شهر 12'!$A$9:$AK$78,37,0),"0") -> 0 | AE42: 126.5 | AG42: 0 | AH42: 0 | AI42: 0 | AJ42: 0 | AK42: 0 | AL42: 0 | AM42: 0 | AN42: 0 | AO42: 0 | AP42: 0
A43: 1036 | B43: =IF(C43="","",SUBTOTAL(3,$C$9:C43)) -> 35 | C43: =VLOOKUP(A43,'شهر 2'!$A$11:$C$43,3,0) -> مرات عبد الحميد | D43: 146 | E43: 1036 | G43: =IFERROR(VLOOKUP(A43,'شهر 1'!$A$9:$AK$46,37,0),"0") -> 0 | I43: =IFERROR(VLOOKUP(A43,'شهر 2'!$A$9:$AK$43,37,0),"0") -> 42 | K43: =IFERROR(VLOOKUP(A43,'سهر 3'!$A$9:$AK$46,37,0),"0") -> 80 | L43: 100 | M43: =IFERROR(VLOOKUP(A43,'شهر 4'!$A$9:$AK$43,37,0),"0") -> 33 | N43: 0 | O43: =IFERROR(VLOOKUP(A43,'شهر 5'!$A$9:$AK$47,37,0),"0") -> 0 | P43: 0 | Q43: =IFERROR(VLOOKUP(A43,شهر6!$A$9:$AK$62,37,0),"0") -> 21.75 | S43: =IFERROR(VLOOKUP(A43,'شهر 7'!$A$9:$AK$84,37,0),"0") -> 69.25 | U43: =IFERROR(VLOOKUP(A43,'شهر 8'!$A$9:$AK$78,37,0),"0") -> 0 | W43: =IFERROR(VLOOKUP(A43,'شهر 9'!$A$9:$AK$78,37,0),"0") -> 0 | Y43: =IFERROR(VLOOKUP(A43,'شهر 10'!$A$9:$AK$78,37,0),"0") -> 0 | AA43: =IFERROR(VLOOKUP(A43,'شهر 11'!$A$9:$AK$78,37,0),"0") -> 0 | AC43: =IFERROR(VLOOKUP(A43,'شهر 12'!$A$9:$AK$78,37,0),"0") -> 0 | AE43: 146 | AG43: 0 | AH43: 0 | AI43: 80 | AJ43: 0 | AK43: 0 | AL43: 0 | AM43: 0 | AN43: 0 | AO43: 0 | AP43: 0
A44: 1037 | B44: =IF(C44="","",SUBTOTAL(3,$C$9:C44)) -> 36 | C44: =IFERROR(VLOOKUP(A44,'سهر 3'!$A$9:$D$46,3,0),"") -> ربيع حماد | D44: 66 | E44: 1037 | G44: =IFERROR(VLOOKUP(A44,'شهر 1'!$A$9:$AK$46,37,0),"0") -> 0 | I44: =IFERROR(VLOOKUP(A44,'شهر 2'!$A$9:$AK$43,37,0),"0") -> 0 | K44: =IFERROR(VLOOKUP(A44,'سهر 3'!$A$9:$AK$46,37,0),"0") -> 66 | M44: =IFERROR(VLOOKUP(A44,'شهر 4'!$A$9:$AK$43,37,0),"0") -> 0 | N44: 0 | O44: =IFERROR(VLOOKUP(A44,'شهر 5'!$A$9:$AK$47,37,0),"0") -> 0 | P44: 0 | Q44: =IFERROR(VLOOKUP(A44,شهر6!$A$9:$AK$62,37,0),"0") -> 0 | S44: =IFERROR(VLOOKUP(A44,'شهر 7'!$A$9:$AK$84,37,0),"0") -> 0 | U44: =IFERROR(VLOOKUP(A44,'شهر 8'!$A$9:$AK$78,37,0),"0") -> 0 | W44: =IFERROR(VLOOKUP(A44,'شهر 9'!$A$9:$AK$78,37,0),"0") -> 0 | Y44: =IFERROR(VLOOKUP(A44,'شهر 10'!$A$9:$AK$78,37,0),"0") -> 0 | AA44: =IFERROR(VLOOKUP(A44,'شهر 11'!$A$9:$AK$78,37,0),"0") -> 0 | AC44: =IFERROR(VLOOKUP(A44,'شهر 12'!$A$9:$AK$78,37,0),"0") -> 0 | AE44: 66 | AG44: 0 | AH44: 0 | AI44: 0 | AJ44: 0 | AK44: 0 | AL44: 0 | AM44: 0 | AN44: 0 | AO44: 0 | AP44: 0
A45: 1038 | B45: =IF(C45="","",SUBTOTAL(3,$C$9:C45)) -> 37 | C45: ربيع جمعة | D45: 29.5 | E45: 1038 | F45: 110 | G45: =IFERROR(VLOOKUP(A45,'شهر 1'!$A$9:$AK$46,37,0),"0") -> 32.5 | H45: 87 | I45: =IFERROR(VLOOKUP(A45,'شهر 2'!$A$9:$AK$43,37,0),"0") -> 40 | J45: 16 | K45: =IFERROR(VLOOKUP(A45,'سهر 3'!$A$9:$AK$46,37,0),"0") -> 0 | M45: =IFERROR(VLOOKUP(A45,'شهر 4'!$A$9:$AK$43,37,0),"0") -> 0 | N45: 0 | O45: =IFERROR(VLOOKUP(A45,'شهر 5'!$A$9:$AK$47,37,0),"0") -> 0 | P45: 0 | Q45: =IFERROR(VLOOKUP(A45,شهر6!$A$9:$AK$62,37,0),"0") -> 0 | S45: =IFERROR(VLOOKUP(A45,'شهر 7'!$A$9:$AK$84,37,0),"0") -> 0 | T45: 50 | U45: =IFERROR(VLOOKUP(A45,'شهر 8'!$A$9:$AK$78,37,0),"0") -> 0 | W45: =IFERROR(VLOOKUP(A45,'شهر 9'!$A$9:$AK$78,37,0),"0") -> 0 | Y45: =IFERROR(VLOOKUP(A45,'شهر 10'!$A$9:$AK$78,37,0),"0") -> 0 | AA45: =IFERROR(VLOOKUP(A45,'شهر 11'!$A$9:$AK$78,37,0),"0") -> 0 | AC45: =IFERROR(VLOOKUP(A45,'شهر 12'!$A$9:$AK$78,37,0),"0") -> 0 | AE45: 29.5 | AG45: 32.5 | AH45: 16 | AI45: 0 | AJ45: 0 | AK45: 0 | AL45: 0 | AM45: 0 | AN45: 0 | AO45: 0 | AP45: 0
A46: 1039 | B46: =IF(C46="","",SUBTOTAL(3,$C$9:C46)) -> 38 | C46: مرات محمود عادل | D46: 805.25 | E46: 1039 | F46: 257 | G46: =IFERROR(VLOOKUP(A46,'شهر 1'!$A$9:$AK$46,37,0),"0") -> 120.75 | H46: 200 | I46: =IFERROR(VLOOKUP(A46,'شهر 2'!$A$9:$AK$43,37,0),"0") -> 0 | J46: 65 | K46: =IFERROR(VLOOKUP(A46,'سهر 3'!$A$9:$AK$46,37,0),"0") -> 274 | M46: =IFERROR(VLOOKUP(A46,'شهر 4'!$A$9:$AK$43,37,0),"0") -> 242.5 | N46: 0 | O46: =IFERROR(VLOOKUP(A46,'شهر 5'!$A$9:$AK$47,37,0),"0") -> 80 | P46: 0 | Q46: =IFERROR(VLOOKUP(A46,شهر6!$A$9:$AK$62,37,0),"0") -> 59.5 | S46: =IFERROR(VLOOKUP(A46,'شهر 7'!$A$9:$AK$84,37,0),"0") -> 36.5 | U46: =IFERROR(VLOOKUP(A46,'شهر 8'!$A$9:$AK$78,37,0),"0") -> 0 | W46: =IFERROR(VLOOKUP(A46,'شهر 9'!$A$9:$AK$78,37,0),"0") -> 0 | Y46: =IFERROR(VLOOKUP(A46,'شهر 10'!$A$9:$AK$78,37,0),"0") -> 0 | AA46: =IFERROR(VLOOKUP(A46,'شهر 11'!$A$9:$AK$78,37,0),"0") -> 0 | AC46: =IFERROR(VLOOKUP(A46,'شهر 12'!$A$9:$AK$78,37,0),"0") -> 0 | AE46: 805.25 | AG46: 120.75 | AH46: 0 | AI46: 0 | AJ46: 0 | AK46: 0 | AL46: 0 | AM46: 0 | AN46: 0 | AO46: 0 | AP46: 0
A47: 1040 | B47: =IF(C47="","",SUBTOTAL(3,$C$9:C47)) -> 39 | C47: اعتماد سعد | D47: 421.25 | E47: 1040 | F47: 231.75 | G47: =IFERROR(VLOOKUP(A47,'شهر 1'!$A$9:$AK$46,37,0),"0") -> 130 | I47: =IFERROR(VLOOKUP(A47,'شهر 2'!$A$9:$AK$43,37,0),"0") -> 130 | J47: 130 | K47: =IFERROR(VLOOKUP(A47,'سهر 3'!$A$9:$AK$46,37,0),"0") -> 0 | M47: =IFERROR(VLOOKUP(A47,'شهر 4'!$A$9:$AK$43,37,0),"0") -> 0 | N47: 0 | O47: =IFERROR(VLOOKUP(A47,'شهر 5'!$A$9:$AK$47,37,0),"0") -> 129.75 | P47: 0 | Q47: =IFERROR(VLOOKUP(A47,شهر6!$A$9:$AK$62,37,0),"0") -> 0 | S47: =IFERROR(VLOOKUP(A47,'شهر 7'!$A$9:$AK$84,37,0),"0") -> 39.75 | T47: 110 | U47: =IFERROR(VLOOKUP(A47,'شهر 8'!$A$9:$AK$78,37,0),"0") -> 0 | W47: =IFERROR(VLOOKUP(A47,'شهر 9'!$A$9:$AK$78,37,0),"0") -> 0 | Y47: =IFERROR(VLOOKUP(A47,'شهر 10'!$A$9:$AK$78,37,0),"0") -> 0 | AA47: =IFERROR(VLOOKUP(A47,'شهر 11'!$A$9:$AK$78,37,0),"0") -> 0 | AC47: =IFERROR(VLOOKUP(A47,'شهر 12'!$A$9:$AK$78,37,0),"0") -> 0 | AE47: 421.25 | AG47: 0 | AH47: 0 | AI47: 0 | AJ47: 0 | AK47: 0 | AL47: 0 | AM47: 39.75 | AN47: 0 | AO47: 0 | AP47: 0
A48: 1041 | B48: =IF(C48="","",SUBTOTAL(3,$C$9:C48)) -> 40 | C48: =IFERROR(VLOOKUP($A48,'شهر 7'!$A$9:$C$84,3,0),"") -> حسام النجار | D48: 69.5 | E48: 1041 | G48: =IFERROR(VLOOKUP(A48,'شهر 1'!$A$9:$AK$46,37,0),"0") -> 0 | I48: =IFERROR(VLOOKUP(A48,'شهر 2'!$A$9:$AK$43,37,0),"0") -> 0 | K48: =IFERROR(VLOOKUP(A48,'سهر 3'!$A$9:$AK$46,37,0),"0") -> 0 | M48: =IFERROR(VLOOKUP(A48,'شهر 4'!$A$9:$AK$43,37,0),"0") -> 0 | N48: 0 | O48: =IFERROR(VLOOKUP(A48,'شهر 5'!$A$9:$AK$47,37,0),"0") -> 0 | Q48: =IFERROR(VLOOKUP(A48,شهر6!$A$9:$AK$62,37,0),"0") -> 0 | S48: =IFERROR(VLOOKUP(A48,'شهر 7'!$A$9:$AK$84,37,0),"0") -> 69.5 | U48: =IFERROR(VLOOKUP(A48,'شهر 8'!$A$9:$AK$78,37,0),"0") -> 0 | W48: =IFERROR(VLOOKUP(A48,'شهر 9'!$A$9:$AK$78,37,0),"0") -> 0 | Y48: =IFERROR(VLOOKUP(A48,'شهر 10'!$A$9:$AK$78,37,0),"0") -> 0 | AA48: =IFERROR(VLOOKUP(A48,'شهر 11'!$A$9:$AK$78,37,0),"0") -> 0 | AC48: =IFERROR(VLOOKUP(A48,'شهر 12'!$A$9:$AK$78,37,0),"0") -> 0 | AE48: 69.5 | AG48: 0 | AH48: 0 | AI48: 0 | AJ48: 0 | AK48: 0 | AL48: 0 | AM48: 0 | AN48: 0 | AO48: 0 | AP48: 0
A49: 1042 | B49: =IF(C49="","",SUBTOTAL(3,$C$9:C49)) -> 41 | C49: محمد راضي ع العليم | D49: 82 | E49: 1042 | F49: 44 | G49: =IFERROR(VLOOKUP(A49,'شهر 1'!$A$9:$AK$46,37,0),"0") -> 119 | H49: 145 | I49: =IFERROR(VLOOKUP(A49,'شهر 2'!$A$9:$AK$43,37,0),"0") -> 81.75 | J49: 69.5 | K49: =IFERROR(VLOOKUP(A49,'سهر 3'!$A$9:$AK$46,37,0),"0") -> 77.75 | L49: 108 | M49: =IFERROR(VLOOKUP(A49,'شهر 4'!$A$9:$AK$43,37,0),"0") -> 78 | N49: 78 | O49: =IFERROR(VLOOKUP(A49,'شهر 5'!$A$9:$AK$47,37,0),"0") -> 104 | P49: 20 | Q49: =IFERROR(VLOOKUP(A49,شهر6!$A$9:$AK$62,37,0),"0") -> 104.25 | R49: 117.75 | S49: =IFERROR(VLOOKUP(A49,'شهر 7'!$A$9:$AK$84,37,0),"0") -> 201.25 | T49: 189.75 | U49: =IFERROR(VLOOKUP(A49,'شهر 8'!$A$9:$AK$78,37,0),"0") -> 0 | W49: =IFERROR(VLOOKUP(A49,'شهر 9'!$A$9:$AK$78,37,0),"0") -> 0 | Y49: =IFERROR(VLOOKUP(A49,'شهر 10'!$A$9:$AK$78,37,0),"0") -> 0 | AA49: =IFERROR(VLOOKUP(A49,'شهر 11'!$A$9:$AK$78,37,0),"0") -> 0 | AC49: =IFERROR(VLOOKUP(A49,'شهر 12'!$A$9:$AK$78,37,0),"0") -> 0 | AE49: 82 | AG49: 119 | AH49: 69.5 | AI49: 77.75 | AJ49: 78 | AK49: 20 | AL49: 104.25 | AM49: 189.75 | AN49: 0 | AO49: 0 | AP49: 0
A50: 1043 | B50: =IF(C50="","",SUBTOTAL(3,$C$9:C50)) -> 42 | C50: =IFERROR(VLOOKUP(A50,'شهر 1'!$A$11:$C$60,3,0),"") -> احمد الجغل | D50: 706.75 | E50: 1043 | G50: =IFERROR(VLOOKUP(A50,'شهر 1'!$A$9:$AK$46,37,0),"0") -> 122.75 | I50: =IFERROR(VLOOKUP(A50,'شهر 2'!$A$9:$AK$43,37,0),"0") -> 58 | K50: =IFERROR(VLOOKUP(A50,'سهر 3'!$A$9:$AK$46,37,0),"0") -> 133.75 | M50: =IFERROR(VLOOKUP(A50,'شهر 4'!$A$9:$AK$43,37,0),"0") -> 231.25 | N50: 0 | O50: =IFERROR(VLOOKUP(A50,'شهر 5'!$A$9:$AK$47,37,0),"0") -> 0 | P50: 0 | Q50: =IFERROR(VLOOKUP(A50,شهر6!$A$9:$AK$62,37,0),"0") -> 161 | S50: =IFERROR(VLOOKUP(A50,'شهر 7'!$A$9:$AK$84,37,0),"0") -> 0 | U50: =IFERROR(VLOOKUP(A50,'شهر 8'!$A$9:$AK$78,37,0),"0") -> 0 | W50: =IFERROR(VLOOKUP(A50,'شهر 9'!$A$9:$AK$78,37,0),"0") -> 0 | Y50: =IFERROR(VLOOKUP(A50,'شهر 10'!$A$9:$AK$78,37,0),"0") -> 0 | AA50: =IFERROR(VLOOKUP(A50,'شهر 11'!$A$9:$AK$78,37,0),"0") -> 0 | AC50: =IFERROR(VLOOKUP(A50,'شهر 12'!$A$9:$AK$78,37,0),"0") -> 0 | AE50: 706.75 | AG50: 0 | AH50: 0 | AI50: 0 | AJ50: 0 | AK50: 0 | AL50: 0 | AM50: 0 | AN50: 0 | AO50: 0 | AP50: 0
A51: 1044 | B51: =IF(C51="","",SUBTOTAL(3,$C$9:C51)) -> 43 | C51: جمال بيومي | D51: 68.5 | E51: 1044 | F51: 68.5 | G51: =IFERROR(VLOOKUP(A51,'شهر 1'!$A$9:$AK$46,37,0),"0") -> 0 | I51: =IFERROR(VLOOKUP(A51,'شهر 2'!$A$9:$AK$43,37,0),"0") -> 0 | K51: =IFERROR(VLOOKUP(A51,'سهر 3'!$A$9:$AK$46,37,0),"0") -> 0 | M51: =IFERROR(VLOOKUP(A51,'شهر 4'!$A$9:$AK$43,37,0),"0") -> 0 | N51: 0 | O51: =IFERROR(VLOOKUP(A51,'شهر 5'!$A$9:$AK$47,37,0),"0") -> 0 | P51: 0 | Q51: =IFERROR(VLOOKUP(A51,شهر6!$A$9:$AK$62,37,0),"0") -> 0 | S51: =IFERROR(VLOOKUP(A51,'شهر 7'!$A$9:$AK$84,37,0),"0") -> 0 | U51: =IFERROR(VLOOKUP(A51,'شهر 8'!$A$9:$AK$78,37,0),"0") -> 0 | W51: =IFERROR(VLOOKUP(A51,'شهر 9'!$A$9:$AK$78,37,0),"0") -> 0 | Y51: =IFERROR(VLOOKUP(A51,'شهر 10'!$A$9:$AK$78,37,0),"0") -> 0 | AA51: =IFERROR(VLOOKUP(A51,'شهر 11'!$A$9:$AK$78,37,0),"0") -> 0 | AC51: =IFERROR(VLOOKUP(A51,'شهر 12'!$A$9:$AK$78,37,0),"0") -> 0 | AE51: 68.5 | AG51: 0 | AH51: 0 | AI51: 0 | AJ51: 0 | AK51: 0 | AL51: 0 | AM51: 0 | AN51: 0 | AO51: 0 | AP51: 0
A52: 1045 | B52: =IF(C52="","",SUBTOTAL(3,$C$9:C52)) -> 44 | C52: بنت عمي محمد عوض | D52: 15 | E52: 1045 | F52: 15 | G52: =IFERROR(VLOOKUP(A52,'شهر 1'!$A$9:$AK$46,37,0),"0") -> 0 | I52: =IFERROR(VLOOKUP(A52,'شهر 2'!$A$9:$AK$43,37,0),"0") -> 0 | K52: =IFERROR(VLOOKUP(A52,'سهر 3'!$A$9:$AK$46,37,0),"0") -> 0 | M52: =IFERROR(VLOOKUP(A52,'شهر 4'!$A$9:$AK$43,37,0),"0") -> 0 | N52: 0 | O52: =IFERROR(VLOOKUP(A52,'شهر 5'!$A$9:$AK$47,37,0),"0") -> 0 | P52: 0 | Q52: =IFERROR(VLOOKUP(A52,شهر6!$A$9:$AK$62,37,0),"0") -> 0 | S52: =IFERROR(VLOOKUP(A52,'شهر 7'!$A$9:$AK$84,37,0),"0") -> 0 | U52: =IFERROR(VLOOKUP(A52,'شهر 8'!$A$9:$AK$78,37,0),"0") -> 0 | W52: =IFERROR(VLOOKUP(A52,'شهر 9'!$A$9:$AK$78,37,0),"0") -> 0 | Y52: =IFERROR(VLOOKUP(A52,'شهر 10'!$A$9:$AK$78,37,0),"0") -> 0 | AA52: =IFERROR(VLOOKUP(A52,'شهر 11'!$A$9:$AK$78,37,0),"0") -> 0 | AC52: =IFERROR(VLOOKUP(A52,'شهر 12'!$A$9:$AK$78,37,0),"0") -> 0 | AE52: 15 | AG52: 0 | AH52: 0 | AI52: 0 | AJ52: 0 | AK52: 0 | AL52: 0 | AM52: 0 | AN52: 0 | AO52: 0 | AP52: 0
A53: 1046 | B53: =IF(C53="","",SUBTOTAL(3,$C$9:C53)) -> 45 | C53: ام ياسين | D53: 285.2 | E53: 1046 | F53: 153.7 | G53: =IFERROR(VLOOKUP(A53,'شهر 1'!$A$9:$AK$46,37,0),"0") -> 40 | H53: 16 | I53: =IFERROR(VLOOKUP(A53,'شهر 2'!$A$9:$AK$43,37,0),"0") -> 0 | K53: =IFERROR(VLOOKUP(A53,'سهر 3'!$A$9:$AK$46,37,0),"0") -> 121 | L53: 42 | M53: =IFERROR(VLOOKUP(A53,'شهر 4'!$A$9:$AK$43,37,0),"0") -> 0 | N53: 0 | O53: =IFERROR(VLOOKUP(A53,'شهر 5'!$A$9:$AK$47,37,0),"0") -> 61 | P53: 55 | Q53: =IFERROR(VLOOKUP(A53,شهر6!$A$9:$AK$62,37,0),"0") -> 0 | R53: 20 | S53: =IFERROR(VLOOKUP(A53,'شهر 7'!$A$9:$AK$84,37,0),"0") -> 201.5 | T53: =114+45 -> 159 | U53: =IFERROR(VLOOKUP(A53,'شهر 8'!$A$9:$AK$78,37,0),"0") -> 0 | W53: =IFERROR(VLOOKUP(A53,'شهر 9'!$A$9:$AK$78,37,0),"0") -> 0 | Y53: =IFERROR(VLOOKUP(A53,'شهر 10'!$A$9:$AK$78,37,0),"0") -> 0 | AA53: =IFERROR(VLOOKUP(A53,'شهر 11'!$A$9:$AK$78,37,0),"0") -> 0 | AC53: =IFERROR(VLOOKUP(A53,'شهر 12'!$A$9:$AK$78,37,0),"0") -> 0 | AE53: 285.2 | AG53: 16 | AH53: 0 | AI53: 42 | AJ53: 0 | AK53: 55 | AL53: 0 | AM53: 159 | AN53: 0 | AO53: 0 | AP53: 0
A54: 1047 | B54: =IF(C54="","",SUBTOTAL(3,$C$9:C54)) -> 46 | C54: =IFERROR(VLOOKUP($A54,'شهر 8'!$A$9:$C$78,3,0),"") -> ابوبكر بشريده | D54: 59 | E54: 1047 | G54: =IFERROR(VLOOKUP(A54,'شهر 1'!$A$9:$AK$46,37,0),"0") -> 0 | I54: =IFERROR(VLOOKUP(A54,'شهر 2'!$A$9:$AK$43,37,0),"0") -> 0 | K54: =IFERROR(VLOOKUP(A54,'سهر 3'!$A$9:$AK$46,37,0),"0") -> 0 | M54: =IFERROR(VLOOKUP(A54,'شهر 4'!$A$9:$AK$43,37,0),"0") -> 0 | N54: 0 | O54: =IFERROR(VLOOKUP(A54,'شهر 5'!$A$9:$AK$47,37,0),"0") -> 0 | P54: 0 | Q54: =IFERROR(VLOOKUP(A54,شهر6!$A$9:$AK$62,37,0),"0") -> 0 | S54: =IFERROR(VLOOKUP(A54,'شهر 7'!$A$9:$AK$84,37,0),"0") -> 0 | U54: =IFERROR(VLOOKUP(A54,'شهر 8'!$A$9:$AK$78,37,0),"0") -> 59 | W54: =IFERROR(VLOOKUP(A54,'شهر 9'!$A$9:$AK$78,37,0),"0") -> 0 | Y54: =IFERROR(VLOOKUP(A54,'شهر 10'!$A$9:$AK$78,37,0),"0") -> 0 | AA54: =IFERROR(VLOOKUP(A54,'شهر 11'!$A$9:$AK$78,37,0),"0") -> 0 | AC54: =IFERROR(VLOOKUP(A54,'شهر 12'!$A$9:$AK$78,37,0),"0") -> 0 | AE54: 59 | AG54: 0 | AH54: 0 | AI54: 0 | AJ54: 0 | AK54: 0 | AL54: 0 | AM54: 0 | AN54: 0 | AO54: 0 | AP54: 0
A55: 1048 | B55: =IF(C55="","",SUBTOTAL(3,$C$9:C55)) -> 47 | C55: وائل خلف | D55: 347.25 | E55: 1048 | F55: 59 | G55: =IFERROR(VLOOKUP(A55,'شهر 1'!$A$9:$AK$46,37,0),"0") -> 0 | I55: =IFERROR(VLOOKUP(A55,'شهر 2'!$A$9:$AK$43,37,0),"0") -> 23 | K55: =IFERROR(VLOOKUP(A55,'سهر 3'!$A$9:$AK$46,37,0),"0") -> 85 | L55: =45+100 -> 145 | M55: =IFERROR(VLOOKUP(A55,'شهر 4'!$A$9:$AK$43,37,0),"0") -> 43.75 | N55: 0 | O55: =IFERROR(VLOOKUP(A55,'شهر 5'!$A$9:$AK$47,37,0),"0") -> 107 | P55: 0 | Q55: =IFERROR(VLOOKUP(A55,شهر6!$A$9:$AK$62,37,0),"0") -> 115 | R55: 100 | S55: =IFERROR(VLOOKUP(A55,'شهر 7'!$A$9:$AK$84,37,0),"0") -> 134.5 | U55: =IFERROR(VLOOKUP(A55,'شهر 8'!$A$9:$AK$78,37,0),"0") -> 25 | W55: =IFERROR(VLOOKUP(A55,'شهر 9'!$A$9:$AK$78,37,0),"0") -> 0 | Y55: =IFERROR(VLOOKUP(A55,'شهر 10'!$A$9:$AK$78,37,0),"0") -> 0 | AA55: =IFERROR(VLOOKUP(A55,'شهر 11'!$A$9:$AK$78,37,0),"0") -> 0 | AC55: =IFERROR(VLOOKUP(A55,'شهر 12'!$A$9:$AK$78,37,0),"0") -> 0 | AE55: 347.25 | AG55: 0 | AH55: 0 | AI55: 85 | AJ55: 0 | AK55: 0 | AL55: 100 | AM55: 0 | AN55: 0 | AO55: 0 | AP55: 0
A56: 1049 | B56: =IF(C56="","",SUBTOTAL(3,$C$9:C56)) -> 48 | C56: =IFERROR(VLOOKUP($A56,'شهر 7'!$A$9:$C$84,3,0),"") -> تبع بيت مهدي عبد الجيد | D56: =AE56 -> 267 | E56: 1049 | G56: =IFERROR(VLOOKUP(A56,'شهر 1'!$A$9:$AK$46,37,0),"0") -> 0 | I56: =IFERROR(VLOOKUP(A56,'شهر 2'!$A$9:$AK$43,37,0),"0") -> 0 | K56: =IFERROR(VLOOKUP(A56,'سهر 3'!$A$9:$AK$46,37,0),"0") -> 0 | M56: =IFERROR(VLOOKUP(A56,'شهر 4'!$A$9:$AK$43,37,0),"0") -> 0 | N56: 0 | O56: =IFERROR(VLOOKUP(A56,'شهر 5'!$A$9:$AK$47,37,0),"0") -> 0 | P56: 0 | Q56: =IFERROR(VLOOKUP(A56,شهر6!$A$9:$AK$62,37,0),"0") -> 0 | S56: =IFERROR(VLOOKUP(A56,'شهر 7'!$A$9:$AK$84,37,0),"0") -> 267 | U56: =IFERROR(VLOOKUP(A56,'شهر 8'!$A$9:$AK$78,37,0),"0") -> 0 | W56: =IFERROR(VLOOKUP(A56,'شهر 9'!$A$9:$AK$78,37,0),"0") -> 0 | Y56: =IFERROR(VLOOKUP(A56,'شهر 10'!$A$9:$AK$78,37,0),"0") -> 0 | AA56: =IFERROR(VLOOKUP(A56,'شهر 11'!$A$9:$AK$78,37,0),"0") -> 0 | AC56: =IFERROR(VLOOKUP(A56,'شهر 12'!$A$9:$AK$78,37,0),"0") -> 0 | AE56: 267 | AG56: 0 | AH56: 0 | AI56: 0 | AJ56: 0 | AK56: 0 | AL56: 0 | AM56: 0 | AN56: 0 | AO56: 0 | AP56: 0
A57: 1050 | B57: =IF(C57="","",SUBTOTAL(3,$C$9:C57)) -> 49 | C57: =IFERROR(VLOOKUP($A57,شهر6!$A$9:$C$62,3,0),"") -> احمد عبد الحافظ | D57: =AE57 -> 79.5 | G57: =IFERROR(VLOOKUP(A57,'شهر 1'!$A$9:$AK$46,37,0),"0") -> 0 | I57: =IFERROR(VLOOKUP(A57,'شهر 2'!$A$9:$AK$43,37,0),"0") -> 0 | K57: =IFERROR(VLOOKUP(A57,'سهر 3'!$A$9:$AK$46,37,0),"0") -> 0 | M57: =IFERROR(VLOOKUP(A57,'شهر 4'!$A$9:$AK$43,37,0),"0") -> 0 | N57: 0 | O57: =IFERROR(VLOOKUP(A57,'شهر 5'!$A$9:$AK$47,37,0),"0") -> 0 | P57: 0 | Q57: =IFERROR(VLOOKUP(A57,شهر6!$A$9:$AK$62,37,0),"0") -> 79.5 | S57: =IFERROR(VLOOKUP(A57,'شهر 7'!$A$9:$AK$84,37,0),"0") -> 0 | U57: =IFERROR(VLOOKUP(A57,'شهر 8'!$A$9:$AK$78,37,0),"0") -> 0 | W57: =IFERROR(VLOOKUP(A57,'شهر 9'!$A$9:$AK$78,37,0),"0") -> 0 | Y57: =IFERROR(VLOOKUP(A57,'شهر 10'!$A$9:$AK$78,37,0),"0") -> 0 | AA57: =IFERROR(VLOOKUP(A57,'شهر 11'!$A$9:$AK$78,37,0),"0") -> 0 | AC57: =IFERROR(VLOOKUP(A57,'شهر 12'!$A$9:$AK$78,37,0),"0") -> 0 | AE57: =SUM(F57,G57,I57,K57,M57,O57,Q57,S57,U57,W57,Y57,AA57,AC57)-SUM(H57,J57,L57,N57,P57,R57,T57,V57,X57,Z57,AB57,AD57) -> 79.5 | AG57: 0 | AH57: 0 | AI57: 0 | AJ57: 0 | AK57: 0 | AL57: 0 | AM57: 0 | AN57: 0 | AO57: 0 | AP57: 0
A58: 1051 | B58: =IF(C58="","",SUBTOTAL(3,$C$9:C58)) -> 50 | C58: نادر ابو الوفا | D58: 127.25 | E58: 1051 | F58: 123.3 | G58: =IFERROR(VLOOKUP(A58,'شهر 1'!$A$9:$AK$46,37,0),"0") -> 0 | H58: 50 | I58: =IFERROR(VLOOKUP(A58,'شهر 2'!$A$9:$AK$43,37,0),"0") -> 0 | K58: =IFERROR(VLOOKUP(A58,'سهر 3'!$A$9:$AK$46,37,0),"0") -> 31.75 | M58: =IFERROR(VLOOKUP(A58,'شهر 4'!$A$9:$AK$43,37,0),"0") -> 22 | N58: 0 | O58: =IFERROR(VLOOKUP(A58,'شهر 5'!$A$9:$AK$47,37,0),"0") -> 0 | P58: 50 | Q58: =IFERROR(VLOOKUP(A58,شهر6!$A$9:$AK$62,37,0),"0") -> 31.2 | S58: =IFERROR(VLOOKUP(A58,'شهر 7'!$A$9:$AK$84,37,0),"0") -> 19 | U58: =IFERROR(VLOOKUP(A58,'شهر 8'!$A$9:$AK$78,37,0),"0") -> 0 | W58: =IFERROR(VLOOKUP(A58,'شهر 9'!$A$9:$AK$78,37,0),"0") -> 0 | Y58: =IFERROR(VLOOKUP(A58,'شهر 10'!$A$9:$AK$78,37,0),"0") -> 0 | AA58: =IFERROR(VLOOKUP(A58,'شهر 11'!$A$9:$AK$78,37,0),"0") -> 0 | AC58: =IFERROR(VLOOKUP(A58,'شهر 12'!$A$9:$AK$78,37,0),"0") -> 0 | AE58: 127.25 | AG58: 0 | AH58: 0 | AI58: 0 | AJ58: 0 | AK58: 0 | AL58: 0 | AM58: 0 | AN58: 0 | AO58: 0 | AP58: 0
A59: 1053 | B59: =IF(C59="","",SUBTOTAL(3,$C$9:C59)) -> 51 | C59: محمد رمضان الحلاق | D59: 75.25 | E59: 1053 | F59: 86.75 | G59: =IFERROR(VLOOKUP(A59,'شهر 1'!$A$9:$AK$46,37,0),"0") -> 0 | H59: 11.5 | I59: =IFERROR(VLOOKUP(A59,'شهر 2'!$A$9:$AK$43,37,0),"0") -> 0 | K59: =IFERROR(VLOOKUP(A59,'سهر 3'!$A$9:$AK$46,37,0),"0") -> 0 | M59: =IFERROR(VLOOKUP(A59,'شهر 4'!$A$9:$AK$43,37,0),"0") -> 0 | N59: 0 | O59: =IFERROR(VLOOKUP(A59,'شهر 5'!$A$9:$AK$47,37,0),"0") -> 0 | P59: 0 | Q59: =IFERROR(VLOOKUP(A59,شهر6!$A$9:$AK$62,37,0),"0") -> 0 | S59: =IFERROR(VLOOKUP(A59,'شهر 7'!$A$9:$AK$84,37,0),"0") -> 0 | U59: =IFERROR(VLOOKUP(A59,'شهر 8'!$A$9:$AK$78,37,0),"0") -> 0 | W59: =IFERROR(VLOOKUP(A59,'شهر 9'!$A$9:$AK$78,37,0),"0") -> 0 | Y59: =IFERROR(VLOOKUP(A59,'شهر 10'!$A$9:$AK$78,37,0),"0") -> 0 | AA59: =IFERROR(VLOOKUP(A59,'شهر 11'!$A$9:$AK$78,37,0),"0") -> 0 | AC59: =IFERROR(VLOOKUP(A59,'شهر 12'!$A$9:$AK$78,37,0),"0") -> 0 | AE59: 75.25 | AG59: 0 | AH59: 0 | AI59: 0 | AJ59: 0 | AK59: 0 | AL59: 0 | AM59: 0 | AN59: 0 | AO59: 0 | AP59: 0
A60: 1054 | B60: =IF(C60="","",SUBTOTAL(3,$C$9:C60)) -> 52 | C60: خليفة كبدة | D60: 121 | E60: 1054 | F60: 127 | G60: =IFERROR(VLOOKUP(A60,'شهر 1'!$A$9:$AK$46,37,0),"0") -> 11 | H60: 100 | I60: =IFERROR(VLOOKUP(A60,'شهر 2'!$A$9:$AK$43,37,0),"0") -> 14.5 | K60: =IFERROR(VLOOKUP(A60,'سهر 3'!$A$9:$AK$46,37,0),"0") -> 39 | M60: =IFERROR(VLOOKUP(A60,'شهر 4'!$A$9:$AK$43,37,0),"0") -> 0 | N60: 0 | O60: =IFERROR(VLOOKUP(A60,'شهر 5'!$A$9:$AK$47,37,0),"0") -> 26 | P60: =23+43 -> 66 | Q60: =IFERROR(VLOOKUP(A60,شهر6!$A$9:$AK$62,37,0),"0") -> 31 | R60: 50 | S60: =IFERROR(VLOOKUP(A60,'شهر 7'!$A$9:$AK$84,37,0),"0") -> 65.5 | U60: =IFERROR(VLOOKUP(A60,'شهر 8'!$A$9:$AK$78,37,0),"0") -> 23 | W60: =IFERROR(VLOOKUP(A60,'شهر 9'!$A$9:$AK$78,37,0),"0") -> 0 | Y60: =IFERROR(VLOOKUP(A60,'شهر 10'!$A$9:$AK$78,37,0),"0") -> 0 | AA60: =IFERROR(VLOOKUP(A60,'شهر 11'!$A$9:$AK$78,37,0),"0") -> 0 | AC60: =IFERROR(VLOOKUP(A60,'شهر 12'!$A$9:$AK$78,37,0),"0") -> 0 | AE60: 121 | AG60: 11 | AH60: 0 | AI60: 0 | AJ60: 0 | AK60: 26 | AL60: 31 | AM60: 0 | AN60: 0 | AO60: 0 | AP60: 0
A61: 1055 | B61: =IF(C61="","",SUBTOTAL(3,$C$9:C61)) -> 53 | C61: =IFERROR(VLOOKUP($A61,'شهر 7'!$A$9:$C$84,3,0),"") -> الشيخ ناجي صابر | D61: -510 | E61: 1055 | G61: =IFERROR(VLOOKUP(A61,'شهر 1'!$A$9:$AK$46,37,0),"0") -> 0 | I61: =IFERROR(VLOOKUP(A61,'شهر 2'!$A$9:$AK$43,37,0),"0") -> 0 | K61: =IFERROR(VLOOKUP(A61,'سهر 3'!$A$9:$AK$46,37,0),"0") -> 0 | M61: =IFERROR(VLOOKUP(A61,'شهر 4'!$A$9:$AK$43,37,0),"0") -> 0 | N61: 0 | O61: =IFERROR(VLOOKUP(A61,'شهر 5'!$A$9:$AK$47,37,0),"0") -> 0 | P61: 0 | Q61: =IFERROR(VLOOKUP(A61,شهر6!$A$9:$AK$62,37,0),"0") -> 0 | S61: =IFERROR(VLOOKUP(A61,'شهر 7'!$A$9:$AK$84,37,0),"0") -> 310 | U61: =IFERROR(VLOOKUP(A61,'شهر 8'!$A$9:$AK$78,37,0),"0") -> 180 | V61: 1000 | W61: =IFERROR(VLOOKUP(A61,'شهر 9'!$A$9:$AK$78,37,0),"0") -> 0 | Y61: =IFERROR(VLOOKUP(A61,'شهر 10'!$A$9:$AK$78,37,0),"0") -> 0 | AA61: =IFERROR(VLOOKUP(A61,'شهر 11'!$A$9:$AK$78,37,0),"0") -> 0 | AC61: =IFERROR(VLOOKUP(A61,'شهر 12'!$A$9:$AK$78,37,0),"0") -> 0 | AE61: -510 | AG61: 0 | AH61: 0 | AI61: 0 | AJ61: 0 | AK61: 0 | AL61: 0 | AM61: 0 | AN61: 180 | AO61: 0 | AP61: 0
A62: 1056 | B62: =IF(C62="","",SUBTOTAL(3,$C$9:C62)) -> 54 | C62: =IFERROR(VLOOKUP(A62,'شهر 1'!$A$9:$D$73,3,0),"") -> مرات اسماعيل خيري | D62: 58.25 | E62: 1056 | G62: =IFERROR(VLOOKUP(A62,'شهر 1'!$A$9:$AK$46,37,0),"0") -> 28 | I62: =IFERROR(VLOOKUP(A62,'شهر 2'!$A$9:$AK$43,37,0),"0") -> 412.5 | J62: 178 | K62: =IFERROR(VLOOKUP(A62,'سهر 3'!$A$9:$AK$46,37,0),"0") -> 2 | L62: =130+12.5 -> 142.5 | M62: =IFERROR(VLOOKUP(A62,'شهر 4'!$A$9:$AK$43,37,0),"0") -> 211.5 | N62: 0 | O62: =IFERROR(VLOOKUP(A62,'شهر 5'!$A$9:$AK$47,37,0),"0") -> 24.75 | P62: 200 | Q62: =IFERROR(VLOOKUP(A62,شهر6!$A$9:$AK$62,37,0),"0") -> 0 | R62: 100 | S62: =IFERROR(VLOOKUP(A62,'شهر 7'!$A$9:$AK$84,37,0),"0") -> 0 | U62: =IFERROR(VLOOKUP(A62,'شهر 8'!$A$9:$AK$78,37,0),"0") -> 0 | W62: =IFERROR(VLOOKUP(A62,'شهر 9'!$A$9:$AK$78,37,0),"0") -> 0 | Y62: =IFERROR(VLOOKUP(A62,'شهر 10'!$A$9:$AK$78,37,0),"0") -> 0 | AA62: =IFERROR(VLOOKUP(A62,'شهر 11'!$A$9:$AK$78,37,0),"0") -> 0 | AC62: =IFERROR(VLOOKUP(A62,'شهر 12'!$A$9:$AK$78,37,0),"0") -> 0 | AE62: 58.25 | AG62: 0 | AH62: 178 | AI62: 2 | AJ62: 0 | AK62: 24.75 | AL62: 0 | AM62: 0 | AN62: 0 | AO62: 0 | AP62: 0
A63: 1057 | B63: =IF(C63="","",SUBTOTAL(3,$C$9:C63)) -> 55 | C63: =IFERROR(VLOOKUP(A63,'شهر 1'!$A$9:$D$73,3,0),"") -> ام كريم خيري | D63: 20 | E63: 1057 | G63: =IFERROR(VLOOKUP(A63,'شهر 1'!$A$9:$AK$46,37,0),"0") -> 20 | I63: =IFERROR(VLOOKUP(A63,'شهر 2'!$A$9:$AK$43,37,0),"0") -> 0 | K63: =IFERROR(VLOOKUP(A63,'سهر 3'!$A$9:$AK$46,37,0),"0") -> 0 | M63: =IFERROR(VLOOKUP(A63,'شهر 4'!$A$9:$AK$43,37,0),"0") -> 0 | N63: 0 | O63: =IFERROR(VLOOKUP(A63,'شهر 5'!$A$9:$AK$47,37,0),"0") -> 0 | P63: 0 | Q63: =IFERROR(VLOOKUP(A63,شهر6!$A$9:$AK$62,37,0),"0") -> 0 | S63: =IFERROR(VLOOKUP(A63,'شهر 7'!$A$9:$AK$84,37,0),"0") -> 0 | U63: =IFERROR(VLOOKUP(A63,'شهر 8'!$A$9:$AK$78,37,0),"0") -> 0 | W63: =IFERROR(VLOOKUP(A63,'شهر 9'!$A$9:$AK$78,37,0),"0") -> 0 | Y63: =IFERROR(VLOOKUP(A63,'شهر 10'!$A$9:$AK$78,37,0),"0") -> 0 | AA63: =IFERROR(VLOOKUP(A63,'شهر 11'!$A$9:$AK$78,37,0),"0") -> 0 | AC63: =IFERROR(VLOOKUP(A63,'شهر 12'!$A$9:$AK$78,37,0),"0") -> 0 | AE63: 20 | AG63: 0 | AH63: 0 | AI63: 0 | AJ63: 0 | AK63: 0 | AL63: 0 | AM63: 0 | AN63: 0 | AO63: 0 | AP63: 0
A64: 1058 | B64: =IF(C64="","",SUBTOTAL(3,$C$9:C64)) -> 56 | C64: محمد نصر | D64: 16 | E64: 1058 | F64: 25 | G64: =IFERROR(VLOOKUP(A64,'شهر 1'!$A$9:$AK$46,37,0),"0") -> 0 | I64: =IFERROR(VLOOKUP(A64,'شهر 2'!$A$9:$AK$43,37,0),"0") -> 0 | K64: =IFERROR(VLOOKUP(A64,'سهر 3'!$A$9:$AK$46,37,0),"0") -> 43.5 | M64: =IFERROR(VLOOKUP(A64,'شهر 4'!$A$9:$AK$43,37,0),"0") -> 0 | N64: 25 | O64: =IFERROR(VLOOKUP(A64,'شهر 5'!$A$9:$AK$47,37,0),"0") -> 16 | P64: 15.5 | Q64: =IFERROR(VLOOKUP(A64,شهر6!$A$9:$AK$62,37,0),"0") -> 90 | S64: =IFERROR(VLOOKUP(A64,'شهر 7'!$A$9:$AK$84,37,0),"0") -> 81 | T64: =50+165 -> 215 | U64: =IFERROR(VLOOKUP(A64,'شهر 8'!$A$9:$AK$78,37,0),"0") -> 16 | W64: =IFERROR(VLOOKUP(A64,'شهر 9'!$A$9:$AK$78,37,0),"0") -> 0 | Y64: =IFERROR(VLOOKUP(A64,'شهر 10'!$A$9:$AK$78,37,0),"0") -> 0 | AA64: =IFERROR(VLOOKUP(A64,'شهر 11'!$A$9:$AK$78,37,0),"0") -> 0 | AC64: =IFERROR(VLOOKUP(A64,'شهر 12'!$A$9:$AK$78,37,0),"0") -> 0 | AE64: 16 | AG64: 0 | AH64: 0 | AI64: 0 | AJ64: 0 | AK64: 15.5 | AL64: 0 | AM64: 81 | AN64: 0 | AO64: 0 | AP64: 0
A65: 1059 | B65: =IF(C65="","",SUBTOTAL(3,$C$9:C65)) -> 57 | C65: مرات طارق عبد الله | D65: 207 | E65: 1059 | F65: 124 | G65: =IFERROR(VLOOKUP(A65,'شهر 1'!$A$9:$AK$46,37,0),"0") -> 56.5 | I65: =IFERROR(VLOOKUP(A65,'شهر 2'!$A$9:$AK$43,37,0),"0") -> 55 | K65: =IFERROR(VLOOKUP(A65,'سهر 3'!$A$9:$AK$46,37,0),"0") -> 0 | M65: =IFERROR(VLOOKUP(A65,'شهر 4'!$A$9:$AK$43,37,0),"0") -> 0 | N65: 0 | O65: =IFERROR(VLOOKUP(A65,'شهر 5'!$A$9:$AK$47,37,0),"0") -> 28.5 | P65: 0 | Q65: =IFERROR(VLOOKUP(A65,شهر6!$A$9:$AK$62,37,0),"0") -> 0 | R65: 240 | S65: =IFERROR(VLOOKUP(A65,'شهر 7'!$A$9:$AK$84,37,0),"0") -> 99 | U65: =IFERROR(VLOOKUP(A65,'شهر 8'!$A$9:$AK$78,37,0),"0") -> 84 | W65: =IFERROR(VLOOKUP(A65,'شهر 9'!$A$9:$AK$78,37,0),"0") -> 0 | Y65: =IFERROR(VLOOKUP(A65,'شهر 10'!$A$9:$AK$78,37,0),"0") -> 0 | AA65: =IFERROR(VLOOKUP(A65,'شهر 11'!$A$9:$AK$78,37,0),"0") -> 0 | AC65: =IFERROR(VLOOKUP(A65,'شهر 12'!$A$9:$AK$78,37,0),"0") -> 0 | AE65: 207 | AG65: 0 | AH65: 0 | AI65: 0 | AJ65: 0 | AK65: 0 | AL65: 0 | AM65: 0 | AN65: 0 | AO65: 0 | AP65: 0
A66: 1060 | B66: =IF(C66="","",SUBTOTAL(3,$C$9:C66)) -> 58 | C66: =VLOOKUP(A66,'شهر 1'!$A$9:$D$73,3,0) -> اخت هاني | D66: 20 | E66: 1060 | G66: =IFERROR(VLOOKUP(A66,'شهر 1'!$A$9:$AK$46,37,0),"0") -> 20 | I66: =IFERROR(VLOOKUP(A66,'شهر 2'!$A$9:$AK$43,37,0),"0") -> 0 | K66: =IFERROR(VLOOKUP(A66,'سهر 3'!$A$9:$AK$46,37,0),"0") -> 0 | M66: =IFERROR(VLOOKUP(A66,'شهر 4'!$A$9:$AK$43,37,0),"0") -> 0 | N66: 0 | O66: =IFERROR(VLOOKUP(A66,'شهر 5'!$A$9:$AK$47,37,0),"0") -> 0 | P66: 0 | Q66: =IFERROR(VLOOKUP(A66,شهر6!$A$9:$AK$62,37,0),"0") -> 0 | S66: =IFERROR(VLOOKUP(A66,'شهر 7'!$A$9:$AK$84,37,0),"0") -> 0 | U66: =IFERROR(VLOOKUP(A66,'شهر 8'!$A$9:$AK$78,37,0),"0") -> 0 | W66: =IFERROR(VLOOKUP(A66,'شهر 9'!$A$9:$AK$78,37,0),"0") -> 0 | Y66: =IFERROR(VLOOKUP(A66,'شهر 10'!$A$9:$AK$78,37,0),"0") -> 0 | AA66: =IFERROR(VLOOKUP(A66,'شهر 11'!$A$9:$AK$78,37,0),"0") -> 0 | AC66: =IFERROR(VLOOKUP(A66,'شهر 12'!$A$9:$AK$78,37,0),"0") -> 0 | AE66: 20 | AG66: 0 | AH66: 0 | AI66: 0 | AJ66: 0 | AK66: 0 | AL66: 0 | AM66: 0 | AN66: 0 | AO66: 0 | AP66: 0
A67: 1061 | B67: =IF(C67="","",SUBTOTAL(3,$C$9:C67)) -> 59 | C67: محمد جمعة حسين | D67: 25.5 | E67: 1061 | F67: 25.5 | G67: =IFERROR(VLOOKUP(A67,'شهر 1'!$A$9:$AK$46,37,0),"0") -> 0 | I67: =IFERROR(VLOOKUP(A67,'شهر 2'!$A$9:$AK$43,37,0),"0") -> 0 | K67: =IFERROR(VLOOKUP(A67,'سهر 3'!$A$9:$AK$46,37,0),"0") -> 0 | M67: =IFERROR(VLOOKUP(A67,'شهر 4'!$A$9:$AK$43,37,0),"0") -> 0 | N67: 0 | O67: =IFERROR(VLOOKUP(A67,'شهر 5'!$A$9:$AK$47,37,0),"0") -> 0 | P67: 0 | Q67: =IFERROR(VLOOKUP(A67,شهر6!$A$9:$AK$62,37,0),"0") -> 0 | S67: =IFERROR(VLOOKUP(A67,'شهر 7'!$A$9:$AK$84,37,0),"0") -> 0 | U67: =IFERROR(VLOOKUP(A67,'شهر 8'!$A$9:$AK$78,37,0),"0") -> 0 | W67: =IFERROR(VLOOKUP(A67,'شهر 9'!$A$9:$AK$78,37,0),"0") -> 0 | Y67: =IFERROR(VLOOKUP(A67,'شهر 10'!$A$9:$AK$78,37,0),"0") -> 0 | AA67: =IFERROR(VLOOKUP(A67,'شهر 11'!$A$9:$AK$78,37,0),"0") -> 0 | AC67: =IFERROR(VLOOKUP(A67,'شهر 12'!$A$9:$AK$78,37,0),"0") -> 0 | AE67: 25.5 | AG67: 0 | AH67: 0 | AI67: 0 | AJ67: 0 | AK67: 0 | AL67: 0 | AM67: 0 | AN67: 0 | AO67: 0 | AP67: 0
A68: 1062 | B68: =IF(C68="","",SUBTOTAL(3,$C$9:C68)) -> 60 | C68: محسن عمران | D68: 81.25 | E68: 1062 | F68: 62.75 | G68: =IFERROR(VLOOKUP(A68,'شهر 1'!$A$9:$AK$46,37,0),"0") -> 0 | I68: =IFERROR(VLOOKUP(A68,'شهر 2'!$A$9:$AK$43,37,0),"0") -> 0 | K68: =IFERROR(VLOOKUP(A68,'سهر 3'!$A$9:$AK$46,37,0),"0") -> 0 | M68: =IFERROR(VLOOKUP(A68,'شهر 4'!$A$9:$AK$43,37,0),"0") -> 18.5 | N68: 0 | O68: =IFERROR(VLOOKUP(A68,'شهر 5'!$A$9:$AK$47,37,0),"0") -> 0 | P68: 0 | Q68: =IFERROR(VLOOKUP(A68,شهر6!$A$9:$AK$62,37,0),"0") -> 0 | S68: =IFERROR(VLOOKUP(A68,'شهر 7'!$A$9:$AK$84,37,0),"0") -> 0 | U68: =IFERROR(VLOOKUP(A68,'شهر 8'!$A$9:$AK$78,37,0),"0") -> 0 | W68: =IFERROR(VLOOKUP(A68,'شهر 9'!$A$9:$AK$78,37,0),"0") -> 0 | Y68: =IFERROR(VLOOKUP(A68,'شهر 10'!$A$9:$AK$78,37,0),"0") -> 0 | AA68: =IFERROR(VLOOKUP(A68,'شهر 11'!$A$9:$AK$78,37,0),"0") -> 0 | AC68: =IFERROR(VLOOKUP(A68,'شهر 12'!$A$9:$AK$78,37,0),"0") -> 0 | AE68: 81.25 | AG68: 0 | AH68: 0 | AI68: 0 | AJ68: 0 | AK68: 0 | AL68: 0 | AM68: 0 | AN68: 0 | AO68: 0 | AP68: 0
A69: 1063 | B69: =IF(C69="","",SUBTOTAL(3,$C$9:C69)) -> 61 | C69: =IFERROR(VLOOKUP($A69,'شهر 4'!$A$10:$C$43,3,0),"") -> محمد عصمت | D69: 325 | E69: 1063 | G69: =IFERROR(VLOOKUP(A69,'شهر 1'!$A$9:$AK$46,37,0),"0") -> 0 | I69: =IFERROR(VLOOKUP(A69,'شهر 2'!$A$9:$AK$43,37,0),"0") -> 0 | K69: =IFERROR(VLOOKUP(A69,'سهر 3'!$A$9:$AK$46,37,0),"0") -> 0 | M69: =IFERROR(VLOOKUP(A69,'شهر 4'!$A$9:$AK$43,37,0),"0") -> 158.5 | N69: 0 | O69: =IFERROR(VLOOKUP(A69,'شهر 5'!$A$9:$AK$47,37,0),"0") -> 79.5 | P69: 0 | Q69: =IFERROR(VLOOKUP(A69,شهر6!$A$9:$AK$62,37,0),"0") -> 79.5 | R69: 238 | S69: =IFERROR(VLOOKUP(A69,'شهر 7'!$A$9:$AK$84,37,0),"0") -> 245.5 | U69: =IFERROR(VLOOKUP(A69,'شهر 8'!$A$9:$AK$78,37,0),"0") -> 0 | W69: =IFERROR(VLOOKUP(A69,'شهر 9'!$A$9:$AK$78,37,0),"0") -> 0 | Y69: =IFERROR(VLOOKUP(A69,'شهر 10'!$A$9:$AK$78,37,0),"0") -> 0 | AA69: =IFERROR(VLOOKUP(A69,'شهر 11'!$A$9:$AK$78,37,0),"0") -> 0 | AC69: =IFERROR(VLOOKUP(A69,'شهر 12'!$A$9:$AK$78,37,0),"0") -> 0 | AE69: 325 | AG69: 0 | AH69: 0 | AI69: 0 | AJ69: 0 | AK69: 0 | AL69: 79.5 | AM69: 0 | AN69: 0 | AO69: 0 | AP69: 0
A70: 1064 | B70: =IF(C70="","",SUBTOTAL(3,$C$9:C70)) -> 62 | C70: شريف محمود | D70: 28.5 | E70: 1064 | F70: 28.5 | G70: =IFERROR(VLOOKUP(A70,'شهر 1'!$A$9:$AK$46,37,0),"0") -> 0 | I70: =IFERROR(VLOOKUP(A70,'شهر 2'!$A$9:$AK$43,37,0),"0") -> 0 | K70: =IFERROR(VLOOKUP(A70,'سهر 3'!$A$9:$AK$46,37,0),"0") -> 0 | M70: =IFERROR(VLOOKUP(A70,'شهر 4'!$A$9:$AK$43,37,0),"0") -> 0 | N70: 0 | O70: =IFERROR(VLOOKUP(A70,'شهر 5'!$A$9:$AK$47,37,0),"0") -> 0 | P70: 0 | Q70: =IFERROR(VLOOKUP(A70,شهر6!$A$9:$AK$62,37,0),"0") -> 0 | S70: =IFERROR(VLOOKUP(A70,'شهر 7'!$A$9:$AK$84,37,0),"0") -> 0 | U70: =IFERROR(VLOOKUP(A70,'شهر 8'!$A$9:$AK$78,37,0),"0") -> 0 | W70: =IFERROR(VLOOKUP(A70,'شهر 9'!$A$9:$AK$78,37,0),"0") -> 0 | Y70: =IFERROR(VLOOKUP(A70,'شهر 10'!$A$9:$AK$78,37,0),"0") -> 0 | AA70: =IFERROR(VLOOKUP(A70,'شهر 11'!$A$9:$AK$78,37,0),"0") -> 0 | AC70: =IFERROR(VLOOKUP(A70,'شهر 12'!$A$9:$AK$78,37,0),"0") -> 0 | AE70: 28.5 | AG70: 0 | AH70: 0 | AI70: 0 | AJ70: 0 | AK70: 0 | AL70: 0 | AM70: 0 | AN70: 0 | AO70: 0 | AP70: 0
A71: 1065 | B71: =IF(C71="","",SUBTOTAL(3,$C$9:C71)) -> 63 | C71: رمضان محمد عبد الحفيظ | D71: 48.5 | E71: 1065 | F71: 201.5 | G71: =IFERROR(VLOOKUP(A71,'شهر 1'!$A$9:$AK$46,37,0),"0") -> 0 | I71: =IFERROR(VLOOKUP(A71,'شهر 2'!$A$9:$AK$43,37,0),"0") -> 24 | K71: =IFERROR(VLOOKUP(A71,'سهر 3'!$A$9:$AK$46,37,0),"0") -> 0 | M71: =IFERROR(VLOOKUP(A71,'شهر 4'!$A$9:$AK$43,37,0),"0") -> 0 | N71: 0 | O71: =IFERROR(VLOOKUP(A71,'شهر 5'!$A$9:$AK$47,37,0),"0") -> 23 | P71: 200 | Q71: =IFERROR(VLOOKUP(A71,شهر6!$A$9:$AK$62,37,0),"0") -> 0 | S71: =IFERROR(VLOOKUP(A71,'شهر 7'!$A$9:$AK$84,37,0),"0") -> 0 | U71: =IFERROR(VLOOKUP(A71,'شهر 8'!$A$9:$AK$78,37,0),"0") -> 0 | W71: =IFERROR(VLOOKUP(A71,'شهر 9'!$A$9:$AK$78,37,0),"0") -> 0 | Y71: =IFERROR(VLOOKUP(A71,'شهر 10'!$A$9:$AK$78,37,0),"0") -> 0 | AA71: =IFERROR(VLOOKUP(A71,'شهر 11'!$A$9:$AK$78,37,0),"0") -> 0 | AC71: =IFERROR(VLOOKUP(A71,'شهر 12'!$A$9:$AK$78,37,0),"0") -> 0 | AE71: 48.5 | AG71: 0 | AH71: 0 | AI71: 0 | AJ71: 0 | AK71: 23 | AL71: 0 | AM71: 0 | AN71: 0 | AO71: 0 | AP71: 0
A72: 1066 | B72: =IF(C72="","",SUBTOTAL(3,$C$9:C72)) -> 64 | C72: احمد ابراهيم محمد ابراهيم | D72: 397.5 | E72: 1066 | F72: 195.7 | G72: =IFERROR(VLOOKUP(A72,'شهر 1'!$A$9:$AK$46,37,0),"0") -> 213 | H72: =183+60 -> 243 | I72: =IFERROR(VLOOKUP(A72,'شهر 2'!$A$9:$AK$43,37,0),"0") -> 99.75 | J72: 100 | K72: =IFERROR(VLOOKUP(A72,'سهر 3'!$A$9:$AK$46,37,0),"0") -> 163 | L72: =190+100 -> 290 | M72: =IFERROR(VLOOKUP(A72,'شهر 4'!$A$9:$AK$43,37,0),"0") -> 140.25 | N72: 0 | O72: =IFERROR(VLOOKUP(A72,'شهر 5'!$A$9:$AK$47,37,0),"0") -> 340.25 | P72: 200 | Q72: =IFERROR(VLOOKUP(A72,شهر6!$A$9:$AK$62,37,0),"0") -> 258.25 | R72: =36.5+13+163+55+85+195.95 -> 548.45 | S72: =IFERROR(VLOOKUP(A72,'شهر 7'!$A$9:$AK$84,37,0),"0") -> 395.5 | T72: =16.75+10 -> 26.75 | U72: =IFERROR(VLOOKUP(A72,'شهر 8'!$A$9:$AK$78,37,0),"0") -> 0 | W72: =IFERROR(VLOOKUP(A72,'شهر 9'!$A$9:$AK$78,37,0),"0") -> 0 | Y72: =IFERROR(VLOOKUP(A72,'شهر 10'!$A$9:$AK$78,37,0),"0") -> 0 | AA72: =IFERROR(VLOOKUP(A72,'شهر 11'!$A$9:$AK$78,37,0),"0") -> 0 | AC72: =IFERROR(VLOOKUP(A72,'شهر 12'!$A$9:$AK$78,37,0),"0") -> 0 | AE72: 397.5 | AG72: 213 | AH72: 99.75 | AI72: 163 | AJ72: 0 | AK72: 200 | AL72: 258.25 | AM72: 26.75 | AN72: 0 | AO72: 0 | AP72: 0
A73: 1067 | B73: =IF(C73="","",SUBTOTAL(3,$C$9:C73)) -> 65 | C73: =VLOOKUP(A73,'شهر 2'!$A$11:$C$43,3,0) -> ابراهيم عبد الله | D73: =AE73 -> 30 | E73: =A73 -> 1067 | G73: =IFERROR(VLOOKUP(A73,'شهر 1'!$A$9:$AK$46,37,0),"0") -> 0 | I73: =IFERROR(VLOOKUP(A73,'شهر 2'!$A$9:$AK$43,37,0),"0") -> 30 | K73: =IFERROR(VLOOKUP(A73,'سهر 3'!$A$9:$AK$46,37,0),"0") -> 0 | M73: =IFERROR(VLOOKUP(A73,'شهر 4'!$A$9:$AK$43,37,0),"0") -> 0 | N73: 0 | O73: =IFERROR(VLOOKUP(A73,'شهر 5'!$A$9:$AK$47,37,0),"0") -> 0 | P73: 0 | Q73: =IFERROR(VLOOKUP(A73,شهر6!$A$9:$AK$62,37,0),"0") -> 0 | S73: =IFERROR(VLOOKUP(A73,'شهر 7'!$A$9:$AK$84,37,0),"0") -> 0 | U73: =IFERROR(VLOOKUP(A73,'شهر 8'!$A$9:$AK$78,37,0),"0") -> 0 | W73: =IFERROR(VLOOKUP(A73,'شهر 9'!$A$9:$AK$78,37,0),"0") -> 0 | Y73: =IFERROR(VLOOKUP(A73,'شهر 10'!$A$9:$AK$78,37,0),"0") -> 0 | AA73: =IFERROR(VLOOKUP(A73,'شهر 11'!$A$9:$AK$78,37,0),"0") -> 0 | AC73: =IFERROR(VLOOKUP(A73,'شهر 12'!$A$9:$AK$78,37,0),"0") -> 0 | AE73: 30 | AG73: 0 | AH73: 0 | AI73: 0 | AJ73: 0 | AK73: 0 | AL73: 0 | AM73: 0 | AN73: 0 | AO73: 0 | AP73: 0
A74: 1068 | B74: =IF(C74="","",SUBTOTAL(3,$C$9:C74)) -> 66 | C74: محمد رجب ابو طاقية | D74: 73.25 | E74: 1068 | F74: 104.75 | G74: =IFERROR(VLOOKUP(A74,'شهر 1'!$A$9:$AK$46,37,0),"0") -> 15 | H74: 55 | I74: =IFERROR(VLOOKUP(A74,'شهر 2'!$A$9:$AK$43,37,0),"0") -> 0 | K74: =IFERROR(VLOOKUP(A74,'سهر 3'!$A$9:$AK$46,37,0),"0") -> 0 | M74: =IFERROR(VLOOKUP(A74,'شهر 4'!$A$9:$AK$43,37,0),"0") -> 0 | N74: 0 | O74: =IFERROR(VLOOKUP(A74,'شهر 5'!$A$9:$AK$47,37,0),"0") -> 0 | P74: 0 | Q74: =IFERROR(VLOOKUP(A74,شهر6!$A$9:$AK$62,37,0),"0") -> 0 | S74: =IFERROR(VLOOKUP(A74,'شهر 7'!$A$9:$AK$84,37,0),"0") -> 8.5 | U74: =IFERROR(VLOOKUP(A74,'شهر 8'!$A$9:$AK$78,37,0),"0") -> 0 | W74: =IFERROR(VLOOKUP(A74,'شهر 9'!$A$9:$AK$78,37,0),"0") -> 0 | Y74: =IFERROR(VLOOKUP(A74,'شهر 10'!$A$9:$AK$78,37,0),"0") -> 0 | AA74: =IFERROR(VLOOKUP(A74,'شهر 11'!$A$9:$AK$78,37,0),"0") -> 0 | AC74: =IFERROR(VLOOKUP(A74,'شهر 12'!$A$9:$AK$78,37,0),"0") -> 0 | AE74: 73.25 | AG74: =IF(G74="0","0",IF(H74="0","0",IF(G74>H74,H74,IF(G74=H74,G74,IF(G74<H74,G74,))))) -> 15 | AH74: =IF(I74="0","0",IF(J74="0","0",IF(I74>J74,J74,IF(I74=J74,"0",IF(I74<J74,I74,))))) -> 0 | AI74: =IF(K74="0","0",IF(L74="0","0",IF(K74>L74,L74,IF(K74=L74,K74,IF(K74<L74,K74,))))) -> 0 | AJ74: =IF(M74="0","0",IF(N74="0","0",IF(M74>N74,N74,IF(M74=N74,M74,IF(M74<N74,M74,))))) -> 0 | AK74: =IF($O74="0","0",IF($P74="0","0",IF($O74>$P74,$P74,IF($O74=$P74,$O74,IF($O74<$P74,$O74,))))) -> 0 | AL74: =IF($Q74="0","0",IF($R74="0","0",IF($Q74>$R74,$R74,IF($Q74=$R74,$Q74,IF($Q74<$R74,$Q74,))))) -> 0 | AM74: =IF(S74="0","0",IF(T74="0","0",IF(S74>T74,T74,IF(S74=T74,T74,IF(S74<T74,S74,))))) -> 0 | AN74: =IF(U74="0","0",IF(V74="0","0",IF(U74>V74,V74,IF(U74=V74,U74,IF(U74<V74,U74,))))) -> 0 | AO74: =IF(W74="0","0",IF(X74="0","0",IF(W74>X74,X74,IF(W74=X74,W74,IF(W74<X74,W74,))))) -> 0 | AP74: =IF(Y74="0","0",IF(Z74="0","0",IF(Y74>Z74,Z74,IF(Y74=Z74,Y74,IF(Y74<Z74,Y74,))))) -> 0
A75: 1069 | B75: =IF(C75="","",SUBTOTAL(3,$C$9:C75)) -> 67 | C75: ربيع هنداوي | D75: =AE75 -> 102.5 | E75: 1069 | F75: 127.5 | G75: =IFERROR(VLOOKUP(A75,'شهر 1'!$A$9:$AK$46,37,0),"0") -> 33.5 | H75: 45 | I75: =IFERROR(VLOOKUP(A75,'شهر 2'!$A$9:$AK$43,37,0),"0") -> 0 | K75: =IFERROR(VLOOKUP(A75,'سهر 3'!$A$9:$AK$46,37,0),"0") -> 0 | M75: =IFERROR(VLOOKUP(A75,'شهر 4'!$A$9:$AK$43,37,0),"0") -> 40 | N75: 0 | O75: =IFERROR(VLOOKUP(A75,'شهر 5'!$A$9:$AK$47,37,0),"0") -> 0 | P75: 26 | Q75: =IFERROR(VLOOKUP(A75,شهر6!$A$9:$AK$62,37,0),"0") -> 44 | R75: 78 | S75: =IFERROR(VLOOKUP(A75,'شهر 7'!$A$9:$AK$84,37,0),"0") -> 6.5 | U75: =IFERROR(VLOOKUP(A75,'شهر 8'!$A$9:$AK$78,37,0),"0") -> 0 | W75: =IFERROR(VLOOKUP(A75,'شهر 9'!$A$9:$AK$78,37,0),"0") -> 0 | Y75: =IFERROR(VLOOKUP(A75,'شهر 10'!$A$9:$AK$78,37,0),"0") -> 0 | AA75: =IFERROR(VLOOKUP(A75,'شهر 11'!$A$9:$AK$78,37,0),"0") -> 0 | AC75: =IFERROR(VLOOKUP(A75,'شهر 12'!$A$9:$AK$78,37,0),"0") -> 0 | AE75: 102.5 | AG75: 33.5 | AH75: 0 | AI75: 0 | AJ75: 0 | AK75: 0 | AL75: 44 | AM75: 0 | AN75: 0 | AO75: 0 | AP75: 0
A76: 1071 | B76: =IF(C76="","",SUBTOTAL(3,$C$9:C76)) -> 68 | C76: طه التليس | D76: 14.5 | E76: 1071 | F76: 14.5 | G76: =IFERROR(VLOOKUP(A76,'شهر 1'!$A$9:$AK$46,37,0),"0") -> 0 | I76: =IFERROR(VLOOKUP(A76,'شهر 2'!$A$9:$AK$43,37,0),"0") -> 0 | K76: =IFERROR(VLOOKUP(A76,'سهر 3'!$A$9:$AK$46,37,0),"0") -> 0 | M76: =IFERROR(VLOOKUP(A76,'شهر 4'!$A$9:$AK$43,37,0),"0") -> 0 | N76: 0 | O76: =IFERROR(VLOOKUP(A76,'شهر 5'!$A$9:$AK$47,37,0),"0") -> 0 | P76: 0 | Q76: =IFERROR(VLOOKUP(A76,شهر6!$A$9:$AK$62,37,0),"0") -> 0 | S76: =IFERROR(VLOOKUP(A76,'شهر 7'!$A$9:$AK$84,37,0),"0") -> 0 | U76: =IFERROR(VLOOKUP(A76,'شهر 8'!$A$9:$AK$78,37,0),"0") -> 0 | W76: =IFERROR(VLOOKUP(A76,'شهر 9'!$A$9:$AK$78,37,0),"0") -> 0 | Y76: =IFERROR(VLOOKUP(A76,'شهر 10'!$A$9:$AK$78,37,0),"0") -> 0 | AA76: =IFERROR(VLOOKUP(A76,'شهر 11'!$A$9:$AK$78,37,0),"0") -> 0 | AC76: =IFERROR(VLOOKUP(A76,'شهر 12'!$A$9:$AK$78,37,0),"0") -> 0 | AE76: 14.5 | AG76: 0 | AH76: 0 | AI76: 0 | AJ76: 0 | AK76: 0 | AL76: 0 | AM76: 0 | AN76: 0 | AO76: 0 | AP76: 0
A77: 1072 | B77: =IF(C77="","",SUBTOTAL(3,$C$9:C77)) -> 69 | C77: =VLOOKUP(A77,'شهر 1'!$A$9:$D$73,3,0) -> محمود احمد عبد الواحد | D77: 564.55 | E77: 1072 | F77: 0 | G77: =IFERROR(VLOOKUP(A77,'شهر 1'!$A$9:$AK$46,37,0),"0") -> 1291.5 | H77: =772.5+95+12+100+35.75+92 -> 1107.25 | I77: =IFERROR(VLOOKUP(A77,'شهر 2'!$A$9:$AK$43,37,0),"0") -> 550.75 | J77: =54+86+100+200 -> 440 | K77: =IFERROR(VLOOKUP(A77,'سهر 3'!$A$9:$AK$46,37,0),"0") -> 1185.1 | L77: =84+120+100+85+300 -> 689 | M77: =IFERROR(VLOOKUP(A77,'شهر 4'!$A$9:$AK$43,37,0),"0") -> 418.15 | N77: =171.45+190+100 -> 461.45 | O77: =IFERROR(VLOOKUP(A77,'شهر 5'!$A$9:$AK$47,37,0),"0") -> 9 | P77: =140+45 -> 185 | Q77: =IFERROR(VLOOKUP(A77,شهر6!$A$9:$AK$62,37,0),"0") -> 228 | R77: =100+122 -> 222 | S77: =IFERROR(VLOOKUP(A77,'شهر 7'!$A$9:$AK$84,37,0),"0") -> 233.75 | T77: =93+25+150 -> 268 | U77: =IFERROR(VLOOKUP(A77,'شهر 8'!$A$9:$AK$78,37,0),"0") -> 21 | W77: =IFERROR(VLOOKUP(A77,'شهر 9'!$A$9:$AK$78,37,0),"0") -> 0 | Y77: =IFERROR(VLOOKUP(A77,'شهر 10'!$A$9:$AK$78,37,0),"0") -> 0 | AA77: =IFERROR(VLOOKUP(A77,'شهر 11'!$A$9:$AK$78,37,0),"0") -> 0 | AC77: =IFERROR(VLOOKUP(A77,'شهر 12'!$A$9:$AK$78,37,0),"0") -> 0 | AE77: 564.55 | AG77: 1107.25 | AH77: 440 | AI77: 689 | AJ77: 418.15 | AK77: 9 | AL77: 222 | AM77: 233.75 | AN77: 0 | AO77: 0 | AP77: 0
A78: 1073 | B78: =IF(C78="","",SUBTOTAL(3,$C$9:C78)) -> 70 | C78: =IFERROR(VLOOKUP(A78,'شهر 5'!$A$9:$C$47,3,0),"") -> يسري محمود | D78: 670.5 | E78: 1073 | F78: 0 | G78: =IFERROR(VLOOKUP(A78,'شهر 1'!$A$9:$AK$46,37,0),"0") -> 0 | I78: =IFERROR(VLOOKUP(A78,'شهر 2'!$A$9:$AK$43,37,0),"0") -> 0 | K78: =IFERROR(VLOOKUP(A78,'سهر 3'!$A$9:$AK$46,37,0),"0") -> 0 | M78: =IFERROR(VLOOKUP(A78,'شهر 4'!$A$9:$AK$43,37,0),"0") -> 0 | O78: =IFERROR(VLOOKUP(A78,'شهر 5'!$A$9:$AK$47,37,0),"0") -> 195 | P78: 0 | Q78: =IFERROR(VLOOKUP(A78,شهر6!$A$9:$AK$62,37,0),"0") -> 1425 | R78: =1000+122 -> 1122 | S78: =IFERROR(VLOOKUP(A78,'شهر 7'!$A$9:$AK$84,37,0),"0") -> 945.5 | T78: =350+148+360 -> 858 | U78: =IFERROR(VLOOKUP(A78,'شهر 8'!$A$9:$AK$78,37,0),"0") -> 85 | W78: =IFERROR(VLOOKUP(A78,'شهر 9'!$A$9:$AK$78,37,0),"0") -> 0 | Y78: =IFERROR(VLOOKUP(A78,'شهر 10'!$A$9:$AK$78,37,0),"0") -> 0 | AA78: =IFERROR(VLOOKUP(A78,'شهر 11'!$A$9:$AK$78,37,0),"0") -> 0 | AC78: =IFERROR(VLOOKUP(A78,'شهر 12'!$A$9:$AK$78,37,0),"0") -> 0 | AE78: 670.5 | AG78: 0 | AH78: 0 | AI78: 0 | AJ78: 0 | AK78: 0 | AL78: 1122 | AM78: 858 | AN78: 0 | AO78: 0 | AP78: 0
A79: 1074 | B79: =IF(C79="","",SUBTOTAL(3,$C$9:C79)) -> 71 | C79: =IFERROR(VLOOKUP($A79,شهر6!$A$9:$C$62,3,0),"") -> رجب سلامة | D79: 26 | E79: 1074 | G79: =IFERROR(VLOOKUP(A79,'شهر 1'!$A$9:$AK$46,37,0),"0") -> 0 | I79: =IFERROR(VLOOKUP(A79,'شهر 2'!$A$9:$AK$43,37,0),"0") -> 0 | K79: =IFERROR(VLOOKUP(A79,'سهر 3'!$A$9:$AK$46,37,0),"0") -> 0 | M79: =IFERROR(VLOOKUP(A79,'شهر 4'!$A$9:$AK$43,37,0),"0") -> 0 | O79: =IFERROR(VLOOKUP(A79,'شهر 5'!$A$9:$AK$47,37,0),"0") -> 0 | P79: 0 | Q79: =IFERROR(VLOOKUP(A79,شهر6!$A$9:$AK$62,37,0),"0") -> 35 | S79: =IFERROR(VLOOKUP(A79,'شهر 7'!$A$9:$AK$84,37,0),"0") -> 26 | T79: 35 | U79: =IFERROR(VLOOKUP(A79,'شهر 8'!$A$9:$AK$78,37,0),"0") -> 0 | W79: =IFERROR(VLOOKUP(A79,'شهر 9'!$A$9:$AK$78,37,0),"0") -> 0 | Y79: =IFERROR(VLOOKUP(A79,'شهر 10'!$A$9:$AK$78,37,0),"0") -> 0 | AA79: =IFERROR(VLOOKUP(A79,'شهر 11'!$A$9:$AK$78,37,0),"0") -> 0 | AC79: =IFERROR(VLOOKUP(A79,'شهر 12'!$A$9:$AK$78,37,0),"0") -> 0 | AE79: 26 | AG79: 0 | AH79: 0 | AI79: 0 | AJ79: 0 | AK79: 0 | AL79: 0 | AM79: 26 | AN79: 0 | AO79: 0 | AP79: 0
A80: 1075 | B80: =IF(C80="","",SUBTOTAL(3,$C$9:C80)) -> 72 | C80: =IFERROR(VLOOKUP($A80,'شهر 4'!$A$10:$C$43,3,0),"") -> محمد صبحي ع التواب | D80: 150 | E80: 1075 | G80: =IFERROR(VLOOKUP(A80,'شهر 1'!$A$9:$AK$46,37,0),"0") -> 0 | I80: =IFERROR(VLOOKUP(A80,'شهر 2'!$A$9:$AK$43,37,0),"0") -> 0 | K80: =IFERROR(VLOOKUP(A80,'سهر 3'!$A$9:$AK$46,37,0),"0") -> 0 | M80: =IFERROR(VLOOKUP(A80,'شهر 4'!$A$9:$AK$43,37,0),"0") -> 317 | N80: 37 | O80: =IFERROR(VLOOKUP(A80,'شهر 5'!$A$9:$AK$47,37,0),"0") -> 56 | P80: 0 | Q80: =IFERROR(VLOOKUP(A80,شهر6!$A$9:$AK$62,37,0),"0") -> 0 | S80: =IFERROR(VLOOKUP(A80,'شهر 7'!$A$9:$AK$84,37,0),"0") -> 44 | T80: =200+30 -> 230 | U80: =IFERROR(VLOOKUP(A80,'شهر 8'!$A$9:$AK$78,37,0),"0") -> 0 | W80: =IFERROR(VLOOKUP(A80,'شهر 9'!$A$9:$AK$78,37,0),"0") -> 0 | Y80: =IFERROR(VLOOKUP(A80,'شهر 10'!$A$9:$AK$78,37,0),"0") -> 0 | AA80: =IFERROR(VLOOKUP(A80,'شهر 11'!$A$9:$AK$78,37,0),"0") -> 0 | AC80: =IFERROR(VLOOKUP(A80,'شهر 12'!$A$9:$AK$78,37,0),"0") -> 0 | AE80: 150 | AG80: 0 | AH80: 0 | AI80: 0 | AJ80: 37 | AK80: 0 | AL80: 0 | AM80: 44 | AN80: 0 | AO80: 0 | AP80: 0
A81: 1076 | B81: =IF(C81="","",SUBTOTAL(3,$C$9:C81)) -> 73 | C81: =IFERROR(VLOOKUP($A81,'شهر 7'!$A$9:$C$84,3,0),"") -> محمد حلمي ع التواب | D81: 6 | E81: 1076 | G81: =IFERROR(VLOOKUP(A81,'شهر 1'!$A$9:$AK$46,37,0),"0") -> 0 | I81: =IFERROR(VLOOKUP(A81,'شهر 2'!$A$9:$AK$43,37,0),"0") -> 0 | K81: =IFERROR(VLOOKUP(A81,'سهر 3'!$A$9:$AK$46,37,0),"0") -> 0 | M81: =IFERROR(VLOOKUP(A81,'شهر 4'!$A$9:$AK$43,37,0),"0") -> 0 | O81: =IFERROR(VLOOKUP(A81,'شهر 5'!$A$9:$AK$47,37,0),"0") -> 0 | P81: 0 | Q81: =IFERROR(VLOOKUP(A81,شهر6!$A$9:$AK$62,37,0),"0") -> 0 | S81: =IFERROR(VLOOKUP(A81,'شهر 7'!$A$9:$AK$84,37,0),"0") -> 6 | U81: =IFERROR(VLOOKUP(A81,'شهر 8'!$A$9:$AK$78,37,0),"0") -> 0 | W81: =IFERROR(VLOOKUP(A81,'شهر 9'!$A$9:$AK$78,37,0),"0") -> 0 | Y81: =IFERROR(VLOOKUP(A81,'شهر 10'!$A$9:$AK$78,37,0),"0") -> 0 | AA81: =IFERROR(VLOOKUP(A81,'شهر 11'!$A$9:$AK$78,37,0),"0") -> 0 | AC81: =IFERROR(VLOOKUP(A81,'شهر 12'!$A$9:$AK$78,37,0),"0") -> 0 | AE81: 6 | AG81: 0 | AH81: 0 | AI81: 0 | AJ81: 0 | AK81: 0 | AL81: 0 | AM81: 0 | AN81: 0 | AO81: 0 | AP81: 0
A82: 1077 | B82: =IF(C82="","",SUBTOTAL(3,$C$9:C82)) -> 74 | C82: =IFERROR(VLOOKUP($A82,'شهر 7'!$A$9:$C$84,3,0),"") -> ام رودينا | D82: 24 | E82: 1077 | G82: =IFERROR(VLOOKUP(A82,'شهر 1'!$A$9:$AK$46,37,0),"0") -> 0 | I82: =IFERROR(VLOOKUP(A82,'شهر 2'!$A$9:$AK$43,37,0),"0") -> 0 | K82: =IFERROR(VLOOKUP(A82,'سهر 3'!$A$9:$AK$46,37,0),"0") -> 0 | M82: =IFERROR(VLOOKUP(A82,'شهر 4'!$A$9:$AK$43,37,0),"0") -> 0 | N82: 0 | O82: =IFERROR(VLOOKUP(A82,'شهر 5'!$A$9:$AK$47,37,0),"0") -> 0 | P82: 0 | Q82: =IFERROR(VLOOKUP(A82,شهر6!$A$9:$AK$62,37,0),"0") -> 0 | S82: =IFERROR(VLOOKUP(A82,'شهر 7'!$A$9:$AK$84,37,0),"0") -> 24 | U82: =IFERROR(VLOOKUP(A82,'شهر 8'!$A$9:$AK$78,37,0),"0") -> 0 | W82: =IFERROR(VLOOKUP(A82,'شهر 9'!$A$9:$AK$78,37,0),"0") -> 0 | Y82: =IFERROR(VLOOKUP(A82,'شهر 10'!$A$9:$AK$78,37,0),"0") -> 0 | AA82: =IFERROR(VLOOKUP(A82,'شهر 11'!$A$9:$AK$78,37,0),"0") -> 0 | AC82: =IFERROR(VLOOKUP(A82,'شهر 12'!$A$9:$AK$78,37,0),"0") -> 0 | AE82: 24 | AG82: 0 | AH82: 0 | AI82: 0 | AJ82: 0 | AK82: 0 | AL82: 0 | AM82: 0 | AN82: 0 | AO82: 0 | AP82: 0
A83: 1078 | B83: =IF(C83="","",SUBTOTAL(3,$C$9:C83)) -> 75 | C83: محمد احمد العبد | D83: 142 | E83: 1078 | F83: 56.5 | G83: =IFERROR(VLOOKUP(A83,'شهر 1'!$A$9:$AK$46,37,0),"0") -> 179 | H83: 200 | I83: =IFERROR(VLOOKUP(A83,'شهر 2'!$A$9:$AK$43,37,0),"0") -> 283 | K83: =IFERROR(VLOOKUP(A83,'سهر 3'!$A$9:$AK$46,37,0),"0") -> 0 | L83: 116.5 | M83: =IFERROR(VLOOKUP(A83,'شهر 4'!$A$9:$AK$43,37,0),"0") -> 0 | N83: 0 | O83: =IFERROR(VLOOKUP(A83,'شهر 5'!$A$9:$AK$47,37,0),"0") -> 0 | P83: 60 | Q83: =IFERROR(VLOOKUP(A83,شهر6!$A$9:$AK$62,37,0),"0") -> 0 | S83: =IFERROR(VLOOKUP(A83,'شهر 7'!$A$9:$AK$84,37,0),"0") -> 0 | U83: =IFERROR(VLOOKUP(A83,'شهر 8'!$A$9:$AK$78,37,0),"0") -> 0 | W83: =IFERROR(VLOOKUP(A83,'شهر 9'!$A$9:$AK$78,37,0),"0") -> 0 | Y83: =IFERROR(VLOOKUP(A83,'شهر 10'!$A$9:$AK$78,37,0),"0") -> 0 | AA83: =IFERROR(VLOOKUP(A83,'شهر 11'!$A$9:$AK$78,37,0),"0") -> 0 | AC83: =IFERROR(VLOOKUP(A83,'شهر 12'!$A$9:$AK$78,37,0),"0") -> 0 | AE83: 142 | AG83: 179 | AH83: 0 | AI83: 0 | AJ83: 0 | AK83: 0 | AL83: 0 | AM83: 0 | AN83: 0 | AO83: 0 | AP83: 0
A84: 1079 | B84: =IF(C84="","",SUBTOTAL(3,$C$9:C84)) -> 76 | C84: ام مجدى | D84: 46.5 | E84: 1079 | F84: 99 | G84: =IFERROR(VLOOKUP(A84,'شهر 1'!$A$9:$AK$46,37,0),"0") -> 0 | I84: =IFERROR(VLOOKUP(A84,'شهر 2'!$A$9:$AK$43,37,0),"0") -> 0 | K84: =IFERROR(VLOOKUP(A84,'سهر 3'!$A$9:$AK$46,37,0),"0") -> 0 | L84: =15+18 -> 33 | M84: =IFERROR(VLOOKUP(A84,'شهر 4'!$A$9:$AK$43,37,0),"0") -> 0 | N84: 0 | O84: =IFERROR(VLOOKUP(A84,'شهر 5'!$A$9:$AK$47,37,0),"0") -> 8 | P84: =15+20 -> 35 | Q84: =IFERROR(VLOOKUP(A84,شهر6!$A$9:$AK$62,37,0),"0") -> 75 | S84: =IFERROR(VLOOKUP(A84,'شهر 7'!$A$9:$AK$84,37,0),"0") -> 82 | T84: =27+122.5 -> 149.5 | U84: =IFERROR(VLOOKUP(A84,'شهر 8'!$A$9:$AK$78,37,0),"0") -> 0 | W84: =IFERROR(VLOOKUP(A84,'شهر 9'!$A$9:$AK$78,37,0),"0") -> 0 | Y84: =IFERROR(VLOOKUP(A84,'شهر 10'!$A$9:$AK$78,37,0),"0") -> 0 | AA84: =IFERROR(VLOOKUP(A84,'شهر 11'!$A$9:$AK$78,37,0),"0") -> 0 | AC84: =IFERROR(VLOOKUP(A84,'شهر 12'!$A$9:$AK$78,37,0),"0") -> 0 | AE84: 46.5 | AG84: 0 | AH84: 0 | AI84: 0 | AJ84: 0 | AK84: 8 | AL84: 0 | AM84: 82 | AN84: 0 | AO84: 0 | AP84: 0
A85: 1080 | B85: =IF(C85="","",SUBTOTAL(3,$C$9:C85)) -> 77 | C85: مرات عبد الله صلاح صادق | D85: 12 | E85: 1080 | F85: 12 | G85: =IFERROR(VLOOKUP(A85,'شهر 1'!$A$9:$AK$46,37,0),"0") -> 0 | I85: =IFERROR(VLOOKUP(A85,'شهر 2'!$A$9:$AK$43,37,0),"0") -> 0 | K85: =IFERROR(VLOOKUP(A85,'سهر 3'!$A$9:$AK$46,37,0),"0") -> 0 | M85: =IFERROR(VLOOKUP(A85,'شهر 4'!$A$9:$AK$43,37,0),"0") -> 0 | N85: 0 | O85: =IFERROR(VLOOKUP(A85,'شهر 5'!$A$9:$AK$47,37,0),"0") -> 0 | P85: 0 | Q85: =IFERROR(VLOOKUP(A85,شهر6!$A$9:$AK$62,37,0),"0") -> 0 | S85: =IFERROR(VLOOKUP(A85,'شهر 7'!$A$9:$AK$84,37,0),"0") -> 0 | U85: =IFERROR(VLOOKUP(A85,'شهر 8'!$A$9:$AK$78,37,0),"0") -> 0 | W85: =IFERROR(VLOOKUP(A85,'شهر 9'!$A$9:$AK$78,37,0),"0") -> 0 | Y85: =IFERROR(VLOOKUP(A85,'شهر 10'!$A$9:$AK$78,37,0),"0") -> 0 | AA85: =IFERROR(VLOOKUP(A85,'شهر 11'!$A$9:$AK$78,37,0),"0") -> 0 | AC85: =IFERROR(VLOOKUP(A85,'شهر 12'!$A$9:$AK$78,37,0),"0") -> 0 | AE85: 12 | AG85: 0 | AH85: 0 | AI85: 0 | AJ85: 0 | AK85: 0 | AL85: 0 | AM85: 0 | AN85: 0 | AO85: 0 | AP85: 0
A86: 1081 | B86: =IF(C86="","",SUBTOTAL(3,$C$9:C86)) -> 78 | C86: =IFERROR(VLOOKUP($A86,'شهر 7'!$A$9:$C$84,3,0),"") -> حمادة محمد شلقامي | D86: 96 | E86: 1081 | G86: =IFERROR(VLOOKUP(A86,'شهر 1'!$A$9:$AK$46,37,0),"0") -> 0 | I86: =IFERROR(VLOOKUP(A86,'شهر 2'!$A$9:$AK$43,37,0),"0") -> 0 | K86: =IFERROR(VLOOKUP(A86,'سهر 3'!$A$9:$AK$46,37,0),"0") -> 0 | M86: =IFERROR(VLOOKUP(A86,'شهر 4'!$A$9:$AK$43,37,0),"0") -> 0 | O86: =IFERROR(VLOOKUP(A86,'شهر 5'!$A$9:$AK$47,37,0),"0") -> 0 | P86: 0 | Q86: =IFERROR(VLOOKUP(A86,شهر6!$A$9:$AK$62,37,0),"0") -> 0 | S86: =IFERROR(VLOOKUP(A86,'شهر 7'!$A$9:$AK$84,37,0),"0") -> 96 | U86: =IFERROR(VLOOKUP(A86,'شهر 8'!$A$9:$AK$78,37,0),"0") -> 0 | W86: =IFERROR(VLOOKUP(A86,'شهر 9'!$A$9:$AK$78,37,0),"0") -> 0 | Y86: =IFERROR(VLOOKUP(A86,'شهر 10'!$A$9:$AK$78,37,0),"0") -> 0 | AA86: =IFERROR(VLOOKUP(A86,'شهر 11'!$A$9:$AK$78,37,0),"0") -> 0 | AC86: =IFERROR(VLOOKUP(A86,'شهر 12'!$A$9:$AK$78,37,0),"0") -> 0 | AE86: 96 | AG86: 0 | AH86: 0 | AI86: 0 | AJ86: 0 | AK86: 0 | AL86: 0 | AM86: 0 | AN86: 0 | AO86: 0 | AP86: 0
A87: 1082 | B87: =IF(C87="","",SUBTOTAL(3,$C$9:C87)) -> 79 | C87: =IFERROR(VLOOKUP(A87,'شهر 1'!$A$9:$D$73,3,0),"") -> نادية شقلوف | D87: 122 | E87: 1082 | F87: 0 | G87: =IFERROR(VLOOKUP(A87,'شهر 1'!$A$9:$AK$46,37,0),"0") -> 144 | H87: 100 | I87: =IFERROR(VLOOKUP(A87,'شهر 2'!$A$9:$AK$43,37,0),"0") -> 0 | K87: =IFERROR(VLOOKUP(A87,'سهر 3'!$A$9:$AK$46,37,0),"0") -> 0 | L87: 31 | M87: =IFERROR(VLOOKUP(A87,'شهر 4'!$A$9:$AK$43,37,0),"0") -> 33 | N87: 16 | O87: =IFERROR(VLOOKUP(A87,'شهر 5'!$A$9:$AK$47,37,0),"0") -> 49.5 | P87: 0 | Q87: =IFERROR(VLOOKUP(A87,شهر6!$A$9:$AK$62,37,0),"0") -> 19 | R87: 48.5 | S87: =IFERROR(VLOOKUP(A87,'شهر 7'!$A$9:$AK$84,37,0),"0") -> 122 | T87: 50 | U87: =IFERROR(VLOOKUP(A87,'شهر 8'!$A$9:$AK$78,37,0),"0") -> 0 | W87: =IFERROR(VLOOKUP(A87,'شهر 9'!$A$9:$AK$78,37,0),"0") -> 0 | Y87: =IFERROR(VLOOKUP(A87,'شهر 10'!$A$9:$AK$78,37,0),"0") -> 0 | AA87: =IFERROR(VLOOKUP(A87,'شهر 11'!$A$9:$AK$78,37,0),"0") -> 0 | AC87: =IFERROR(VLOOKUP(A87,'شهر 12'!$A$9:$AK$78,37,0),"0") -> 0 | AE87: 122 | AG87: 100 | AH87: 0 | AI87: 0 | AJ87: 16 | AK87: 0 | AL87: 19 | AM87: 50 | AN87: 0 | AO87: 0 | AP87: 0
A88: 1083 | B88: =IF(C88="","",SUBTOTAL(3,$C$9:C88)) -> 80 | C88: احمد كمال | D88: 32 | E88: 1083 | F88: 32 | G88: =IFERROR(VLOOKUP(A88,'شهر 1'!$A$9:$AK$46,37,0),"0") -> 0 | I88: =IFERROR(VLOOKUP(A88,'شهر 2'!$A$9:$AK$43,37,0),"0") -> 0 | K88: =IFERROR(VLOOKUP(A88,'سهر 3'!$A$9:$AK$46,37,0),"0") -> 0 | M88: =IFERROR(VLOOKUP(A88,'شهر 4'!$A$9:$AK$43,37,0),"0") -> 0 | N88: 0 | O88: =IFERROR(VLOOKUP(A88,'شهر 5'!$A$9:$AK$47,37,0),"0") -> 0 | P88: 0 | Q88: =IFERROR(VLOOKUP(A88,شهر6!$A$9:$AK$62,37,0),"0") -> 0 | S88: =IFERROR(VLOOKUP(A88,'شهر 7'!$A$9:$AK$84,37,0),"0") -> 0 | U88: =IFERROR(VLOOKUP(A88,'شهر 8'!$A$9:$AK$78,37,0),"0") -> 0 | W88: =IFERROR(VLOOKUP(A88,'شهر 9'!$A$9:$AK$78,37,0),"0") -> 0 | Y88: =IFERROR(VLOOKUP(A88,'شهر 10'!$A$9:$AK$78,37,0),"0") -> 0 | AA88: =IFERROR(VLOOKUP(A88,'شهر 11'!$A$9:$AK$78,37,0),"0") -> 0 | AC88: =IFERROR(VLOOKUP(A88,'شهر 12'!$A$9:$AK$78,37,0),"0") -> 0 | AE88: 32 | AG88: 0 | AH88: 0 | AI88: 0 | AJ88: 0 | AK88: 0 | AL88: 0 | AM88: 0 | AN88: 0 | AO88: 0 | AP88: 0
A89: 1084 | B89: =IF(C89="","",SUBTOTAL(3,$C$9:C89)) -> 81 | C89: =IFERROR(VLOOKUP($A89,شهر6!$A$9:$C$62,3,0),"") -> عادل عبد الحسيب | D89: 60 | E89: 1084 | G89: =IFERROR(VLOOKUP(A89,'شهر 1'!$A$9:$AK$46,37,0),"0") -> 0 | I89: =IFERROR(VLOOKUP(A89,'شهر 2'!$A$9:$AK$43,37,0),"0") -> 0 | K89: =IFERROR(VLOOKUP(A89,'سهر 3'!$A$9:$AK$46,37,0),"0") -> 0 | M89: =IFERROR(VLOOKUP(A89,'شهر 4'!$A$9:$AK$43,37,0),"0") -> 0 | N89: 0 | O89: =IFERROR(VLOOKUP(A89,'شهر 5'!$A$9:$AK$47,37,0),"0") -> 0 | P89: 0 | Q89: =IFERROR(VLOOKUP(A89,شهر6!$A$9:$AK$62,37,0),"0") -> 60 | S89: =IFERROR(VLOOKUP(A89,'شهر 7'!$A$9:$AK$84,37,0),"0") -> 0 | U89: =IFERROR(VLOOKUP(A89,'شهر 8'!$A$9:$AK$78,37,0),"0") -> 0 | W89: =IFERROR(VLOOKUP(A89,'شهر 9'!$A$9:$AK$78,37,0),"0") -> 0 | Y89: =IFERROR(VLOOKUP(A89,'شهر 10'!$A$9:$AK$78,37,0),"0") -> 0 | AA89: =IFERROR(VLOOKUP(A89,'شهر 11'!$A$9:$AK$78,37,0),"0") -> 0 | AC89: =IFERROR(VLOOKUP(A89,'شهر 12'!$A$9:$AK$78,37,0),"0") -> 0 | AE89: 60 | AG89: 0 | AH89: 0 | AI89: 0 | AJ89: 0 | AK89: 0 | AL89: 0 | AM89: 0 | AN89: 0 | AO89: 0 | AP89: 0
A90: 1085 | B90: =IF(C90="","",SUBTOTAL(3,$C$9:C90)) -> 82 | C90: مرات صبري ع العال | D90: 37 | E90: 1085 | F90: 90 | G90: =IFERROR(VLOOKUP(A90,'شهر 1'!$A$9:$AK$46,37,0),"0") -> 0 | I90: =IFERROR(VLOOKUP(A90,'شهر 2'!$A$9:$AK$43,37,0),"0") -> 10 | J90: 50 | K90: =IFERROR(VLOOKUP(A90,'سهر 3'!$A$9:$AK$46,37,0),"0") -> 0 | M90: =IFERROR(VLOOKUP(A90,'شهر 4'!$A$9:$AK$43,37,0),"0") -> 0 | N90: 0 | O90: =IFERROR(VLOOKUP(A90,'شهر 5'!$A$9:$AK$47,37,0),"0") -> 0 | P90: 0 | Q90: =IFERROR(VLOOKUP(A90,شهر6!$A$9:$AK$62,37,0),"0") -> 0 | R90: 13 | S90: =IFERROR(VLOOKUP(A90,'شهر 7'!$A$9:$AK$84,37,0),"0") -> 0 | U90: =IFERROR(VLOOKUP(A90,'شهر 8'!$A$9:$AK$78,37,0),"0") -> 0 | W90: =IFERROR(VLOOKUP(A90,'شهر 9'!$A$9:$AK$78,37,0),"0") -> 0 | Y90: =IFERROR(VLOOKUP(A90,'شهر 10'!$A$9:$AK$78,37,0),"0") -> 0 | AA90: =IFERROR(VLOOKUP(A90,'شهر 11'!$A$9:$AK$78,37,0),"0") -> 0 | AC90: =IFERROR(VLOOKUP(A90,'شهر 12'!$A$9:$AK$78,37,0),"0") -> 0 | AE90: 37 | AG90: 0 | AH90: 10 | AI90: 0 | AJ90: 0 | AK90: 0 | AL90: 0 | AM90: 0 | AN90: 0 | AO90: 0 | AP90: 0
A91: 1086 | B91: =IF(C91="","",SUBTOTAL(3,$C$9:C91)) -> 83 | C91: اخت سيد محمد عبد الحميد | D91: 248.5 | E91: 1086 | F91: 138 | G91: =IFERROR(VLOOKUP(A91,'شهر 1'!$A$9:$AK$46,37,0),"0") -> 0 | I91: =IFERROR(VLOOKUP(A91,'شهر 2'!$A$9:$AK$43,37,0),"0") -> 46.5 | K91: =IFERROR(VLOOKUP(A91,'سهر 3'!$A$9:$AK$46,37,0),"0") -> 44 | M91: =IFERROR(VLOOKUP(A91,'شهر 4'!$A$9:$AK$43,37,0),"0") -> 0 | N91: 0 | O91: =IFERROR(VLOOKUP(A91,'شهر 5'!$A$9:$AK$47,37,0),"0") -> 20 | P91: 0 | Q91: =IFERROR(VLOOKUP(A91,شهر6!$A$9:$AK$62,37,0),"0") -> 0 | S91: =IFERROR(VLOOKUP(A91,'شهر 7'!$A$9:$AK$84,37,0),"0") -> 0 | U91: =IFERROR(VLOOKUP(A91,'شهر 8'!$A$9:$AK$78,37,0),"0") -> 0 | W91: =IFERROR(VLOOKUP(A91,'شهر 9'!$A$9:$AK$78,37,0),"0") -> 0 | Y91: =IFERROR(VLOOKUP(A91,'شهر 10'!$A$9:$AK$78,37,0),"0") -> 0 | AA91: =IFERROR(VLOOKUP(A91,'شهر 11'!$A$9:$AK$78,37,0),"0") -> 0 | AC91: =IFERROR(VLOOKUP(A91,'شهر 12'!$A$9:$AK$78,37,0),"0") -> 0 | AE91: 248.5 | AG91: 0 | AH91: 0 | AI91: 0 | AJ91: 0 | AK91: 0 | AL91: 0 | AM91: 0 | AN91: 0 | AO91: 0 | AP91: 0
A92: 1087 | B92: =IF(C92="","",SUBTOTAL(3,$C$9:C92)) -> 84 | C92: =IFERROR(VLOOKUP($A92,شهر6!$A$9:$C$62,3,0),"") -> محمد جمال خلف | D92: 130 | E92: 1087 | G92: =IFERROR(VLOOKUP(A92,'شهر 1'!$A$9:$AK$46,37,0),"0") -> 0 | I92: =IFERROR(VLOOKUP(A92,'شهر 2'!$A$9:$AK$43,37,0),"0") -> 0 | K92: =IFERROR(VLOOKUP(A92,'سهر 3'!$A$9:$AK$46,37,0),"0") -> 0 | M92: =IFERROR(VLOOKUP(A92,'شهر 4'!$A$9:$AK$43,37,0),"0") -> 0 | N92: 0 | O92: =IFERROR(VLOOKUP(A92,'شهر 5'!$A$9:$AK$47,37,0),"0") -> 0 | P92: 0 | Q92: =IFERROR(VLOOKUP(A92,شهر6!$A$9:$AK$62,37,0),"0") -> 159 | S92: =IFERROR(VLOOKUP(A92,'شهر 7'!$A$9:$AK$84,37,0),"0") -> 131 | T92: =80+75+5 -> 160 | U92: =IFERROR(VLOOKUP(A92,'شهر 8'!$A$9:$AK$78,37,0),"0") -> 0 | W92: =IFERROR(VLOOKUP(A92,'شهر 9'!$A$9:$AK$78,37,0),"0") -> 0 | Y92: =IFERROR(VLOOKUP(A92,'شهر 10'!$A$9:$AK$78,37,0),"0") -> 0 | AA92: =IFERROR(VLOOKUP(A92,'شهر 11'!$A$9:$AK$78,37,0),"0") -> 0 | AC92: =IFERROR(VLOOKUP(A92,'شهر 12'!$A$9:$AK$78,37,0),"0") -> 0 | AE92: 130 | AG92: 0 | AH92: 0 | AI92: 0 | AJ92: 0 | AK92: 0 | AL92: 0 | AM92: 131 | AN92: 0 | AO92: 0 | AP92: 0
A93: 1088 | B93: =IF(C93="","",SUBTOTAL(3,$C$9:C93)) -> 85 | C93: =IFERROR(VLOOKUP(A93,'سهر 3'!$A$9:$D$46,3,0),"") -> عماد عبد العظيم | D93: 13 | E93: 1088 | G93: =IFERROR(VLOOKUP(A93,'شهر 1'!$A$9:$AK$46,37,0),"0") -> 0 | I93: =IFERROR(VLOOKUP(A93,'شهر 2'!$A$9:$AK$43,37,0),"0") -> 0 | K93: =IFERROR(VLOOKUP(A93,'سهر 3'!$A$9:$AK$46,37,0),"0") -> 13 | M93: =IFERROR(VLOOKUP(A93,'شهر 4'!$A$9:$AK$43,37,0),"0") -> 0 | N93: 0 | O93: =IFERROR(VLOOKUP(A93,'شهر 5'!$A$9:$AK$47,37,0),"0") -> 0 | P93: 0 | Q93: =IFERROR(VLOOKUP(A93,شهر6!$A$9:$AK$62,37,0),"0") -> 0 | S93: =IFERROR(VLOOKUP(A93,'شهر 7'!$A$9:$AK$84,37,0),"0") -> 0 | U93: =IFERROR(VLOOKUP(A93,'شهر 8'!$A$9:$AK$78,37,0),"0") -> 0 | W93: =IFERROR(VLOOKUP(A93,'شهر 9'!$A$9:$AK$78,37,0),"0") -> 0 | Y93: =IFERROR(VLOOKUP(A93,'شهر 10'!$A$9:$AK$78,37,0),"0") -> 0 | AA93: =IFERROR(VLOOKUP(A93,'شهر 11'!$A$9:$AK$78,37,0),"0") -> 0 | AC93: =IFERROR(VLOOKUP(A93,'شهر 12'!$A$9:$AK$78,37,0),"0") -> 0 | AE93: 13 | AG93: 0 | AH93: 0 | AI93: 0 | AJ93: 0 | AK93: 0 | AL93: 0 | AM93: 0 | AN93: 0 | AO93: 0 | AP93: 0
A94: 1089 | B94: =IF(C94="","",SUBTOTAL(3,$C$9:C94)) -> 86 | C94: =IFERROR(VLOOKUP($A94,'شهر 7'!$A$9:$C$84,3,0),"") -> محمد عبد السميع | D94: 105 | E94: 1089 | G94: =IFERROR(VLOOKUP(A94,'شهر 1'!$A$9:$AK$46,37,0),"0") -> 0 | I94: =IFERROR(VLOOKUP(A94,'شهر 2'!$A$9:$AK$43,37,0),"0") -> 0 | K94: =IFERROR(VLOOKUP(A94,'سهر 3'!$A$9:$AK$46,37,0),"0") -> 0 | M94: =IFERROR(VLOOKUP(A94,'شهر 4'!$A$9:$AK$43,37,0),"0") -> 0 | N94: 0 | O94: =IFERROR(VLOOKUP(A94,'شهر 5'!$A$9:$AK$47,37,0),"0") -> 0 | Q94: =IFERROR(VLOOKUP(A94,شهر6!$A$9:$AK$62,37,0),"0") -> 0 | S94: =IFERROR(VLOOKUP(A94,'شهر 7'!$A$9:$AK$84,37,0),"0") -> 105 | U94: =IFERROR(VLOOKUP(A94,'شهر 8'!$A$9:$AK$78,37,0),"0") -> 0 | W94: =IFERROR(VLOOKUP(A94,'شهر 9'!$A$9:$AK$78,37,0),"0") -> 0 | Y94: =IFERROR(VLOOKUP(A94,'شهر 10'!$A$9:$AK$78,37,0),"0") -> 0 | AA94: =IFERROR(VLOOKUP(A94,'شهر 11'!$A$9:$AK$78,37,0),"0") -> 0 | AC94: =IFERROR(VLOOKUP(A94,'شهر 12'!$A$9:$AK$78,37,0),"0") -> 0 | AE94: 105 | AG94: 0 | AH94: 0 | AI94: 0 | AJ94: 0 | AK94: 0 | AL94: 0 | AM94: 0 | AN94: 0 | AO94: 0 | AP94: 0
A95: 1090 | B95: =IF(C95="","",SUBTOTAL(3,$C$9:C95)) -> 87 | C95: =IFERROR(VLOOKUP($A95,'شهر 4'!$A$10:$C$43,3,0),"") -> ياسين عبد الله | D95: 64.75 | E95: 1090 | G95: =IFERROR(VLOOKUP(A95,'شهر 1'!$A$9:$AK$46,37,0),"0") -> 0 | I95: =IFERROR(VLOOKUP(A95,'شهر 2'!$A$9:$AK$43,37,0),"0") -> 0 | K95: =IFERROR(VLOOKUP(A95,'سهر 3'!$A$9:$AK$46,37,0),"0") -> 0 | M95: =IFERROR(VLOOKUP(A95,'شهر 4'!$A$9:$AK$43,37,0),"0") -> 121.5 | N95: 0 | O95: =IFERROR(VLOOKUP(A95,'شهر 5'!$A$9:$AK$47,37,0),"0") -> 43 | P95: =32+96.75 -> 128.75 | Q95: =IFERROR(VLOOKUP(A95,شهر6!$A$9:$AK$62,37,0),"0") -> 179 | S95: =IFERROR(VLOOKUP(A95,'شهر 7'!$A$9:$AK$84,37,0),"0") -> 0 | T95: 150 | U95: =IFERROR(VLOOKUP(A95,'شهر 8'!$A$9:$AK$78,37,0),"0") -> 0 | W95: =IFERROR(VLOOKUP(A95,'شهر 9'!$A$9:$AK$78,37,0),"0") -> 0 | Y95: =IFERROR(VLOOKUP(A95,'شهر 10'!$A$9:$AK$78,37,0),"0") -> 0 | AA95: =IFERROR(VLOOKUP(A95,'شهر 11'!$A$9:$AK$78,37,0),"0") -> 0 | AC95: =IFERROR(VLOOKUP(A95,'شهر 12'!$A$9:$AK$78,37,0),"0") -> 0 | AE95: 64.75 | AG95: 0 | AH95: 0 | AI95: 0 | AJ95: 0 | AK95: 43 | AL95: 0 | AM95: 0 | AN95: 0 | AO95: 0 | AP95: 0
A96: 1091 | B96: =IF(C96="","",SUBTOTAL(3,$C$9:C96)) -> 88 | C96: سعيد راضي | D96: 89 | E96: 1091 | F96: 20.5 | G96: =IFERROR(VLOOKUP(A96,'شهر 1'!$A$9:$AK$46,37,0),"0") -> 161.25 | I96: =IFERROR(VLOOKUP(A96,'شهر 2'!$A$9:$AK$43,37,0),"0") -> 238.5 | J96: 241.75 | K96: =IFERROR(VLOOKUP(A96,'سهر 3'!$A$9:$AK$46,37,0),"0") -> 303 | M96: =IFERROR(VLOOKUP(A96,'شهر 4'!$A$9:$AK$43,37,0),"0") -> 27.5 | N96: 499.5 | O96: =IFERROR(VLOOKUP(A96,'شهر 5'!$A$9:$AK$47,37,0),"0") -> 92.5 | P96: 0 | Q96: =IFERROR(VLOOKUP(A96,شهر6!$A$9:$AK$62,37,0),"0") -> 0 | S96: =IFERROR(VLOOKUP(A96,'شهر 7'!$A$9:$AK$84,37,0),"0") -> 208 | T96: =102+119 -> 221 | U96: =IFERROR(VLOOKUP(A96,'شهر 8'!$A$9:$AK$78,37,0),"0") -> 0 | W96: =IFERROR(VLOOKUP(A96,'شهر 9'!$A$9:$AK$78,37,0),"0") -> 0 | Y96: =IFERROR(VLOOKUP(A96,'شهر 10'!$A$9:$AK$78,37,0),"0") -> 0 | AA96: =IFERROR(VLOOKUP(A96,'شهر 11'!$A$9:$AK$78,37,0),"0") -> 0 | AC96: =IFERROR(VLOOKUP(A96,'شهر 12'!$A$9:$AK$78,37,0),"0") -> 0 | AE96: 89 | AG96: 0 | AH96: 238.5 | AI96: 0 | AJ96: 27.5 | AK96: 0 | AL96: 0 | AM96: 208 | AN96: 0 | AO96: 0 | AP96: 0
A97: 1092 | B97: =IF(C97="","",SUBTOTAL(3,$C$9:C97)) -> 89 | C97: =IFERROR(VLOOKUP($A97,شهر6!$A$9:$C$62,3,0),"") -> ام محمود سطوحي | D97: 164 | E97: 1092 | G97: =IFERROR(VLOOKUP(A97,'شهر 1'!$A$9:$AK$46,37,0),"0") -> 0 | I97: =IFERROR(VLOOKUP(A97,'شهر 2'!$A$9:$AK$43,37,0),"0") -> 0 | K97: =IFERROR(VLOOKUP(A97,'سهر 3'!$A$9:$AK$46,37,0),"0") -> 0 | M97: =IFERROR(VLOOKUP(A97,'شهر 4'!$A$9:$AK$43,37,0),"0") -> 0 | O97: =IFERROR(VLOOKUP(A97,'شهر 5'!$A$9:$AK$47,37,0),"0") -> 0 | P97: 0 | Q97: =IFERROR(VLOOKUP(A97,شهر6!$A$9:$AK$62,37,0),"0") -> 9 | S97: =IFERROR(VLOOKUP(A97,'شهر 7'!$A$9:$AK$84,37,0),"0") -> 155 | U97: =IFERROR(VLOOKUP(A97,'شهر 8'!$A$9:$AK$78,37,0),"0") -> 0 | W97: =IFERROR(VLOOKUP(A97,'شهر 9'!$A$9:$AK$78,37,0),"0") -> 0 | Y97: =IFERROR(VLOOKUP(A97,'شهر 10'!$A$9:$AK$78,37,0),"0") -> 0 | AA97: =IFERROR(VLOOKUP(A97,'شهر 11'!$A$9:$AK$78,37,0),"0") -> 0 | AC97: =IFERROR(VLOOKUP(A97,'شهر 12'!$A$9:$AK$78,37,0),"0") -> 0 | AE97: 164 | AG97: 0 | AH97: 0 | AI97: 0 | AJ97: 0 | AK97: 0 | AL97: 0 | AM97: 0 | AN97: 0 | AO97: 0 | AP97: 0
A98: 1093 | B98: =IF(C98="","",SUBTOTAL(3,$C$9:C98)) -> 90 | C98: =IFERROR(VLOOKUP(A98,'سهر 3'!$A$9:$D$46,3,0),"") -> عمي ناجي محمد علي | D98: 525 | E98: 1093 | G98: =IFERROR(VLOOKUP(A98,'شهر 1'!$A$9:$AK$46,37,0),"0") -> 39.5 | I98: =IFERROR(VLOOKUP(A98,'شهر 2'!$A$9:$AK$43,37,0),"0") -> 0 | K98: =IFERROR(VLOOKUP(A98,'سهر 3'!$A$9:$AK$46,37,0),"0") -> 239 | M98: =IFERROR(VLOOKUP(A98,'شهر 4'!$A$9:$AK$43,37,0),"0") -> 0 | N98: 0 | O98: =IFERROR(VLOOKUP(A98,'شهر 5'!$A$9:$AK$47,37,0),"0") -> 0 | P98: 0 | Q98: =IFERROR(VLOOKUP(A98,شهر6!$A$9:$AK$62,37,0),"0") -> 246.5 | S98: =IFERROR(VLOOKUP(A98,'شهر 7'!$A$9:$AK$84,37,0),"0") -> 0 | U98: =IFERROR(VLOOKUP(A98,'شهر 8'!$A$9:$AK$78,37,0),"0") -> 0 | W98: =IFERROR(VLOOKUP(A98,'شهر 9'!$A$9:$AK$78,37,0),"0") -> 0 | Y98: =IFERROR(VLOOKUP(A98,'شهر 10'!$A$9:$AK$78,37,0),"0") -> 0 | AA98: =IFERROR(VLOOKUP(A98,'شهر 11'!$A$9:$AK$78,37,0),"0") -> 0 | AC98: =IFERROR(VLOOKUP(A98,'شهر 12'!$A$9:$AK$78,37,0),"0") -> 0 | AE98: 525 | AG98: 0 | AH98: 0 | AI98: 0 | AJ98: 0 | AK98: 0 | AL98: 0 | AM98: 0 | AN98: 0 | AO98: 0 | AP98: 0
A99: 1094 | B99: =IF(C99="","",SUBTOTAL(3,$C$9:C99)) -> 91 | C99: =IFERROR(VLOOKUP($A99,'شهر 7'!$A$9:$C$84,3,0),"") -> مرات الشيخ خلف | D99: =AE99 -> 89 | E99: 1094 | G99: =IFERROR(VLOOKUP(A99,'شهر 1'!$A$9:$AK$46,37,0),"0") -> 0 | I99: =IFERROR(VLOOKUP(A99,'شهر 2'!$A$9:$AK$43,37,0),"0") -> 0 | K99: =IFERROR(VLOOKUP(A99,'سهر 3'!$A$9:$AK$46,37,0),"0") -> 0 | M99: =IFERROR(VLOOKUP(A99,'شهر 4'!$A$9:$AK$43,37,0),"0") -> 0 | N99: 0 | O99: =IFERROR(VLOOKUP(A99,'شهر 5'!$A$9:$AK$47,37,0),"0") -> 0 | P99: 0 | Q99: =IFERROR(VLOOKUP(A99,شهر6!$A$9:$AK$62,37,0),"0") -> 0 | S99: =IFERROR(VLOOKUP(A99,'شهر 7'!$A$9:$AK$84,37,0),"0") -> 92.5 | T99: 3.5 | U99: =IFERROR(VLOOKUP(A99,'شهر 8'!$A$9:$AK$78,37,0),"0") -> 0 | W99: =IFERROR(VLOOKUP(A99,'شهر 9'!$A$9:$AK$78,37,0),"0") -> 0 | Y99: =IFERROR(VLOOKUP(A99,'شهر 10'!$A$9:$AK$78,37,0),"0") -> 0 | AA99: =IFERROR(VLOOKUP(A99,'شهر 11'!$A$9:$AK$78,37,0),"0") -> 0 | AC99: =IFERROR(VLOOKUP(A99,'شهر 12'!$A$9:$AK$78,37,0),"0") -> 0 | AE99: 89 | AG99: 0 | AH99: 0 | AI99: 0 | AJ99: 0 | AK99: 0 | AL99: 0 | AM99: 3.5 | AN99: 0 | AO99: 0 | AP99: 0
A100: 1095 | B100: =IF(C100="","",SUBTOTAL(3,$C$9:C100)) -> 92 | C100: =IFERROR(VLOOKUP(A100,'شهر 1'!$A$9:$D$73,3,0),"") -> محمد خميس | D100: 508 | E100: =A107 -> 1102 | G100: =IFERROR(VLOOKUP(A100,'شهر 1'!$A$9:$AK$46,37,0),"0") -> 60 | I100: =IFERROR(VLOOKUP(A100,'شهر 2'!$A$9:$AK$43,37,0),"0") -> 105 | K100: =IFERROR(VLOOKUP(A100,'سهر 3'!$A$9:$AK$46,37,0),"0") -> 130.25 | M100: =IFERROR(VLOOKUP(A100,'شهر 4'!$A$9:$AK$43,37,0),"0") -> 0 | N100: 0 | O100: =IFERROR(VLOOKUP(A100,'شهر 5'!$A$9:$AK$47,37,0),"0") -> 45.75 | P100: 150 | Q100: =IFERROR(VLOOKUP(A100,شهر6!$A$9:$AK$62,37,0),"0") -> 420 | R100: =100+35 -> 135 | S100: =IFERROR(VLOOKUP(A100,'شهر 7'!$A$9:$AK$84,37,0),"0") -> 32 | U100: =IFERROR(VLOOKUP(A100,'شهر 8'!$A$9:$AK$78,37,0),"0") -> 0 | W100: =IFERROR(VLOOKUP(A100,'شهر 9'!$A$9:$AK$78,37,0),"0") -> 0 | Y100: =IFERROR(VLOOKUP(A100,'شهر 10'!$A$9:$AK$78,37,0),"0") -> 0 | AA100: =IFERROR(VLOOKUP(A100,'شهر 11'!$A$9:$AK$78,37,0),"0") -> 0 | AC100: =IFERROR(VLOOKUP(A100,'شهر 12'!$A$9:$AK$78,37,0),"0") -> 0 | AE100: 508 | AG100: 0 | AH100: 0 | AI100: 0 | AJ100: 0 | AK100: 45.75 | AL100: 135 | AM100: 0 | AN100: 0 | AO100: 0 | AP100: 0
A101: 1096 | B101: =IF(C101="","",SUBTOTAL(3,$C$9:C101)) -> 93 | C101: كمال عاشور | D101: 19 | E101: 1096 | F101: 23.5 | H101: 5 | I101: =IFERROR(VLOOKUP(A101,'شهر 2'!$A$9:$AK$43,37,0),"0") -> 8.5 | K101: =IFERROR(VLOOKUP(A101,'سهر 3'!$A$9:$AK$46,37,0),"0") -> 6 | L101: 8 | M101: =IFERROR(VLOOKUP(A101,'شهر 4'!$A$9:$AK$43,37,0),"0") -> 0 | N101: 0 | O101: =IFERROR(VLOOKUP(A101,'شهر 5'!$A$9:$AK$47,37,0),"0") -> 0 | P101: 0 | Q101: =IFERROR(VLOOKUP(A101,شهر6!$A$9:$AK$62,37,0),"0") -> 0 | S101: =IFERROR(VLOOKUP(A101,'شهر 7'!$A$9:$AK$84,37,0),"0") -> 0 | T101: 6 | U101: =IFERROR(VLOOKUP(A101,'شهر 8'!$A$9:$AK$78,37,0),"0") -> 0 | W101: =IFERROR(VLOOKUP(A101,'شهر 9'!$A$9:$AK$78,37,0),"0") -> 0 | Y101: =IFERROR(VLOOKUP(A101,'شهر 10'!$A$9:$AK$78,37,0),"0") -> 0 | AA101: =IFERROR(VLOOKUP(A101,'شهر 11'!$A$9:$AK$78,37,0),"0") -> 0 | AC101: =IFERROR(VLOOKUP(A101,'شهر 12'!$A$9:$AK$78,37,0),"0") -> 0 | AE101: 19 | AG101: 0 | AH101: 0 | AI101: 6 | AJ101: 0 | AK101: 0 | AL101: 0 | AM101: 0 | AN101: 0 | AO101: 0 | AP101: 0
A102: 1097 | B102: =IF(C102="","",SUBTOTAL(3,$C$9:C102)) -> 94 | C102: =IFERROR(VLOOKUP(A102,'سهر 3'!$A$9:$D$46,3,0),"") -> محمود احمد خلف | D102: 23 | E102: 1097 | I102: =IFERROR(VLOOKUP(A102,'شهر 2'!$A$9:$AK$43,37,0),"0") -> 0 | K102: =IFERROR(VLOOKUP(A102,'سهر 3'!$A$9:$AK$46,37,0),"0") -> 23 | M102: =IFERROR(VLOOKUP(A102,'شهر 4'!$A$9:$AK$43,37,0),"0") -> 0 | N102: 0 | O102: =IFERROR(VLOOKUP(A102,'شهر 5'!$A$9:$AK$47,37,0),"0") -> 0 | P102: 0 | Q102: =IFERROR(VLOOKUP(A102,شهر6!$A$9:$AK$62,37,0),"0") -> 0 | S102: =IFERROR(VLOOKUP(A102,'شهر 7'!$A$9:$AK$84,37,0),"0") -> 0 | U102: =IFERROR(VLOOKUP(A102,'شهر 8'!$A$9:$AK$78,37,0),"0") -> 0 | W102: =IFERROR(VLOOKUP(A102,'شهر 9'!$A$9:$AK$78,37,0),"0") -> 0 | Y102: =IFERROR(VLOOKUP(A102,'شهر 10'!$A$9:$AK$78,37,0),"0") -> 0 | AA102: =IFERROR(VLOOKUP(A102,'شهر 11'!$A$9:$AK$78,37,0),"0") -> 0 | AC102: =IFERROR(VLOOKUP(A102,'شهر 12'!$A$9:$AK$78,37,0),"0") -> 0 | AE102: 23 | AG102: 0 | AH102: 0 | AI102: 0 | AJ102: 0 | AK102: 0 | AL102: 0 | AM102: 0 | AN102: 0 | AO102: 0 | AP102: 0
A103: 1098 | B103: =IF(C103="","",SUBTOTAL(3,$C$9:C103)) -> 95 | C103: =IFERROR(VLOOKUP(A103,'سهر 3'!$A$9:$D$46,3,0),"") -> ياسين عبد اللطيف | D103: 41 | E103: 1098 | I103: =IFERROR(VLOOKUP(A103,'شهر 2'!$A$9:$AK$43,37,0),"0") -> 0 | K103: =IFERROR(VLOOKUP(A103,'سهر 3'!$A$9:$AK$46,37,0),"0") -> 41 | M103: =IFERROR(VLOOKUP(A103,'شهر 4'!$A$9:$AK$43,37,0),"0") -> 0 | N103: 0 | O103: =IFERROR(VLOOKUP(A103,'شهر 5'!$A$9:$AK$47,37,0),"0") -> 0 | P103: 0 | Q103: =IFERROR(VLOOKUP(A103,شهر6!$A$9:$AK$62,37,0),"0") -> 0 | S103: =IFERROR(VLOOKUP(A103,'شهر 7'!$A$9:$AK$84,37,0),"0") -> 0 | U103: =IFERROR(VLOOKUP(A103,'شهر 8'!$A$9:$AK$78,37,0),"0") -> 0 | W103: =IFERROR(VLOOKUP(A103,'شهر 9'!$A$9:$AK$78,37,0),"0") -> 0 | Y103: =IFERROR(VLOOKUP(A103,'شهر 10'!$A$9:$AK$78,37,0),"0") -> 0 | AA103: =IFERROR(VLOOKUP(A103,'شهر 11'!$A$9:$AK$78,37,0),"0") -> 0 | AC103: =IFERROR(VLOOKUP(A103,'شهر 12'!$A$9:$AK$78,37,0),"0") -> 0 | AE103: 41 | AG103: 0 | AH103: 0 | AI103: 0 | AJ103: 0 | AK103: 0 | AL103: 0 | AM103: 0 | AN103: 0 | AO103: 0 | AP103: 0
A104: 1099 | B104: =IF(C104="","",SUBTOTAL(3,$C$9:C104)) -> 96 | C104: =IFERROR(VLOOKUP($A104,شهر6!$A$9:$C$62,3,0),"") -> مرات مصطفي جمعة | D104: 50 | I104: =IFERROR(VLOOKUP(A104,'شهر 2'!$A$9:$AK$43,37,0),"0") -> 0 | K104: =IFERROR(VLOOKUP(A104,'سهر 3'!$A$9:$AK$46,37,0),"0") -> 0 | M104: =IFERROR(VLOOKUP(A104,'شهر 4'!$A$9:$AK$43,37,0),"0") -> 0 | O104: =IFERROR(VLOOKUP(A104,'شهر 5'!$A$9:$AK$47,37,0),"0") -> 0 | Q104: =IFERROR(VLOOKUP(A104,شهر6!$A$9:$AK$62,37,0),"0") -> 50 | S104: =IFERROR(VLOOKUP(A104,'شهر 7'!$A$9:$AK$84,37,0),"0") -> 0 | U104: =IFERROR(VLOOKUP(A104,'شهر 8'!$A$9:$AK$78,37,0),"0") -> 0 | W104: =IFERROR(VLOOKUP(A104,'شهر 9'!$A$9:$AK$78,37,0),"0") -> 0 | Y104: =IFERROR(VLOOKUP(A104,'شهر 10'!$A$9:$AK$78,37,0),"0") -> 0 | AA104: =IFERROR(VLOOKUP(A104,'شهر 11'!$A$9:$AK$78,37,0),"0") -> 0 | AC104: =IFERROR(VLOOKUP(A104,'شهر 12'!$A$9:$AK$78,37,0),"0") -> 0 | AE104: 50 | AG104: 0 | AH104: 0 | AI104: 0 | AJ104: 0 | AK104: 0 | AL104: 0 | AM104: 0 | AN104: 0 | AO104: 0 | AP104: 0
A105: 1100 | B105: =IF(C105="","",SUBTOTAL(3,$C$9:C105)) -> 97 | C105: =IFERROR(VLOOKUP($A105,'شهر 4'!$A$10:$C$43,3,0),"") -> ام وحيد | D105: 246.5 | I105: =IFERROR(VLOOKUP(A105,'شهر 2'!$A$9:$AK$43,37,0),"0") -> 0 | K105: =IFERROR(VLOOKUP(A105,'سهر 3'!$A$9:$AK$46,37,0),"0") -> 0 | M105: =IFERROR(VLOOKUP(A105,'شهر 4'!$A$9:$AK$43,37,0),"0") -> 242 | N105: 0 | O105: =IFERROR(VLOOKUP(A105,'شهر 5'!$A$9:$AK$47,37,0),"0") -> 62 | P105: =35+74.5 -> 109.5 | Q105: =IFERROR(VLOOKUP(A105,شهر6!$A$9:$AK$62,37,0),"0") -> 0 | S105: =IFERROR(VLOOKUP(A105,'شهر 7'!$A$9:$AK$84,37,0),"0") -> 211 | T105: 159 | U105: =IFERROR(VLOOKUP(A105,'شهر 8'!$A$9:$AK$78,37,0),"0") -> 0 | W105: =IFERROR(VLOOKUP(A105,'شهر 9'!$A$9:$AK$78,37,0),"0") -> 0 | Y105: =IFERROR(VLOOKUP(A105,'شهر 10'!$A$9:$AK$78,37,0),"0") -> 0 | AA105: =IFERROR(VLOOKUP(A105,'شهر 11'!$A$9:$AK$78,37,0),"0") -> 0 | AC105: =IFERROR(VLOOKUP(A105,'شهر 12'!$A$9:$AK$78,37,0),"0") -> 0 | AE105: =SUM(F105,G105,I105,K105,M105,O105,Q105,S105,U105,W105,Y105,AA105,AC105)-SUM(H105,J105,L105,N105,P105,R105,T105,V105,X105,AB105,AD105) -> 246.5 | AG105: 0 | AH105: 0 | AI105: 0 | AJ105: 0 | AK105: 62 | AL105: 0 | AM105: 159 | AN105: 0 | AO105: 0 | AP105: 0
A106: 1101 | B106: =IF(C106="","",SUBTOTAL(3,$C$9:C106)) -> 98 | C106: =IFERROR(VLOOKUP(A106,'شهر 2'!$A$11:$C$43,3,0),"") -> عصام رجب | D106: 116 | E106: 1101 | I106: =IFERROR(VLOOKUP(A106,'شهر 2'!$A$9:$AK$43,37,0),"0") -> 40 | K106: =IFERROR(VLOOKUP(A106,'سهر 3'!$A$9:$AK$46,37,0),"0") -> 76 | M106: =IFERROR(VLOOKUP(A106,'شهر 4'!$A$9:$AK$43,37,0),"0") -> 0 | N106: 0 | O106: =IFERROR(VLOOKUP(A106,'شهر 5'!$A$9:$AK$47,37,0),"0") -> 0 | P106: 0 | Q106: =IFERROR(VLOOKUP(A106,شهر6!$A$9:$AK$62,37,0),"0") -> 0 | S106: =IFERROR(VLOOKUP(A106,'شهر 7'!$A$9:$AK$84,37,0),"0") -> 0 | U106: =IFERROR(VLOOKUP(A106,'شهر 8'!$A$9:$AK$78,37,0),"0") -> 0 | W106: =IFERROR(VLOOKUP(A106,'شهر 9'!$A$9:$AK$78,37,0),"0") -> 0 | Y106: =IFERROR(VLOOKUP(A106,'شهر 10'!$A$9:$AK$78,37,0),"0") -> 0 | AA106: =IFERROR(VLOOKUP(A106,'شهر 11'!$A$9:$AK$78,37,0),"0") -> 0 | AC106: =IFERROR(VLOOKUP(A106,'شهر 12'!$A$9:$AK$78,37,0),"0") -> 0 | AE106: 116 | AG106: 0 | AH106: 0 | AI106: 0 | AJ106: 0 | AK106: 0 | AL106: 0 | AM106: 0 | AN106: 0 | AO106: 0 | AP106: 0
A107: 1102 | B107: =IF(C107="","",SUBTOTAL(3,$C$9:C107)) -> 99 | C107: =IFERROR(VLOOKUP($A107,'شهر 4'!$A$10:$C$43,3,0),"") -> سمير احمد كامل | D107: 54 | I107: =IFERROR(VLOOKUP(A107,'شهر 2'!$A$9:$AK$43,37,0),"0") -> 0 | K107: =IFERROR(VLOOKUP(A107,'سهر 3'!$A$9:$AK$46,37,0),"0") -> 0 | M107: =IFERROR(VLOOKUP(A107,'شهر 4'!$A$9:$AK$43,37,0),"0") -> 54 | O107: =IFERROR(VLOOKUP(A107,'شهر 5'!$A$9:$AK$47,37,0),"0") -> 0 | P107: 0 | Q107: =IFERROR(VLOOKUP(A107,شهر6!$A$9:$AK$62,37,0),"0") -> 0 | S107: =IFERROR(VLOOKUP(A107,'شهر 7'!$A$9:$AK$84,37,0),"0") -> 0 | U107: =IFERROR(VLOOKUP(A107,'شهر 8'!$A$9:$AK$78,37,0),"0") -> 0 | W107: =IFERROR(VLOOKUP(A107,'شهر 9'!$A$9:$AK$78,37,0),"0") -> 0 | Y107: =IFERROR(VLOOKUP(A107,'شهر 10'!$A$9:$AK$78,37,0),"0") -> 0 | AA107: =IFERROR(VLOOKUP(A107,'شهر 11'!$A$9:$AK$78,37,0),"0") -> 0 | AC107: =IFERROR(VLOOKUP(A107,'شهر 12'!$A$9:$AK$78,37,0),"0") -> 0 | AE107: 54 | AG107: 0 | AH107: 0 | AI107: 0 | AJ107: 0 | AK107: 0 | AL107: 0 | AM107: 0 | AN107: 0 | AO107: 0 | AP107: 0
A108: 1103 | B108: =IF(C108="","",SUBTOTAL(3,$C$9:C108)) -> 100 | C108: =IFERROR(VLOOKUP($A108,'شهر 7'!$A$9:$C$84,3,0),"") -> احمد راضي عبد العليم | D108: 9 | I108: =IFERROR(VLOOKUP(A108,'شهر 2'!$A$9:$AK$43,37,0),"0") -> 0 | K108: =IFERROR(VLOOKUP(A108,'سهر 3'!$A$9:$AK$46,37,0),"0") -> 0 | M108: =IFERROR(VLOOKUP(A108,'شهر 4'!$A$9:$AK$43,37,0),"0") -> 0 | N108: 0 | O108: =IFERROR(VLOOKUP(A108,'شهر 5'!$A$9:$AK$47,37,0),"0") -> 0 | P108: 0 | Q108: =IFERROR(VLOOKUP(A108,شهر6!$A$9:$AK$62,37,0),"0") -> 0 | S108: =IFERROR(VLOOKUP(A108,'شهر 7'!$A$9:$AK$84,37,0),"0") -> 20 | T108: 11 | U108: =IFERROR(VLOOKUP(A108,'شهر 8'!$A$9:$AK$78,37,0),"0") -> 0 | W108: =IFERROR(VLOOKUP(A108,'شهر 9'!$A$9:$AK$78,37,0),"0") -> 0 | Y108: =IFERROR(VLOOKUP(A108,'شهر 10'!$A$9:$AK$78,37,0),"0") -> 0 | AA108: =IFERROR(VLOOKUP(A108,'شهر 11'!$A$9:$AK$78,37,0),"0") -> 0 | AC108: =IFERROR(VLOOKUP(A108,'شهر 12'!$A$9:$AK$78,37,0),"0") -> 0 | AE108: 9 | AG108: 0 | AH108: 0 | AI108: 0 | AJ108: 0 | AK108: 0 | AL108: 0 | AM108: 11 | AN108: 0 | AO108: 0 | AP108: 0
A109: 1104 | B109: =IF(C109="","",SUBTOTAL(3,$C$9:C109)) -> 101 | C109: =IFERROR(VLOOKUP(A109,'شهر 2'!$A$11:$C$43,3,0),"") -> علاوي احمد | D109: 250 | I109: =IFERROR(VLOOKUP(A109,'شهر 2'!$A$9:$AK$43,37,0),"0") -> 350 | J109: 100 | K109: =IFERROR(VLOOKUP(A109,'سهر 3'!$A$9:$AK$46,37,0),"0") -> 0 | M109: =IFERROR(VLOOKUP(A109,'شهر 4'!$A$9:$AK$43,37,0),"0") -> 0 | N109: 0 | O109: =IFERROR(VLOOKUP(A109,'شهر 5'!$A$9:$AK$47,37,0),"0") -> 0 | P109: 0 | Q109: =IFERROR(VLOOKUP(A109,شهر6!$A$9:$AK$62,37,0),"0") -> 0 | S109: =IFERROR(VLOOKUP(A109,'شهر 7'!$A$9:$AK$84,37,0),"0") -> 0 | U109: =IFERROR(VLOOKUP(A109,'شهر 8'!$A$9:$AK$78,37,0),"0") -> 0 | W109: =IFERROR(VLOOKUP(A109,'شهر 9'!$A$9:$AK$78,37,0),"0") -> 0 | Y109: =IFERROR(VLOOKUP(A109,'شهر 10'!$A$9:$AK$78,37,0),"0") -> 0 | AA109: =IFERROR(VLOOKUP(A109,'شهر 11'!$A$9:$AK$78,37,0),"0") -> 0 | AC109: =IFERROR(VLOOKUP(A109,'شهر 12'!$A$9:$AK$78,37,0),"0") -> 0 | AE109: 250 | AG109: 0 | AH109: 100 | AI109: 0 | AJ109: 0 | AK109: 0 | AL109: 0 | AM109: 0 | AN109: 0 | AO109: 0 | AP109: 0
A110: 1105 | B110: =IF(C110="","",SUBTOTAL(3,$C$9:C110)) -> 102 | C110: =IFERROR(VLOOKUP(A110,'شهر 2'!$A$11:$C$43,3,0),"") -> رمضان (ابو الهوي ) | D110: 223.5 | E110: 1105 | I110: =IFERROR(VLOOKUP(A110,'شهر 2'!$A$9:$AK$43,37,0),"0") -> 223.5 | K110: =IFERROR(VLOOKUP(A110,'سهر 3'!$A$9:$AK$46,37,0),"0") -> 0 | M110: =IFERROR(VLOOKUP(A110,'شهر 4'!$A$9:$AK$43,37,0),"0") -> 0 | N110: 0 | O110: =IFERROR(VLOOKUP(A110,'شهر 5'!$A$9:$AK$47,37,0),"0") -> 0 | P110: 0 | Q110: =IFERROR(VLOOKUP(A110,شهر6!$A$9:$AK$62,37,0),"0") -> 0 | S110: =IFERROR(VLOOKUP(A110,'شهر 7'!$A$9:$AK$84,37,0),"0") -> 0 | U110: =IFERROR(VLOOKUP(A110,'شهر 8'!$A$9:$AK$78,37,0),"0") -> 0 | W110: =IFERROR(VLOOKUP(A110,'شهر 9'!$A$9:$AK$78,37,0),"0") -> 0 | Y110: =IFERROR(VLOOKUP(A110,'شهر 10'!$A$9:$AK$78,37,0),"0") -> 0 | AA110: =IFERROR(VLOOKUP(A110,'شهر 11'!$A$9:$AK$78,37,0),"0") -> 0 | AC110: =IFERROR(VLOOKUP(A110,'شهر 12'!$A$9:$AK$78,37,0),"0") -> 0 | AE110: 223.5 | AG110: 0 | AH110: 0 | AI110: 0 | AJ110: 0 | AK110: 0 | AL110: 0 | AM110: 0 | AN110: 0 | AO110: 0 | AP110: 0
A111: 1106 | B111: =IF(C111="","",SUBTOTAL(3,$C$9:C111)) -> 103 | C111: =IFERROR(VLOOKUP($A111,شهر6!$A$9:$C$62,3,0),"") -> خالد عبد الحميد يونس | D111: 29 | E111: 1106 | I111: =IFERROR(VLOOKUP(A111,'شهر 2'!$A$9:$AK$43,37,0),"0") -> 0 | K111: =IFERROR(VLOOKUP(A111,'سهر 3'!$A$9:$AK$46,37,0),"0") -> 0 | M111: =IFERROR(VLOOKUP(A111,'شهر 4'!$A$9:$AK$43,37,0),"0") -> 0 | O111: =IFERROR(VLOOKUP(A111,'شهر 5'!$A$9:$AK$47,37,0),"0") -> 0 | Q111: =IFERROR(VLOOKUP(A111,شهر6!$A$9:$AK$62,37,0),"0") -> 29 | S111: =IFERROR(VLOOKUP(A111,'شهر 7'!$A$9:$AK$84,37,0),"0") -> 0 | U111: =IFERROR(VLOOKUP(A111,'شهر 8'!$A$9:$AK$78,37,0),"0") -> 0 | W111: =IFERROR(VLOOKUP(A111,'شهر 9'!$A$9:$AK$78,37,0),"0") -> 0 | Y111: =IFERROR(VLOOKUP(A111,'شهر 10'!$A$9:$AK$78,37,0),"0") -> 0 | AA111: =IFERROR(VLOOKUP(A111,'شهر 11'!$A$9:$AK$78,37,0),"0") -> 0 | AC111: =IFERROR(VLOOKUP(A111,'شهر 12'!$A$9:$AK$78,37,0),"0") -> 0 | AE111: 29 | AG111: 0 | AH111: 0 | AI111: 0 | AJ111: 0 | AK111: 0 | AL111: 0 | AM111: 0 | AN111: 0 | AO111: 0 | AP111: 0
A112: 1107 | B112: =IF(C112="","",SUBTOTAL(3,$C$9:C112)) -> 104 | C112: =IFERROR(VLOOKUP($A112,شهر6!$A$9:$C$62,3,0),"") -> رضا طه برعي | D112: 20 | E112: 1107 | I112: =IFERROR(VLOOKUP(A112,'شهر 2'!$A$9:$AK$43,37,0),"0") -> 0 | K112: =IFERROR(VLOOKUP(A112,'سهر 3'!$A$9:$AK$46,37,0),"0") -> 0 | M112: =IFERROR(VLOOKUP(A112,'شهر 4'!$A$9:$AK$43,37,0),"0") -> 0 | N112: 0 | O112: =IFERROR(VLOOKUP(A112,'شهر 5'!$A$9:$AK$47,37,0),"0") -> 0 | Q112: =IFERROR(VLOOKUP(A112,شهر6!$A$9:$AK$62,37,0),"0") -> 20 | S112: =IFERROR(VLOOKUP(A112,'شهر 7'!$A$9:$AK$84,37,0),"0") -> 0 | U112: =IFERROR(VLOOKUP(A112,'شهر 8'!$A$9:$AK$78,37,0),"0") -> 0 | W112: =IFERROR(VLOOKUP(A112,'شهر 9'!$A$9:$AK$78,37,0),"0") -> 0 | Y112: =IFERROR(VLOOKUP(A112,'شهر 10'!$A$9:$AK$78,37,0),"0") -> 0 | AA112: =IFERROR(VLOOKUP(A112,'شهر 11'!$A$9:$AK$78,37,0),"0") -> 0 | AC112: =IFERROR(VLOOKUP(A112,'شهر 12'!$A$9:$AK$78,37,0),"0") -> 0 | AE112: 20 | AG112: 0 | AH112: 0 | AI112: 0 | AJ112: 0 | AK112: 0 | AL112: 0 | AM112: 0 | AN112: 0 | AO112: 0 | AP112: 0
A113: 1108 | B113: =IF(C113="","",SUBTOTAL(3,$C$9:C113)) -> 105 | C113: =IFERROR(VLOOKUP(A113,'شهر 2'!$A$11:$C$43,3,0),"") -> عبد النافع شحاته | D113: 246.25 | E113: 1108 | I113: =IFERROR(VLOOKUP(A113,'شهر 2'!$A$9:$AK$43,37,0),"0") -> 246.25 | K113: =IFERROR(VLOOKUP(A113,'سهر 3'!$A$9:$AK$46,37,0),"0") -> 0 | M113: =IFERROR(VLOOKUP(A113,'شهر 4'!$A$9:$AK$43,37,0),"0") -> 0 | N113: 0 | O113: =IFERROR(VLOOKUP(A113,'شهر 5'!$A$9:$AK$47,37,0),"0") -> 0 | P113: 0 | Q113: =IFERROR(VLOOKUP(A113,شهر6!$A$9:$AK$62,37,0),"0") -> 0 | S113: =IFERROR(VLOOKUP(A113,'شهر 7'!$A$9:$AK$84,37,0),"0") -> 0 | U113: =IFERROR(VLOOKUP(A113,'شهر 8'!$A$9:$AK$78,37,0),"0") -> 0 | W113: =IFERROR(VLOOKUP(A113,'شهر 9'!$A$9:$AK$78,37,0),"0") -> 0 | Y113: =IFERROR(VLOOKUP(A113,'شهر 10'!$A$9:$AK$78,37,0),"0") -> 0 | AA113: =IFERROR(VLOOKUP(A113,'شهر 11'!$A$9:$AK$78,37,0),"0") -> 0 | AC113: =IFERROR(VLOOKUP(A113,'شهر 12'!$A$9:$AK$78,37,0),"0") -> 0 | AE113: 246.25 | AG113: 0 | AH113: 0 | AI113: 0 | AJ113: 0 | AK113: 0 | AL113: 0 | AM113: 0 | AN113: 0 | AO113: 0 | AP113: 0
A114: 1109 | B114: =IF(C114="","",SUBTOTAL(3,$C$9:C114)) -> 106 | C114: =IFERROR(VLOOKUP(A114,'سهر 3'!$A$9:$D$46,3,0),"") -> ام حارث | D114: 104 | E114: 1109 | I114: =IFERROR(VLOOKUP(A114,'شهر 2'!$A$9:$AK$43,37,0),"0") -> 0 | K114: =IFERROR(VLOOKUP(A114,'سهر 3'!$A$9:$AK$46,37,0),"0") -> 23.5 | M114: =IFERROR(VLOOKUP(A114,'شهر 4'!$A$9:$AK$43,37,0),"0") -> 0 | N114: 0 | O114: =IFERROR(VLOOKUP(A114,'شهر 5'!$A$9:$AK$47,37,0),"0") -> 15.5 | P114: 0 | Q114: =IFERROR(VLOOKUP(A114,شهر6!$A$9:$AK$62,37,0),"0") -> 65 | S114: =IFERROR(VLOOKUP(A114,'شهر 7'!$A$9:$AK$84,37,0),"0") -> 0 | U114: =IFERROR(VLOOKUP(A114,'شهر 8'!$A$9:$AK$78,37,0),"0") -> 0 | W114: =IFERROR(VLOOKUP(A114,'شهر 9'!$A$9:$AK$78,37,0),"0") -> 0 | Y114: =IFERROR(VLOOKUP(A114,'شهر 10'!$A$9:$AK$78,37,0),"0") -> 0 | AA114: =IFERROR(VLOOKUP(A114,'شهر 11'!$A$9:$AK$78,37,0),"0") -> 0 | AC114: =IFERROR(VLOOKUP(A114,'شهر 12'!$A$9:$AK$78,37,0),"0") -> 0 | AE114: 104 | AG114: 0 | AH114: 0 | AI114: 0 | AJ114: 0 | AK114: 0 | AL114: 0 | AM114: 0 | AN114: 0 | AO114: 0 | AP114: 0
A115: 1110 | B115: =IF(C115="","",SUBTOTAL(3,$C$9:C115)) -> 107 | C115: =IFERROR(VLOOKUP(A115,'شهر 2'!$A$11:$C$43,3,0),"") -> مرات عصام خليفة | D115: 29.5 | E115: 1110 | I115: =IFERROR(VLOOKUP(A115,'شهر 2'!$A$9:$AK$43,37,0),"0") -> 56.5 | K115: =IFERROR(VLOOKUP(A115,'سهر 3'!$A$9:$AK$46,37,0),"0") -> 13 | M115: =IFERROR(VLOOKUP(A115,'شهر 4'!$A$9:$AK$43,37,0),"0") -> 0 | N115: 0 | O115: =IFERROR(VLOOKUP(A115,'شهر 5'!$A$9:$AK$47,37,0),"0") -> 0 | P115: 0 | Q115: =IFERROR(VLOOKUP(A115,شهر6!$A$9:$AK$62,37,0),"0") -> 0 | S115: =IFERROR(VLOOKUP(A115,'شهر 7'!$A$9:$AK$84,37,0),"0") -> 0 | T115: 40 | U115: =IFERROR(VLOOKUP(A115,'شهر 8'!$A$9:$AK$78,37,0),"0") -> 0 | W115: =IFERROR(VLOOKUP(A115,'شهر 9'!$A$9:$AK$78,37,0),"0") -> 0 | Y115: =IFERROR(VLOOKUP(A115,'شهر 10'!$A$9:$AK$78,37,0),"0") -> 0 | AA115: =IFERROR(VLOOKUP(A115,'شهر 11'!$A$9:$AK$78,37,0),"0") -> 0 | AC115: =IFERROR(VLOOKUP(A115,'شهر 12'!$A$9:$AK$78,37,0),"0") -> 0 | AE115: 29.5 | AG115: 0 | AH115: 0 | AI115: 0 | AJ115: 0 | AK115: 0 | AL115: 0 | AM115: 0 | AN115: 0 | AO115: 0 | AP115: 0
A116: 1111 | B116: =IF(C116="","",SUBTOTAL(3,$C$9:C116)) -> 108 | C116: =IFERROR(VLOOKUP($A116,'شهر 4'!$A$10:$C$43,3,0),"") -> مرات بليغ عبد الله | D116: 22 | E116: 1111 | K116: =IFERROR(VLOOKUP(A116,'سهر 3'!$A$9:$AK$46,37,0),"0") -> 0 | M116: =IFERROR(VLOOKUP(A116,'شهر 4'!$A$9:$AK$43,37,0),"0") -> 63 | N116: 10 | O116: =IFERROR(VLOOKUP(A116,'شهر 5'!$A$9:$AK$47,37,0),"0") -> 31 | P116: 25 | Q116: =IFERROR(VLOOKUP(A116,شهر6!$A$9:$AK$62,37,0),"0") -> 7 | R116: =28+34 -> 62 | S116: =IFERROR(VLOOKUP(A116,'شهر 7'!$A$9:$AK$84,37,0),"0") -> 18 | U116: =IFERROR(VLOOKUP(A116,'شهر 8'!$A$9:$AK$78,37,0),"0") -> 0 | W116: =IFERROR(VLOOKUP(A116,'شهر 9'!$A$9:$AK$78,37,0),"0") -> 0 | Y116: =IFERROR(VLOOKUP(A116,'شهر 10'!$A$9:$AK$78,37,0),"0") -> 0 | AA116: =IFERROR(VLOOKUP(A116,'شهر 11'!$A$9:$AK$78,37,0),"0") -> 0 | AC116: =IFERROR(VLOOKUP(A116,'شهر 12'!$A$9:$AK$78,37,0),"0") -> 0 | AE116: 22 | AG116: 0 | AH116: 0 | AI116: 0 | AJ116: 10 | AK116: 25 | AL116: 7 | AM116: 0 | AN116: 0 | AO116: 0 | AP116: 0
A117: 1112 | B117: =IF(C117="","",SUBTOTAL(3,$C$9:C117)) -> 109 | C117: =IFERROR(VLOOKUP(A117,'شهر 5'!$A$9:$C$47,3,0),"") -> ام ياسمين صلاح احمد | D117: 60 | E117: 1112 | K117: =IFERROR(VLOOKUP(A117,'سهر 3'!$A$9:$AK$46,37,0),"0") -> 0 | M117: =IFERROR(VLOOKUP(A117,'شهر 4'!$A$9:$AK$43,37,0),"0") -> 0 | N117: 0 | O117: =IFERROR(VLOOKUP(A117,'شهر 5'!$A$9:$AK$47,37,0),"0") -> 60 | P117: 0 | Q117: =IFERROR(VLOOKUP(A117,شهر6!$A$9:$AK$62,37,0),"0") -> 0 | S117: =IFERROR(VLOOKUP(A117,'شهر 7'!$A$9:$AK$84,37,0),"0") -> 0 | U117: =IFERROR(VLOOKUP(A117,'شهر 8'!$A$9:$AK$78,37,0),"0") -> 0 | W117: =IFERROR(VLOOKUP(A117,'شهر 9'!$A$9:$AK$78,37,0),"0") -> 0 | Y117: =IFERROR(VLOOKUP(A117,'شهر 10'!$A$9:$AK$78,37,0),"0") -> 0 | AA117: =IFERROR(VLOOKUP(A117,'شهر 11'!$A$9:$AK$78,37,0),"0") -> 0 | AC117: =IFERROR(VLOOKUP(A117,'شهر 12'!$A$9:$AK$78,37,0),"0") -> 0 | AE117: 60 | AG117: 0 | AH117: 0 | AI117: 0 | AJ117: 0 | AK117: 0 | AL117: 0 | AM117: 0 | AN117: 0 | AO117: 0 | AP117: 0
A118: 1113 | B118: =IF(C118="","",SUBTOTAL(3,$C$9:C118)) -> 110 | C118: =IFERROR(VLOOKUP(A118,'سهر 3'!$A$9:$D$46,3,0),"") -> محمود علي فهمي | D118: 53 | E118: 1113 | K118: =IFERROR(VLOOKUP(A118,'سهر 3'!$A$9:$AK$46,37,0),"0") -> 53 | M118: =IFERROR(VLOOKUP(A118,'شهر 4'!$A$9:$AK$43,37,0),"0") -> 0 | N118: 0 | O118: =IFERROR(VLOOKUP(A118,'شهر 5'!$A$9:$AK$47,37,0),"0") -> 0 | P118: 0 | Q118: =IFERROR(VLOOKUP(A118,شهر6!$A$9:$AK$62,37,0),"0") -> 0 | S118: =IFERROR(VLOOKUP(A118,'شهر 7'!$A$9:$AK$84,37,0),"0") -> 0 | U118: =IFERROR(VLOOKUP(A118,'شهر 8'!$A$9:$AK$78,37,0),"0") -> 0 | W118: =IFERROR(VLOOKUP(A118,'شهر 9'!$A$9:$AK$78,37,0),"0") -> 0 | Y118: =IFERROR(VLOOKUP(A118,'شهر 10'!$A$9:$AK$78,37,0),"0") -> 0 | AA118: =IFERROR(VLOOKUP(A118,'شهر 11'!$A$9:$AK$78,37,0),"0") -> 0 | AC118: =IFERROR(VLOOKUP(A118,'شهر 12'!$A$9:$AK$78,37,0),"0") -> 0 | AE118: 53 | AG118: 0 | AH118: 0 | AI118: 0 | AJ118: 0 | AK118: 0 | AL118: 0 | AM118: 0 | AN118: 0 | AO118: 0 | AP118: 0
A119: 1114 | B119: =IF(C119="","",SUBTOTAL(3,$C$9:C119)) -> 111 | C119: =IFERROR(VLOOKUP(A119,'سهر 3'!$A$9:$D$46,3,0),"") -> كمال محمد خليفة | D119: 186.5 | E119: 1114 | K119: =IFERROR(VLOOKUP(A119,'سهر 3'!$A$9:$AK$46,37,0),"0") -> 91.5 | M119: =IFERROR(VLOOKUP(A119,'شهر 4'!$A$9:$AK$43,37,0),"0") -> 95 | N119: 0 | O119: =IFERROR(VLOOKUP(A119,'شهر 5'!$A$9:$AK$47,37,0),"0") -> 0 | P119: 0 | Q119: =IFERROR(VLOOKUP(A119,شهر6!$A$9:$AK$62,37,0),"0") -> 0 | S119: =IFERROR(VLOOKUP(A119,'شهر 7'!$A$9:$AK$84,37,0),"0") -> 0 | U119: =IFERROR(VLOOKUP(A119,'شهر 8'!$A$9:$AK$78,37,0),"0") -> 0 | W119: =IFERROR(VLOOKUP(A119,'شهر 9'!$A$9:$AK$78,37,0),"0") -> 0 | Y119: =IFERROR(VLOOKUP(A119,'شهر 10'!$A$9:$AK$78,37,0),"0") -> 0 | AA119: =IFERROR(VLOOKUP(A119,'شهر 11'!$A$9:$AK$78,37,0),"0") -> 0 | AC119: =IFERROR(VLOOKUP(A119,'شهر 12'!$A$9:$AK$78,37,0),"0") -> 0 | AE119: 186.5 | AG119: 0 | AH119: 0 | AI119: 0 | AJ119: 0 | AK119: 0 | AL119: 0 | AM119: 0 | AN119: 0 | AO119: 0 | AP119: 0
A120: 1115 | B120: =IF(C120="","",SUBTOTAL(3,$C$9:C120)) -> 112 | C120: =IFERROR(VLOOKUP($A120,'شهر 4'!$A$10:$C$43,3,0),"") -> ايمان مشتاوي | D120: 59 | E120: 1115 | K120: =IFERROR(VLOOKUP(A120,'سهر 3'!$A$9:$AK$46,37,0),"0") -> 0 | M120: =IFERROR(VLOOKUP(A120,'شهر 4'!$A$9:$AK$43,37,0),"0") -> 59 | N120: 0 | O120: =IFERROR(VLOOKUP(A120,'شهر 5'!$A$9:$AK$47,37,0),"0") -> 0 | P120: 0 | Q120: =IFERROR(VLOOKUP(A120,شهر6!$A$9:$AK$62,37,0),"0") -> 0 | S120: =IFERROR(VLOOKUP(A120,'شهر 7'!$A$9:$AK$84,37,0),"0") -> 0 | U120: =IFERROR(VLOOKUP(A120,'شهر 8'!$A$9:$AK$78,37,0),"0") -> 0 | W120: =IFERROR(VLOOKUP(A120,'شهر 9'!$A$9:$AK$78,37,0),"0") -> 0 | Y120: =IFERROR(VLOOKUP(A120,'شهر 10'!$A$9:$AK$78,37,0),"0") -> 0 | AA120: =IFERROR(VLOOKUP(A120,'شهر 11'!$A$9:$AK$78,37,0),"0") -> 0 | AC120: =IFERROR(VLOOKUP(A120,'شهر 12'!$A$9:$AK$78,37,0),"0") -> 0 | AE120: 59 | AG120: 0 | AH120: 0 | AI120: 0 | AJ120: 0 | AK120: 0 | AL120: 0 | AM120: 0 | AN120: 0 | AO120: 0 | AP120: 0
A121: 1116 | B121: =IF(C121="","",SUBTOTAL(3,$C$9:C121)) -> 113 | C121: =IFERROR(VLOOKUP(A121,'شهر 5'!$A$9:$C$47,3,0),"") -> اسامه صلاح عبد الحفيظ | D121: 94.5 | E121: 1116 | K121: =IFERROR(VLOOKUP(A121,'سهر 3'!$A$9:$AK$46,37,0),"0") -> 0 | M121: =IFERROR(VLOOKUP(A121,'شهر 4'!$A$9:$AK$43,37,0),"0") -> 0 | N121: 0 | O121: =IFERROR(VLOOKUP(A121,'شهر 5'!$A$9:$AK$47,37,0),"0") -> 94.5 | P121: 0 | Q121: =IFERROR(VLOOKUP(A121,شهر6!$A$9:$AK$62,37,0),"0") -> 0 | S121: =IFERROR(VLOOKUP(A121,'شهر 7'!$A$9:$AK$84,37,0),"0") -> 0 | U121: =IFERROR(VLOOKUP(A121,'شهر 8'!$A$9:$AK$78,37,0),"0") -> 0 | W121: =IFERROR(VLOOKUP(A121,'شهر 9'!$A$9:$AK$78,37,0),"0") -> 0 | Y121: =IFERROR(VLOOKUP(A121,'شهر 10'!$A$9:$AK$78,37,0),"0") -> 0 | AA121: =IFERROR(VLOOKUP(A121,'شهر 11'!$A$9:$AK$78,37,0),"0") -> 0 | AC121: =IFERROR(VLOOKUP(A121,'شهر 12'!$A$9:$AK$78,37,0),"0") -> 0 | AE121: 94.5 | AG121: 0 | AH121: 0 | AI121: 0 | AJ121: 0 | AK121: 0 | AL121: 0 | AM121: 0 | AN121: 0 | AO121: 0 | AP121: 0
A122: 1117 | B122: =IF(C122="","",SUBTOTAL(3,$C$9:C122)) -> 114 | C122: =IFERROR(VLOOKUP($A122,'شهر 7'!$A$9:$C$84,3,0),"") -> الشيخ جمال | D122: 24 | E122: 1117 | K122: =IFERROR(VLOOKUP(A122,'سهر 3'!$A$9:$AK$46,37,0),"0") -> 0 | M122: =IFERROR(VLOOKUP(A122,'شهر 4'!$A$9:$AK$43,37,0),"0") -> 0 | N122: 0 | O122: =IFERROR(VLOOKUP(A122,'شهر 5'!$A$9:$AK$47,37,0),"0") -> 0 | P122: 0 | Q122: =IFERROR(VLOOKUP(A122,شهر6!$A$9:$AK$62,37,0),"0") -> 40 | S122: =IFERROR(VLOOKUP(A122,'شهر 7'!$A$9:$AK$84,37,0),"0") -> 24 | T122: 40 | U122: =IFERROR(VLOOKUP(A122,'شهر 8'!$A$9:$AK$78,37,0),"0") -> 0 | W122: =IFERROR(VLOOKUP(A122,'شهر 9'!$A$9:$AK$78,37,0),"0") -> 0 | Y122: =IFERROR(VLOOKUP(A122,'شهر 10'!$A$9:$AK$78,37,0),"0") -> 0 | AA122: =IFERROR(VLOOKUP(A122,'شهر 11'!$A$9:$AK$78,37,0),"0") -> 0 | AC122: =IFERROR(VLOOKUP(A122,'شهر 12'!$A$9:$AK$78,37,0),"0") -> 0 | AE122: 24 | AG122: 0 | AH122: 0 | AI122: 0 | AJ122: 0 | AK122: 0 | AL122: 0 | AM122: 24 | AN122: 0 | AO122: 0 | AP122: 0
A123: 1118 | B123: =IF(C123="","",SUBTOTAL(3,$C$9:C123)) -> 115 | C123: =IFERROR(VLOOKUP($A123,'شهر 7'!$A$9:$C$84,3,0),"") -> عبد الناصر ناجي | D123: 96 | E123: 1118 | K123: =IFERROR(VLOOKUP(A123,'سهر 3'!$A$9:$AK$46,37,0),"0") -> 0 | M123: =IFERROR(VLOOKUP(A123,'شهر 4'!$A$9:$AK$43,37,0),"0") -> 0 | N123: 0 | O123: =IFERROR(VLOOKUP(A123,'شهر 5'!$A$9:$AK$47,37,0),"0") -> 0 | Q123: =IFERROR(VLOOKUP(A123,شهر6!$A$9:$AK$62,37,0),"0") -> 0 | S123: =IFERROR(VLOOKUP(A123,'شهر 7'!$A$9:$AK$84,37,0),"0") -> 165 | T123: 69 | U123: =IFERROR(VLOOKUP(A123,'شهر 8'!$A$9:$AK$78,37,0),"0") -> 0 | W123: =IFERROR(VLOOKUP(A123,'شهر 9'!$A$9:$AK$78,37,0),"0") -> 0 | Y123: =IFERROR(VLOOKUP(A123,'شهر 10'!$A$9:$AK$78,37,0),"0") -> 0 | AA123: =IFERROR(VLOOKUP(A123,'شهر 11'!$A$9:$AK$78,37,0),"0") -> 0 | AC123: =IFERROR(VLOOKUP(A123,'شهر 12'!$A$9:$AK$78,37,0),"0") -> 0 | AE123: 96 | AG123: 0 | AH123: 0 | AI123: 0 | AJ123: 0 | AK123: 0 | AL123: 0 | AM123: 69 | AN123: 0 | AO123: 0 | AP123: 0
A124: 1119 | B124: =IF(C124="","",SUBTOTAL(3,$C$9:C124)) -> 116 | C124: =IFERROR(VLOOKUP(A124,'سهر 3'!$A$9:$D$46,3,0),"") -> مرات احمد شقراني | D124: 27 | E124: 1119 | K124: =IFERROR(VLOOKUP(A124,'سهر 3'!$A$9:$AK$46,37,0),"0") -> 35 | L124: 20 | M124: =IFERROR(VLOOKUP(A124,'شهر 4'!$A$9:$AK$43,37,0),"0") -> 0 | N124: 0 | O124: =IFERROR(VLOOKUP(A124,'شهر 5'!$A$9:$AK$47,37,0),"0") -> 0 | P124: 0 | Q124: =IFERROR(VLOOKUP(A124,شهر6!$A$9:$AK$62,37,0),"0") -> 12 | S124: =IFERROR(VLOOKUP(A124,'شهر 7'!$A$9:$AK$84,37,0),"0") -> 0 | U124: =IFERROR(VLOOKUP(A124,'شهر 8'!$A$9:$AK$78,37,0),"0") -> 0 | W124: =IFERROR(VLOOKUP(A124,'شهر 9'!$A$9:$AK$78,37,0),"0") -> 0 | Y124: =IFERROR(VLOOKUP(A124,'شهر 10'!$A$9:$AK$78,37,0),"0") -> 0 | AA124: =IFERROR(VLOOKUP(A124,'شهر 11'!$A$9:$AK$78,37,0),"0") -> 0 | AC124: =IFERROR(VLOOKUP(A124,'شهر 12'!$A$9:$AK$78,37,0),"0") -> 0 | AE124: 27 | AG124: 0 | AH124: 0 | AI124: 20 | AJ124: 0 | AK124: 0 | AL124: 0 | AM124: 0 | AN124: 0 | AO124: 0 | AP124: 0
A125: 1120 | B125: =IF(C125="","",SUBTOTAL(3,$C$9:C125)) -> 117 | C125: =IFERROR(VLOOKUP($A125,'شهر 7'!$A$9:$C$84,3,0),"") -> ربيع خالد جمال | D125: 101.5 | E125: 1120 | K125: =IFERROR(VLOOKUP(A125,'سهر 3'!$A$9:$AK$46,37,0),"0") -> 0 | M125: =IFERROR(VLOOKUP(A125,'شهر 4'!$A$9:$AK$43,37,0),"0") -> 0 | N125: 0 | O125: =IFERROR(VLOOKUP(A125,'شهر 5'!$A$9:$AK$47,37,0),"0") -> 0 | Q125: =IFERROR(VLOOKUP(A125,شهر6!$A$9:$AK$62,37,0),"0") -> 0 | S125: =IFERROR(VLOOKUP(A125,'شهر 7'!$A$9:$AK$84,37,0),"0") -> 59 | U125: =IFERROR(VLOOKUP(A125,'شهر 8'!$A$9:$AK$78,37,0),"0") -> 42.5 | W125: =IFERROR(VLOOKUP(A125,'شهر 9'!$A$9:$AK$78,37,0),"0") -> 0 | Y125: =IFERROR(VLOOKUP(A125,'شهر 10'!$A$9:$AK$78,37,0),"0") -> 0 | AA125: =IFERROR(VLOOKUP(A125,'شهر 11'!$A$9:$AK$78,37,0),"0") -> 0 | AC125: =IFERROR(VLOOKUP(A125,'شهر 12'!$A$9:$AK$78,37,0),"0") -> 0 | AE125: 101.5 | AG125: 0 | AH125: 0 | AI125: 0 | AJ125: 0 | AK125: 0 | AL125: 0 | AM125: 0 | AN125: 0 | AO125: 0 | AP125: 0
A126: 1121 | B126: =IF(C126="","",SUBTOTAL(3,$C$9:C126)) -> 118 | C126: =IFERROR(VLOOKUP(A126,'سهر 3'!$A$9:$D$46,3,0),"") -> وليد رجب | D126: 1763.5 | E126: 1121 | K126: =IFERROR(VLOOKUP(A126,'سهر 3'!$A$9:$AK$46,37,0),"0") -> 16 | M126: =IFERROR(VLOOKUP(A126,'شهر 4'!$A$9:$AK$43,37,0),"0") -> 496 | N126: 100 | O126: =IFERROR(VLOOKUP(A126,'شهر 5'!$A$9:$AK$47,37,0),"0") -> 771 | P126: 0 | Q126: =IFERROR(VLOOKUP(A126,شهر6!$A$9:$AK$62,37,0),"0") -> 374.25 | S126: =IFERROR(VLOOKUP(A126,'شهر 7'!$A$9:$AK$84,37,0),"0") -> 206.25 | U126: =IFERROR(VLOOKUP(A126,'شهر 8'!$A$9:$AK$78,37,0),"0") -> 0 | W126: =IFERROR(VLOOKUP(A126,'شهر 9'!$A$9:$AK$78,37,0),"0") -> 0 | Y126: =IFERROR(VLOOKUP(A126,'شهر 10'!$A$9:$AK$78,37,0),"0") -> 0 | AA126: =IFERROR(VLOOKUP(A126,'شهر 11'!$A$9:$AK$78,37,0),"0") -> 0 | AC126: =IFERROR(VLOOKUP(A126,'شهر 12'!$A$9:$AK$78,37,0),"0") -> 0 | AE126: 1763.5 | AG126: 0 | AH126: 0 | AI126: 0 | AJ126: 100 | AK126: 0 | AL126: 0 | AM126: 0 | AN126: 0 | AO126: 0 | AP126: 0
A127: 1122 | B127: =IF(C127="","",SUBTOTAL(3,$C$9:C127)) -> 119 | C127: =IFERROR(VLOOKUP($A127,'شهر 7'!$A$9:$C$84,3,0),"") -> الحاج مصطفي المزين | D127: 59 | E127: 1122 | K127: =IFERROR(VLOOKUP(A127,'سهر 3'!$A$9:$AK$46,37,0),"0") -> 0 | M127: =IFERROR(VLOOKUP(A127,'شهر 4'!$A$9:$AK$43,37,0),"0") -> 0 | O127: =IFERROR(VLOOKUP(A127,'شهر 5'!$A$9:$AK$47,37,0),"0") -> 0 | Q127: =IFERROR(VLOOKUP(A127,شهر6!$A$9:$AK$62,37,0),"0") -> 0 | S127: =IFERROR(VLOOKUP(A127,'شهر 7'!$A$9:$AK$84,37,0),"0") -> 59 | U127: =IFERROR(VLOOKUP(A127,'شهر 8'!$A$9:$AK$78,37,0),"0") -> 0 | W127: =IFERROR(VLOOKUP(A127,'شهر 9'!$A$9:$AK$78,37,0),"0") -> 0 | Y127: =IFERROR(VLOOKUP(A127,'شهر 10'!$A$9:$AK$78,37,0),"0") -> 0 | AA127: =IFERROR(VLOOKUP(A127,'شهر 11'!$A$9:$AK$78,37,0),"0") -> 0 | AC127: =IFERROR(VLOOKUP(A127,'شهر 12'!$A$9:$AK$78,37,0),"0") -> 0 | AE127: 59 | AG127: 0 | AH127: 0 | AI127: 0 | AJ127: 0 | AK127: 0 | AL127: 0 | AM127: 0 | AN127: 0 | AO127: 0 | AP127: 0
A128: 1123 | B128: =IF(C128="","",SUBTOTAL(3,$C$9:C128)) -> 120 | C128: =IFERROR(VLOOKUP(A128,'سهر 3'!$A$9:$D$46,3,0),"") -> احمد راضي ع الصالحين | D128: 133 | E128: 1123 | K128: =IFERROR(VLOOKUP(A128,'سهر 3'!$A$9:$AK$46,37,0),"0") -> 13 | M128: =IFERROR(VLOOKUP(A128,'شهر 4'!$A$9:$AK$43,37,0),"0") -> 0 | N128: 0 | O128: =IFERROR(VLOOKUP(A128,'شهر 5'!$A$9:$AK$47,37,0),"0") -> 0 | P128: 0 | Q128: =IFERROR(VLOOKUP(A128,شهر6!$A$9:$AK$62,37,0),"0") -> 120 | S128: =IFERROR(VLOOKUP(A128,'شهر 7'!$A$9:$AK$84,37,0),"0") -> 0 | U128: =IFERROR(VLOOKUP(A128,'شهر 8'!$A$9:$AK$78,37,0),"0") -> 0 | W128: =IFERROR(VLOOKUP(A128,'شهر 9'!$A$9:$AK$78,37,0),"0") -> 0 | Y128: =IFERROR(VLOOKUP(A128,'شهر 10'!$A$9:$AK$78,37,0),"0") -> 0 | AA128: =IFERROR(VLOOKUP(A128,'شهر 11'!$A$9:$AK$78,37,0),"0") -> 0 | AC128: =IFERROR(VLOOKUP(A128,'شهر 12'!$A$9:$AK$78,37,0),"0") -> 0 | AE128: 133 | AG128: 0 | AH128: 0 | AI128: 0 | AJ128: 0 | AK128: 0 | AL128: 0 | AM128: 0 | AN128: 0 | AO128: 0 | AP128: 0
A129: 1124 | B129: =IF(C129="","",SUBTOTAL(3,$C$9:C129)) -> 121 | C129: =IFERROR(VLOOKUP($A129,'شهر 8'!$A$9:$C$78,3,0),"") -> رجب اسماعيل | D129: 196.5 | E129: 1124 | M129: =IFERROR(VLOOKUP(A129,'شهر 4'!$A$9:$AK$43,37,0),"0") -> 0 | O129: =IFERROR(VLOOKUP(A129,'شهر 5'!$A$9:$AK$47,37,0),"0") -> 0 | Q129: =IFERROR(VLOOKUP(A129,شهر6!$A$9:$AK$62,37,0),"0") -> 0 | S129: =IFERROR(VLOOKUP(A129,'شهر 7'!$A$9:$AK$84,37,0),"0") -> 0 | U129: =IFERROR(VLOOKUP(A129,'شهر 8'!$A$9:$AK$78,37,0),"0") -> 196.5 | W129: =IFERROR(VLOOKUP(A129,'شهر 9'!$A$9:$AK$78,37,0),"0") -> 0 | Y129: =IFERROR(VLOOKUP(A129,'شهر 10'!$A$9:$AK$78,37,0),"0") -> 0 | AA129: =IFERROR(VLOOKUP(A129,'شهر 11'!$A$9:$AK$78,37,0),"0") -> 0 | AC129: =IFERROR(VLOOKUP(A129,'شهر 12'!$A$9:$AK$78,37,0),"0") -> 0 | AE129: 196.5 | AG129: 0 | AH129: 0 | AI129: 0 | AJ129: 0 | AK129: 0 | AL129: 0 | AM129: 0 | AN129: 0 | AO129: 0 | AP129: 0
A130: 1125 | B130: =IF(C130="","",SUBTOTAL(3,$C$9:C130)) -> 122 | C130: =IFERROR(VLOOKUP($A130,'شهر 7'!$A$9:$C$84,3,0),"") -> سارة عادل | D130: 18 | E130: 1125 | K130: =IFERROR(VLOOKUP(A130,'سهر 3'!$A$9:$AK$46,37,0),"0") -> 0 | M130: =IFERROR(VLOOKUP(A130,'شهر 4'!$A$9:$AK$43,37,0),"0") -> 0 | N130: 0 | O130: =IFERROR(VLOOKUP(A130,'شهر 5'!$A$9:$AK$47,37,0),"0") -> 0 | P130: 0 | Q130: =IFERROR(VLOOKUP(A130,شهر6!$A$9:$AK$62,37,0),"0") -> 0 | S130: =IFERROR(VLOOKUP(A130,'شهر 7'!$A$9:$AK$84,37,0),"0") -> 18 | U130: =IFERROR(VLOOKUP(A130,'شهر 8'!$A$9:$AK$78,37,0),"0") -> 0 | W130: =IFERROR(VLOOKUP(A130,'شهر 9'!$A$9:$AK$78,37,0),"0") -> 0 | Y130: =IFERROR(VLOOKUP(A130,'شهر 10'!$A$9:$AK$78,37,0),"0") -> 0 | AA130: =IFERROR(VLOOKUP(A130,'شهر 11'!$A$9:$AK$78,37,0),"0") -> 0 | AC130: =IFERROR(VLOOKUP(A130,'شهر 12'!$A$9:$AK$78,37,0),"0") -> 0 | AE130: 18 | AG130: 0 | AH130: 0 | AI130: 0 | AJ130: 0 | AK130: 0 | AL130: 0 | AM130: 0 | AN130: 0 | AO130: 0 | AP130: 0
A131: 1126 | B131: =IF(C131="","",SUBTOTAL(3,$C$9:C131)) -> 123 | C131: =IFERROR(VLOOKUP($A131,'شهر 4'!$A$10:$C$43,3,0),"") -> مرات الشيخ حسان | D131: 47 | E131: 1126 | M131: =IFERROR(VLOOKUP(A131,'شهر 4'!$A$9:$AK$43,37,0),"0") -> 58.5 | N131: 0 | O131: =IFERROR(VLOOKUP(A131,'شهر 5'!$A$9:$AK$47,37,0),"0") -> 58.5 | P131: 0 | Q131: =IFERROR(VLOOKUP(A131,شهر6!$A$9:$AK$62,37,0),"0") -> 35 | S131: =IFERROR(VLOOKUP(A131,'شهر 7'!$A$9:$AK$84,37,0),"0") -> 5 | T131: =60+50 -> 110 | U131: =IFERROR(VLOOKUP(A131,'شهر 8'!$A$9:$AK$78,37,0),"0") -> 0 | W131: =IFERROR(VLOOKUP(A131,'شهر 9'!$A$9:$AK$78,37,0),"0") -> 0 | Y131: =IFERROR(VLOOKUP(A131,'شهر 10'!$A$9:$AK$78,37,0),"0") -> 0 | AA131: =IFERROR(VLOOKUP(A131,'شهر 11'!$A$9:$AK$78,37,0),"0") -> 0 | AC131: =IFERROR(VLOOKUP(A131,'شهر 12'!$A$9:$AK$78,37,0),"0") -> 0 | AE131: 47 | AG131: 0 | AH131: 0 | AI131: 0 | AJ131: 0 | AK131: 0 | AL131: 0 | AM131: 5 | AN131: 0 | AO131: 0 | AP131: 0
A132: 1127 | B132: =IF(C132="","",SUBTOTAL(3,$C$9:C132)) -> 124 | C132: =IFERROR(VLOOKUP($A132,'شهر 4'!$A$10:$C$43,3,0),"") -> سعيد عدلي | D132: 316 | E132: 1127 | M132: =IFERROR(VLOOKUP(A132,'شهر 4'!$A$9:$AK$43,37,0),"0") -> 78.5 | N132: 0 | O132: =IFERROR(VLOOKUP(A132,'شهر 5'!$A$9:$AK$47,37,0),"0") -> 40 | P132: 0 | Q132: =IFERROR(VLOOKUP(A132,شهر6!$A$9:$AK$62,37,0),"0") -> 55.75 | R132: =16+11 -> 27 | S132: =IFERROR(VLOOKUP(A132,'شهر 7'!$A$9:$AK$84,37,0),"0") -> 181.75 | T132: 13 | U132: =IFERROR(VLOOKUP(A132,'شهر 8'!$A$9:$AK$78,37,0),"0") -> 0 | W132: =IFERROR(VLOOKUP(A132,'شهر 9'!$A$9:$AK$78,37,0),"0") -> 0 | Y132: =IFERROR(VLOOKUP(A132,'شهر 10'!$A$9:$AK$78,37,0),"0") -> 0 | AA132: =IFERROR(VLOOKUP(A132,'شهر 11'!$A$9:$AK$78,37,0),"0") -> 0 | AC132: =IFERROR(VLOOKUP(A132,'شهر 12'!$A$9:$AK$78,37,0),"0") -> 0 | AE132: 316 | AG132: 0 | AH132: 0 | AI132: 0 | AJ132: 0 | AK132: 0 | AL132: 27 | AM132: 13 | AN132: 0 | AO132: 0 | AP132: 0
A133: 1128 | B133: =IF(C133="","",SUBTOTAL(3,$C$9:C133)) -> 125 | C133: =IFERROR(VLOOKUP($A133,'شهر 4'!$A$10:$C$43,3,0),"") -> ربيع محمد السيد | D133: 525 | M133: =IFERROR(VLOOKUP(A133,'شهر 4'!$A$9:$AK$43,37,0),"0") -> 147.25 | N133: 0 | O133: =IFERROR(VLOOKUP(A133,'شهر 5'!$A$9:$AK$47,37,0),"0") -> 447.25 | P133: 0 | Q133: =IFERROR(VLOOKUP(A133,شهر6!$A$9:$AK$62,37,0),"0") -> 348 | S133: =IFERROR(VLOOKUP(A133,'شهر 7'!$A$9:$AK$84,37,0),"0") -> 278.5 | T133: 901 | U133: =IFERROR(VLOOKUP(A133,'شهر 8'!$A$9:$AK$78,37,0),"0") -> 205 | W133: =IFERROR(VLOOKUP(A133,'شهر 9'!$A$9:$AK$78,37,0),"0") -> 0 | Y133: =IFERROR(VLOOKUP(A133,'شهر 10'!$A$9:$AK$78,37,0),"0") -> 0 | AA133: =IFERROR(VLOOKUP(A133,'شهر 11'!$A$9:$AK$78,37,0),"0") -> 0 | AC133: =IFERROR(VLOOKUP(A133,'شهر 12'!$A$9:$AK$78,37,0),"0") -> 0 | AE133: 525 | AG133: 0 | AH133: 0 | AI133: 0 | AJ133: 0 | AK133: 0 | AL133: 0 | AM133: 278.5 | AN133: 0 | AO133: 0 | AP133: 0
A134: 1129 | B134: =IF(C134="","",SUBTOTAL(3,$C$9:C134)) -> 126 | C134: =IFERROR(VLOOKUP($A134,'شهر 7'!$A$9:$C$84,3,0),"") -> هاله صلاح ابو الليل | D134: 81 | M134: =IFERROR(VLOOKUP(A134,'شهر 4'!$A$9:$AK$43,37,0),"0") -> 0 | O134: =IFERROR(VLOOKUP(A134,'شهر 5'!$A$9:$AK$47,37,0),"0") -> 0 | P134: 0 | Q134: =IFERROR(VLOOKUP(A134,شهر6!$A$9:$AK$62,37,0),"0") -> 0 | S134: =IFERROR(VLOOKUP(A134,'شهر 7'!$A$9:$AK$84,37,0),"0") -> 81 | U134: =IFERROR(VLOOKUP(A134,'شهر 8'!$A$9:$AK$78,37,0),"0") -> 0 | W134: =IFERROR(VLOOKUP(A134,'شهر 9'!$A$9:$AK$78,37,0),"0") -> 0 | Y134: =IFERROR(VLOOKUP(A134,'شهر 10'!$A$9:$AK$78,37,0),"0") -> 0 | AA134: =IFERROR(VLOOKUP(A134,'شهر 11'!$A$9:$AK$78,37,0),"0") -> 0 | AC134: =IFERROR(VLOOKUP(A134,'شهر 12'!$A$9:$AK$78,37,0),"0") -> 0 | AE134: 81 | AG134: 0 | AH134: 0 | AI134: 0 | AJ134: 0 | AK134: 0 | AL134: 0 | AM134: 0 | AN134: 0 | AO134: 0 | AP134: 0
A135: 1130 | B135: =IF(C135="","",SUBTOTAL(3,$C$9:C135)) -> 127 | C135: =IFERROR(VLOOKUP($A135,'شهر 4'!$A$10:$C$43,3,0),"") -> بيت الحاج ع الظاهر | D135: 23 | M135: =IFERROR(VLOOKUP(A135,'شهر 4'!$A$9:$AK$43,37,0),"0") -> 390 | N135: 0 | O135: =IFERROR(VLOOKUP(A135,'شهر 5'!$A$9:$AK$47,37,0),"0") -> 579 | P135: =547+77 -> 624 | Q135: =IFERROR(VLOOKUP(A135,شهر6!$A$9:$AK$62,37,0),"0") -> 572.5 | R135: =345+200+12.8 -> 557.8 | S135: =IFERROR(VLOOKUP(A135,'شهر 7'!$A$9:$AK$84,37,0),"0") -> 283 | T135: =359.7+198+85 -> 642.7 | U135: =IFERROR(VLOOKUP(A135,'شهر 8'!$A$9:$AK$78,37,0),"0") -> 23 | W135: =IFERROR(VLOOKUP(A135,'شهر 9'!$A$9:$AK$78,37,0),"0") -> 0 | Y135: =IFERROR(VLOOKUP(A135,'شهر 10'!$A$9:$AK$78,37,0),"0") -> 0 | AA135: =IFERROR(VLOOKUP(A135,'شهر 11'!$A$9:$AK$78,37,0),"0") -> 0 | AC135: =IFERROR(VLOOKUP(A135,'شهر 12'!$A$9:$AK$78,37,0),"0") -> 0 | AE135: 23 | AG135: 0 | AH135: 0 | AI135: 0 | AJ135: 0 | AK135: 579 | AL135: 557.8 | AM135: 283 | AN135: 0 | AO135: 0 | AP135: 0
A136: 1131 | B136: =IF(C136="","",SUBTOTAL(3,$C$9:C136)) -> 128 | C136: =IFERROR(VLOOKUP($A136,شهر6!$A$9:$C$62,3,0),"") -> عماد محمد السيد | D136: 26 | E136: 1131 | O136: =IFERROR(VLOOKUP(A136,'شهر 5'!$A$9:$AK$47,37,0),"0") -> 0 | P136: 0 | Q136: =IFERROR(VLOOKUP(A136,شهر6!$A$9:$AK$62,37,0),"0") -> 50.75 | S136: =IFERROR(VLOOKUP(A136,'شهر 7'!$A$9:$AK$84,37,0),"0") -> 166.5 | T136: 191.25 | U136: =IFERROR(VLOOKUP(A136,'شهر 8'!$A$9:$AK$78,37,0),"0") -> 0 | W136: =IFERROR(VLOOKUP(A136,'شهر 9'!$A$9:$AK$78,37,0),"0") -> 0 | Y136: =IFERROR(VLOOKUP(A136,'شهر 10'!$A$9:$AK$78,37,0),"0") -> 0 | AA136: =IFERROR(VLOOKUP(A136,'شهر 11'!$A$9:$AK$78,37,0),"0") -> 0 | AC136: =IFERROR(VLOOKUP(A136,'شهر 12'!$A$9:$AK$78,37,0),"0") -> 0 | AE136: 26 | AG136: 0 | AH136: 0 | AI136: 0 | AJ136: 0 | AK136: 0 | AL136: 0 | AM136: 166.5 | AN136: 0 | AO136: 0 | AP136: 0
A137: 1132 | B137: =IF(C137="","",SUBTOTAL(3,$C$9:C137)) -> 129 | C137: =IFERROR(VLOOKUP($A137,شهر6!$A$9:$C$62,3,0),"") -> بنت عبد الناصر ابوبكر | D137: =AE137 -> 49 | E137: 1132 | O137: =IFERROR(VLOOKUP(A137,'شهر 5'!$A$9:$AK$47,37,0),"0") -> 0 | P137: 0 | Q137: =IFERROR(VLOOKUP(A137,شهر6!$A$9:$AK$62,37,0),"0") -> 49 | S137: =IFERROR(VLOOKUP(A137,'شهر 7'!$A$9:$AK$84,37,0),"0") -> 0 | U137: =IFERROR(VLOOKUP(A137,'شهر 8'!$A$9:$AK$78,37,0),"0") -> 0 | W137: =IFERROR(VLOOKUP(A137,'شهر 9'!$A$9:$AK$78,37,0),"0") -> 0 | Y137: =IFERROR(VLOOKUP(A137,'شهر 10'!$A$9:$AK$78,37,0),"0") -> 0 | AA137: =IFERROR(VLOOKUP(A137,'شهر 11'!$A$9:$AK$78,37,0),"0") -> 0 | AC137: =IFERROR(VLOOKUP(A137,'شهر 12'!$A$9:$AK$78,37,0),"0") -> 0 | AE137: 49 | AG137: 0 | AH137: 0 | AI137: 0 | AJ137: 0 | AK137: 0 | AL137: 0 | AM137: 0 | AN137: 0 | AO137: 0 | AP137: 0
A138: 1133 | B138: =IF(C138="","",SUBTOTAL(3,$C$9:C138)) -> 130 | C138: =IFERROR(VLOOKUP($A138,شهر6!$A$9:$C$62,3,0),"") -> ام محمد صبري | D138: 25 | E138: 1133 | O138: =IFERROR(VLOOKUP(A138,'شهر 5'!$A$9:$AK$47,37,0),"0") -> 0 | P138: 0 | Q138: =IFERROR(VLOOKUP(A138,شهر6!$A$9:$AK$62,37,0),"0") -> 75 | R138: 40 | S138: =IFERROR(VLOOKUP(A138,'شهر 7'!$A$9:$AK$84,37,0),"0") -> 0 | T138: 10 | U138: =IFERROR(VLOOKUP(A138,'شهر 8'!$A$9:$AK$78,37,0),"0") -> 0 | W138: =IFERROR(VLOOKUP(A138,'شهر 9'!$A$9:$AK$78,37,0),"0") -> 0 | Y138: =IFERROR(VLOOKUP(A138,'شهر 10'!$A$9:$AK$78,37,0),"0") -> 0 | AA138: =IFERROR(VLOOKUP(A138,'شهر 11'!$A$9:$AK$78,37,0),"0") -> 0 | AC138: =IFERROR(VLOOKUP(A138,'شهر 12'!$A$9:$AK$78,37,0),"0") -> 0 | AE138: 25 | AG138: =IF(G138="0","0",IF(H138="0","0",IF(G138>H138,H138,IF(G138=H138,G138,IF(G138<H138,G138,))))) -> 0 | AH138: =IF(I138="0","0",IF(J138="0","0",IF(I138>J138,J138,IF(I138=J138,"0",IF(I138<J138,I138,))))) -> 0 | AI138: =IF(K138="0","0",IF(L138="0","0",IF(K138>L138,L138,IF(K138=L138,K138,IF(K138<L138,K138,))))) -> 0 | AJ138: =IF(M138="0","0",IF(N138="0","0",IF(M138>N138,N138,IF(M138=N138,M138,IF(M138<N138,M138,))))) -> 0 | AK138: =IF($O138="0","0",IF($P138="0","0",IF($O138>$P138,$P138,IF($O138=$P138,$O138,IF($O138<$P138,$O138,))))) -> 0 | AL138: =IF($Q138="0","0",IF($R138="0","0",IF($Q138>$R138,$R138,IF($Q138=$R138,$Q138,IF($Q138<$R138,$Q138,))))) -> 40 | AM138: =IF(S138="0","0",IF(T138="0","0",IF(S138>T138,T138,IF(S138=T138,T138,IF(S138<T138,S138,))))) -> 0 | AN138: =IF(U138="0","0",IF(V138="0","0",IF(U138>V138,V138,IF(U138=V138,U138,IF(U138<V138,U138,))))) -> 0 | AO138: =IF(W138="0","0",IF(X138="0","0",IF(W138>X138,X138,IF(W138=X138,W138,IF(W138<X138,W138,))))) -> 0 | AP138: =IF(Y138="0","0",IF(Z138="0","0",IF(Y138>Z138,Z138,IF(Y138=Z138,Y138,IF(Y138<Z138,Y138,))))) -> 0
A139: 1134 | B139: =IF(C139="","",SUBTOTAL(3,$C$9:C139)) -> 131 | C139: =IFERROR(VLOOKUP($A139,شهر6!$A$9:$C$62,3,0),"") -> ابراهيم الحاج عيسي | D139: 45.5 | E139: =A139 -> 1134 | O139: =IFERROR(VLOOKUP(A139,'شهر 5'!$A$9:$AK$47,37,0),"0") -> 0 | P139: 0 | Q139: =IFERROR(VLOOKUP(A139,شهر6!$A$9:$AK$62,37,0),"0") -> 310.25 | R139: 122.75 | S139: =IFERROR(VLOOKUP(A139,'شهر 7'!$A$9:$AK$84,37,0),"0") -> 36 | T139: 178 | U139: =IFERROR(VLOOKUP(A139,'شهر 8'!$A$9:$AK$78,37,0),"0") -> 0 | W139: =IFERROR(VLOOKUP(A139,'شهر 9'!$A$9:$AK$78,37,0),"0") -> 0 | Y139: =IFERROR(VLOOKUP(A139,'شهر 10'!$A$9:$AK$78,37,0),"0") -> 0 | AA139: =IFERROR(VLOOKUP(A139,'شهر 11'!$A$9:$AK$78,37,0),"0") -> 0 | AC139: =IFERROR(VLOOKUP(A139,'شهر 12'!$A$9:$AK$78,37,0),"0") -> 0 | AE139: 45.5 | AG139: 0 | AH139: 0 | AI139: 0 | AJ139: 0 | AK139: 0 | AL139: 122.75 | AM139: 36 | AN139: 0 | AO139: 0 | AP139: 0
A140: 1135 | B140: =IF(C140="","",SUBTOTAL(3,$C$9:C140)) -> 132 | C140: =IFERROR(VLOOKUP($A140,'شهر 5'!$A$9:$C$47,3,0),"") -> مرات نجم | D140: 305.5 | O140: =IFERROR(VLOOKUP(A140,'شهر 5'!$A$9:$AK$47,37,0),"0") -> 305.5 | P140: 300 | Q140: =IFERROR(VLOOKUP(A140,شهر6!$A$9:$AK$62,37,0),"0") -> 300 | S140: =IFERROR(VLOOKUP(A140,'شهر 7'!$A$9:$AK$84,37,0),"0") -> 0 | U140: =IFERROR(VLOOKUP(A140,'شهر 8'!$A$9:$AK$78,37,0),"0") -> 0 | W140: =IFERROR(VLOOKUP(A140,'شهر 9'!$A$9:$AK$78,37,0),"0") -> 0 | Y140: =IFERROR(VLOOKUP(A140,'شهر 10'!$A$9:$AK$78,37,0),"0") -> 0 | AA140: =IFERROR(VLOOKUP(A140,'شهر 11'!$A$9:$AK$78,37,0),"0") -> 0 | AC140: =IFERROR(VLOOKUP(A140,'شهر 12'!$A$9:$AK$78,37,0),"0") -> 0 | AE140: 305.5 | AG140: 0 | AH140: 0 | AI140: 0 | AJ140: 0 | AK140: 300 | AL140: 0 | AM140: 0 | AN140: 0 | AO140: 0 | AP140: 0
A141: 1136 | B141: =IF(C141="","",SUBTOTAL(3,$C$9:C141)) -> 133 | C141: =IFERROR(VLOOKUP($A141,'شهر 7'!$A$9:$C$84,3,0),"") -> احمد اسماعيل الجزار | D141: 12 | S141: =IFERROR(VLOOKUP(A141,'شهر 7'!$A$9:$AK$84,37,0),"0") -> 12 | U141: =IFERROR(VLOOKUP(A141,'شهر 8'!$A$9:$AK$78,37,0),"0") -> 0 | W141: =IFERROR(VLOOKUP(A141,'شهر 9'!$A$9:$AK$78,37,0),"0") -> 0 | Y141: =IFERROR(VLOOKUP(A141,'شهر 10'!$A$9:$AK$78,37,0),"0") -> 0 | AA141: =IFERROR(VLOOKUP(A141,'شهر 11'!$A$9:$AK$78,37,0),"0") -> 0 | AC141: =IFERROR(VLOOKUP(A141,'شهر 12'!$A$9:$AK$78,37,0),"0") -> 0 | AE141: 12 | AG141: 0 | AH141: 0 | AI141: 0 | AJ141: 0 | AK141: 0 | AL141: 0 | AM141: 0 | AN141: 0 | AO141: 0 | AP141: 0
A142: 1137 | B142: =IF(C142="","",SUBTOTAL(3,$C$9:C142)) -> 134 | C142: =IFERROR(VLOOKUP($A142,'شهر 7'!$A$9:$C$84,3,0),"") -> محمود عيسي حسن | D142: 267 | S142: =IFERROR(VLOOKUP(A142,'شهر 7'!$A$9:$AK$84,37,0),"0") -> 267 | U142: =IFERROR(VLOOKUP(A142,'شهر 8'!$A$9:$AK$78,37,0),"0") -> 0 | W142: =IFERROR(VLOOKUP(A142,'شهر 9'!$A$9:$AK$78,37,0),"0") -> 0 | Y142: =IFERROR(VLOOKUP(A142,'شهر 10'!$A$9:$AK$78,37,0),"0") -> 0 | AA142: =IFERROR(VLOOKUP(A142,'شهر 11'!$A$9:$AK$78,37,0),"0") -> 0 | AC142: =IFERROR(VLOOKUP(A142,'شهر 12'!$A$9:$AK$78,37,0),"0") -> 0 | AE142: 267 | AG142: 0 | AH142: 0 | AI142: 0 | AJ142: 0 | AK142: 0 | AL142: 0 | AM142: 0 | AN142: 0 | AO142: 0 | AP142: 0
A143: 1138 | B143: =IF(C143="","",SUBTOTAL(3,$C$9:C143)) -> 135 | C143: =IFERROR(VLOOKUP($A143,'شهر 7'!$A$9:$C$84,3,0),"") -> احمد الكتات | D143: 68 | S143: =IFERROR(VLOOKUP(A143,'شهر 7'!$A$9:$AK$84,37,0),"0") -> 68 | U143: =IFERROR(VLOOKUP(A143,'شهر 8'!$A$9:$AK$78,37,0),"0") -> 0 | W143: =IFERROR(VLOOKUP(A143,'شهر 9'!$A$9:$AK$78,37,0),"0") -> 0 | Y143: =IFERROR(VLOOKUP(A143,'شهر 10'!$A$9:$AK$78,37,0),"0") -> 0 | AA143: =IFERROR(VLOOKUP(A143,'شهر 11'!$A$9:$AK$78,37,0),"0") -> 0 | AC143: =IFERROR(VLOOKUP(A143,'شهر 12'!$A$9:$AK$78,37,0),"0") -> 0 | AE143: 68 | AG143: 0 | AH143: 0 | AI143: 0 | AJ143: 0 | AK143: 0 | AL143: 0 | AM143: 0 | AN143: 0 | AO143: 0 | AP143: 0
A144: 1139 | B144: =IF(C144="","",SUBTOTAL(3,$C$9:C144)) -> 136 | C144: =IFERROR(VLOOKUP($A144,'شهر 7'!$A$9:$C$84,3,0),"") -> د/ محمد احمد ع الجواد | D144: 440 | S144: =IFERROR(VLOOKUP(A144,'شهر 7'!$A$9:$AK$84,37,0),"0") -> 440 | U144: =IFERROR(VLOOKUP(A144,'شهر 8'!$A$9:$AK$78,37,0),"0") -> 0 | W144: =IFERROR(VLOOKUP(A144,'شهر 9'!$A$9:$AK$78,37,0),"0") -> 0 | Y144: =IFERROR(VLOOKUP(A144,'شهر 10'!$A$9:$AK$78,37,0),"0") -> 0 | AA144: =IFERROR(VLOOKUP(A144,'شهر 11'!$A$9:$AK$78,37,0),"0") -> 0 | AC144: =IFERROR(VLOOKUP(A144,'شهر 12'!$A$9:$AK$78,37,0),"0") -> 0 | AE144: 440 | AG144: 0 | AH144: 0 | AI144: 0 | AJ144: 0 | AK144: 0 | AL144: 0 | AM144: 0 | AN144: 0 | AO144: 0 | AP144: 0
A145: 1140 | B145: =IF(C145="","",SUBTOTAL(3,$C$9:C145)) -> 137 | C145: =IFERROR(VLOOKUP($A145,'شهر 7'!$A$9:$C$84,3,0),"") -> عادل عبد الرحمن | D145: 212.5 | S145: =IFERROR(VLOOKUP(A145,'شهر 7'!$A$9:$AK$84,37,0),"0") -> 205 | U145: =IFERROR(VLOOKUP(A145,'شهر 8'!$A$9:$AK$78,37,0),"0") -> 7.5 | W145: =IFERROR(VLOOKUP(A145,'شهر 9'!$A$9:$AK$78,37,0),"0") -> 0 | Y145: =IFERROR(VLOOKUP(A145,'شهر 10'!$A$9:$AK$78,37,0),"0") -> 0 | AA145: =IFERROR(VLOOKUP(A145,'شهر 11'!$A$9:$AK$78,37,0),"0") -> 0 | AC145: =IFERROR(VLOOKUP(A145,'شهر 12'!$A$9:$AK$78,37,0),"0") -> 0 | AE145: 212.5 | AG145: 0 | AH145: 0 | AI145: 0 | AJ145: 0 | AK145: 0 | AL145: 0 | AM145: 0 | AN145: 0 | AO145: 0 | AP145: 0
A146: 1141 | B146: =IF(C146="","",SUBTOTAL(3,$C$9:C146)) -> 138 | C146: =IFERROR(VLOOKUP($A146,'شهر 7'!$A$9:$C$84,3,0),"") -> عيد عز | D146: 14 | S146: =IFERROR(VLOOKUP(A146,'شهر 7'!$A$9:$AK$84,37,0),"0") -> 14 | U146: =IFERROR(VLOOKUP(A146,'شهر 8'!$A$9:$AK$78,37,0),"0") -> 0 | W146: =IFERROR(VLOOKUP(A146,'شهر 9'!$A$9:$AK$78,37,0),"0") -> 0 | Y146: =IFERROR(VLOOKUP(A146,'شهر 10'!$A$9:$AK$78,37,0),"0") -> 0 | AA146: =IFERROR(VLOOKUP(A146,'شهر 11'!$A$9:$AK$78,37,0),"0") -> 0 | AC146: =IFERROR(VLOOKUP(A146,'شهر 12'!$A$9:$AK$78,37,0),"0") -> 0 | AE146: 14 | AG146: 0 | AH146: 0 | AI146: 0 | AJ146: 0 | AK146: 0 | AL146: 0 | AM146: 0 | AN146: 0 | AO146: 0 | AP146: 0
A147: 1142 | B147: =IF(C147="","",SUBTOTAL(3,$C$9:C147)) -> 139 | C147: =IFERROR(VLOOKUP($A147,'شهر 7'!$A$9:$C$84,3,0),"") -> الحاجة شربات | D147: 23 | S147: =IFERROR(VLOOKUP(A147,'شهر 7'!$A$9:$AK$84,37,0),"0") -> 23 | U147: =IFERROR(VLOOKUP(A147,'شهر 8'!$A$9:$AK$78,37,0),"0") -> 0 | W147: =IFERROR(VLOOKUP(A147,'شهر 9'!$A$9:$AK$78,37,0),"0") -> 0 | Y147: =IFERROR(VLOOKUP(A147,'شهر 10'!$A$9:$AK$78,37,0),"0") -> 0 | AA147: =IFERROR(VLOOKUP(A147,'شهر 11'!$A$9:$AK$78,37,0),"0") -> 0 | AC147: =IFERROR(VLOOKUP(A147,'شهر 12'!$A$9:$AK$78,37,0),"0") -> 0 | AE147: 23 | AG147: 0 | AH147: 0 | AI147: 0 | AJ147: 0 | AK147: 0 | AL147: 0 | AM147: 0 | AN147: 0 | AO147: 0 | AP147: 0
A148: 1143 | B148: =IF(C148="","",SUBTOTAL(3,$C$9:C148)) -> 140 | C148: =IFERROR(VLOOKUP($A148,'شهر 7'!$A$9:$C$84,3,0),"") -> مرات الشيخ عمر حسين | D148: 15 | S148: =IFERROR(VLOOKUP(A148,'شهر 7'!$A$9:$AK$84,37,0),"0") -> 15 | U148: =IFERROR(VLOOKUP(A148,'شهر 8'!$A$9:$AK$78,37,0),"0") -> 0 | W148: =IFERROR(VLOOKUP(A148,'شهر 9'!$A$9:$AK$78,37,0),"0") -> 0 | Y148: =IFERROR(VLOOKUP(A148,'شهر 10'!$A$9:$AK$78,37,0),"0") -> 0 | AA148: =IFERROR(VLOOKUP(A148,'شهر 11'!$A$9:$AK$78,37,0),"0") -> 0 | AC148: =IFERROR(VLOOKUP(A148,'شهر 12'!$A$9:$AK$78,37,0),"0") -> 0 | AE148: 15 | AG148: 0 | AH148: 0 | AI148: 0 | AJ148: 0 | AK148: 0 | AL148: 0 | AM148: 0 | AN148: 0 | AO148: 0 | AP148: 0
A149: 1144 | B149: =IF(C149="","",SUBTOTAL(3,$C$9:C149)) -> 141 | C149: =IFERROR(VLOOKUP($A149,'شهر 7'!$A$9:$C$84,3,0),"") -> ام ابراهيم | D149: 39 | S149: =IFERROR(VLOOKUP(A149,'شهر 7'!$A$9:$AK$84,37,0),"0") -> 39 | T149: 0 | U149: =IFERROR(VLOOKUP(A149,'شهر 8'!$A$9:$AK$78,37,0),"0") -> 0 | W149: =IFERROR(VLOOKUP(A149,'شهر 9'!$A$9:$AK$78,37,0),"0") -> 0 | Y149: =IFERROR(VLOOKUP(A149,'شهر 10'!$A$9:$AK$78,37,0),"0") -> 0 | AA149: =IFERROR(VLOOKUP(A149,'شهر 11'!$A$9:$AK$78,37,0),"0") -> 0 | AC149: =IFERROR(VLOOKUP(A149,'شهر 12'!$A$9:$AK$78,37,0),"0") -> 0 | AE149: 39 | AG149: 0 | AH149: 0 | AI149: 0 | AJ149: 0 | AK149: 0 | AL149: 0 | AM149: 0 | AN149: 0 | AO149: 0 | AP149: 0
A150: 1145 | B150: =IF(C150="","",SUBTOTAL(3,$C$9:C150)) -> 142 | C150: =IFERROR(VLOOKUP($A150,'شهر 7'!$A$9:$C$84,3,0),"") -> مرات الحاج جابر | D150: 20 | S150: =IFERROR(VLOOKUP(A150,'شهر 7'!$A$9:$AK$84,37,0),"0") -> 20 | U150: =IFERROR(VLOOKUP(A150,'شهر 8'!$A$9:$AK$78,37,0),"0") -> 0 | W150: =IFERROR(VLOOKUP(A150,'شهر 9'!$A$9:$AK$78,37,0),"0") -> 0 | Y150: =IFERROR(VLOOKUP(A150,'شهر 10'!$A$9:$AK$78,37,0),"0") -> 0 | AA150: =IFERROR(VLOOKUP(A150,'شهر 11'!$A$9:$AK$78,37,0),"0") -> 0 | AC150: =IFERROR(VLOOKUP(A150,'شهر 12'!$A$9:$AK$78,37,0),"0") -> 0 | AE150: 20 | AG150: 0 | AH150: 0 | AI150: 0 | AJ150: 0 | AK150: 0 | AL150: 0 | AM150: 0 | AN150: 0 | AO150: 0 | AP150: 0
A151: 1146 | B151: =IF(C151="","",SUBTOTAL(3,$C$9:C151)) -> 143 | C151: =IFERROR(VLOOKUP($A151,'شهر 7'!$A$9:$C$84,3,0),"") -> ابوامير | D151: 198 | S151: =IFERROR(VLOOKUP(A151,'شهر 7'!$A$9:$AK$84,37,0),"0") -> 198 | U151: =IFERROR(VLOOKUP(A151,'شهر 8'!$A$9:$AK$78,37,0),"0") -> 0 | W151: =IFERROR(VLOOKUP(A151,'شهر 9'!$A$9:$AK$78,37,0),"0") -> 0 | Y151: =IFERROR(VLOOKUP(A151,'شهر 10'!$A$9:$AK$78,37,0),"0") -> 0 | AA151: =IFERROR(VLOOKUP(A151,'شهر 11'!$A$9:$AK$78,37,0),"0") -> 0 | AC151: =IFERROR(VLOOKUP(A151,'شهر 12'!$A$9:$AK$78,37,0),"0") -> 0 | AE151: 198 | AG151: 0 | AH151: 0 | AI151: 0 | AJ151: 0 | AK151: 0 | AL151: 0 | AM151: 0 | AN151: 0 | AO151: 0 | AP151: 0
A152: 1147 | B152: =IF(C152="","",SUBTOTAL(3,$C$9:C152)) ->  | C152: =IFERROR(VLOOKUP($A152,'شهر 8'!$A$9:$C$78,3,0),"") ->  | D152: 0 | U152: =IFERROR(VLOOKUP(A152,'شهر 8'!$A$9:$AK$78,37,0),"0") -> 0 | W152: =IFERROR(VLOOKUP(A152,'شهر 9'!$A$9:$AK$78,37,0),"0") -> 0 | Y152: =IFERROR(VLOOKUP(A152,'شهر 10'!$A$9:$AK$78,37,0),"0") -> 0 | AA152: =IFERROR(VLOOKUP(A152,'شهر 11'!$A$9:$AK$78,37,0),"0") -> 0 | AC152: =IFERROR(VLOOKUP(A152,'شهر 12'!$A$9:$AK$78,37,0),"0") -> 0 | AE152: 0 | AG152: 0 | AH152: 0 | AI152: 0 | AJ152: 0 | AK152: 0 | AL152: 0 | AM152: 0 | AN152: 0 | AO152: 0 | AP152: 0
A153: 1148 | B153: =IF(C153="","",SUBTOTAL(3,$C$9:C153)) ->  | C153: =IFERROR(VLOOKUP($A153,'شهر 8'!$A$9:$C$78,3,0),"") ->  | D153: 0 | U153: =IFERROR(VLOOKUP(A153,'شهر 8'!$A$9:$AK$78,37,0),"0") -> 0 | W153: =IFERROR(VLOOKUP(A153,'شهر 9'!$A$9:$AK$78,37,0),"0") -> 0 | Y153: =IFERROR(VLOOKUP(A153,'شهر 10'!$A$9:$AK$78,37,0),"0") -> 0 | AA153: =IFERROR(VLOOKUP(A153,'شهر 11'!$A$9:$AK$78,37,0),"0") -> 0 | AC153: =IFERROR(VLOOKUP(A153,'شهر 12'!$A$9:$AK$78,37,0),"0") -> 0 | AE153: 0 | AG153: 0 | AH153: 0 | AI153: 0 | AJ153: 0 | AK153: 0 | AL153: 0 | AM153: 0 | AN153: 0 | AO153: 0 | AP153: 0
A154: 1149 | B154: =IF(C154="","",SUBTOTAL(3,$C$9:C154)) ->  | C154: =IFERROR(VLOOKUP($A154,'شهر 7'!$A$9:$C$84,3,0),"") ->  | D154: 0 | U154: =IFERROR(VLOOKUP(A154,'شهر 8'!$A$9:$AK$78,37,0),"0") -> 0 | W154: =IFERROR(VLOOKUP(A154,'شهر 9'!$A$9:$AK$78,37,0),"0") -> 0 | Y154: =IFERROR(VLOOKUP(A154,'شهر 10'!$A$9:$AK$78,37,0),"0") -> 0 | AA154: =IFERROR(VLOOKUP(A154,'شهر 11'!$A$9:$AK$78,37,0),"0") -> 0 | AC154: =IFERROR(VLOOKUP(A154,'شهر 12'!$A$9:$AK$78,37,0),"0") -> 0 | AE154: 0 | AG154: 0 | AH154: 0 | AI154: 0 | AJ154: 0 | AK154: 0 | AL154: 0 | AM154: 0 | AN154: 0 | AO154: 0 | AP154: 0
A155: 1150 | B155: =IF(C155="","",SUBTOTAL(3,$C$9:C155)) ->  | C155: =IFERROR(VLOOKUP($A155,'شهر 8'!$A$9:$C$78,3,0),"") ->  | D155: 0 | U155: =IFERROR(VLOOKUP(A155,'شهر 8'!$A$9:$AK$78,37,0),"0") -> 0 | W155: =IFERROR(VLOOKUP(A155,'شهر 9'!$A$9:$AK$78,37,0),"0") -> 0 | Y155: =IFERROR(VLOOKUP(A155,'شهر 10'!$A$9:$AK$78,37,0),"0") -> 0 | AA155: =IFERROR(VLOOKUP(A155,'شهر 11'!$A$9:$AK$78,37,0),"0") -> 0 | AC155: =IFERROR(VLOOKUP(A155,'شهر 12'!$A$9:$AK$78,37,0),"0") -> 0 | AE155: 0 | AG155: 0 | AH155: 0 | AI155: 0 | AJ155: 0 | AK155: 0 | AL155: 0 | AM155: 0 | AN155: 0 | AO155: 0 | AP155: 0
A156: 1151 | B156: =IF(C156="","",SUBTOTAL(3,$C$9:C156)) ->  | C156: =IFERROR(VLOOKUP($A156,'شهر 8'!$A$9:$C$78,3,0),"") ->  | D156: 0 | U156: =IFERROR(VLOOKUP(A156,'شهر 8'!$A$9:$AK$78,37,0),"0") -> 0 | W156: =IFERROR(VLOOKUP(A156,'شهر 9'!$A$9:$AK$78,37,0),"0") -> 0 | Y156: =IFERROR(VLOOKUP(A156,'شهر 10'!$A$9:$AK$78,37,0),"0") -> 0 | AA156: =IFERROR(VLOOKUP(A156,'شهر 11'!$A$9:$AK$78,37,0),"0") -> 0 | AC156: =IFERROR(VLOOKUP(A156,'شهر 12'!$A$9:$AK$78,37,0),"0") -> 0 | AE156: 0 | AG156: 0 | AH156: 0 | AI156: 0 | AJ156: 0 | AK156: 0 | AL156: 0 | AM156: 0 | AN156: 0 | AO156: 0 | AP156: 0
A157: 1152 | B157: =IF(C157="","",SUBTOTAL(3,$C$9:C157)) ->  | C157: =IFERROR(VLOOKUP($A157,'شهر 8'!$A$9:$C$78,3,0),"") ->  | D157: 0 | U157: =IFERROR(VLOOKUP(A157,'شهر 8'!$A$9:$AK$78,37,0),"0") -> 0 | W157: =IFERROR(VLOOKUP(A157,'شهر 9'!$A$9:$AK$78,37,0),"0") -> 0 | Y157: =IFERROR(VLOOKUP(A157,'شهر 10'!$A$9:$AK$78,37,0),"0") -> 0 | AA157: =IFERROR(VLOOKUP(A157,'شهر 11'!$A$9:$AK$78,37,0),"0") -> 0 | AC157: =IFERROR(VLOOKUP(A157,'شهر 12'!$A$9:$AK$78,37,0),"0") -> 0 | AE157: 0 | AG157: 0 | AH157: 0 | AI157: 0 | AJ157: 0 | AK157: 0 | AL157: 0 | AM157: 0 | AN157: 0 | AO157: 0 | AP157: 0
A158: 1153 | B158: =IF(C158="","",SUBTOTAL(3,$C$9:C158)) ->  | C158: =IFERROR(VLOOKUP($A158,'شهر 8'!$A$9:$C$78,3,0),"") ->  | D158: 0 | U158: =IFERROR(VLOOKUP(A158,'شهر 8'!$A$9:$AK$78,37,0),"0") -> 0 | W158: =IFERROR(VLOOKUP(A158,'شهر 9'!$A$9:$AK$78,37,0),"0") -> 0 | Y158: =IFERROR(VLOOKUP(A158,'شهر 10'!$A$9:$AK$78,37,0),"0") -> 0 | AA158: =IFERROR(VLOOKUP(A158,'شهر 11'!$A$9:$AK$78,37,0),"0") -> 0 | AC158: =IFERROR(VLOOKUP(A158,'شهر 12'!$A$9:$AK$78,37,0),"0") -> 0 | AE158: 0 | AG158: 0 | AH158: 0 | AI158: 0 | AJ158: 0 | AK158: 0 | AL158: 0 | AM158: 0 | AN158: 0 | AO158: 0 | AP158: 0
A159: 1154 | B159: =IF(C159="","",SUBTOTAL(3,$C$9:C159)) ->  | C159: =IFERROR(VLOOKUP($A159,'شهر 8'!$A$9:$C$78,3,0),"") ->  | D159: 0 | U159: =IFERROR(VLOOKUP(A159,'شهر 8'!$A$9:$AK$78,37,0),"0") -> 0 | W159: =IFERROR(VLOOKUP(A159,'شهر 9'!$A$9:$AK$78,37,0),"0") -> 0 | Y159: =IFERROR(VLOOKUP(A159,'شهر 10'!$A$9:$AK$78,37,0),"0") -> 0 | AA159: =IFERROR(VLOOKUP(A159,'شهر 11'!$A$9:$AK$78,37,0),"0") -> 0 | AC159: =IFERROR(VLOOKUP(A159,'شهر 12'!$A$9:$AK$78,37,0),"0") -> 0 | AE159: 0 | AG159: 0 | AH159: 0 | AI159: 0 | AJ159: 0 | AK159: 0 | AL159: 0 | AM159: 0 | AN159: 0 | AO159: 0 | AP159: 0
A160: 1155 | B160: =IF(C160="","",SUBTOTAL(3,$C$9:C160)) ->  | C160: =IFERROR(VLOOKUP($A160,'شهر 8'!$A$9:$C$78,3,0),"") ->  | D160: 0 | U160: =IFERROR(VLOOKUP(A160,'شهر 8'!$A$9:$AK$78,37,0),"0") -> 0 | W160: =IFERROR(VLOOKUP(A160,'شهر 9'!$A$9:$AK$78,37,0),"0") -> 0 | Y160: =IFERROR(VLOOKUP(A160,'شهر 10'!$A$9:$AK$78,37,0),"0") -> 0 | AA160: =IFERROR(VLOOKUP(A160,'شهر 11'!$A$9:$AK$78,37,0),"0") -> 0 | AC160: =IFERROR(VLOOKUP(A160,'شهر 12'!$A$9:$AK$78,37,0),"0") -> 0 | AE160: 0 | AG160: 0 | AH160: 0 | AI160: 0 | AJ160: 0 | AK160: 0 | AL160: 0 | AM160: 0 | AN160: 0 | AO160: 0 | AP160: 0
A161: 1156 | B161: =IF(C161="","",SUBTOTAL(3,$C$9:C161)) ->  | C161: =IFERROR(VLOOKUP($A161,'شهر 8'!$A$9:$C$78,3,0),"") ->  | D161: 0 | U161: =IFERROR(VLOOKUP(A161,'شهر 8'!$A$9:$AK$78,37,0),"0") -> 0 | W161: =IFERROR(VLOOKUP(A161,'شهر 9'!$A$9:$AK$78,37,0),"0") -> 0 | Y161: =IFERROR(VLOOKUP(A161,'شهر 10'!$A$9:$AK$78,37,0),"0") -> 0 | AA161: =IFERROR(VLOOKUP(A161,'شهر 11'!$A$9:$AK$78,37,0),"0") -> 0 | AC161: =IFERROR(VLOOKUP(A161,'شهر 12'!$A$9:$AK$78,37,0),"0") -> 0 | AE161: 0 | AG161: 0 | AH161: 0 | AI161: 0 | AJ161: 0 | AK161: 0 | AL161: 0 | AM161: 0 | AN161: 0 | AO161: 0 | AP161: 0
A162: 1157 | B162: =IF(C162="","",SUBTOTAL(3,$C$9:C162)) ->  | C162: =IFERROR(VLOOKUP($A162,'شهر 8'!$A$9:$C$78,3,0),"") ->  | D162: 0 | U162: =IFERROR(VLOOKUP(A162,'شهر 8'!$A$9:$AK$78,37,0),"0") -> 0 | W162: =IFERROR(VLOOKUP(A162,'شهر 9'!$A$9:$AK$78,37,0),"0") -> 0 | Y162: =IFERROR(VLOOKUP(A162,'شهر 10'!$A$9:$AK$78,37,0),"0") -> 0 | AA162: =IFERROR(VLOOKUP(A162,'شهر 11'!$A$9:$AK$78,37,0),"0") -> 0 | AC162: =IFERROR(VLOOKUP(A162,'شهر 12'!$A$9:$AK$78,37,0),"0") -> 0 | AE162: 0 | AG162: 0 | AH162: 0 | AI162: 0 | AJ162: 0 | AK162: 0 | AL162: 0 | AM162: 0 | AN162: 0 | AO162: 0 | AP162: 0
A163: 1158 | B163: =IF(C163="","",SUBTOTAL(3,$C$9:C163)) ->  | C163: =IFERROR(VLOOKUP($A163,'شهر 8'!$A$9:$C$78,3,0),"") ->  | D163: 0 | U163: =IFERROR(VLOOKUP(A163,'شهر 8'!$A$9:$AK$78,37,0),"0") -> 0 | W163: =IFERROR(VLOOKUP(A163,'شهر 9'!$A$9:$AK$78,37,0),"0") -> 0 | Y163: =IFERROR(VLOOKUP(A163,'شهر 10'!$A$9:$AK$78,37,0),"0") -> 0 | AA163: =IFERROR(VLOOKUP(A163,'شهر 11'!$A$9:$AK$78,37,0),"0") -> 0 | AC163: =IFERROR(VLOOKUP(A163,'شهر 12'!$A$9:$AK$78,37,0),"0") -> 0 | AE163: 0 | AG163: 0 | AH163: 0 | AI163: 0 | AJ163: 0 | AK163: 0 | AL163: 0 | AM163: 0 | AN163: 0 | AO163: 0 | AP163: 0
A164: 1159 | B164: =IF(C164="","",SUBTOTAL(3,$C$9:C164)) ->  | C164: =IFERROR(VLOOKUP($A164,'شهر 8'!$A$9:$C$78,3,0),"") ->  | D164: 0 | U164: =IFERROR(VLOOKUP(A164,'شهر 8'!$A$9:$AK$78,37,0),"0") -> 0 | W164: =IFERROR(VLOOKUP(A164,'شهر 9'!$A$9:$AK$78,37,0),"0") -> 0 | Y164: =IFERROR(VLOOKUP(A164,'شهر 10'!$A$9:$AK$78,37,0),"0") -> 0 | AA164: =IFERROR(VLOOKUP(A164,'شهر 11'!$A$9:$AK$78,37,0),"0") -> 0 | AC164: =IFERROR(VLOOKUP(A164,'شهر 12'!$A$9:$AK$78,37,0),"0") -> 0 | AE164: 0 | AG164: 0 | AH164: 0 | AI164: 0 | AJ164: 0 | AK164: 0 | AL164: 0 | AM164: 0 | AN164: 0 | AO164: 0 | AP164: 0
A165: 1160 | B165: =IF(C165="","",SUBTOTAL(3,$C$9:C165)) ->  | C165: =IFERROR(VLOOKUP($A165,'شهر 8'!$A$9:$C$78,3,0),"") ->  | D165: 0 | U165: =IFERROR(VLOOKUP(A165,'شهر 8'!$A$9:$AK$78,37,0),"0") -> 0 | W165: =IFERROR(VLOOKUP(A165,'شهر 9'!$A$9:$AK$78,37,0),"0") -> 0 | Y165: =IFERROR(VLOOKUP(A165,'شهر 10'!$A$9:$AK$78,37,0),"0") -> 0 | AA165: =IFERROR(VLOOKUP(A165,'شهر 11'!$A$9:$AK$78,37,0),"0") -> 0 | AC165: =IFERROR(VLOOKUP(A165,'شهر 12'!$A$9:$AK$78,37,0),"0") -> 0 | AE165: 0 | AG165: 0 | AH165: 0 | AI165: 0 | AJ165: 0 | AK165: 0 | AL165: 0 | AM165: 0 | AN165: 0 | AO165: 0 | AP165: 0
A166: 1161 | B166: =IF(C166="","",SUBTOTAL(3,$C$9:C166)) ->  | C166: =IFERROR(VLOOKUP($A166,'شهر 8'!$A$9:$C$78,3,0),"") ->  | D166: 0 | U166: =IFERROR(VLOOKUP(A166,'شهر 8'!$A$9:$AK$78,37,0),"0") -> 0 | W166: =IFERROR(VLOOKUP(A166,'شهر 9'!$A$9:$AK$78,37,0),"0") -> 0 | Y166: =IFERROR(VLOOKUP(A166,'شهر 10'!$A$9:$AK$78,37,0),"0") -> 0 | AA166: =IFERROR(VLOOKUP(A166,'شهر 11'!$A$9:$AK$78,37,0),"0") -> 0 | AC166: =IFERROR(VLOOKUP(A166,'شهر 12'!$A$9:$AK$78,37,0),"0") -> 0 | AE166: 0 | AG166: 0 | AH166: 0 | AI166: 0 | AJ166: 0 | AK166: 0 | AL166: 0 | AM166: 0 | AN166: 0 | AO166: 0 | AP166: 0
A167: 1162 | B167: =IF(C167="","",SUBTOTAL(3,$C$9:C167)) ->  | C167: =IFERROR(VLOOKUP($A167,'شهر 8'!$A$9:$C$78,3,0),"") ->  | D167: 0 | U167: =IFERROR(VLOOKUP(A167,'شهر 8'!$A$9:$AK$78,37,0),"0") -> 0 | W167: =IFERROR(VLOOKUP(A167,'شهر 9'!$A$9:$AK$78,37,0),"0") -> 0 | Y167: =IFERROR(VLOOKUP(A167,'شهر 10'!$A$9:$AK$78,37,0),"0") -> 0 | AA167: =IFERROR(VLOOKUP(A167,'شهر 11'!$A$9:$AK$78,37,0),"0") -> 0 | AC167: =IFERROR(VLOOKUP(A167,'شهر 12'!$A$9:$AK$78,37,0),"0") -> 0 | AE167: 0 | AG167: 0 | AH167: 0 | AI167: 0 | AJ167: 0 | AK167: 0 | AL167: 0 | AM167: 0 | AN167: 0 | AO167: 0 | AP167: 0
A168: 1163 | B168: =IF(C168="","",SUBTOTAL(3,$C$9:C168)) ->  | C168: =IFERROR(VLOOKUP($A168,'شهر 8'!$A$9:$C$78,3,0),"") ->  | D168: 0 | U168: =IFERROR(VLOOKUP(A168,'شهر 8'!$A$9:$AK$78,37,0),"0") -> 0 | W168: =IFERROR(VLOOKUP(A168,'شهر 9'!$A$9:$AK$78,37,0),"0") -> 0 | Y168: =IFERROR(VLOOKUP(A168,'شهر 10'!$A$9:$AK$78,37,0),"0") -> 0 | AA168: =IFERROR(VLOOKUP(A168,'شهر 11'!$A$9:$AK$78,37,0),"0") -> 0 | AC168: =IFERROR(VLOOKUP(A168,'شهر 12'!$A$9:$AK$78,37,0),"0") -> 0 | AE168: 0 | AG168: 0 | AH168: 0 | AI168: 0 | AJ168: 0 | AK168: 0 | AL168: 0 | AM168: 0 | AN168: 0 | AO168: 0 | AP168: 0
A169: 1164 | B169: =IF(C169="","",SUBTOTAL(3,$C$9:C169)) ->  | C169: =IFERROR(VLOOKUP($A169,'شهر 8'!$A$9:$C$78,3,0),"") ->  | D169: 0 | U169: =IFERROR(VLOOKUP(A169,'شهر 8'!$A$9:$AK$78,37,0),"0") -> 0 | W169: =IFERROR(VLOOKUP(A169,'شهر 9'!$A$9:$AK$78,37,0),"0") -> 0 | Y169: =IFERROR(VLOOKUP(A169,'شهر 10'!$A$9:$AK$78,37,0),"0") -> 0 | AA169: =IFERROR(VLOOKUP(A169,'شهر 11'!$A$9:$AK$78,37,0),"0") -> 0 | AC169: =IFERROR(VLOOKUP(A169,'شهر 12'!$A$9:$AK$78,37,0),"0") -> 0 | AE169: =SUM(F169,G169,I169,K169,M169,O169,Q169,S169,U169,W169,Y169,AA169,AC169)-SUM(H169,J169,L169,N169,P169,R169,T169,V169,X169,AB169,AD169) -> 0 | AG169: 0 | AH169: 0 | AI169: 0 | AJ169: 0 | AK169: 0 | AL169: 0 | AM169: 0 | AN169: 0 | AO169: 0 | AP169: 0
A170: 1165 | B170: =IF(C170="","",SUBTOTAL(3,$C$9:C170)) ->  | C170: =IFERROR(VLOOKUP($A170,'شهر 8'!$A$9:$C$78,3,0),"") ->  | D170: 0 | U170: =IFERROR(VLOOKUP(A170,'شهر 8'!$A$9:$AK$78,37,0),"0") -> 0 | W170: =IFERROR(VLOOKUP(A170,'شهر 9'!$A$9:$AK$78,37,0),"0") -> 0 | Y170: =IFERROR(VLOOKUP(A170,'شهر 10'!$A$9:$AK$78,37,0),"0") -> 0 | AA170: =IFERROR(VLOOKUP(A170,'شهر 11'!$A$9:$AK$78,37,0),"0") -> 0 | AC170: =IFERROR(VLOOKUP(A170,'شهر 12'!$A$9:$AK$78,37,0),"0") -> 0 | AE170: 0 | AG170: 0 | AH170: 0 | AI170: 0 | AJ170: 0 | AK170: 0 | AL170: 0 | AM170: 0 | AN170: 0 | AO170: 0 | AP170: 0
A171: 1166 | B171: =IF(C171="","",SUBTOTAL(3,$C$9:C171)) ->  | C171: =IFERROR(VLOOKUP($A171,'شهر 8'!$A$9:$C$78,3,0),"") ->  | D171: 0 | U171: =IFERROR(VLOOKUP(A171,'شهر 8'!$A$9:$AK$78,37,0),"0") -> 0 | W171: =IFERROR(VLOOKUP(A171,'شهر 9'!$A$9:$AK$78,37,0),"0") -> 0 | Y171: =IFERROR(VLOOKUP(A171,'شهر 10'!$A$9:$AK$78,37,0),"0") -> 0 | AA171: =IFERROR(VLOOKUP(A171,'شهر 11'!$A$9:$AK$78,37,0),"0") -> 0 | AC171: =IFERROR(VLOOKUP(A171,'شهر 12'!$A$9:$AK$78,37,0),"0") -> 0 | AE171: 0 | AG171: 0 | AH171: 0 | AI171: 0 | AJ171: 0 | AK171: 0 | AL171: 0 | AM171: 0 | AN171: 0 | AO171: 0 | AP171: 0
A172: 1167 | B172: =IF(C172="","",SUBTOTAL(3,$C$9:C172)) ->  | C172: =IFERROR(VLOOKUP($A172,'شهر 8'!$A$9:$C$78,3,0),"") ->  | D172: 0 | U172: =IFERROR(VLOOKUP(A172,'شهر 8'!$A$9:$AK$78,37,0),"0") -> 0 | W172: =IFERROR(VLOOKUP(A172,'شهر 9'!$A$9:$AK$78,37,0),"0") -> 0 | Y172: =IFERROR(VLOOKUP(A172,'شهر 10'!$A$9:$AK$78,37,0),"0") -> 0 | AA172: =IFERROR(VLOOKUP(A172,'شهر 11'!$A$9:$AK$78,37,0),"0") -> 0 | AC172: =IFERROR(VLOOKUP(A172,'شهر 12'!$A$9:$AK$78,37,0),"0") -> 0 | AE172: 0 | AG172: 0 | AH172: 0 | AI172: 0 | AJ172: 0 | AK172: 0 | AL172: 0 | AM172: 0 | AN172: 0 | AO172: 0 | AP172: 0
A173: 1168 | B173: =IF(C173="","",SUBTOTAL(3,$C$9:C173)) ->  | C173: =IFERROR(VLOOKUP($A173,'شهر 8'!$A$9:$C$78,3,0),"") ->  | D173: 0 | U173: =IFERROR(VLOOKUP(A173,'شهر 8'!$A$9:$AK$78,37,0),"0") -> 0 | W173: =IFERROR(VLOOKUP(A173,'شهر 9'!$A$9:$AK$78,37,0),"0") -> 0 | Y173: =IFERROR(VLOOKUP(A173,'شهر 10'!$A$9:$AK$78,37,0),"0") -> 0 | AA173: =IFERROR(VLOOKUP(A173,'شهر 11'!$A$9:$AK$78,37,0),"0") -> 0 | AC173: =IFERROR(VLOOKUP(A173,'شهر 12'!$A$9:$AK$78,37,0),"0") -> 0 | AE173: 0 | AG173: 0 | AH173: 0 | AI173: 0 | AJ173: 0 | AK173: 0 | AL173: 0 | AM173: 0 | AN173: 0 | AO173: 0 | AP173: 0
A174: 1169 | B174: =IF(C174="","",SUBTOTAL(3,$C$9:C174)) ->  | C174: =IFERROR(VLOOKUP($A174,'شهر 8'!$A$9:$C$78,3,0),"") ->  | D174: 0 | U174: =IFERROR(VLOOKUP(A174,'شهر 8'!$A$9:$AK$78,37,0),"0") -> 0 | W174: =IFERROR(VLOOKUP(A174,'شهر 9'!$A$9:$AK$78,37,0),"0") -> 0 | Y174: =IFERROR(VLOOKUP(A174,'شهر 10'!$A$9:$AK$78,37,0),"0") -> 0 | AA174: =IFERROR(VLOOKUP(A174,'شهر 11'!$A$9:$AK$78,37,0),"0") -> 0 | AC174: =IFERROR(VLOOKUP(A174,'شهر 12'!$A$9:$AK$78,37,0),"0") -> 0 | AE174: 0 | AG174: 0 | AH174: 0 | AI174: 0 | AJ174: 0 | AK174: 0 | AL174: 0 | AM174: 0 | AN174: 0 | AO174: 0 | AP174: 0
A175: 1170 | B175: =IF(C175="","",SUBTOTAL(3,$C$9:C175)) ->  | C175: =IFERROR(VLOOKUP($A175,'شهر 8'!$A$9:$C$78,3,0),"") ->  | D175: 0 | U175: =IFERROR(VLOOKUP(A175,'شهر 8'!$A$9:$AK$78,37,0),"0") -> 0 | W175: =IFERROR(VLOOKUP(A175,'شهر 9'!$A$9:$AK$78,37,0),"0") -> 0 | Y175: =IFERROR(VLOOKUP(A175,'شهر 10'!$A$9:$AK$78,37,0),"0") -> 0 | AA175: =IFERROR(VLOOKUP(A175,'شهر 11'!$A$9:$AK$78,37,0),"0") -> 0 | AC175: =IFERROR(VLOOKUP(A175,'شهر 12'!$A$9:$AK$78,37,0),"0") -> 0 | AE175: 0 | AG175: 0 | AH175: 0 | AI175: 0 | AJ175: 0 | AK175: 0 | AL175: 0 | AM175: 0 | AN175: 0 | AO175: 0 | AP175: 0
A176: 1171 | B176: =IF(C176="","",SUBTOTAL(3,$C$9:C176)) ->  | C176: =IFERROR(VLOOKUP($A176,'شهر 8'!$A$9:$C$78,3,0),"") ->  | D176: 0 | U176: =IFERROR(VLOOKUP(A176,'شهر 8'!$A$9:$AK$78,37,0),"0") -> 0 | W176: =IFERROR(VLOOKUP(A176,'شهر 9'!$A$9:$AK$78,37,0),"0") -> 0 | Y176: =IFERROR(VLOOKUP(A176,'شهر 10'!$A$9:$AK$78,37,0),"0") -> 0 | AA176: =IFERROR(VLOOKUP(A176,'شهر 11'!$A$9:$AK$78,37,0),"0") -> 0 | AC176: =IFERROR(VLOOKUP(A176,'شهر 12'!$A$9:$AK$78,37,0),"0") -> 0 | AE176: 0 | AG176: 0 | AH176: 0 | AI176: 0 | AJ176: 0 | AK176: 0 | AL176: 0 | AM176: 0 | AN176: 0 | AO176: 0 | AP176: 0
A177: 1172 | B177: =IF(C177="","",SUBTOTAL(3,$C$9:C177)) ->  | C177: =IFERROR(VLOOKUP($A177,'شهر 8'!$A$9:$C$78,3,0),"") ->  | D177: 0 | U177: =IFERROR(VLOOKUP(A177,'شهر 8'!$A$9:$AK$78,37,0),"0") -> 0 | W177: =IFERROR(VLOOKUP(A177,'شهر 9'!$A$9:$AK$78,37,0),"0") -> 0 | Y177: =IFERROR(VLOOKUP(A177,'شهر 10'!$A$9:$AK$78,37,0),"0") -> 0 | AA177: =IFERROR(VLOOKUP(A177,'شهر 11'!$A$9:$AK$78,37,0),"0") -> 0 | AC177: =IFERROR(VLOOKUP(A177,'شهر 12'!$A$9:$AK$78,37,0),"0") -> 0 | AE177: 0 | AG177: 0 | AH177: 0 | AI177: 0 | AJ177: 0 | AK177: 0 | AL177: 0 | AM177: 0 | AN177: 0 | AO177: 0 | AP177: 0
A178: 1173 | B178: =IF(C178="","",SUBTOTAL(3,$C$9:C178)) ->  | C178: =IFERROR(VLOOKUP($A178,'شهر 8'!$A$9:$C$78,3,0),"") ->  | D178: 0 | U178: =IFERROR(VLOOKUP(A178,'شهر 8'!$A$9:$AK$78,37,0),"0") -> 0 | W178: =IFERROR(VLOOKUP(A178,'شهر 9'!$A$9:$AK$78,37,0),"0") -> 0 | Y178: =IFERROR(VLOOKUP(A178,'شهر 10'!$A$9:$AK$78,37,0),"0") -> 0 | AA178: =IFERROR(VLOOKUP(A178,'شهر 11'!$A$9:$AK$78,37,0),"0") -> 0 | AC178: =IFERROR(VLOOKUP(A178,'شهر 12'!$A$9:$AK$78,37,0),"0") -> 0 | AE178: 0 | AG178: 0 | AH178: 0 | AI178: 0 | AJ178: 0 | AK178: 0 | AL178: 0 | AM178: 0 | AN178: 0 | AO178: 0 | AP178: 0
A179: 1174 | B179: =IF(C179="","",SUBTOTAL(3,$C$9:C179)) ->  | C179: =IFERROR(VLOOKUP($A179,'شهر 8'!$A$9:$C$78,3,0),"") ->  | D179: 0 | U179: =IFERROR(VLOOKUP(A179,'شهر 8'!$A$9:$AK$78,37,0),"0") -> 0 | W179: =IFERROR(VLOOKUP(A179,'شهر 9'!$A$9:$AK$78,37,0),"0") -> 0 | Y179: =IFERROR(VLOOKUP(A179,'شهر 10'!$A$9:$AK$78,37,0),"0") -> 0 | AA179: =IFERROR(VLOOKUP(A179,'شهر 11'!$A$9:$AK$78,37,0),"0") -> 0 | AC179: =IFERROR(VLOOKUP(A179,'شهر 12'!$A$9:$AK$78,37,0),"0") -> 0 | AE179: 0 | AG179: 0 | AH179: 0 | AI179: 0 | AJ179: 0 | AK179: 0 | AL179: 0 | AM179: 0 | AN179: 0 | AO179: 0 | AP179: 0
A180: 1175 | B180: =IF(C180="","",SUBTOTAL(3,$C$9:C180)) ->  | D180: 0 | U180: =IFERROR(VLOOKUP(A180,'شهر 8'!$A$9:$AK$78,37,0),"0") -> 0 | W180: =IFERROR(VLOOKUP(A180,'شهر 9'!$A$9:$AK$78,37,0),"0") -> 0 | Y180: =IFERROR(VLOOKUP(A180,'شهر 10'!$A$9:$AK$78,37,0),"0") -> 0 | AA180: =IFERROR(VLOOKUP(A180,'شهر 11'!$A$9:$AK$78,37,0),"0") -> 0 | AC180: =IFERROR(VLOOKUP(A180,'شهر 12'!$A$9:$AK$78,37,0),"0") -> 0 | AE180: 0 | AG180: 0 | AH180: 0 | AI180: 0 | AJ180: 0 | AK180: 0 | AL180: 0 | AM180: 0 | AN180: 0 | AO180: 0 | AP180: 0
A181: 1176 | B181: =IF(C181="","",SUBTOTAL(3,$C$9:C181)) ->  | D181: 0 | U181: =IFERROR(VLOOKUP(A181,'شهر 8'!$A$9:$AK$78,37,0),"0") -> 0 | W181: =IFERROR(VLOOKUP(A181,'شهر 9'!$A$9:$AK$78,37,0),"0") -> 0 | Y181: =IFERROR(VLOOKUP(A181,'شهر 10'!$A$9:$AK$78,37,0),"0") -> 0 | AA181: =IFERROR(VLOOKUP(A181,'شهر 11'!$A$9:$AK$78,37,0),"0") -> 0 | AC181: =IFERROR(VLOOKUP(A181,'شهر 12'!$A$9:$AK$78,37,0),"0") -> 0 | AE181: 0 | AG181: 0 | AH181: 0 | AI181: 0 | AJ181: 0 | AK181: 0 | AL181: 0 | AM181: 0 | AN181: 0 | AO181: 0 | AP181: 0
A182: 1177 | B182: =IF(C182="","",SUBTOTAL(3,$C$9:C182)) ->  | D182: 0 | U182: =IFERROR(VLOOKUP(A182,'شهر 8'!$A$9:$AK$78,37,0),"0") -> 0 | W182: =IFERROR(VLOOKUP(A182,'شهر 9'!$A$9:$AK$78,37,0),"0") -> 0 | Y182: =IFERROR(VLOOKUP(A182,'شهر 10'!$A$9:$AK$78,37,0),"0") -> 0 | AA182: =IFERROR(VLOOKUP(A182,'شهر 11'!$A$9:$AK$78,37,0),"0") -> 0 | AC182: =IFERROR(VLOOKUP(A182,'شهر 12'!$A$9:$AK$78,37,0),"0") -> 0 | AE182: 0 | AG182: 0 | AH182: 0 | AI182: 0 | AJ182: 0 | AK182: 0 | AL182: 0 | AM182: 0 | AN182: 0 | AO182: 0 | AP182: 0
A183: 1178 | B183: =IF(C183="","",SUBTOTAL(3,$C$9:C183)) ->  | D183: 0 | U183: =IFERROR(VLOOKUP(A183,'شهر 8'!$A$9:$AK$78,37,0),"0") -> 0 | W183: =IFERROR(VLOOKUP(A183,'شهر 9'!$A$9:$AK$78,37,0),"0") -> 0 | Y183: =IFERROR(VLOOKUP(A183,'شهر 10'!$A$9:$AK$78,37,0),"0") -> 0 | AA183: =IFERROR(VLOOKUP(A183,'شهر 11'!$A$9:$AK$78,37,0),"0") -> 0 | AC183: =IFERROR(VLOOKUP(A183,'شهر 12'!$A$9:$AK$78,37,0),"0") -> 0 | AE183: 0 | AG183: 0 | AH183: 0 | AI183: 0 | AJ183: 0 | AK183: 0 | AL183: 0 | AM183: 0 | AN183: 0 | AO183: 0 | AP183: 0
A184: 1179 | B184: =IF(C184="","",SUBTOTAL(3,$C$9:C184)) ->  | D184: 0 | U184: =IFERROR(VLOOKUP(A184,'شهر 8'!$A$9:$AK$78,37,0),"0") -> 0 | W184: =IFERROR(VLOOKUP(A184,'شهر 9'!$A$9:$AK$78,37,0),"0") -> 0 | Y184: =IFERROR(VLOOKUP(A184,'شهر 10'!$A$9:$AK$78,37,0),"0") -> 0 | AA184: =IFERROR(VLOOKUP(A184,'شهر 11'!$A$9:$AK$78,37,0),"0") -> 0 | AC184: =IFERROR(VLOOKUP(A184,'شهر 12'!$A$9:$AK$78,37,0),"0") -> 0 | AE184: 0 | AG184: 0 | AH184: 0 | AI184: 0 | AJ184: 0 | AK184: 0 | AL184: 0 | AM184: 0 | AN184: 0 | AO184: 0 | AP184: 0
A185: 1180 | B185: =IF(C185="","",SUBTOTAL(3,$C$9:C185)) ->  | D185: 0 | U185: =IFERROR(VLOOKUP(A185,'شهر 8'!$A$9:$AK$78,37,0),"0") -> 0 | W185: =IFERROR(VLOOKUP(A185,'شهر 9'!$A$9:$AK$78,37,0),"0") -> 0 | Y185: =IFERROR(VLOOKUP(A185,'شهر 10'!$A$9:$AK$78,37,0),"0") -> 0 | AA185: =IFERROR(VLOOKUP(A185,'شهر 11'!$A$9:$AK$78,37,0),"0") -> 0 | AC185: =IFERROR(VLOOKUP(A185,'شهر 12'!$A$9:$AK$78,37,0),"0") -> 0 | AE185: 0 | AG185: 0 | AH185: 0 | AI185: 0 | AJ185: 0 | AK185: 0 | AL185: 0 | AM185: 0 | AN185: 0 | AO185: 0 | AP185: 0
A186: 1181 | B186: =IF(C186="","",SUBTOTAL(3,$C$9:C186)) ->  | D186: 0 | U186: =IFERROR(VLOOKUP(A186,'شهر 8'!$A$9:$AK$78,37,0),"0") -> 0 | W186: =IFERROR(VLOOKUP(A186,'شهر 9'!$A$9:$AK$78,37,0),"0") -> 0 | Y186: =IFERROR(VLOOKUP(A186,'شهر 10'!$A$9:$AK$78,37,0),"0") -> 0 | AA186: =IFERROR(VLOOKUP(A186,'شهر 11'!$A$9:$AK$78,37,0),"0") -> 0 | AC186: =IFERROR(VLOOKUP(A186,'شهر 12'!$A$9:$AK$78,37,0),"0") -> 0 | AE186: 0 | AG186: 0 | AH186: 0 | AI186: 0 | AJ186: 0 | AK186: 0 | AL186: 0 | AM186: 0 | AN186: 0 | AO186: 0 | AP186: 0
A187: 1182 | B187: =IF(C187="","",SUBTOTAL(3,$C$9:C187)) ->  | D187: 0 | U187: =IFERROR(VLOOKUP(A187,'شهر 8'!$A$9:$AK$78,37,0),"0") -> 0 | W187: =IFERROR(VLOOKUP(A187,'شهر 9'!$A$9:$AK$78,37,0),"0") -> 0 | Y187: =IFERROR(VLOOKUP(A187,'شهر 10'!$A$9:$AK$78,37,0),"0") -> 0 | AA187: =IFERROR(VLOOKUP(A187,'شهر 11'!$A$9:$AK$78,37,0),"0") -> 0 | AC187: =IFERROR(VLOOKUP(A187,'شهر 12'!$A$9:$AK$78,37,0),"0") -> 0 | AE187: 0 | AG187: 0 | AH187: 0 | AI187: 0 | AJ187: 0 | AK187: 0 | AL187: 0 | AM187: 0 | AN187: 0 | AO187: 0 | AP187: 0
A188: 1183 | B188: =IF(C188="","",SUBTOTAL(3,$C$9:C188)) ->  | D188: 0 | U188: =IFERROR(VLOOKUP(A188,'شهر 8'!$A$9:$AK$78,37,0),"0") -> 0 | W188: =IFERROR(VLOOKUP(A188,'شهر 9'!$A$9:$AK$78,37,0),"0") -> 0 | Y188: =IFERROR(VLOOKUP(A188,'شهر 10'!$A$9:$AK$78,37,0),"0") -> 0 | AA188: =IFERROR(VLOOKUP(A188,'شهر 11'!$A$9:$AK$78,37,0),"0") -> 0 | AC188: =IFERROR(VLOOKUP(A188,'شهر 12'!$A$9:$AK$78,37,0),"0") -> 0 | AE188: 0 | AG188: 0 | AH188: 0 | AI188: 0 | AJ188: 0 | AK188: 0 | AL188: 0 | AM188: 0 | AN188: 0 | AO188: 0 | AP188: 0
A189: 1184 | B189: =IF(C189="","",SUBTOTAL(3,$C$9:C189)) ->  | D189: 0 | U189: =IFERROR(VLOOKUP(A189,'شهر 8'!$A$9:$AK$78,37,0),"0") -> 0 | W189: =IFERROR(VLOOKUP(A189,'شهر 9'!$A$9:$AK$78,37,0),"0") -> 0 | Y189: =IFERROR(VLOOKUP(A189,'شهر 10'!$A$9:$AK$78,37,0),"0") -> 0 | AA189: =IFERROR(VLOOKUP(A189,'شهر 11'!$A$9:$AK$78,37,0),"0") -> 0 | AC189: =IFERROR(VLOOKUP(A189,'شهر 12'!$A$9:$AK$78,37,0),"0") -> 0 | AE189: 0 | AG189: 0 | AH189: 0 | AI189: 0 | AJ189: 0 | AK189: 0 | AL189: 0 | AM189: 0 | AN189: 0 | AO189: 0 | AP189: 0
A190: 1185 | B190: =IF(C190="","",SUBTOTAL(3,$C$9:C190)) ->  | D190: 0 | U190: =IFERROR(VLOOKUP(A190,'شهر 8'!$A$9:$AK$78,37,0),"0") -> 0 | W190: =IFERROR(VLOOKUP(A190,'شهر 9'!$A$9:$AK$78,37,0),"0") -> 0 | Y190: =IFERROR(VLOOKUP(A190,'شهر 10'!$A$9:$AK$78,37,0),"0") -> 0 | AA190: =IFERROR(VLOOKUP(A190,'شهر 11'!$A$9:$AK$78,37,0),"0") -> 0 | AC190: =IFERROR(VLOOKUP(A190,'شهر 12'!$A$9:$AK$78,37,0),"0") -> 0 | AE190: 0 | AG190: 0 | AH190: 0 | AI190: 0 | AJ190: 0 | AK190: 0 | AL190: 0 | AM190: 0 | AN190: 0 | AO190: 0 | AP190: 0
A191: 1186 | B191: =IF(C191="","",SUBTOTAL(3,$C$9:C191)) ->  | D191: 0 | U191: =IFERROR(VLOOKUP(A191,'شهر 8'!$A$9:$AK$78,37,0),"0") -> 0 | W191: =IFERROR(VLOOKUP(A191,'شهر 9'!$A$9:$AK$78,37,0),"0") -> 0 | Y191: =IFERROR(VLOOKUP(A191,'شهر 10'!$A$9:$AK$78,37,0),"0") -> 0 | AA191: =IFERROR(VLOOKUP(A191,'شهر 11'!$A$9:$AK$78,37,0),"0") -> 0 | AC191: =IFERROR(VLOOKUP(A191,'شهر 12'!$A$9:$AK$78,37,0),"0") -> 0 | AE191: 0 | AG191: 0 | AH191: 0 | AI191: 0 | AJ191: 0 | AK191: 0 | AL191: 0 | AM191: 0 | AN191: 0 | AO191: 0 | AP191: 0
A192: 1187 | B192: =IF(C192="","",SUBTOTAL(3,$C$9:C192)) ->  | D192: 0 | U192: =IFERROR(VLOOKUP(A192,'شهر 8'!$A$9:$AK$78,37,0),"0") -> 0 | W192: =IFERROR(VLOOKUP(A192,'شهر 9'!$A$9:$AK$78,37,0),"0") -> 0 | Y192: =IFERROR(VLOOKUP(A192,'شهر 10'!$A$9:$AK$78,37,0),"0") -> 0 | AA192: =IFERROR(VLOOKUP(A192,'شهر 11'!$A$9:$AK$78,37,0),"0") -> 0 | AC192: =IFERROR(VLOOKUP(A192,'شهر 12'!$A$9:$AK$78,37,0),"0") -> 0 | AE192: 0 | AG192: 0 | AH192: 0 | AI192: 0 | AJ192: 0 | AK192: 0 | AL192: 0 | AM192: 0 | AN192: 0 | AO192: 0 | AP192: 0
A193: 1188 | B193: =IF(C193="","",SUBTOTAL(3,$C$9:C193)) ->  | D193: 0 | U193: =IFERROR(VLOOKUP(A193,'شهر 8'!$A$9:$AK$78,37,0),"0") -> 0 | W193: =IFERROR(VLOOKUP(A193,'شهر 9'!$A$9:$AK$78,37,0),"0") -> 0 | Y193: =IFERROR(VLOOKUP(A193,'شهر 10'!$A$9:$AK$78,37,0),"0") -> 0 | AA193: =IFERROR(VLOOKUP(A193,'شهر 11'!$A$9:$AK$78,37,0),"0") -> 0 | AC193: =IFERROR(VLOOKUP(A193,'شهر 12'!$A$9:$AK$78,37,0),"0") -> 0 | AE193: 0 | AG193: 0 | AH193: 0 | AI193: 0 | AJ193: 0 | AK193: 0 | AL193: 0 | AM193: 0 | AN193: 0 | AO193: 0 | AP193: 0
A194: 1189 | B194: =IF(C194="","",SUBTOTAL(3,$C$9:C194)) ->  | D194: 0 | U194: =IFERROR(VLOOKUP(A194,'شهر 8'!$A$9:$AK$78,37,0),"0") -> 0 | W194: =IFERROR(VLOOKUP(A194,'شهر 9'!$A$9:$AK$78,37,0),"0") -> 0 | Y194: =IFERROR(VLOOKUP(A194,'شهر 10'!$A$9:$AK$78,37,0),"0") -> 0 | AA194: =IFERROR(VLOOKUP(A194,'شهر 11'!$A$9:$AK$78,37,0),"0") -> 0 | AC194: =IFERROR(VLOOKUP(A194,'شهر 12'!$A$9:$AK$78,37,0),"0") -> 0 | AE194: 0 | AG194: 0 | AH194: 0 | AI194: 0 | AJ194: 0 | AK194: 0 | AL194: 0 | AM194: 0 | AN194: 0 | AO194: 0 | AP194: 0
A195: 1190 | B195: =IF(C195="","",SUBTOTAL(3,$C$9:C195)) ->  | D195: 0 | U195: =IFERROR(VLOOKUP(A195,'شهر 8'!$A$9:$AK$78,37,0),"0") -> 0 | W195: =IFERROR(VLOOKUP(A195,'شهر 9'!$A$9:$AK$78,37,0),"0") -> 0 | Y195: =IFERROR(VLOOKUP(A195,'شهر 10'!$A$9:$AK$78,37,0),"0") -> 0 | AA195: =IFERROR(VLOOKUP(A195,'شهر 11'!$A$9:$AK$78,37,0),"0") -> 0 | AC195: =IFERROR(VLOOKUP(A195,'شهر 12'!$A$9:$AK$78,37,0),"0") -> 0 | AE195: 0 | AG195: 0 | AH195: 0 | AI195: 0 | AJ195: 0 | AK195: 0 | AL195: 0 | AM195: 0 | AN195: 0 | AO195: 0 | AP195: 0
A196: 1191 | B196: =IF(C196="","",SUBTOTAL(3,$C$9:C196)) ->  | D196: 0 | U196: =IFERROR(VLOOKUP(A196,'شهر 8'!$A$9:$AK$78,37,0),"0") -> 0 | W196: =IFERROR(VLOOKUP(A196,'شهر 9'!$A$9:$AK$78,37,0),"0") -> 0 | Y196: =IFERROR(VLOOKUP(A196,'شهر 10'!$A$9:$AK$78,37,0),"0") -> 0 | AA196: =IFERROR(VLOOKUP(A196,'شهر 11'!$A$9:$AK$78,37,0),"0") -> 0 | AC196: =IFERROR(VLOOKUP(A196,'شهر 12'!$A$9:$AK$78,37,0),"0") -> 0 | AE196: 0 | AG196: 0 | AH196: 0 | AI196: 0 | AJ196: 0 | AK196: 0 | AL196: 0 | AM196: 0 | AN196: 0 | AO196: 0 | AP196: 0
A197: 1192 | B197: =IF(C197="","",SUBTOTAL(3,$C$9:C197)) ->  | D197: 0 | U197: =IFERROR(VLOOKUP(A197,'شهر 8'!$A$9:$AK$78,37,0),"0") -> 0 | W197: =IFERROR(VLOOKUP(A197,'شهر 9'!$A$9:$AK$78,37,0),"0") -> 0 | Y197: =IFERROR(VLOOKUP(A197,'شهر 10'!$A$9:$AK$78,37,0),"0") -> 0 | AA197: =IFERROR(VLOOKUP(A197,'شهر 11'!$A$9:$AK$78,37,0),"0") -> 0 | AC197: =IFERROR(VLOOKUP(A197,'شهر 12'!$A$9:$AK$78,37,0),"0") -> 0 | AE197: 0 | AG197: 0 | AH197: 0 | AI197: 0 | AJ197: 0 | AK197: 0 | AL197: 0 | AM197: 0 | AN197: 0 | AO197: 0 | AP197: 0
A198: 1193 | B198: =IF(C198="","",SUBTOTAL(3,$C$9:C198)) ->  | D198: 0 | U198: =IFERROR(VLOOKUP(A198,'شهر 8'!$A$9:$AK$78,37,0),"0") -> 0 | W198: =IFERROR(VLOOKUP(A198,'شهر 9'!$A$9:$AK$78,37,0),"0") -> 0 | Y198: =IFERROR(VLOOKUP(A198,'شهر 10'!$A$9:$AK$78,37,0),"0") -> 0 | AA198: =IFERROR(VLOOKUP(A198,'شهر 11'!$A$9:$AK$78,37,0),"0") -> 0 | AC198: =IFERROR(VLOOKUP(A198,'شهر 12'!$A$9:$AK$78,37,0),"0") -> 0 | AE198: 0 | AG198: 0 | AH198: 0 | AI198: 0 | AJ198: 0 | AK198: 0 | AL198: 0 | AM198: 0 | AN198: 0 | AO198: 0 | AP198: 0
A199: 1194 | B199: =IF(C199="","",SUBTOTAL(3,$C$9:C199)) ->  | D199: 0 | U199: =IFERROR(VLOOKUP(A199,'شهر 8'!$A$9:$AK$78,37,0),"0") -> 0 | W199: =IFERROR(VLOOKUP(A199,'شهر 9'!$A$9:$AK$78,37,0),"0") -> 0 | Y199: =IFERROR(VLOOKUP(A199,'شهر 10'!$A$9:$AK$78,37,0),"0") -> 0 | AA199: =IFERROR(VLOOKUP(A199,'شهر 11'!$A$9:$AK$78,37,0),"0") -> 0 | AC199: =IFERROR(VLOOKUP(A199,'شهر 12'!$A$9:$AK$78,37,0),"0") -> 0 | AE199: 0 | AG199: 0 | AH199: 0 | AI199: 0 | AJ199: 0 | AK199: 0 | AL199: 0 | AM199: 0 | AN199: 0 | AO199: 0 | AP199: 0
A200: 1195 | B200: =IF(C200="","",SUBTOTAL(3,$C$9:C200)) ->  | D200: 0 | U200: =IFERROR(VLOOKUP(A200,'شهر 8'!$A$9:$AK$78,37,0),"0") -> 0 | W200: =IFERROR(VLOOKUP(A200,'شهر 9'!$A$9:$AK$78,37,0),"0") -> 0 | Y200: =IFERROR(VLOOKUP(A200,'شهر 10'!$A$9:$AK$78,37,0),"0") -> 0 | AA200: =IFERROR(VLOOKUP(A200,'شهر 11'!$A$9:$AK$78,37,0),"0") -> 0 | AC200: =IFERROR(VLOOKUP(A200,'شهر 12'!$A$9:$AK$78,37,0),"0") -> 0 | AE200: 0 | AG200: 0 | AH200: 0 | AI200: 0 | AJ200: 0 | AK200: 0 | AL200: 0 | AM200: 0 | AN200: 0 | AO200: 0 | AP200: 0
A201: 1196 | B201: =IF(C201="","",SUBTOTAL(3,$C$9:C201)) ->  | D201: =AE201 -> 0 | U201: =IFERROR(VLOOKUP(A201,'شهر 8'!$A$9:$AK$78,37,0),"0") -> 0 | W201: =IFERROR(VLOOKUP(A201,'شهر 9'!$A$9:$AK$78,37,0),"0") -> 0 | Y201: =IFERROR(VLOOKUP(A201,'شهر 10'!$A$9:$AK$78,37,0),"0") -> 0 | AA201: =IFERROR(VLOOKUP(A201,'شهر 11'!$A$9:$AK$78,37,0),"0") -> 0 | AC201: =IFERROR(VLOOKUP(A201,'شهر 12'!$A$9:$AK$78,37,0),"0") -> 0 | AE201: 0 | AG201: 0 | AH201: 0 | AI201: 0 | AJ201: 0 | AK201: 0 | AL201: 0 | AM201: 0 | AN201: 0 | AO201: 0 | AP201: 0
A202: 1197 | B202: =IF(C202="","",SUBTOTAL(3,$C$9:C202)) ->  | D202: =AE202 -> 0 | U202: =IFERROR(VLOOKUP(A202,'شهر 8'!$A$9:$AK$78,37,0),"0") -> 0 | W202: =IFERROR(VLOOKUP(A202,'شهر 9'!$A$9:$AK$78,37,0),"0") -> 0 | Y202: =IFERROR(VLOOKUP(A202,'شهر 10'!$A$9:$AK$78,37,0),"0") -> 0 | AA202: =IFERROR(VLOOKUP(A202,'شهر 11'!$A$9:$AK$78,37,0),"0") -> 0 | AC202: =IFERROR(VLOOKUP(A202,'شهر 12'!$A$9:$AK$78,37,0),"0") -> 0 | AE202: 0 | AG202: =IF(G202="0","0",IF(H202="0","0",IF(G202>H202,H202,IF(G202=H202,G202,IF(G202<H202,G202,))))) -> 0 | AH202: =IF(I202="0","0",IF(J202="0","0",IF(I202>J202,J202,IF(I202=J202,"0",IF(I202<J202,I202,))))) -> 0 | AI202: =IF(K202="0","0",IF(L202="0","0",IF(K202>L202,L202,IF(K202=L202,K202,IF(K202<L202,K202,))))) -> 0 | AJ202: =IF(M202="0","0",IF(N202="0","0",IF(M202>N202,N202,IF(M202=N202,M202,IF(M202<N202,M202,))))) -> 0 | AK202: =IF($O202="0","0",IF($P202="0","0",IF($O202>$P202,$P202,IF($O202=$P202,$O202,IF($O202<$P202,$O202,))))) -> 0 | AL202: =IF($Q202="0","0",IF($R202="0","0",IF($Q202>$R202,$R202,IF($Q202=$R202,$Q202,IF($Q202<$R202,$Q202,))))) -> 0 | AM202: =IF(S202="0","0",IF(T202="0","0",IF(S202>T202,T202,IF(S202=T202,T202,IF(S202<T202,S202,))))) -> 0 | AN202: =IF(U202="0","0",IF(V202="0","0",IF(U202>V202,V202,IF(U202=V202,U202,IF(U202<V202,U202,))))) -> 0 | AO202: =IF(W202="0","0",IF(X202="0","0",IF(W202>X202,X202,IF(W202=X202,W202,IF(W202<X202,W202,))))) -> 0 | AP202: =IF(Y202="0","0",IF(Z202="0","0",IF(Y202>Z202,Z202,IF(Y202=Z202,Y202,IF(Y202<Z202,Y202,))))) -> 0
A203: 1198 | B203: =IF(C203="","",SUBTOTAL(3,$C$9:C203)) ->  | D203: =AE203 -> 0 | U203: =IFERROR(VLOOKUP(A203,'شهر 8'!$A$9:$AK$78,37,0),"0") -> 0 | W203: =IFERROR(VLOOKUP(A203,'شهر 9'!$A$9:$AK$78,37,0),"0") -> 0 | Y203: =IFERROR(VLOOKUP(A203,'شهر 10'!$A$9:$AK$78,37,0),"0") -> 0 | AA203: =IFERROR(VLOOKUP(A203,'شهر 11'!$A$9:$AK$78,37,0),"0") -> 0 | AC203: =IFERROR(VLOOKUP(A203,'شهر 12'!$A$9:$AK$78,37,0),"0") -> 0 | AE203: 0 | AG203: =IF(G203="0","0",IF(H203="0","0",IF(G203>H203,H203,IF(G203=H203,G203,IF(G203<H203,G203,))))) -> 0 | AH203: =IF(I203="0","0",IF(J203="0","0",IF(I203>J203,J203,IF(I203=J203,"0",IF(I203<J203,I203,))))) -> 0 | AI203: =IF(K203="0","0",IF(L203="0","0",IF(K203>L203,L203,IF(K203=L203,K203,IF(K203<L203,K203,))))) -> 0 | AJ203: =IF(M203="0","0",IF(N203="0","0",IF(M203>N203,N203,IF(M203=N203,M203,IF(M203<N203,M203,))))) -> 0 | AK203: =IF($O203="0","0",IF($P203="0","0",IF($O203>$P203,$P203,IF($O203=$P203,$O203,IF($O203<$P203,$O203,))))) -> 0 | AL203: 0 | AM203: 0 | AN203: 0 | AO203: 0 | AP203: 0
... 3 more rows

Sheet شهر 1
A1: شهر يناير 2020 | E1: كود البداية | G1: =MIN(A9:A43) -> 1003
E2: كود النهاية | G2: =MAX(A9:A43) -> 1095
E3: =E5 -> 291.5 | F3: =SUM($E$5:F5) -> 670 | G3: =SUM($E$5:G5) -> 1081.75 | H3: =SUM($E$5:H5) -> 1293.25 | I3: =SUM($E$5:I5) -> 1367.25 | J3: =SUM($E$5:J5) -> 1422.25 | K3: =SUM($E$5:K5) -> 1493.25 | L3: =SUM($E$5:L5) -> 1611.25 | M3: =SUM($E$5:M5) -> 1651.25 | N3: =SUM($E$5:N5) -> 1786.25 | O3: =SUM($E$5:O5) -> 2128.75 | P3: =SUM($E$5:P5) -> 2170.75 | Q3: =SUM($E$5:Q5) -> 2402.8 | R3: =SUM($E$5:R5) -> 2452.8 | S3: =SUM($E$5:S5) -> 2736.8 | T3: =SUM($E$5:T5) -> 2819.8 | U3: =SUM($E$5:U5) -> 2819.8 | V3: =SUM($E$5:V5) -> 3048.55 | W3: =SUM($E$5:W5) -> 3294.55 | X3: =SUM($E$5:X5) -> 3502.05 | Y3: =SUM($E$5:Y5) -> 3547.05 | Z3: =SUM($E$5:Z5) -> 3672.05 | AA3: =SUM($E$5:AA5) -> 3950.05 | AB3: =SUM($E$5:AB5) -> 4079.55 | AC3: =SUM($E$5:AC5) -> 4263.55 | AD3: =SUM($E$5:AD5) -> 4330.05 | AE3: =SUM($E$5:AE5) -> 4492.45 | AF3: =SUM($E$5:AF5) -> 4593.45 | AG3: =SUM($E$5:AG5) -> 4674.45 | AH3: =SUM($E$5:AH5) -> 4896.7 | AI3: =SUM($E$5:AI5) -> 5213.45
D4: العدد | E4: =SUBTOTAL(2,E9:E80) -> 3 | F4: 4 | G4: 5 | H4: 3 | I4: 1 | J4: 3 | K4: 2 | L4: 1 | M4: 2 | N4: 4 | O4: 7 | P4: 2 | Q4: 3 | R4: 3 | S4: 3 | T4: 3 | U4: 0 | V4: 5 | W4: 2 | X4: 5 | Y4: 3 | Z4: 3 | AA4: 3 | AB4: 5 | AC4: 4 | AD4: 3 | AE4: 4 | AF4: 3 | AG4: 3 | AH4: 5 | AI4: 7 | AJ4: 0 | AK4: =SUM(E4:AI4) -> 104
D5: الاجمالي | E5: =SUM(E9:E105) -> 291.5 | F5: 378.5 | G5: 411.75 | H5: 211.5 | I5: 74 | J5: 55 | K5: 71 | L5: 118 | M5: 40 | N5: 135 | O5: 342.5 | P5: 42 | Q5: 232.05 | R5: 50 | S5: 284 | T5: 83 | U5: 0 | V5: 228.75 | W5: 246 | X5: 207.5 | Y5: 45 | Z5: 125 | AA5: 278 | AB5: 129.5 | AC5: 184 | AD5: 66.5 | AE5: 162.4 | AF5: 101 | AG5: 81 | AH5: 222.25 | AI5: 316.75 | AK5: =SUM(E5:AI5) -> 5213.45
A6: الكود | B6: م | C6: الاسم | D6: اجمالي الحساب | E6: =IF(E7="","",CHOOSE(WEEKDAY(E7),"الاحد","الاثنين","الثلاثاء","الاربعاء","الخميس","الجمعة","السبت")) -> الاربعاء | F6: =IF(F7="","",CHOOSE(WEEKDAY(F7),"الاحد","الاثنين","الثلاثاء","الاربعاء","الخميس","الجمعة","السبت")) -> الخميس | G6: الجمعة | H6: السبت | I6: الاحد | J6: الاثنين | K6: الثلاثاء | L6: الاربعاء | M6: الخميس | N6: الجمعة | O6: السبت | P6: الاحد | Q6: الاثنين | R6: الثلاثاء | S6: الاربعاء | T6: الخميس | U6: الجمعة | V6: السبت | W6: الاحد | X6: الاثنين | Y6: الثلاثاء | Z6: الاربعاء | AA6: الخميس | AB6: الجمعة | AC6: السبت | AD6: الاحد | AE6: الاثنين | AF6: الثلاثاء | AG6: الاربعاء | AH6: الخميس | AI6: الجمعة | AK6: الاجمالي
E7: 2020-01-01 | F7: 2020-01-02 | G7: 2020-01-03 | H7: 2020-01-04 | I7: 2020-01-05 | J7: 2020-01-06 | K7: 2020-01-07 | L7: 2020-01-08 | M7: 2020-01-09 | N7: 2020-01-10 | O7: 2020-01-11 | P7: 2020-01-12 | Q7: 2020-01-13 | R7: 2020-01-14 | S7: 2020-01-15 | T7: 2020-01-16 | U7: 2020-01-17 | V7: 2020-01-18 | W7: 2020-01-19 | X7: 2020-01-20 | Y7: 2020-01-21 | Z7: 2020-01-22 | AA7: 2020-01-23 | AB7: 2020-01-24 | AC7: 2020-01-25 | AD7: 2020-01-26 | AE7: 2020-01-27 | AF7: 2020-01-28 | AG7: 2020-01-29 | AH7: 2020-01-30 | AI7: 2020-01-31
AL8: عدد المرات
A9: 1033 | B9: =IF(C9="","",SUBTOTAL(3,$C$9:C9)) -> 1 | C9: ام عمار | D9: =IFERROR(VLOOKUP($A9,ورقة1!$A$9:$AE$139,4,FALSE),"") -> 468 | E9: 10 | AK9: =SUM(E9:AI9) -> 10 | AL9: =SUBTOTAL(3,E9:AJ9) -> 1
A10: 1015 | B10: 2 | C10: هيثم عزام | D10: =IFERROR(VLOOKUP($A10,ورقة1!$A$9:$AE$139,4,FALSE),"") -> 250.5 | E10: 22 | G10: 106.25 | K10: 62.5 | O10: =4+13.5 -> 17.5 | P10: 30 | Q10: =22.8+22.25 -> 45.05 | V10: 59.75 | X10: 17 | AA10: 118.5 | AB10: 10.5 | AD10: 12.5 | AE10: 86.75 | AF10: 10 | AH10: 122 | AI10: 6 | AK10: 726.3 | AL10: 15
A11: 1072 | B11: =IF(C11="","",SUBTOTAL(3,$C$9:C11)) -> 3 | C11: محمود احمد عبد الواحد | D11: =IFERROR(VLOOKUP($A11,ورقة1!$A$9:$AE$139,4,FALSE),"") -> 564.55 | E11: 259.5 | F11: 225 | G11: =45+31+65 -> 141 | H11: 142 | J11: 18 | L11: 118 | N11: 102 | O11: 85 | P11: 12 | S11: 35 | X11: 84 | AB11: 28 | AD11: 42 | AK11: 1291.5 | AL11: 13
A12: 1025 | B12: 3 | C12: ام ربيع محمد شحاته | D12: =IFERROR(VLOOKUP($A12,ورقة1!$A$9:$AE$139,4,FALSE),"") -> 75 | F12: 10 | G12: 9 | J12: 26 | O12: 5 | AG12: 6.5 | AK12: 56.5 | AL12: 5
A13: 1032 | B13: 4 | C13: مرات عمرو عادل | D13: =IFERROR(VLOOKUP($A13,ورقة1!$A$9:$AE$139,4,FALSE),"") -> 140 | F13: 135 | I13: =32+42 -> 74 | R13: 23.25 | V13: 18.25 | AA13: 135 | AB13: 66.5 | AI13: =27+66 -> 93 | AK13: 545 | AL13: 7
A14: 1040 | B14: =IF(C14="","",SUBTOTAL(3,$C$9:C14)) -> 6 | C14: اعتماد سعد | D14: =IFERROR(VLOOKUP($A14,ورقة1!$A$9:$AE$139,4,FALSE),"") -> 421.25 | G14: 130 | AK14: 130 | AL14: 1
A15: 1026 | B15: 5 | C15: سحر | D15: =IFERROR(VLOOKUP($A15,ورقة1!$A$9:$AE$139,4,FALSE),"") -> 75 | G15: 25.5 | O15: 22.5 | X15: 84.5 | Y15: 4 | Z15: 10 | AB15: 7.5 | AC15: 4 | AE15: 15.65 | AG15: 53.5 | AK15: 227.15 | AL15: 9
A16: 1069 | B16: =IF(C16="","",SUBTOTAL(3,$C$9:C16)) -> 8 | C16: =IFERROR(VLOOKUP(A16,ورقة1!A9:C139,3,0),"جديد") -> ربيع هنداوي | D16: =IFERROR(VLOOKUP($A16,ورقة1!$A$9:$AE$139,4,FALSE),"") -> 102.5 | H16: 19.5 | R16: 14 | AK16: 33.5 | AL16: 2
A17: 1066 | B17: =IF(C17="","",SUBTOTAL(3,$C$9:C17)) -> 9 | C17: =IFERROR(VLOOKUP(A17,ورقة1!A13:C143,3,0),"جديد") -> احمد ابراهيم محمد ابراهيم | D17: =IFERROR(VLOOKUP($A17,ورقة1!$A$9:$AE$139,4,FALSE),"") -> 397.5 | H17: 50 | Y17: 17.5 | AC17: 29 | AD17: 12 | AF17: 63 | AG17: 21 | AH17: 20.5 | AK17: 213 | AL17: 7
A18: 1054 | B18: 7 | C18: =IFERROR(VLOOKUP(A18,ورقة1!A18:C148,3,0),"جديد") -> خليفة كبدة | D18: =IFERROR(VLOOKUP($A18,ورقة1!$A$9:$AE$139,4,FALSE),"") -> 121 | J18: 11 | AK18: 11 | AL18: 1
A19: 1059 | B19: 8 | C19: =IFERROR(VLOOKUP(A19,ورقة1!A22:C152,3,0),"جديد") -> مرات طارق عبد الله | D19: =IFERROR(VLOOKUP($A19,ورقة1!$A$9:$AE$139,4,FALSE),"") -> 207 | K19: 8.5 | Q19: 8 | W19: 40 | AK19: 56.5 | AL19: 3
A20: 1019 | B20: =IF(C20="","",SUBTOTAL(3,$C$9:C20)) -> 12 | C20: =IFERROR(VLOOKUP(A20,ورقة1!A23:C153,3,0),"جديد") -> فتحي بردونة | D20: =IFERROR(VLOOKUP($A20,ورقة1!$A$9:$AE$139,4,FALSE),"") -> 226.5 | N20: 13.5 | AH20: 7 | AK20: 20.5 | AL20: 2
A21: 1042 | B21: 9 | C21: =IFERROR(VLOOKUP(A21,ورقة1!A24:C154,3,0),"جديد") -> محمد راضي ع العليم | D21: =IFERROR(VLOOKUP($A21,ورقة1!$A$9:$AE$139,4,FALSE),"") -> 82 | M21: 36 | O21: 32.5 | T21: 23.5 | X21: 10 | AB21: 17 | AK21: 119 | AL21: 5
A22: 1038 | B22: =IF(C22="","",SUBTOTAL(3,$C$9:C22)) -> 14 | C22: =IFERROR(VLOOKUP(A22,ورقة1!A25:C155,3,0),"جديد") -> ربيع جمعة | D22: =IFERROR(VLOOKUP($A22,ورقة1!$A$9:$AE$139,4,FALSE),"") -> 29.5 | N22: 9 | Y22: =16+7.5 -> 23.5 | AK22: 32.5 | AL22: 2
A23: 1082 | B23: 10 | C23: نادية شقلوف | D23: =IFERROR(VLOOKUP($A23,ورقة1!$A$9:$AE$139,4,FALSE),"") -> 122 | M23: 4 | O23: 140 | AK23: 144 | AL23: 2
A24: 1021 | B24: 11 | C24: رضا محمد احمد | D24: =IFERROR(VLOOKUP($A24,ورقة1!$A$9:$AE$139,4,FALSE),"") -> 134.25 | N24: 10.5 | AC24: 18.5 | AI24: 21.75 | AK24: 50.75 | AL24: 3
A25: 1046 | B25: =IF(C25="","",SUBTOTAL(3,$C$9:C25)) -> 17 | C25: =IFERROR(VLOOKUP(A25,ورقة1!A36:C166,3,0),"جديد") -> ام ياسين | D25: =IFERROR(VLOOKUP($A25,ورقة1!$A$9:$AE$139,4,FALSE),"") -> 285.2 | O25: 40 | AK25: 40 | AL25: 1
A26: 1078 | B26: 12 | C26: =IFERROR(VLOOKUP(A26,ورقة1!A41:C171,3,0),"جديد") -> محمد احمد العبد | D26: =IFERROR(VLOOKUP($A26,ورقة1!$A$9:$AE$139,4,FALSE),"") -> 142 | Q26: 179 | AK26: 179 | AL26: 1
A27: 1039 | B27: =IF(C27="","",SUBTOTAL(3,$C$9:C27)) -> 19 | C27: =IFERROR(VLOOKUP(A27,ورقة1!A43:C173,3,0),"جديد") -> مرات محمود عادل | D27: =IFERROR(VLOOKUP($A27,ورقة1!$A$9:$AE$139,4,FALSE),"") -> 805.25 | R27: 12.75 | AI27: 108 | AK27: 120.75 | AL27: 2
A28: 1057 | B28: 13 | C28: ام كريم خيري | D28: =IFERROR(VLOOKUP($A28,ورقة1!$A$9:$AE$139,4,FALSE),"") -> 20 | S28: 20 | AK28: 20 | AL28: 1
A29: 1018 | B29: =IF(C29="","",SUBTOTAL(3,$C$9:C29)) -> 21 | C29: عبد الرحمن احمد | D29: =IFERROR(VLOOKUP($A29,ورقة1!$A$9:$AE$139,4,FALSE),"") -> 460.5 | F29: 8.5 | S29: 229 | Z29: 10 | AC29: =96+36.5 -> 132.5 | AK29: 380 | AL29: 4
A30: 1095 | B30: 14 | C30: محمد خميس | D30: =IFERROR(VLOOKUP($A30,ورقة1!$A$9:$AE$139,4,FALSE),"") -> 508 | T30: 20 | AE30: 40 | AK30: 60 | AL30: 2
A31: 1093 | B31: =IF(C31="","",SUBTOTAL(3,$C$9:C31)) -> 23 | C31: عمي ناجى محمد على | D31: =IFERROR(VLOOKUP($A31,ورقة1!$A$9:$AE$139,4,FALSE),"") -> 525 | T31: 39.5 | AK31: 39.5 | AL31: 1
A32: 1013 | B32: 15 | C32: =IFERROR(VLOOKUP(A32,ورقة1!$A$9:$C$258,3,0),"جديد") -> احمد الشيخ عيد | D32: =IFERROR(VLOOKUP($A32,ورقة1!$A$9:$AE$139,4,FALSE),"") -> 508.75 | V32: 98 | W32: 206 | AK32: 304 | AL32: 2
A33: 1028 | B33: 16 | C33: =IFERROR(VLOOKUP(A33,ورقة1!$A$9:$C$258,3,0),"جديد") -> محمد زغلول عبد اللطيف | D33: =IFERROR(VLOOKUP($A33,ورقة1!$A$9:$AE$139,4,FALSE),"") -> 175.75 | V33: 6.75 | AK33: 6.75 | AL33: 1
A34: 1091 | B34: =IF(C34="","",SUBTOTAL(3,$C$9:C34)) -> 26 | C34: =IFERROR(VLOOKUP(A34,ورقة1!$A$9:$C$258,3,0),"جديد") -> سعيد راضي | D34: =IFERROR(VLOOKUP($A34,ورقة1!$A$9:$AE$139,4,FALSE),"") -> 89 | V34: 46 | Z34: =55+50 -> 105 | AI34: 10.25 | AK34: 161.25 | AL34: 3
A35: 1003 | B35: 17 | C35: =IFERROR(VLOOKUP(A35,ورقة1!$A$9:$C$258,3,0),"جديد") -> رضا جمعة حسين | D35: =IFERROR(VLOOKUP($A35,ورقة1!$A$9:$AE$139,4,FALSE),"") -> 1056.3 | X35: 12 | AA35: 24.5 | AH35: 12.75 | AK35: 49.25 | AL35: 3
A36: 1060 | B36: =IF(C36="","",SUBTOTAL(3,$C$9:C36)) -> 28 | C36: اخت هاني | D36: =IFERROR(VLOOKUP($A36,ورقة1!$A$9:$AE$139,4,FALSE),"") -> 20 | AE36: 20 | AK36: 20 | AL36: 1
A37: 1056 | B37: 19 | C37: مرات اسماعيل خيري | D37: =IFERROR(VLOOKUP($A37,ورقة1!$A$9:$AE$139,4,FALSE),"") -> 58.25 | AF37: 28 | AK37: 28 | AL37: 1
A38: 1068 | B38: 20 | C38: =IFERROR(VLOOKUP(A38,ورقة1!$A$9:$C$258,3,0),"جديد") -> محمد رجب ابو طاقية | D38: =IFERROR(VLOOKUP($A38,ورقة1!$A$9:$AE$139,4,FALSE),"") -> 73.25 | AI38: 15 | AK38: 15 | AL38: 1
A39: 1043 | B39: =IF(C39="","",SUBTOTAL(3,$C$9:C39)) -> 31 | C39: احمد الجغل | D39: =IFERROR(VLOOKUP($A39,ورقة1!$A$9:$AE$139,4,FALSE),"") -> 706.75 | AH39: 60 | AI39: =53.75+9 -> 62.75 | AK39: 122.75 | AL39: 2
A44: اجمالي الشهر | C44: =AK5 -> 5213.45
A45: اجمالي التنزيلات في الشهر | C45: =ورقة1!H6 -> 4943.85
A46: عدد الافراد | C46: =B39 -> 31 | D46: =C44/C46 -> 168.1758065
A47: تنزيلات فعلية من الشهر | C47: =ورقة1!AG8 -> 3358.3
A48: الباقي من الشهر | C48: =C44-C47 -> 1855.15
A49: تنزيل من السابق | C49: =C45-C47 -> 1585.55

Sheet شهر 2
A1: شهر فبراير 2020 | E1: كود البداية | G1: =MIN(A9:A43) -> 1003
E2: كود النهاية | G2: =MAX(A9:A43) -> 1110
E3: =E5 -> 12 | F3: =SUM($E$5:F5) -> 269.25 | G3: =SUM($E$5:G5) -> 435.5 | H3: =SUM($E$5:H5) -> 558.5 | I3: =SUM($E$5:I5) -> 743.25 | J3: =SUM($E$5:J5) -> 811.25 | K3: =SUM($E$5:K5) -> 1067.25 | L3: =SUM($E$5:L5) -> 1355.25 | M3: =SUM($E$5:M5) -> 1530.75 | N3: =SUM($E$5:N5) -> 1845.75 | O3: =SUM($E$5:O5) -> 1967.5 | P3: =SUM($E$5:P5) -> 2613.45 | Q3: =SUM($E$5:Q5) -> 2613.45 | R3: =SUM($E$5:R5) -> 2804.7 | S3: =SUM($E$5:S5) -> 2828.7 | T3: =SUM($E$5:T5) -> 3086.7 | U3: =SUM($E$5:U5) -> 3295.45 | V3: =SUM($E$5:V5) -> 3468.45 | W3: =SUM($E$5:W5) -> 3527.45 | X3: =SUM($E$5:X5) -> 4124.95 | Y3: =SUM($E$5:Y5) -> 4282.7 | Z3: =SUM($E$5:Z5) -> 4354.2 | AA3: =SUM($E$5:AA5) -> 4515.2 | AB3: =SUM($E$5:AB5) -> 4632.2 | AC3: =SUM($E$5:AC5) -> 4663.7 | AD3: =SUM($E$5:AD5) -> 4734.95 | AE3: =SUM($E$5:AE5) -> 4937.45 | AF3: =SUM($E$5:AF5) -> 5025.45 | AG3: =SUM($E$5:AG5) -> 5207.45 | AH3: =SUM($E$5:AH5) -> 5207.45 | AI3: =SUM($E$5:AI5) -> 5207.45
D4: العدد | E4: =SUBTOTAL(2,E9:E84) -> 1 | F4: =SUBTOTAL(2,F9:F84) -> 6 | G4: 4 | H4: 3 | I4: 4 | J4: 3 | K4: 4 | L4: 2 | M4: 6 | N4: 4 | O4: 4 | P4: 9 | Q4: 0 | R4: 4 | S4: 2 | T4: 3 | U4: 6 | V4: 2 | W4: 3 | X4: 7 | Y4: 3 | Z4: 2 | AA4: 3 | AB4: 5 | AC4: 3 | AD4: 4 | AE4: 3 | AF4: 1 | AG4: 2 | AH4: 0 | AI4: 0 | AJ4: 0 | AK4: =SUM(E4:AI4) -> 103 | AL4: العدد
D5: الاجمالي | E5: =SUM(E9:E109) -> 12 | F5: =SUM(F9:F109) -> 257.25 | G5: 166.25 | H5: 123 | I5: 184.75 | J5: 68 | K5: 256 | L5: 288 | M5: 175.5 | N5: 315 | O5: 121.75 | P5: 645.95 | Q5: 0 | R5: 191.25 | S5: 24 | T5: 258 | U5: 208.75 | V5: 173 | W5: 59 | X5: 597.5 | Y5: 157.75 | Z5: 71.5 | AA5: 161 | AB5: 117 | AC5: 31.5 | AD5: 71.25 | AE5: 202.5 | AF5: 88 | AG5: 182 | AH5: 0 | AI5: 0 | AK5: =SUM(E5:AI5) -> 5207.45 | AL5: الاجمالي
A6: الكود | B6: م | C6: الاسم | D6: اجمالي الحساب | E6: =IF(E7="","",CHOOSE(WEEKDAY(E7),"الاحد","الاثنين","الثلاثاء","الاربعاء","الخميس","الجمعة","السبت")) -> السبت | F6: =IF(F7="","",CHOOSE(WEEKDAY(F7),"الاحد","الاثنين","الثلاثاء","الاربعاء","الخميس","الجمعة","السبت")) -> الاحد | G6: الاثنين | H6: الثلاثاء | I6: الاربعاء | J6: الخميس | K6: الجمعة | L6: السبت | M6: الاحد | N6: الاثنين | O6: الثلاثاء | P6: الاربعاء | Q6: الخميس | R6: الجمعة | S6: السبت | T6: الاحد | U6: الاثنين | V6: الثلاثاء | W6: الاربعاء | X6: الخميس | Y6: الجمعة | Z6: السبت | AA6: الاحد | AB6: الاثنين | AC6: الثلاثاء | AD6: الاربعاء | AE6: الخميس | AF6: الجمعة | AG6: =IF(AG7="","",CHOOSE(WEEKDAY(AG7),"الاحد","الاثنين","الثلاثاء","الاربعاء","الخميس","الجمعة","السبت")) -> السبت | AK6: الاجمالي
E7: 2020-02-01 | F7: 2020-02-02 | G7: 2020-02-03 | H7: 2020-02-04 | I7: 2020-02-05 | J7: 2020-02-06 | K7: 2020-02-07 | L7: 2020-02-08 | M7: 2020-02-09 | N7: 2020-02-10 | O7: 2020-02-11 | P7: 2020-02-12 | Q7: 2020-02-13 | R7: 2020-02-14 | S7: 2020-02-15 | T7: 2020-02-16 | U7: 2020-02-17 | V7: 2020-02-18 | W7: 2020-02-19 | X7: 2020-02-20 | Y7: 2020-02-21 | Z7: 2020-02-22 | AA7: 2020-02-23 | AB7: 2020-02-24 | AC7: 2020-02-25 | AD7: 2020-02-26 | AE7: 2020-02-27 | AF7: 2020-02-28 | AG7: 2020-02-29
AL8: عدد المرات
A9: 1066 | B9: =IF(C9="","",SUBTOTAL(3,$C$9:C9)) -> 1 | C9: =IFERROR(VLOOKUP(A9,ورقة1!$A$9:$C$258,3,0),"اضافة ") -> احمد ابراهيم محمد ابراهيم | D9: =IFERROR(VLOOKUP($A9,ورقة1!$A$9:$AE$139,4,FALSE),"") -> 397.5 | E9: 12 | M9: 10 | R9: 25 | U9: 6.75 | X9: 36 | AA9: 10 | AK9: =SUM(E9:AI9) -> 99.75 | AL9: =SUBTOTAL(3,E9:AJ9) -> 6
A10: 1033 | B10: =IF(C10="","",SUBTOTAL(3,$C$9:C10)) -> 2 | C10: =IFERROR(VLOOKUP(A10,ورقة1!$A$9:$C$258,3,0),"اضافة ") -> ام عمار | D10: =IFERROR(VLOOKUP($A10,ورقة1!$A$9:$AE$139,4,FALSE),"") -> 468 | F10: 10 | AK10: =SUM(E10:AI10) -> 10 | AL10: =SUBTOTAL(3,E10:AJ10) -> 1
A11: 1056 | B11: =IF(C11="","",SUBTOTAL(3,$C$9:C11)) -> 3 | C11: =IFERROR(VLOOKUP(A11,ورقة1!$A$9:$C$258,3,0),"اضافة ") -> مرات اسماعيل خيري | D11: =IFERROR(VLOOKUP($A11,ورقة1!$A$9:$AE$139,4,FALSE),"") -> 58.25 | F11: 118.5 | H11: 48 | J11: 9.5 | M11: 14 | R11: 45 | U11: 29 | AA11: 105 | AC11: 5 | AE11: 38.5 | AK11: 412.5 | AL11: 9
A12: 1025 | B12: =IF(C12="","",SUBTOTAL(3,$C$9:C12)) -> 4 | C12: =IFERROR(VLOOKUP(A12,ورقة1!$A$9:$C$258,3,0),"اضافة ") -> ام ربيع محمد شحاتة | D12: =IFERROR(VLOOKUP($A12,ورقة1!$A$9:$AE$139,4,FALSE),"") -> 75 | F12: 79 | M12: 7.5 | P12: 10.5 | X12: 8 | AK12: 105 | AL12: 4
A13: 1015 | B13: =IF(C13="","",SUBTOTAL(3,$C$9:C13)) -> 5 | C13: =IFERROR(VLOOKUP(A13,ورقة1!$A$9:$C$258,3,0),"اضافة ") -> هيثم عزام | D13: =IFERROR(VLOOKUP($A13,ورقة1!$A$9:$AE$139,4,FALSE),"") -> 250.5 | F13: 10.25 | K13: 56 | N13: =79.5+52.5 -> 132 | P13: 23.5 | R13: 10.5 | S13: 10.5 | U13: 16 | W13: 7 | Y13: 79.5 | Z13: =13+15.5 -> 28.5 | AB13: 10 | AF13: 88 | AK13: 471.75 | AL13: 12
A14: 1003 | B14: =IF(C14="","",SUBTOTAL(3,$C$9:C14)) -> 6 | C14: =IFERROR(VLOOKUP(A14,ورقة1!$A$9:$C$258,3,0),"اضافة ") -> رضا جمعة حسين | D14: =IFERROR(VLOOKUP($A14,ورقة1!$A$9:$AE$139,4,FALSE),"") -> 1056.3 | F14: 9.5 | G14: 15 | R14: =98+12.75 -> 110.75 | AB14: 47 | AK14: 182.25 | AL14: 4
A15: 1067 | B15: =IF(C15="","",SUBTOTAL(3,$C$9:C15)) -> 7 | C15: ابراهيم عبد الله | D15: =IFERROR(VLOOKUP($A15,ورقة1!$A$9:$AE$139,4,FALSE),"") -> 30 | F15: 30 | AK15: 30 | AL15: 1
A16: 1021 | B16: =IF(C16="","",SUBTOTAL(3,$C$9:C16)) -> 8 | C16: =IFERROR(VLOOKUP(A16,ورقة1!$A$9:$C$258,3,0),"اضافة ") -> رضا محمد احمد | D16: =IFERROR(VLOOKUP($A16,ورقة1!$A$9:$AE$139,4,FALSE),"") -> 134.25 | G16: 69.5 | H16: 15 | I16: 11.25 | K16: 6 | W16: 10 | Y16: 38.25 | AK16: 150 | AL16: 6
A17: 1072 | B17: =IF(C17="","",SUBTOTAL(3,$C$9:C17)) -> 9 | C17: =IFERROR(VLOOKUP(A17,ورقة1!$A$9:$C$258,3,0),"اضافة ") -> محمود احمد عبد الواحد | D17: =IFERROR(VLOOKUP($A17,ورقة1!$A$9:$AE$139,4,FALSE),"") -> 564.55 | G17: 75.75 | P17: 30 | U17: 130 | AE17: 157 | AG17: 158 | AK17: 550.75 | AL17: 5
A18: 1012 | B18: =IF(C18="","",SUBTOTAL(3,$C$9:C18)) -> 10 | C18: =IFERROR(VLOOKUP(A18,ورقة1!$A$9:$C$258,3,0),"اضافة ") -> ام سعودي عبد الله | D18: =IFERROR(VLOOKUP($A18,ورقة1!$A$9:$AE$139,4,FALSE),"") -> 552 | G18: 6 | P18: 212.75 | AA18: 46 | AK18: 264.75 | AL18: 3
A19: 1091 | B19: =IF(C19="","",SUBTOTAL(3,$C$9:C19)) -> 11 | C19: =IFERROR(VLOOKUP(A19,ورقة1!$A$9:$C$258,3,0),"اضافة ") -> سعيد راضي | D19: =IFERROR(VLOOKUP($A19,ورقة1!$A$9:$AE$139,4,FALSE),"") -> 89 | H19: 60 | V19: 161 | X19: 17.5 | AK19: 238.5 | AL19: 3
A20: 1054 | B20: =IF(C20="","",SUBTOTAL(3,$C$9:C20)) -> 12 | C20: =IFERROR(VLOOKUP(A20,ورقة1!$A$9:$C$258,3,0),"اضافة ") -> خليفة كبدة | D20: =IFERROR(VLOOKUP($A20,ورقة1!$A$9:$AE$139,4,FALSE),"") -> 121 | I20: 14.5 | AK20: 14.5 | AL20: 1
A21: 1040 | B21: =IF(C21="","",SUBTOTAL(3,$C$9:C21)) -> 13 | C21: =IFERROR(VLOOKUP(A21,ورقة1!$A$9:$C$258,3,0),"اضافة ") -> اعتماد سعد | D21: =IFERROR(VLOOKUP($A21,ورقة1!$A$9:$AE$139,4,FALSE),"") -> 421.25 | I21: =80+50 -> 130 | AK21: 130 | AL21: 1
A22: 1026 | B22: =IF(C22="","",SUBTOTAL(3,$C$9:C22)) -> 14 | C22: =IFERROR(VLOOKUP(A22,ورقة1!$A$9:$C$258,3,0),"اضافة ") -> سحر | D22: =IFERROR(VLOOKUP($A22,ورقة1!$A$9:$AE$139,4,FALSE),"") -> 75 | I22: 29 | J22: 20 | L22: 5 | N22: 8.5 | O22: 4 | U22: 15.5 | X22: 25.5 | AK22: 107.5 | AL22: 7
A23: 1028 | B23: =IF(C23="","",SUBTOTAL(3,$C$9:C23)) -> 15 | C23: =IFERROR(VLOOKUP(A23,ورقة1!$A$9:$C$258,3,0),"اضافة ") -> محمد زغلول عبد اللطيف | D23: =IFERROR(VLOOKUP($A23,ورقة1!$A$9:$AE$139,4,FALSE),"") -> 175.75 | J23: 38.5 | AK23: 38.5 | AL23: 1
A24: 1032 | B24: =IF(C24="","",SUBTOTAL(3,$C$9:C24)) -> 16 | C24: =IFERROR(VLOOKUP(A24,ورقة1!$A$9:$C$258,3,0),"اضافة ") -> مرات عمرو عادل | D24: =IFERROR(VLOOKUP($A24,ورقة1!$A$9:$AE$139,4,FALSE),"") -> 140 | K24: 10.5 | M24: 98 | N24: 165 | P24: 68.2 | S24: 13.5 | AK24: 355.2 | AL24: 5
A25: 1078 | B25: =IF(C25="","",SUBTOTAL(3,$C$9:C25)) -> 17 | C25: =IFERROR(VLOOKUP(A25,ورقة1!$A$9:$C$258,3,0),"اضافة ") -> محمد احمد العبد | D25: =IFERROR(VLOOKUP($A25,ورقة1!$A$9:$AE$139,4,FALSE),"") -> 142 | L25: 283 | AK25: 283 | AL25: 1
A26: 1043 | B26: =IF(C26="","",SUBTOTAL(3,$C$9:C26)) -> 18 | C26: =IFERROR(VLOOKUP(A26,ورقة1!$A$9:$C$258,3,0),"اضافة ") -> احمد الجغل | D26: =IFERROR(VLOOKUP($A26,ورقة1!$A$9:$AE$139,4,FALSE),"") -> 706.75 | M26: 6 | X26: 29 | AB26: 23 | AK26: 58 | AL26: 3
A27: 1101 | B27: =IF(C27="","",SUBTOTAL(3,$C$9:C27)) -> 19 | C27: عصام رجب | D27: =IFERROR(VLOOKUP($A27,ورقة1!$A$9:$AE$139,4,FALSE),"") -> 116 | M27: 40 | AK27: 40 | AL27: 1
A28: 1108 | B28: =IF(C28="","",SUBTOTAL(3,$C$9:C28)) -> 20 | C28: عبد النافع شحاته | D28: =IFERROR(VLOOKUP($A28,ورقة1!$A$9:$AE$139,4,FALSE),"") -> 246.25 | K28: 183.5 | O28: 51.25 | U28: 11.5 | AK28: 246.25 | AL28: 3
A29: 1065 | B29: =IF(C29="","",SUBTOTAL(3,$C$9:C29)) -> 21 | C29: =IFERROR(VLOOKUP(A29,ورقة1!$A$9:$C$258,3,0),"اضافة ") -> رمضان محمد عبد الحفيظ | D29: =IFERROR(VLOOKUP($A29,ورقة1!$A$9:$AE$139,4,FALSE),"") -> 48.5 | O29: 14 | P29: 5 | T29: 5 | AK29: 24 | AL29: 3
A30: 1110 | B30: =IF(C30="","",SUBTOTAL(3,$C$9:C30)) -> 22 | C30: مرات عصام خليفة | D30: =IFERROR(VLOOKUP($A30,ورقة1!$A$9:$AE$139,4,FALSE),"") -> 29.5 | O30: 52.5 | AB30: 4 | AK30: 56.5 | AL30: 2
A31: 1095 | B31: =IF(C31="","",SUBTOTAL(3,$C$9:C31)) -> 23 | C31: =IFERROR(VLOOKUP(A31,ورقة1!$A$9:$C$258,3,0),"اضافة ") -> محمد خميس | D31: =IFERROR(VLOOKUP($A31,ورقة1!$A$9:$AE$139,4,FALSE),"") -> 508 | N31: 9.5 | T31: 92 | AC31: 3.5 | AK31: 105 | AL31: 3
A32: 1018 | B32: =IF(C32="","",SUBTOTAL(3,$C$9:C32)) -> 24 | C32: =IFERROR(VLOOKUP(A32,ورقة1!$A$9:$C$258,3,0),"اضافة ") -> عبد الرحمن احمد | D32: =IFERROR(VLOOKUP($A32,ورقة1!$A$9:$AE$139,4,FALSE),"") -> 460.5 | P32: 215 | AE32: 7 | AK32: 222 | AL32: 2
A33: 1042 | B33: =IF(C33="","",SUBTOTAL(3,$C$9:C33)) -> 25 | C33: =IFERROR(VLOOKUP(A33,ورقة1!$A$9:$C$258,3,0),"اضافة ") -> محمد راضي ع العليم | D33: =IFERROR(VLOOKUP($A33,ورقة1!$A$9:$AE$139,4,FALSE),"") -> 82 | P33: =32+19.5 -> 51.5 | AD33: 6.25 | AG33: 24 | AK33: 81.75 | AL33: 3
A34: 1105 | B34: =IF(C34="","",SUBTOTAL(3,$C$9:C34)) -> 26 | C34: رمضان (ابو الهوي ) | D34: =IFERROR(VLOOKUP($A34,ورقة1!$A$9:$AE$139,4,FALSE),"") -> 223.5 | P34: 29.5 | T34: 161 | AB34: 33 | AK34: 223.5 | AL34: 3
A35: 1059 | B35: =IF(C35="","",SUBTOTAL(3,$C$9:C35)) -> 27 | C35: =IFERROR(VLOOKUP(A35,ورقة1!$A$9:$C$258,3,0),"اضافة ") -> مرات طارق عبد الله | D35: =IFERROR(VLOOKUP($A35,ورقة1!$A$9:$AE$139,4,FALSE),"") -> 207 | V35: 12 | Z35: =37+6 -> 43 | AK35: 55 | AL35: 2
A36: 1104 | B36: =IF(C36="","",SUBTOTAL(3,$C$9:C36)) -> 28 | C36: علاوي احمد | D36: =IFERROR(VLOOKUP($A36,ورقة1!$A$9:$AE$139,4,FALSE),"") -> 250 | X36: 350 | AK36: 350 | AL36: 1
A37: 1013 | B37: =IF(C37="","",SUBTOTAL(3,$C$9:C37)) -> 29 | C37: =IFERROR(VLOOKUP(A37,ورقة1!$A$9:$C$258,3,0),"اضافة ") -> احمد الشيخ عيد | D37: =IFERROR(VLOOKUP($A37,ورقة1!$A$9:$AE$139,4,FALSE),"") -> 508.75 | X37: 131.5 | AK37: 131.5 | AL37: 1
A38: 1038 | B38: =IF(C38="","",SUBTOTAL(3,$C$9:C38)) -> 30 | C38: =IFERROR(VLOOKUP(A38,ورقة1!$A$9:$C$258,3,0),"اضافة ") -> ربيع جمعة | D38: =IFERROR(VLOOKUP($A38,ورقة1!$A$9:$AE$139,4,FALSE),"") -> 29.5 | Y38: 40 | AK38: 40 | AL38: 1
A39: 1048 | B39: =IF(C39="","",SUBTOTAL(3,$C$9:C39)) -> 31 | C39: =IFERROR(VLOOKUP(A39,ورقة1!$A$9:$C$258,3,0),"اضافة ") -> وائل خلف | D39: =IFERROR(VLOOKUP($A39,ورقة1!$A$9:$AE$139,4,FALSE),"") -> 347.25 | AC39: 23 | AK39: =SUM(E39:AI39) -> 23 | AL39: =SUBTOTAL(3,E39:AJ39) -> 1
A40: 1096 | B40: =IF(C40="","",SUBTOTAL(3,$C$9:C40)) -> 32 | C40: =IFERROR(VLOOKUP(A40,ورقة1!$A$9:$C$258,3,0),"اضافة ") -> كمال عاشور | D40: =IFERROR(VLOOKUP($A40,ورقة1!$A$9:$AE$139,4,FALSE),"") -> 19 | AD40: 8.5 | AK40: 8.5 | AL40: 1
A41: 1086 | B41: =IF(C41="","",SUBTOTAL(3,$C$9:C41)) -> 33 | C41: =IFERROR(VLOOKUP(A41,ورقة1!$A$9:$C$258,3,0),"اضافة ") -> اخت سيد محمد عبد الحميد | D41: =IFERROR(VLOOKUP($A41,ورقة1!$A$9:$AE$139,4,FALSE),"") -> 248.5 | AD41: 46.5 | AK41: 46.5 | AL41: 1
A42: 1036 | B42: =IF(C42="","",SUBTOTAL(3,$C$9:C42)) -> 34 | C42: مرات عبد الحميد | D42: =IFERROR(VLOOKUP($A42,ورقة1!$A$9:$AE$139,4,FALSE),"") -> 146 | W42: 42 | AK42: 42 | AL42: 1
A43: 1085 | B43: =IF(C43="","",SUBTOTAL(3,$C$9:C43)) -> 35 | C43: =IFERROR(VLOOKUP(A43,ورقة1!$A$9:$C$258,3,0),"اضافة ") -> مرات صبري ع العال | D43: =IFERROR(VLOOKUP($A43,ورقة1!$A$9:$AE$139,4,FALSE),"") -> 37 | AD43: 10 | AK43: 10
A47: اجمالي الشهر | C47: =AK5 -> 5207.45
A48: اجمالي التنزيلات الشهر | C48: =ورقة1!J6 -> 2362.75
A49: عدد الافراد | C49: =B43 -> 35
A50: تنزيلات فعلية من الشهر | C50: =ورقة1!AH8 -> 1659.45
A51: الباقي من الشهر | C51: =C47-C50 -> 3548
A52: تنزيل من السابق | C52: =C48-C50 -> 703.3
A55: 1003
A56: 1012
A57: 1013
A58: 1015
A59: 1018
A60: 1021
A61: 1023
A62: 1025
A63: 1026
A64: 1028
A65: 1029
A66: 1030
A67: 1031
A68: 1032
A69: 1033
A70: 1036
A71: 1037
A72: 1038
A73: 1040
A74: 1041
A75: 1042
A76: 1043
A77: 1047
A78: 1048
A79: 1054
A80: 1056
A81: 1059
A82: 1065
A83: 1066
A84: 1067
A85: 1072
A86: 1073
A87: 1075
A88: 1076
A89: 1078
A90: 1084
A91: 1085
A92: 1086
A93: 1088
A94: 1089
A95: 1090
A96: 1091
A97: 1093
A98: 1095
A99: 1096
A100: 1097
A101: 1098
A102: 1099
A103: 1100
A104: 1101
A105: 1102
A106: 1103
A107: 1104
A108: 1105
A109: 1106
A110: 1107
A111: 1108
A112: 1109
A113: 1110

Sheet سهر 3
A1: شهرمارس 2020 | E1: كود البداية | G1: =MIN(A9:A37) -> 1012
E2: كود النهاية | G2: =MAX(A9:A128) -> 1123
E3: =E5 -> 150.75 | F3: =SUM($E$5:F5) -> 262.25 | G3: =SUM($E$5:G5) -> 337.25 | H3: =SUM($E$5:H5) -> 497.25 | I3: =SUM($E$5:I5) -> 659.75 | J3: =SUM($E$5:J5) -> 753.75 | K3: =SUM($E$5:K5) -> 799.75 | L3: =SUM($E$5:L5) -> 816 | M3: =SUM($E$5:M5) -> 858.75 | N3: =SUM($E$5:N5) -> 1023.25 | O3: =SUM($E$5:O5) -> 1208.75 | P3: =SUM($E$5:P5) -> 1208.75 | Q3: =SUM($E$5:Q5) -> 1224.25 | R3: =SUM($E$5:R5) -> 1520.25 | S3: =SUM($E$5:S5) -> 1809.25 | T3: =SUM($E$5:T5) -> 1883.25 | U3: =SUM($E$5:U5) -> 2008.25 | V3: =SUM($E$5:V5) -> 2253.25 | W3: =SUM($E$5:W5) -> 2275.25 | X3: =SUM($E$5:X5) -> 2326.25 | Y3: =SUM($E$5:Y5) -> 2505.25 | Z3: =SUM($E$5:Z5) -> 2883 | AA3: =SUM($E$5:AA5) -> 3252.5 | AB3: =SUM($E$5:AB5) -> 3458 | AC3: =SUM($E$5:AC5) -> 3638.75 | AD3: =SUM($E$5:AD5) -> 3792.25 | AE3: =SUM($E$5:AE5) -> 3886.75 | AF3: =SUM($E$5:AF5) -> 4070.25 | AG3: =SUM($E$5:AG5) -> 4209.1 | AH3: =SUM($E$5:AH5) -> 4506.1 | AI3: =SUM($E$5:AI5) -> 4518.1
D4: العدد | E4: =SUBTOTAL(2,E9:E87) -> 4 | F4: =SUBTOTAL(2,F9:F87) -> 2 | G4: 3 | H4: 3 | I4: 4 | J4: 6 | K4: 2 | L4: 2 | M4: 2 | N4: 3 | O4: 3 | P4: 0 | Q4: 2 | R4: 8 | S4: 6 | T4: 3 | U4: 4 | V4: 3 | W4: 1 | X4: 5 | Y4: 2 | Z4: 5 | AA4: 6 | AB4: 5 | AC4: 7 | AD4: 1 | AE4: 4 | AF4: 5 | AG4: 3 | AH4: 2 | AI4: 1 | AJ4: 0 | AK4: =SUM(E4:AI4) -> 107 | AL4: العدد
D5: الاجمالي | E5: =SUM(E9:E112) -> 150.75 | F5: =SUM(F9:F112) -> 111.5 | G5: 75 | H5: 160 | I5: 162.5 | J5: 94 | K5: 46 | L5: 16.25 | M5: 42.75 | N5: 164.5 | O5: 185.5 | P5: 0 | Q5: 15.5 | R5: 296 | S5: 289 | T5: 74 | U5: 125 | V5: 245 | W5: 22 | X5: 51 | Y5: 179 | Z5: 377.75 | AA5: 369.5 | AB5: 205.5 | AC5: 180.75 | AD5: 153.5 | AE5: 94.5 | AF5: 183.5 | AG5: 138.85 | AH5: 297 | AI5: 12 | AK5: =SUM(E5:AI5) -> 4518.1 | AL5: الاجمالي
A6: الكود | B6: م | C6: الاسم | D6: اجمالي الحساب | E6: =IF(E7="","",CHOOSE(WEEKDAY(E7),"الاحد","الاثنين","الثلاثاء","الاربعاء","الخميس","الجمعة","السبت")) -> الاحد | F6: =IF(F7="","",CHOOSE(WEEKDAY(F7),"الاحد","الاثنين","الثلاثاء","الاربعاء","الخميس","الجمعة","السبت")) -> الاثنين | G6: الثلاثاء | H6: الاربعاء | I6: الخميس | J6: الجمعة | K6: السبت | L6: الاحد | M6: الاثنين | N6: الثلاثاء | O6: الاربعاء | P6: الخميس | Q6: الجمعة | R6: السبت | S6: الاحد | T6: الاثنين | U6: الثلاثاء | V6: الاربعاء | W6: الخميس | X6: الجمعة | Y6: السبت | Z6: الاحد | AA6: الاثنين | AB6: الثلاثاء | AC6: الاربعاء | AD6: الخميس | AE6: الجمعة | AF6: السبت | AG6: الاحد | AH6: الاثنين | AI6: الثلاثاء | AK6: الاجمالي
E7: 2020-03-01 | F7: 2020-03-02 | G7: 2020-03-03 | H7: 2020-03-04 | I7: 2020-03-05 | J7: 2020-03-06 | K7: 2020-03-07 | L7: 2020-03-08 | M7: 2020-03-09 | N7: 2020-03-10 | O7: 2020-03-11 | P7: 2020-03-12 | Q7: 2020-03-13 | R7: 2020-03-14 | S7: 2020-03-15 | T7: 2020-03-16 | U7: 2020-03-17 | V7: 2020-03-18 | W7: 2020-03-19 | X7: 2020-03-20 | Y7: 2020-03-21 | Z7: 2020-03-22 | AA7: 2020-03-23 | AB7: 2020-03-24 | AC7: 2020-03-25 | AD7: 2020-03-26 | AE7: 2020-03-27 | AF7: 2020-03-28 | AG7: 2020-03-29 | AH7: 2020-03-30 | AI7: 2020-03-31
AL8: عدد المرات
A9: 1066 | B9: =IF(C9="","",SUBTOTAL(3,$C$9:C9)) -> 1 | C9: =IFERROR(VLOOKUP(A9,ورقة1!$A$9:$C$258,3,0),"اضافة ") -> احمد ابراهيم محمد ابراهيم | D9: =IFERROR(VLOOKUP($A9,ورقة1!$A$9:$AE$139,4,FALSE),"") -> 397.5 | E9: 10 | G9: 45 | S9: 37 | T9: 37 | X9: 10 | AC9: 12 | AI9: 12 | AK9: =SUM(E9:AI9) -> 163 | AL9: =SUBTOTAL(3,E9:AJ9) -> 7
A10: 1043 | B10: =IF(C10="","",SUBTOTAL(3,$C$9:C10)) -> 2 | C10: =IFERROR(VLOOKUP(A10,ورقة1!$A$9:$C$258,3,0),"اضافة ") -> احمد الجغل | D10: =IFERROR(VLOOKUP($A10,ورقة1!$A$9:$AE$139,4,FALSE),"") -> 706.75 | E10: 20.75 | Y10: 113 | AK10: =SUM(E10:AI10) -> 133.75 | AL10: =SUBTOTAL(3,E10:AJ10) -> 2
A11: 1101 | B11: =IF(C11="","",SUBTOTAL(3,$C$9:C11)) -> 3 | C11: =IFERROR(VLOOKUP(A11,ورقة1!$A$9:$C$258,3,0),"اضافة ") -> عصام رجب | D11: =IFERROR(VLOOKUP($A11,ورقة1!$A$9:$AE$139,4,FALSE),"") -> 116 | E11: 76 | AK11: 76 | AL11: 1
A12: 1086 | B12: =IF(C12="","",SUBTOTAL(3,$C$9:C12)) -> 4 | C12: =IFERROR(VLOOKUP(A12,ورقة1!$A$9:$C$258,3,0),"اضافة ") -> اخت سيد محمد عبد الحميد | D12: =IFERROR(VLOOKUP($A12,ورقة1!$A$9:$AE$139,4,FALSE),"") -> 248.5 | E12: 44 | AK12: 44 | AL12: 1
A13: 1015 | B13: =IF(C13="","",SUBTOTAL(3,$C$9:C13)) -> 5 | C13: =IFERROR(VLOOKUP(A13,ورقة1!$A$9:$C$258,3,0),"اضافة ") -> هيثم عزام | D13: =IFERROR(VLOOKUP($A13,ورقة1!$A$9:$AE$139,4,FALSE),"") -> 250.5 | F13: 89 | J13: 10 | M13: 12 | N13: 76 | S13: 81.5 | U13: 20 | X13: 7 | AB13: 17 | AC13: 9 | AE13: 13.5 | AF13: 6 | AK13: 341 | AL13: 11
A14: 1021 | B14: =IF(C14="","",SUBTOTAL(3,$C$9:C14)) -> 6 | C14: =IFERROR(VLOOKUP(A14,ورقة1!$A$9:$C$258,3,0),"اضافة ") -> رضا محمد احمد | D14: =IFERROR(VLOOKUP($A14,ورقة1!$A$9:$AE$139,4,FALSE),"") -> 134.25 | F14: 22.5 | J14: 18 | K14: 17 | N14: 79 | Q14: 8.5 | AK14: 145 | AL14: 5
A15: 1072 | B15: =IF(C15="","",SUBTOTAL(3,$C$9:C15)) -> 7 | C15: =IFERROR(VLOOKUP(A15,ورقة1!$A$9:$C$258,3,0),"اضافة ") -> محمود احمد عبد الواحد | D15: =IFERROR(VLOOKUP($A15,ورقة1!$A$9:$AE$139,4,FALSE),"") -> 564.55 | G15: 6 | H15: 27 | J15: 28 | O15: 42 | S15: 84 | W15: 22 | Z15: =13+13.5+28.25 -> 54.75 | AB15: =125+7 -> 132 | AC15: 57 | AD15: =45+7+38+6+31.5+20+6 -> 153.5 | AE15: 57 | AF15: =96.5+29+12.5 -> 138 | AG15: =45.85+57 -> 102.85 | AH15: =166+115 -> 281 | AK15: 1185.1 | AL15: 14
A16: 1046 | B16: =IF(C16="","",SUBTOTAL(3,$C$9:C16)) -> 8 | C16: =IFERROR(VLOOKUP(A16,ورقة1!$A$9:$C$258,3,0),"اضافة ") -> ام ياسين | D16: =IFERROR(VLOOKUP($A16,ورقة1!$A$9:$AE$139,4,FALSE),"") -> 285.2 | G16: 24 | R16: 84 | U16: 13 | AK16: 121 | AL16: 3
A17: 1042 | B17: =IF(C17="","",SUBTOTAL(3,$C$9:C17)) -> 9 | C17: محمد راضى عبد العليم | D17: =IFERROR(VLOOKUP($A17,ورقة1!$A$9:$AE$139,4,FALSE),"") -> 82 | H17: 47 | M17: 30.75 | AK17: 77.75 | AL17: 2
A18: 1095 | B18: =IF(C18="","",SUBTOTAL(3,$C$9:C18)) -> 10 | C18: محمد خميس | D18: =IFERROR(VLOOKUP($A18,ورقة1!$A$9:$AE$139,4,FALSE),"") -> 508 | H18: 86 | S18: 25.5 | X18: 12 | AB18: 6.75 | AK18: 130.25 | AL18: 4
A19: 1028 | B19: =IF(C19="","",SUBTOTAL(3,$C$9:C19)) -> 11 | C19: =IFERROR(VLOOKUP(A19,ورقة1!$A$9:$C$258,3,0),"اضافة ") -> محمد زغلول عبد اللطيف | D19: =IFERROR(VLOOKUP($A19,ورقة1!$A$9:$AE$139,4,FALSE),"") -> 175.75 | I19: 7.5 | AE19: 2 | AK19: 9.5 | AL19: 2
A20: 1036 | B20: =IF(C20="","",SUBTOTAL(3,$C$9:C20)) -> 12 | C20: =IFERROR(VLOOKUP(A20,ورقة1!$A$9:$C$258,3,0),"اضافة ") -> مرات عبد الحميد | D20: =IFERROR(VLOOKUP($A20,ورقة1!$A$9:$AE$139,4,FALSE),"") -> 146 | I20: 80 | AK20: 80 | AL20: 1
A21: 1058 | B21: =IF(C21="","",SUBTOTAL(3,$C$9:C21)) -> 13 | C21: =IFERROR(VLOOKUP(A21,ورقة1!$A$9:$C$258,3,0),"اضافة ") -> محمد نصر | D21: =IFERROR(VLOOKUP($A21,ورقة1!$A$9:$AE$139,4,FALSE),"") -> 16 | I21: 15 | R21: 28.5 | AK21: 43.5 | AL21: 2
A22: 1091 | B22: =IF(C22="","",SUBTOTAL(3,$C$9:C22)) -> 14 | C22: =IFERROR(VLOOKUP(A22,ورقة1!$A$9:$C$258,3,0),"اضافة ") -> سعيد راضي | D22: =IFERROR(VLOOKUP($A22,ورقة1!$A$9:$AE$139,4,FALSE),"") -> 89 | I22: 60 | R22: 49 | V22: 26 | Z22: =154+14 -> 168 | AK22: 303 | AL22: 4
A23: 1026 | B23: =IF(C23="","",SUBTOTAL(3,$C$9:C23)) -> 15 | C23: =IFERROR(VLOOKUP(A23,ورقة1!$A$9:$C$258,3,0),"اضافة ") -> سحر | D23: =IFERROR(VLOOKUP($A23,ورقة1!$A$9:$AE$139,4,FALSE),"") -> 75 | J23: 7 | L23: 5 | N23: 9.5 | S23: 1 | V23: 5 | AA23: 6.25 | AK23: 33.75 | AL23: 6
A24: 1109 | B24: =IF(C24="","",SUBTOTAL(3,$C$9:C24)) -> 16 | C24: ام حارث | D24: =IFERROR(VLOOKUP($A24,ورقة1!$A$9:$AE$139,4,FALSE),"") -> 104 | J24: 23.5 | AK24: 23.5 | AL24: 1
A25: 1012 | B25: =IF(C25="","",SUBTOTAL(3,$C$9:C25)) -> 17 | C25: =IFERROR(VLOOKUP(A25,ورقة1!$A$9:$C$258,3,0),"اضافة ") -> ام سعودي عبد الله | D25: =IFERROR(VLOOKUP($A25,ورقة1!$A$9:$AE$139,4,FALSE),"") -> 552 | J25: 7.5 | Q25: 7 | R25: 1 | AA25: 11.25 | AE25: 22 | AK25: 48.75 | AL25: 5
A26: 1098 | B26: =IF(C26="","",SUBTOTAL(3,$C$9:C26)) -> 18 | C26: ياسين عبد اللطيف | D26: =IFERROR(VLOOKUP($A26,ورقة1!$A$9:$AE$139,4,FALSE),"") -> 41 | K26: 29 | X26: 12 | AK26: 41 | AL26: 2
A27: 1051 | B27: =IF(C27="","",SUBTOTAL(3,$C$9:C27)) -> 19 | C27: =IFERROR(VLOOKUP(A27,ورقة1!$A$9:$C$258,3,0),"اضافة ") -> نادر ابو الوفا | D27: =IFERROR(VLOOKUP($A27,ورقة1!$A$9:$AE$139,4,FALSE),"") -> 127.25 | L27: 11.25 | AB27: =11+9.5 -> 20.5 | AK27: 31.75 | AL27: 2
A28: 1032 | B28: =IF(C28="","",SUBTOTAL(3,$C$9:C28)) -> 20 | C28: =IFERROR(VLOOKUP(A28,ورقة1!$A$9:$C$258,3,0),"اضافة ") -> مرات عمرو عادل | D28: =IFERROR(VLOOKUP($A28,ورقة1!$A$9:$AE$139,4,FALSE),"") -> 140 | O28: =115+18.75 -> 133.75 | R28: 19 | U28: 79 | Z28: 100 | AG28: 10 | AK28: 341.75 | AL28: 5
A29: 1054 | B29: =IF(C29="","",SUBTOTAL(3,$C$9:C29)) -> 21 | C29: =IFERROR(VLOOKUP(A29,ورقة1!$A$9:$C$258,3,0),"اضافة ") -> خليفة كبدة | D29: =IFERROR(VLOOKUP($A29,ورقة1!$A$9:$AE$139,4,FALSE),"") -> 121 | O29: 9.75 | AB29: 29.25 | AK29: 39 | AL29: 2
A30: 1048 | B30: =IF(C30="","",SUBTOTAL(3,$C$9:C30)) -> 22 | C30: =IFERROR(VLOOKUP(A30,ورقة1!$A$9:$C$258,3,0),"اضافة ") -> وائل خلف | D30: =IFERROR(VLOOKUP($A30,ورقة1!$A$9:$AE$139,4,FALSE),"") -> 347.25 | R30: 15 | AA30: 70 | AK30: 85 | AL30: 2
A31: 1114 | B31: =IF(C31="","",SUBTOTAL(3,$C$9:C31)) -> 23 | C31: كمال محمد خليفة | D31: =IFERROR(VLOOKUP($A31,ورقة1!$A$9:$AE$139,4,FALSE),"") -> 186.5 | R31: 91.5 | AK31: 91.5 | AL31: 1
A32: 1025 | B32: =IF(C32="","",SUBTOTAL(3,$C$9:C32)) -> 24 | C32: =IFERROR(VLOOKUP(A32,ورقة1!$A$9:$C$258,3,0),"اضافة ") -> ام ربيع محمد شحاتة | D32: =IFERROR(VLOOKUP($A32,ورقة1!$A$9:$AE$139,4,FALSE),"") -> 75 | R32: 8 | X32: 10 | AC32: 17 | AF32: 10.5 | AK32: 45.5 | AL32: 4
A33: 1024 | B33: =IF(C33="","",SUBTOTAL(3,$C$9:C33)) -> 25 | C33: عمي حسن محمود | D33: =IFERROR(VLOOKUP($A33,ورقة1!$A$9:$AE$139,4,FALSE),"") -> 282 | S33: 60 | AK33: 60 | AL33: 1
A34: 1056 | B34: =IF(C34="","",SUBTOTAL(3,$C$9:C34)) -> 26 | C34: =IFERROR(VLOOKUP(A34,ورقة1!$A$9:$C$258,3,0),"اضافة ") -> مرات اسماعيل خيري | D34: =IFERROR(VLOOKUP($A34,ورقة1!$A$9:$AE$139,4,FALSE),"") -> 58.25 | T34: 2 | AK34: 2 | AL34: 1
A35: 1119 | B35: =IF(C35="","",SUBTOTAL(3,$C$9:C35)) -> 27 | C35: مرات احمد شقراني | D35: =IFERROR(VLOOKUP($A35,ورقة1!$A$9:$AE$139,4,FALSE),"") -> 27 | T35: 35 | AK35: 35 | AL35: 1
A36: 1110 | B36: =IF(C36="","",SUBTOTAL(3,$C$9:C36)) -> 28 | C36: =IFERROR(VLOOKUP(A36,ورقة1!$A$9:$C$258,3,0),"اضافة ") -> مرات عصام خليفة | D36: =IFERROR(VLOOKUP($A36,ورقة1!$A$9:$AE$139,4,FALSE),"") -> 29.5 | U36: 13 | AK36: 13 | AL36: 1
A37: 1039 | B37: =IF(C37="","",SUBTOTAL(3,$C$9:C37)) -> 29 | C37: =IFERROR(VLOOKUP(A37,ورقة1!$A$9:$C$258,3,0),"اضافة ") -> مرات محمود عادل | D37: =IFERROR(VLOOKUP($A37,ورقة1!$A$9:$AE$139,4,FALSE),"") -> 805.25 | V37: 214 | Z37: 30 | AA37: 30 | AK37: 274 | AL37: 3
A38: 1037 | B38: =IF(C38="","",SUBTOTAL(3,$C$9:C38)) -> 30 | C38: ربيع حماد | D38: =IFERROR(VLOOKUP($A38,ورقة1!$A$9:$AE$139,4,FALSE),"") -> 66 | Y38: 66 | AK38: =SUM(E38:AI38) -> 66 | AL38: =SUBTOTAL(3,E38:AJ38) -> 1
A39: 1033 | B39: =IF(C39="","",SUBTOTAL(3,$C$9:C39)) -> 31 | C39: =IFERROR(VLOOKUP(A39,ورقة1!$A$9:$C$258,3,0),"اضافة ") -> ام عمار | D39: =IFERROR(VLOOKUP($A39,ورقة1!$A$9:$AE$139,4,FALSE),"") -> 468 | Z39: 25 | AC39: 19.75 | AG39: 26 | AK39: 70.75 | AL39: 3
A40: 1093 | B40: =IF(C40="","",SUBTOTAL(3,$C$9:C40)) -> 32 | C40: عمي ناجي محمد علي | D40: =IFERROR(VLOOKUP($A40,ورقة1!$A$9:$AE$139,4,FALSE),"") -> 525 | AA40: 239 | AK40: 239 | AL40: 1
A41: 1123 | B41: =IF(C41="","",SUBTOTAL(3,$C$9:C41)) -> 33 | C41: احمد راضي ع الصالحين | D41: =IFERROR(VLOOKUP($A41,ورقة1!$A$9:$AE$139,4,FALSE),"") -> 133 | AA41: 13 | AK41: 13 | AL41: 1
A42: 1113 | B42: =IF(C42="","",SUBTOTAL(3,$C$9:C42)) -> 34 | C42: محمود علي فهمي | D42: =IFERROR(VLOOKUP($A42,ورقة1!$A$9:$AE$139,4,FALSE),"") -> 53 | AC42: 53 | AK42: 53 | AL42: 1
A43: 1088 | B43: =IF(C43="","",SUBTOTAL(3,$C$9:C43)) -> 35 | C43: عماد عبد العظيم | D43: =IFERROR(VLOOKUP($A43,ورقة1!$A$9:$AE$139,4,FALSE),"") -> 13 | AC43: 13 | AK43: 13 | AL43: 1
A44: 1097 | B44: =IF(C44="","",SUBTOTAL(3,$C$9:C44)) -> 36 | C44: محمود احمد خلف | D44: =IFERROR(VLOOKUP($A44,ورقة1!$A$9:$AE$139,4,FALSE),"") -> 23 | AF44: 23 | AK44: 23 | AL44: 1
A45: 1096 | B45: =IF(C45="","",SUBTOTAL(3,$C$9:C45)) -> 37 | C45: =IFERROR(VLOOKUP(A45,ورقة1!$A$9:$C$258,3,0),"اضافة ") -> كمال عاشور | D45: =IFERROR(VLOOKUP($A45,ورقة1!$A$9:$AE$139,4,FALSE),"") -> 19 | AF45: 6 | AK45: 6 | AL45: 1
A46: 1121 | B46: =IF(C46="","",SUBTOTAL(3,$C$9:C46)) -> 38 | C46: وليد رجب | D46: =IFERROR(VLOOKUP($A46,ورقة1!$A$9:$AE$139,4,FALSE),"") -> 1763.5 | AH46: 16 | AK46: 16 | AL46: 1
A50: اجمالي الشهر | C50: =AK5 -> 4518.1
A51: اجمالي التنزيلات في الشهر | C51: =ورقة1!L6 -> 3290.45
A52: عدد الافراد | C52: =#REF! -> 
A53: تنزيلات فعلية من الشهر | C53: =ورقة1!AI8 -> 1589
A54: الباقي من الشهر | C54: =C50-C53 -> 2929.1
A55: تنزيل من السابق | C55: =C51-C53 -> 1701.45

Sheet شهر 4
A1: شهر ابريل 2020 | E1: كود البداية | G1: =MIN(A9:A43) -> 1003
E2: كود النهاية | G2: =MAX(A9:A43) -> 1130
E3: =E5 -> 197.5 | F3: =SUM($E$5:F5) -> 594 | G3: =SUM($E$5:G5) -> 661.25 | H3: =SUM($E$5:H5) -> 785.75 | I3: =SUM($E$5:I5) -> 1159.1 | J3: =SUM($E$5:J5) -> 1401.6 | K3: =SUM($E$5:K5) -> 1645.85 | L3: =SUM($E$5:L5) -> 1672.35 | M3: =SUM($E$5:M5) -> 1866.1 | N3: =SUM($E$5:N5) -> 1996.6 | O3: =SUM($E$5:O5) -> 2093.6 | P3: =SUM($E$5:P5) -> 2337.6 | Q3: =SUM($E$5:Q5) -> 2380.6 | R3: =SUM($E$5:R5) -> 2380.6 | S3: =SUM($E$5:S5) -> 2916.35 | T3: =SUM($E$5:T5) -> 3000.35 | U3: =SUM($E$5:U5) -> 3155.85 | V3: =SUM($E$5:V5) -> 3320.85 | W3: =SUM($E$5:W5) -> 3543.35 | X3: =SUM($E$5:X5) -> 3630.35 | Y3: =SUM($E$5:Y5) -> 3856.85 | Z3: =SUM($E$5:Z5) -> 3989.85 | AA3: =SUM($E$5:AA5) -> 4167.15 | AB3: =SUM($E$5:AB5) -> 4275.65 | AC3: =SUM($E$5:AC5) -> 4487.65 | AD3: =SUM($E$5:AD5) -> 4745.65 | AE3: =SUM($E$5:AE5) -> 4833.4 | AF3: =SUM($E$5:AF5) -> 5552.4 | AG3: =SUM($E$5:AG5) -> 5647.4 | AH3: =SUM($E$5:AH5) -> 5800.4 | AI3: =SUM($E$5:AI5) -> 5800.4
D4: العدد | E4: =SUBTOTAL(2,E9:E84) -> 4 | F4: =SUBTOTAL(2,F9:F84) -> 5 | G4: 3 | H4: 3 | I4: 3 | J4: 5 | K4: 4 | L4: 3 | M4: 3 | N4: 1 | O4: 4 | P4: 4 | Q4: 2 | R4: 0 | S4: 6 | T4: 3 | U4: 5 | V4: 4 | W4: 2 | X4: 2 | Y4: 5 | Z4: 4 | AA4: 4 | AB4: 4 | AC4: 4 | AD4: 6 | AE4: 2 | AF4: 5 | AG4: 2 | AH4: 1 | AI4: 0 | AJ4: 0 | AK4: =SUM(E4:AI4) -> 103 | AL4: العدد
D5: الاجمالي | E5: =SUM(E9:E109) -> 197.5 | F5: =SUM(F9:F109) -> 396.5 | G5: 67.25 | H5: 124.5 | I5: 373.35 | J5: 242.5 | K5: 244.25 | L5: 26.5 | M5: 193.75 | N5: 130.5 | O5: 97 | P5: 244 | Q5: 43 | R5: 0 | S5: 535.75 | T5: 84 | U5: 155.5 | V5: 165 | W5: 222.5 | X5: 87 | Y5: 226.5 | Z5: 133 | AA5: 177.3 | AB5: 108.5 | AC5: 212 | AD5: 258 | AE5: 87.75 | AF5: 719 | AG5: 95 | AH5: 153 | AI5: 0 | AK5: =SUM(E5:AI5) -> 5800.4 | AL5: الاجمالي
A6: الكود | B6: م | C6: الاسم | D6: اجمالي الحساب | E6: =IF(E7="","",CHOOSE(WEEKDAY(E7),"الاحد","الاثنين","الثلاثاء","الاربعاء","الخميس","الجمعة","السبت")) -> الاربعاء | F6: =IF(F7="","",CHOOSE(WEEKDAY(F7),"الاحد","الاثنين","الثلاثاء","الاربعاء","الخميس","الجمعة","السبت")) -> الخميس | G6: الجمعة | H6: السبت | I6: الاحد | J6: الاثنين | K6: الثلاثاء | L6: الاربعاء | M6: الخميس | N6: الجمعة | O6: السبت | P6: الاحد | Q6: الاثنين | R6: الثلاثاء | S6: الاربعاء | T6: الخميس | U6: الجمعة | V6: السبت | W6: الاحد | X6: الاثنين | Y6: الثلاثاء | Z6: الاربعاء | AA6: الخميس | AB6: الجمعة | AC6: السبت | AD6: الاحد | AE6: الاثنين | AF6: الثلاثاء | AG6: الاربعاء | AH6: الخميس | AK6: الاجمالي
E7: 2020-04-01 | F7: 2020-04-02 | G7: 2020-04-03 | H7: 2020-04-04 | I7: 2020-04-05 | J7: 2020-04-06 | K7: 2020-04-07 | L7: 2020-04-08 | M7: 2020-04-09 | N7: 2020-04-10 | O7: 2020-04-11 | P7: 2020-04-12 | Q7: 2020-04-13 | R7: 2020-04-14 | S7: 2020-04-15 | T7: 2020-04-16 | U7: 2020-04-17 | V7: 2020-04-18 | W7: 2020-04-19 | X7: 2020-04-20 | Y7: 2020-04-21 | Z7: 2020-04-22 | AA7: 2020-04-23 | AB7: 2020-04-24 | AC7: 2020-04-25 | AD7: 2020-04-26 | AE7: 2020-04-27 | AF7: 2020-04-28 | AG7: 2020-04-29 | AH7: 2020-04-30
AL8: عدد المرات
A9: 1015 | B9: =IF(C9="","",SUBTOTAL(3,$C$9:C9)) -> 1 | C9: =IFERROR(VLOOKUP(A9,ورقة1!$A$9:$C$258,3,0),"اضافة ") -> هيثم عزام | D9: =IFERROR(VLOOKUP($A9,ورقة1!$A$9:$AE$139,4,FALSE),"") -> 250.5 | E9: 81 | F9: =75+15 -> 90 | I9: =102.5+15 -> 117.5 | J9: 45 | K9: 5 | N9: =88+42.5 -> 130.5 | O9: 6.5 | Q9: =11+13.5 -> 24.5 | U9: 53.5 | Y9: 9.5 | AD9: =110+60 -> 170 | AH9: =29+124 -> 153 | AK9: =SUM(E9:AI9) -> 886 | AL9: =SUBTOTAL(3,E9:AJ9) -> 12
A10: 1066 | B10: =IF(C10="","",SUBTOTAL(3,$C$9:C10)) -> 2 | C10: =IFERROR(VLOOKUP(A10,ورقة1!$A$9:$C$258,3,0),"اضافة ") -> احمد ابراهيم محمد ابراهيم | D10: =IFERROR(VLOOKUP($A10,ورقة1!$A$9:$AE$139,4,FALSE),"") -> 397.5 | E10: 37.5 | G10: 18.5 | L10: 4 | S10: 12.75 | T10: 44 | Y10: 23.5 | AK10: =SUM(E10:AI10) -> 140.25 | AL10: =SUBTOTAL(3,E10:AJ10) -> 6
A11: 1072 | B11: =IF(C11="","",SUBTOTAL(3,$C$9:C11)) -> 3 | C11: =IFERROR(VLOOKUP(A11,ورقة1!$A$9:$C$258,3,0),"اضافة ") -> محمود احمد عبد الواحد | D11: =IFERROR(VLOOKUP($A11,ورقة1!$A$9:$AE$139,4,FALSE),"") -> 564.55 | E11: 7 | G11: 30.75 | H11: 94 | I11: =38.85+45.5+18 -> 102.35 | K11: 46.25 | S11: 116 | AA11: 21.8 | AK11: 418.15 | AL11: 7
A12: 1026 | B12: =IF(C12="","",SUBTOTAL(3,$C$9:C12)) -> 4 | C12: =IFERROR(VLOOKUP(A12,ورقة1!$A$9:$C$258,3,0),"اضافة ") -> سحر | D12: =IFERROR(VLOOKUP($A12,ورقة1!$A$9:$AE$139,4,FALSE),"") -> 75 | F12: 63 | P12: 21 | Z12: 18 | AC12: 22 | AD12: 4.5 | AK12: 128.5 | AL12: 5
A13: 1056 | B13: =IF(C13="","",SUBTOTAL(3,$C$9:C13)) -> 5 | C13: =IFERROR(VLOOKUP(A13,ورقة1!$A$9:$C$258,3,0),"اضافة ") -> مرات اسماعيل خيري | D13: =IFERROR(VLOOKUP($A13,ورقة1!$A$9:$AE$139,4,FALSE),"") -> 58.25 | F13: 88.5 | S13: 81 | V13: 27 | AD13: 15 | AK13: 211.5 | AL13: 4
A14: 1091 | B14: =IF(C14="","",SUBTOTAL(3,$C$9:C14)) -> 6 | C14: =IFERROR(VLOOKUP(A14,ورقة1!$A$9:$C$258,3,0),"اضافة ") -> سعيد راضي | D14: =IFERROR(VLOOKUP($A14,ورقة1!$A$9:$AE$139,4,FALSE),"") -> 89 | G14: 18 | V14: 9.5 | AK14: 27.5 | AL14: 2
A15: 1114 | B15: =IF(C15="","",SUBTOTAL(3,$C$9:C15)) -> 7 | C15: =IFERROR(VLOOKUP(A15,ورقة1!$A$9:$C$258,3,0),"اضافة ") -> كمال محمد خليفة | D15: =IFERROR(VLOOKUP($A15,ورقة1!$A$9:$AE$139,4,FALSE),"") -> 186.5 | F15: 75 | H15: 20 | AK15: 95 | AL15: 2
A16: 1025 | B16: =IF(C16="","",SUBTOTAL(3,$C$9:C16)) -> 8 | C16: =IFERROR(VLOOKUP(A16,ورقة1!$A$9:$C$258,3,0),"اضافة ") -> ام ربيع محمد شحاتة | D16: =IFERROR(VLOOKUP($A16,ورقة1!$A$9:$AE$139,4,FALSE),"") -> 75 | H16: 10.5 | O16: 10.5 | AD16: 27 | AK16: 48 | AL16: 3
A17: 1100 | B17: =IF(C17="","",SUBTOTAL(3,$C$9:C17)) -> 9 | C17: ام وحيد | D17: =IFERROR(VLOOKUP($A17,ورقة1!$A$9:$AE$139,4,FALSE),"") -> 246.5 | E17: 72 | I17: 153.5 | J17: 16.5 | AK17: 242 | AL17: 3
A18: 1051 | B18: =IF(C18="","",SUBTOTAL(3,$C$9:C18)) -> 10 | C18: =IFERROR(VLOOKUP(A18,ورقة1!$A$9:$C$258,3,0),"اضافة ") -> نادر ابو الوفا | D18: =IFERROR(VLOOKUP($A18,ورقة1!$A$9:$AE$139,4,FALSE),"") -> 127.25 | J18: 22 | AK18: 22 | AL18: 1
A19: 1075 | B19: =IF(C19="","",SUBTOTAL(3,$C$9:C19)) -> 11 | C19: محمد صبحي ع التواب | D19: =IFERROR(VLOOKUP($A19,ورقة1!$A$9:$AE$139,4,FALSE),"") -> 150 | F19: 80 | J19: 126 | L19: 14 | M19: 97 | AK19: 317 | AL19: 4
A20: 1030 | B20: =IF(C20="","",SUBTOTAL(3,$C$9:C20)) -> 12 | C20: كمال محمد مهني | D20: =IFERROR(VLOOKUP($A20,ورقة1!$A$9:$AE$139,4,FALSE),"") -> 258 | J20: 33 | S20: 166 | U20: 13.5 | W20: 57.5 | AK20: 270 | AL20: 4
A21: 1121 | B21: =IF(C21="","",SUBTOTAL(3,$C$9:C21)) -> 13 | C21: =IFERROR(VLOOKUP(A21,ورقة1!$A$9:$C$258,3,0),"اضافة ") -> وليد رجب | D21: =IFERROR(VLOOKUP($A21,ورقة1!$A$9:$AE$139,4,FALSE),"") -> 1763.5 | K21: 155 | W21: 165 | AA21: 72 | AF21: 104 | AK21: 496 | AL21: 4
A22: 1111 | B22: =IF(C22="","",SUBTOTAL(3,$C$9:C22)) -> 14 | C22: مرات بليغ عبد الله | D22: =IFERROR(VLOOKUP($A22,ورقة1!$A$9:$AE$139,4,FALSE),"") -> 22 | K22: 38 | AA22: 25 | AK22: 63 | AL22: 2
A23: 1043 | B23: =IF(C23="","",SUBTOTAL(3,$C$9:C23)) -> 15 | C23: =IFERROR(VLOOKUP(A23,ورقة1!$A$9:$C$258,3,0),"اضافة ") -> احمد الجغل | D23: =IFERROR(VLOOKUP($A23,ورقة1!$A$9:$AE$139,4,FALSE),"") -> 706.75 | L23: 8.5 | X23: 83 | Z23: 68 | AE23: 71.75 | AK23: 231.25 | AL23: 4
A24: 1048 | B24: =IF(C24="","",SUBTOTAL(3,$C$9:C24)) -> 16 | C24: =IFERROR(VLOOKUP(A24,ورقة1!$A$9:$C$258,3,0),"اضافة ") -> وائل خلف | D24: =IFERROR(VLOOKUP($A24,ورقة1!$A$9:$AE$139,4,FALSE),"") -> 347.25 | M24: 17.75 | O24: 26 | AK24: 43.75 | AL24: 2
A25: 1063 | B25: =IF(C25="","",SUBTOTAL(3,$C$9:C25)) -> 17 | C25: محمد عصمت | D25: =IFERROR(VLOOKUP($A25,ورقة1!$A$9:$AE$139,4,FALSE),"") -> 325 | M25: 79 | Y25: 79.5 | AK25: 158.5 | AL25: 2
A26: 1102 | B26: =IF(C26="","",SUBTOTAL(3,$C$9:C26)) -> 18 | C26: سمير احمد كامل | D26: =IFERROR(VLOOKUP($A26,ورقة1!$A$9:$AE$139,4,FALSE),"") -> 54 | O26: 54 | AK26: 54 | AL26: 1
A27: 1042 | B27: =IF(C27="","",SUBTOTAL(3,$C$9:C27)) -> 19 | C27: =IFERROR(VLOOKUP(A27,ورقة1!$A$9:$C$258,3,0),"اضافة ") -> محمد راضي ع العليم | D27: =IFERROR(VLOOKUP($A27,ورقة1!$A$9:$AE$139,4,FALSE),"") -> 82 | P27: 50 | T27: 28 | AK27: 78 | AL27: 2
A28: 1032 | B28: =IF(C28="","",SUBTOTAL(3,$C$9:C28)) -> 20 | C28: =IFERROR(VLOOKUP(A28,ورقة1!$A$9:$C$258,3,0),"اضافة ") -> مرات عمرو عادل | D28: =IFERROR(VLOOKUP($A28,ورقة1!$A$9:$AE$139,4,FALSE),"") -> 140 | P28: =75+65 -> 140 | U28: 53 | V28: 40 | Y28: 110 | AB28: 20 | AC28: 122 | AG28: 36 | AK28: 521 | AL28: 7
A29: 1062 | B29: =IF(C29="","",SUBTOTAL(3,$C$9:C29)) -> 21 | C29: =IFERROR(VLOOKUP(A29,ورقة1!$A$9:$C$258,3,0),"اضافة ") -> محسن عمران | D29: =IFERROR(VLOOKUP($A29,ورقة1!$A$9:$AE$139,4,FALSE),"") -> 81.25 | Q29: 18.5 | AK29: 18.5 | AL29: 1
A30: 1082 | B30: =IF(C30="","",SUBTOTAL(3,$C$9:C30)) -> 22 | C30: =IFERROR(VLOOKUP(A30,ورقة1!$A$9:$C$258,3,0),"اضافة ") -> نادية شقلوف | D30: =IFERROR(VLOOKUP($A30,ورقة1!$A$9:$AE$139,4,FALSE),"") -> 122 | P30: 33 | AK30: 33 | AL30: 1
A31: 1039 | B31: =IF(C31="","",SUBTOTAL(3,$C$9:C31)) -> 23 | C31: =IFERROR(VLOOKUP(A31,ورقة1!$A$9:$C$258,3,0),"اضافة ") -> مرات محمود عادل | D31: =IFERROR(VLOOKUP($A31,ورقة1!$A$9:$AE$139,4,FALSE),"") -> 805.25 | S31: 145 | V31: 88.5 | AB31: 9 | AK31: 242.5 | AL31: 3
A32: 1021 | B32: =IF(C32="","",SUBTOTAL(3,$C$9:C32)) -> 24 | C32: =IFERROR(VLOOKUP(A32,ورقة1!$A$9:$C$258,3,0),"اضافة ") -> رضا محمد احمد | D32: =IFERROR(VLOOKUP($A32,ورقة1!$A$9:$AE$139,4,FALSE),"") -> 134.25 | S32: 15 | T32: 12 | U32: 11.5 | AK32: 38.5 | AL32: 3
A33: 1003 | B33: =IF(C33="","",SUBTOTAL(3,$C$9:C33)) -> 25 | C33: =IFERROR(VLOOKUP(A33,ورقة1!$A$9:$C$258,3,0),"اضافة ") -> رضا جمعة حسين | D33: =IFERROR(VLOOKUP($A33,ورقة1!$A$9:$AE$239,4,FALSE),"") -> 1056.3 | U33: 24 | AK33: 24 | AL33: 1
A34: 1012 | B34: =IF(C34="","",SUBTOTAL(3,$C$9:C34)) -> 26 | C34: =IFERROR(VLOOKUP(A34,ورقة1!$A$9:$C$258,3,0),"اضافة ") -> ام سعودي عبد الله | D34: =IFERROR(VLOOKUP($A34,ورقة1!$A$9:$AE$239,4,FALSE),"") -> 552 | Z34: 7 | AC34: 38 | AF34: 11.25 | AK34: 56.25 | AL34: 3
A35: 1069 | B35: =IF(C35="","",SUBTOTAL(3,$C$9:C35)) -> 27 | C35: =IFERROR(VLOOKUP(A35,ورقة1!$A$9:$C$258,3,0),"اضافة ") -> ربيع هنداوي | D35: =IFERROR(VLOOKUP($A35,ورقة1!$A$9:$AE$239,4,FALSE),"") -> 102.5 | Z35: 40 | AK35: 40 | AL35: 1
A36: 1126 | B36: =IF(C36="","",SUBTOTAL(3,$C$9:C36)) -> 28 | C36: مرات الشيخ حسان | D36: =IFERROR(VLOOKUP($A36,ورقة1!$A$9:$AE$239,4,FALSE),"") -> 47 | AA36: 58.5 | AK36: 58.5 | AL36: 1
A37: 1127 | B37: =IF(C37="","",SUBTOTAL(3,$C$9:C37)) -> 29 | C37: سعيد عدلي | D37: =IFERROR(VLOOKUP($A37,ورقة1!$A$9:$AE$239,4,FALSE),"") -> 316 | X37: 4 | Y37: 4 | AB37: =4.5+20 -> 24.5 | AC37: 30 | AE37: 16 | AK37: 78.5 | AL37: 5
A38: 1128 | B38: =IF(C38="","",SUBTOTAL(3,$C$9:C38)) -> 30 | C38: ربيع محمد السيد | D38: =IFERROR(VLOOKUP($A38,ورقة1!$A$9:$AE$239,4,FALSE),"") -> 525 | AB38: 55 | AF38: 92.25 | AK38: 147.25 | AL38: 2
A39: 1036 | B39: =IF(C39="","",SUBTOTAL(3,$C$9:C39)) -> 31 | C39: =IFERROR(VLOOKUP(A39,ورقة1!$A$9:$C$258,3,0),"اضافة ") -> مرات عبد الحميد | D39: =IFERROR(VLOOKUP($A39,ورقة1!$A$9:$AE$239,4,FALSE),"") -> 146 | AD39: 33 | AK39: =SUM(E39:AI39) -> 33 | AL39: =SUBTOTAL(3,E39:AJ39) -> 1
A40: 1019 | B40: =IF(C40="","",SUBTOTAL(3,$C$9:C40)) -> 32 | C40: =IFERROR(VLOOKUP(A40,ورقة1!$A$9:$C$258,3,0),"اضافة ") -> فتحي بردونة | D40: =IFERROR(VLOOKUP($A40,ورقة1!$A$9:$AE$239,4,FALSE),"") -> 226.5 | AD40: 8.5 | AK40: 8.5 | AL40: 1
A41: 1090 | B41: =IF(C41="","",SUBTOTAL(3,$C$9:C41)) -> 33 | C41: ياسين عبد الله | D41: =IFERROR(VLOOKUP($A41,ورقة1!$A$9:$AE$239,4,FALSE),"") -> 64.75 | AF41: 121.5 | AK41: 121.5 | AL41: 1
A42: 1130 | B42: =IF(C42="","",SUBTOTAL(3,$C$9:C42)) -> 34 | C42: بيت الحاج ع الظاهر | D42: =IFERROR(VLOOKUP($A42,ورقة1!$A$9:$AE$239,4,FALSE),"") -> 23 | AF42: 390 | AK42: 390 | AL42: 1
A43: 1115 | B43: =IF(C43="","",SUBTOTAL(3,$C$9:C43)) -> 35 | C43: ايمان مشتاوي | D43: =IFERROR(VLOOKUP($A43,ورقة1!$A$9:$AE$239,4,FALSE),"") -> 59 | AG43: 59 | AK43: 59 | AL43: 1
A47: اجمالي الشهر | C47: =AK5 -> 5800.4
A48: اجمالي التنزيلات الشهر | C48: =ورقة1!N6 -> 3653.15
A49: عدد الافراد | C49: =#REF! -> 
A50: تنزيلات فعلية من الشهر | C50: =ورقة1!AJ8 -> 1701.15
A51: الباقي من الشهر | C51: =C47-C50 -> 4099.25
A52: تنزيل من السابق | C52: =C48-C50 -> 1952

Sheet شهر 5
A1: شهر مايو 2020 | E1: كود البداية | G1: =MIN(A9:A43) -> 1012
E2: كود النهاية | G2: =MAX(A9:A43) -> 1130
E3: =E5 -> 117.5 | F3: =SUM($E$5:F5) -> 339 | G3: =SUM($E$5:G5) -> 803.5 | H3: =SUM($E$5:H5) -> 871 | I3: =SUM($E$5:I5) -> 1104.5 | J3: =SUM($E$5:J5) -> 1124.25 | K3: =SUM($E$5:K5) -> 1477.75 | L3: =SUM($E$5:L5) -> 1652.5 | M3: =SUM($E$5:M5) -> 1827.5 | N3: =SUM($E$5:N5) -> 2032.5 | O3: =SUM($E$5:O5) -> 2344.3 | P3: =SUM($E$5:P5) -> 2409.3 | Q3: =SUM($E$5:Q5) -> 2527.3 | R3: =SUM($E$5:R5) -> 2995.8 | S3: =SUM($E$5:S5) -> 3287.3 | T3: =SUM($E$5:T5) -> 3302.3 | U3: =SUM($E$5:U5) -> 3459.05 | V3: =SUM($E$5:V5) -> 3586.05 | W3: =SUM($E$5:W5) -> 3761.55 | X3: =SUM($E$5:X5) -> 3849.55 | Y3: =SUM($E$5:Y5) -> 3911.55 | Z3: =SUM($E$5:Z5) -> 4062.55 | AA3: =SUM($E$5:AA5) -> 4270.05 | AB3: =SUM($E$5:AB5) -> 4270.05 | AC3: =SUM($E$5:AC5) -> 4558.8 | AD3: =SUM($E$5:AD5) -> 4714.55 | AE3: =SUM($E$5:AE5) -> 4809.55 | AF3: =SUM($E$5:AF5) -> 4924.55 | AG3: =SUM($E$5:AG5) -> 5006.55 | AH3: =SUM($E$5:AH5) -> 5122.05 | AI3: =SUM($E$5:AI5) -> 5706.05
D4: العدد | E4: =SUBTOTAL(2,E9:E88) -> 5 | F4: =SUBTOTAL(2,F9:F88) -> 5 | G4: 11 | H4: 3 | I4: 3 | J4: 1 | K4: 6 | L4: 3 | M4: 3 | N4: 1 | O4: 3 | P4: 4 | Q4: 1 | R4: 6 | S4: 6 | T4: 1 | U4: 6 | V4: 4 | W4: 3 | X4: 1 | Y4: 2 | Z4: 2 | AA4: 6 | AB4: 0 | AC4: 4 | AD4: 4 | AE4: 2 | AF4: 2 | AG4: 3 | AH4: 3 | AI4: 6 | AJ4: 0 | AK4: =SUM(E4:AI4) -> 110 | AL4: العدد
D5: الاجمالي | E5: =SUM(E9:E113) -> 117.5 | F5: =SUM(F9:F113) -> 221.5 | G5: 464.5 | H5: 67.5 | I5: 233.5 | J5: 19.75 | K5: 353.5 | L5: 174.75 | M5: 175 | N5: 205 | O5: 311.8 | P5: 65 | Q5: 118 | R5: 468.5 | S5: 291.5 | T5: 15 | U5: 156.75 | V5: 127 | W5: 175.5 | X5: 88 | Y5: 62 | Z5: 151 | AA5: 207.5 | AB5: 0 | AC5: 288.75 | AD5: 155.75 | AE5: 95 | AF5: 115 | AG5: 82 | AH5: 115.5 | AI5: 584 | AK5: =SUM(E5:AI5) -> 5706.05 | AL5: الاجمالي
A6: الكود | B6: م | C6: الاسم | D6: اجمالي الحساب | E6: =IF(E7="","",CHOOSE(WEEKDAY(E7),"الاحد","الاثنين","الثلاثاء","الاربعاء","الخميس","الجمعة","السبت")) -> الجمعة | F6: =IF(F7="","",CHOOSE(WEEKDAY(F7),"الاحد","الاثنين","الثلاثاء","الاربعاء","الخميس","الجمعة","السبت")) -> السبت | G6: الاحد | H6: الاثنين | I6: الثلاثاء | J6: الاربعاء | K6: الخميس | L6: الجمعة | M6: السبت | N6: الاحد | O6: الاثنين | P6: الثلاثاء | Q6: الاربعاء | R6: الخميس | S6: الجمعة | T6: السبت | U6: الاحد | V6: الاثنين | W6: الثلاثاء | X6: الاربعاء | Y6: الخميس | Z6: الجمعة | AA6: السبت | AB6: الاحد | AC6: الاثنين | AD6: الثلاثاء | AE6: الاربعاء | AF6: الخميس | AG6: الجمعة | AH6: السبت | AI6: الاحد | AK6: الاجمالي
E7: 2020-05-01 | F7: 2020-05-02 | G7: 2020-05-03 | H7: 2020-05-04 | I7: 2020-05-05 | J7: 2020-05-06 | K7: 2020-05-07 | L7: 2020-05-08 | M7: 2020-05-09 | N7: 2020-05-10 | O7: 2020-05-11 | P7: 2020-05-12 | Q7: 2020-05-13 | R7: 2020-05-14 | S7: 2020-05-15 | T7: 2020-05-16 | U7: 2020-05-17 | V7: 2020-05-18 | W7: 2020-05-19 | X7: 2020-05-20 | Y7: 2020-05-21 | Z7: 2020-05-22 | AA7: 2020-05-23 | AB7: 2020-05-24 | AC7: 2020-05-25 | AD7: 2020-05-26 | AE7: 2020-05-27 | AF7: 2020-05-28 | AG7: 2020-05-29 | AH7: 2020-05-30 | AI7: 2020-05-31
AL8: عدد المرات
A9: 1066 | B9: =IF(C9="","",SUBTOTAL(3,$C$9:C9)) -> 1 | C9: =IFERROR(VLOOKUP(A9,ورقة1!$A$9:$C$258,3,0),"اضافة ") -> احمد ابراهيم محمد ابراهيم | D9: =IFERROR(VLOOKUP($A9,ورقة1!$A$9:$AE$139,4,FALSE),"") -> 397.5 | E9: 18.5 | F9: =13.5+12 -> 25.5 | G9: 10.5 | Q9: 118 | S9: 19.5 | AC9: 38 | AD9: 42.25 | AE9: 41 | AH9: 7 | AI9: 20 | AK9: =SUM(E9:AI9) -> 340.25 | AL9: =SUBTOTAL(3,E9:AJ9) -> 10
A10: 1075 | B10: =IF(C10="","",SUBTOTAL(3,$C$9:C10)) -> 2 | C10: =IFERROR(VLOOKUP(A10,ورقة1!$A$9:$C$258,3,0),"اضافة ") -> محمد صبحي ع التواب | D10: =IFERROR(VLOOKUP($A10,ورقة1!$A$9:$AE$139,4,FALSE),"") -> 150 | E10: 36.5 | G10: 19.5 | AK10: =SUM(E10:AI10) -> 56 | AL10: =SUBTOTAL(3,E10:AJ10) -> 2
A11: 1015 | B11: =IF(C11="","",SUBTOTAL(3,$C$9:C11)) -> 3 | C11: =IFERROR(VLOOKUP(A11,ورقة1!$A$9:$C$258,3,0),"اضافة ") -> هيثم عزام | D11: =IFERROR(VLOOKUP($A11,ورقة1!$A$9:$AE$139,4,FALSE),"") -> 250.5 | E11: 30 | F11: 7 | I11: =64.5+9.5 -> 74 | L11: 69.75 | O11: =13.8+14.5 -> 28.3 | S11: =30+30 -> 60 | T11: 15 | U11: 46.5 | V11: 57 | W11: =6+96 -> 102 | X11: 88 | Y11: 47 | AA11: 7 | AC11: 12.75 | AG11: 30 | AI11: 139 | AK11: 813.3 | AL11: 16
A12: 1025 | B12: =IF(C12="","",SUBTOTAL(3,$C$9:C12)) -> 4 | C12: =IFERROR(VLOOKUP(A12,ورقة1!$A$9:$C$258,3,0),"اضافة ") -> ام ربيع محمد شحاتة | D12: =IFERROR(VLOOKUP($A12,ورقة1!$A$9:$AE$139,4,FALSE),"") -> 75 | E12: 22.5 | M12: 6 | AK12: 28.5 | AL12: 2
A13: 1026 | B13: =IF(C13="","",SUBTOTAL(3,$C$9:C13)) -> 5 | C13: =IFERROR(VLOOKUP(A13,ورقة1!$A$9:$C$258,3,0),"اضافة ") -> سحر | D13: =IFERROR(VLOOKUP($A13,ورقة1!$A$9:$AE$139,4,FALSE),"") -> 75 | E13: 10 | G13: 9 | I13: 10 | K13: 6 | S13: =11.5+13 -> 24.5 | U13: 8.25 | W13: 12 | AA13: 10 | AF13: 21 | AG13: 15 | AI13: 9.75 | AK13: 135.5 | AL13: 11
A14: 1121 | B14: =IF(C14="","",SUBTOTAL(3,$C$9:C14)) -> 6 | C14: =IFERROR(VLOOKUP(A14,ورقة1!$A$9:$C$258,3,0),"اضافة ") -> وليد رجب | D14: =IFERROR(VLOOKUP($A14,ورقة1!$A$9:$AE$139,4,FALSE),"") -> 1763.5 | F14: 105 | K14: 95 | M14: 151 | O14: 138.5 | R14: 9 | W14: =55+6.5 -> 61.5 | Z14: 55 | AA14: 156 | AK14: 771 | AL14: 8
A15: 1033 | B15: =IF(C15="","",SUBTOTAL(3,$C$9:C15)) -> 7 | C15: =IFERROR(VLOOKUP(A15,ورقة1!$A$9:$C$258,3,0),"اضافة ") -> ام عمار | D15: =IFERROR(VLOOKUP($A15,ورقة1!$A$9:$AE$139,4,FALSE),"") -> 468 | F15: 64 | AI15: 64 | AK15: 128 | AL15: 2
A16: 1042 | B16: =IF(C16="","",SUBTOTAL(3,$C$9:C16)) -> 8 | C16: =IFERROR(VLOOKUP(A16,ورقة1!$A$9:$C$258,3,0),"اضافة ") -> محمد راضي ع العليم | D16: =IFERROR(VLOOKUP($A16,ورقة1!$A$9:$AE$139,4,FALSE),"") -> 82 | F16: 20 | Y16: 15 | AA16: 10 | AH16: 59 | AK16: 104 | AL16: 4
A17: 1126 | B17: =IF(C17="","",SUBTOTAL(3,$C$9:C17)) -> 9 | C17: =IFERROR(VLOOKUP(A17,ورقة1!$A$9:$C$258,3,0),"اضافة ") -> مرات الشيخ حسان | D17: =IFERROR(VLOOKUP($A17,ورقة1!$A$9:$AE$139,4,FALSE),"") -> 47 | G17: 27 | U17: 31.5 | AK17: 58.5 | AL17: 2
A18: 1059 | B18: =IF(C18="","",SUBTOTAL(3,$C$9:C18)) -> 10 | C18: =IFERROR(VLOOKUP(A18,ورقة1!$A$9:$C$258,3,0),"اضافة ") -> مرات طارق عبد الله | D18: =IFERROR(VLOOKUP($A18,ورقة1!$A$9:$AE$139,4,FALSE),"") -> 207 | G18: 28.5 | AK18: 28.5 | AL18: 1
A19: 1054 | B19: =IF(C19="","",SUBTOTAL(3,$C$9:C19)) -> 11 | C19: =IFERROR(VLOOKUP(A19,ورقة1!$A$9:$C$258,3,0),"اضافة ") -> خليفة كبدة | D19: =IFERROR(VLOOKUP($A19,ورقة1!$A$9:$AE$139,4,FALSE),"") -> 121 | G19: 26 | AK19: 26 | AL19: 1
A20: 1040 | B20: =IF(C20="","",SUBTOTAL(3,$C$9:C20)) -> 12 | C20: =IFERROR(VLOOKUP(A20,ورقة1!$A$9:$C$258,3,0),"اضافة ") -> اعتماد سعد | D20: =IFERROR(VLOOKUP($A20,ورقة1!$A$9:$AE$139,4,FALSE),"") -> 421.25 | G20: 30 | J20: 19.75 | R20: 80 | AK20: 129.75 | AL20: 3
A21: 1032 | B21: =IF(C21="","",SUBTOTAL(3,$C$9:C21)) -> 13 | C21: =IFERROR(VLOOKUP(A21,ورقة1!$A$9:$C$258,3,0),"اضافة ") -> مرات عمرو عادل | D21: =IFERROR(VLOOKUP($A21,ورقة1!$A$9:$AE$139,4,FALSE),"") -> 140 | G21: 48 | H21: 46 | K21: 26 | O21: 145 | AD21: 3 | AE21: 54 | AK21: 322 | AL21: 6
A22: 1130 | B22: =IF(C22="","",SUBTOTAL(3,$C$9:C22)) -> 14 | C22: =IFERROR(VLOOKUP(A22,ورقة1!$A$9:$C$258,3,0),"اضافة ") -> بيت الحاج ع الظاهر | D22: =IFERROR(VLOOKUP($A22,ورقة1!$A$9:$AE$139,4,FALSE),"") -> 23 | G22: 206 | S22: 76 | Z22: 96 | AC22: 201 | AK22: 579 | AL22: 4
A23: 1086 | B23: =IF(C23="","",SUBTOTAL(3,$C$9:C23)) -> 15 | C23: =IFERROR(VLOOKUP(A23,ورقة1!$A$9:$C$258,3,0),"اضافة ") -> اخت سيد محمد عبد الحميد | D23: =IFERROR(VLOOKUP($A23,ورقة1!$A$9:$AE$139,4,FALSE),"") -> 248.5 | G23: 20 | AK23: 20 | AL23: 1
A24: 1039 | B24: =IF(C24="","",SUBTOTAL(3,$C$9:C24)) -> 16 | C24: =IFERROR(VLOOKUP(A24,ورقة1!$A$9:$C$258,3,0),"اضافة ") -> مرات محمود عادل | D24: =IFERROR(VLOOKUP($A24,ورقة1!$A$9:$AE$139,4,FALSE),"") -> 805.25 | H24: 6 | R24: 30 | S24: 44 | AK24: 80 | AL24: 3
A25: 1128 | B25: =IF(C25="","",SUBTOTAL(3,$C$9:C25)) -> 17 | C25: =IFERROR(VLOOKUP(A25,ورقة1!$A$9:$C$258,3,0),"اضافة ") -> ربيع محمد السيد | D25: =IFERROR(VLOOKUP($A25,ورقة1!$A$9:$AE$139,4,FALSE),"") -> 525 | I25: 149.5 | N25: 205 | P25: 25.25 | S25: 67.5 | AK25: 447.25 | AL25: 4
A26: 1109 | B26: =IF(C26="","",SUBTOTAL(3,$C$9:C26)) -> 18 | C26: =IFERROR(VLOOKUP(A26,ورقة1!$A$9:$C$258,3,0),"اضافة ") -> ام حارث | D26: =IFERROR(VLOOKUP($A26,ورقة1!$A$9:$AE$139,4,FALSE),"") -> 104 | H26: 15.5 | AK26: 15.5 | AL26: 1
A27: 1100 | B27: =IF(C27="","",SUBTOTAL(3,$C$9:C27)) -> 19 | C27: =IFERROR(VLOOKUP(A27,ورقة1!$A$9:$C$258,3,0),"اضافة ") -> ام وحيد | D27: =IFERROR(VLOOKUP($A27,ورقة1!$A$9:$AE$139,4,FALSE),"") -> 246.5 | L27: 62 | AK27: 62 | AL27: 1
A28: 1090 | B28: =IF(C28="","",SUBTOTAL(3,$C$9:C28)) -> 20 | C28: =IFERROR(VLOOKUP(A28,ورقة1!$A$9:$C$258,3,0),"اضافة ") -> ياسين عبد الله | D28: =IFERROR(VLOOKUP($A28,ورقة1!$A$9:$AE$139,4,FALSE),"") -> 64.75 | L28: 43 | AK28: 43 | AL28: 1
A29: 1091 | B29: =IF(C29="","",SUBTOTAL(3,$C$9:C29)) -> 21 | C29: =IFERROR(VLOOKUP(A29,ورقة1!$A$9:$C$258,3,0),"اضافة ") -> سعيد راضي | D29: =IFERROR(VLOOKUP($A29,ورقة1!$A$9:$AE$139,4,FALSE),"") -> 89 | K29: 36 | V29: 40 | AA29: 16.5 | AK29: 92.5 | AL29: 3
A30: 1023 | B30: =IF(C30="","",SUBTOTAL(3,$C$9:C30)) -> 22 | C30: محمود طه برعي | D30: =IFERROR(VLOOKUP($A30,ورقة1!$A$9:$AE$139,4,FALSE),"") -> 117 | K30: 182 | V30: 17 | AK30: 199 | AL30: 2
A31: 1058 | B31: =IF(C31="","",SUBTOTAL(3,$C$9:C31)) -> 23 | C31: =IFERROR(VLOOKUP(A31,ورقة1!$A$9:$C$258,3,0),"اضافة ") -> محمد نصر | D31: =IFERROR(VLOOKUP($A31,ورقة1!$A$9:$AE$139,4,FALSE),"") -> 16 | K31: 8.5 | U31: 7.5 | AK31: 16 | AL31: 2
A32: 1056 | B32: =IF(C32="","",SUBTOTAL(3,$C$9:C32)) -> 24 | C32: =IFERROR(VLOOKUP(A32,ورقة1!$A$9:$C$258,3,0),"اضافة ") -> مرات اسماعيل خيري | D32: =IFERROR(VLOOKUP($A32,ورقة1!$A$9:$AE$139,4,FALSE),"") -> 58.25 | M32: =13+5 -> 18 | P32: 6.75 | AK32: 24.75 | AL32: 2
A33: 1072 | B33: =IF(C33="","",SUBTOTAL(3,$C$9:C33)) -> 25 | C33: =IFERROR(VLOOKUP(A33,ورقة1!$A$9:$C$258,3,0),"اضافة ") -> محمود احمد عبد الواحد | D33: =IFERROR(VLOOKUP($A33,ورقة1!$A$9:$AE$139,4,FALSE),"") -> 564.55 | P33: 9 | AK33: 9 | AL33: 1
A34: 1046 | B34: =IF(C34="","",SUBTOTAL(3,$C$9:C34)) -> 26 | C34: =IFERROR(VLOOKUP(A34,ورقة1!$A$9:$C$258,3,0),"اضافة ") -> ام ياسين | D34: =IFERROR(VLOOKUP($A34,ورقة1!$A$9:$AE$139,4,FALSE),"") -> 285.2 | P34: 24 | AG34: 37 | AK34: 61 | AL34: 2
A35: 1073 | B35: =IF(C35="","",SUBTOTAL(3,$C$9:C35)) -> 27 | C35: يسري محمود | D35: =IFERROR(VLOOKUP($A35,ورقة1!$A$9:$AE$139,4,FALSE),"") -> 670.5 | R35: 195 | AK35: 195 | AL35: 1
A36: 1116 | B36: =IF(C36="","",SUBTOTAL(3,$C$9:C36)) -> 28 | C36: اسامه صلاح عبد الحفيظ | D36: =IFERROR(VLOOKUP($A36,ورقة1!$A$9:$AE$139,4,FALSE),"") -> 94.5 | R36: =79.5+15 -> 94.5 | AK36: 94.5 | AL36: 1
A37: 1012 | B37: =IF(C37="","",SUBTOTAL(3,$C$9:C37)) -> 29 | C37: =IFERROR(VLOOKUP(A37,ورقة1!$A$9:$C$258,3,0),"اضافة ") -> ام سعودي عبد الله | D37: =IFERROR(VLOOKUP($A37,ورقة1!$A$9:$AE$139,4,FALSE),"") -> 552 | U37: 40 | AC37: 37 | AK37: 77 | AL37: 2
A38: 1065 | B38: =IF(C38="","",SUBTOTAL(3,$C$9:C38)) -> 30 | C38: =IFERROR(VLOOKUP(A38,ورقة1!$A$9:$C$258,3,0),"اضافة ") -> رمضان محمد عبد الحفيظ | D38: =IFERROR(VLOOKUP($A38,ورقة1!$A$9:$AE$139,4,FALSE),"") -> 48.5 | U38: 23 | AK38: 23 | AL38: 1
A39: 1048 | B39: =IF(C39="","",SUBTOTAL(3,$C$9:C39)) -> 31 | C39: =IFERROR(VLOOKUP(A39,ورقة1!$A$9:$C$258,3,0),"اضافة ") -> وائل خلف | D39: =IFERROR(VLOOKUP($A39,ورقة1!$A$9:$AE$139,4,FALSE),"") -> 347.25 | V39: 13 | AF39: 94 | AK39: 107 | AL39: 2
A40: 1112 | B40: =IF(C40="","",SUBTOTAL(3,$C$9:C40)) -> 32 | C40: ام ياسمين صلاح احمد | D40: =IFERROR(VLOOKUP($A40,ورقة1!$A$9:$AE$139,4,FALSE),"") -> 60 | R40: 60 | AK40: 60 | AL40: 1
A41: 1079 | B41: =IF(C41="","",SUBTOTAL(3,$C$9:C41)) -> 33 | C41: =IFERROR(VLOOKUP(A41,ورقة1!$A$9:$C$258,3,0),"اضافة ") -> ام مجدى | D41: =IFERROR(VLOOKUP($A41,ورقة1!$A$9:$AE$139,4,FALSE),"") -> 46.5 | AA41: 8 | AK41: 8 | AL41: 1
A42: 1111 | B42: =IF(C42="","",SUBTOTAL(3,$C$9:C42)) -> 34 | C42: =IFERROR(VLOOKUP(A42,ورقة1!$A$9:$C$258,3,0),"اضافة ") -> مرات بليغ عبد الله | D42: =IFERROR(VLOOKUP($A42,ورقة1!$A$9:$AE$139,4,FALSE),"") -> 22 | AD42: 31 | AK42: 31 | AL42: 1
A43: 1063 | B43: =IF(C43="","",SUBTOTAL(3,$C$9:C43)) -> 35 | C43: =IFERROR(VLOOKUP(A43,ورقة1!$A$9:$C$258,3,0),"اضافة ") -> محمد عصمت | D43: =IFERROR(VLOOKUP($A43,ورقة1!$A$9:$AE$139,4,FALSE),"") -> 325 | AD43: 79.5 | AK43: 79.5 | AL43: 1
A44: 1082 | B44: =IF(C44="","",SUBTOTAL(3,$C$9:C44)) -> 36 | C44: =IFERROR(VLOOKUP(A44,ورقة1!$A$9:$C$258,3,0),"اضافة ") -> نادية شقلوف | D44: =IFERROR(VLOOKUP($A44,ورقة1!$A$9:$D$205,4,FALSE),"") -> 122 | AH44: 49.5 | AK44: =SUM(E44:AI44) -> 49.5 | AL44: =SUBTOTAL(3,E44:AJ44) -> 1
A45: 1095 | B45: =IF(C45="","",SUBTOTAL(3,$C$9:C45)) -> 37 | C45: =IFERROR(VLOOKUP(A45,ورقة1!$A$9:$C$258,3,0),"اضافة ") -> محمد خميس | D45: =IFERROR(VLOOKUP($A45,ورقة1!$A$9:$D$205,4,FALSE),"") -> 508 | AI45: 45.75 | AK45: 45.75 | AL45: 1
A46: 1127 | B46: =IF(C46="","",SUBTOTAL(3,$C$9:C46)) -> 38 | C46: =IFERROR(VLOOKUP(A46,ورقة1!$A$9:$C$258,3,0),"اضافة ") -> سعيد عدلي | D46: =IFERROR(VLOOKUP($A46,ورقة1!$A$9:$D$205,4,FALSE),"") -> 316 | G46: 40 | AK46: 40 | AL46: 1
A47: 1135 | B47: =IF(C47="","",SUBTOTAL(3,$C$9:C47)) -> 39 | C47: مرات نجم | D47: =IFERROR(VLOOKUP($A47,ورقة1!$A$9:$D$205,4,FALSE),"") -> 305.5 | AI47: =287.5+18 -> 305.5 | AK47: 305.5 | AL47: 1
A51: اجمالي الشهر | C51: =AK5 -> 5706.05
A52: اجمالي التنزيلات الشهر | C52: =SUM(ورقة1!P6) -> 3318.75
A53: عدد الافراد | C53: =AK4 -> 110
A54: تنزيلات فعلية من الشهر | C54: =SUM(ورقة1!AK8) -> 1546.5
A55: الباقي من الشهر | C55: =C51-C54 -> 4159.55
A56: تنزيل من السابق | C56: =C52-C54 -> 1772.25

Sheet شهر6
A1: شهر يونيو 2020 | E1: كود البداية | G1: =MIN(A9:A53) -> 1002
E2: كود النهاية | G2: =MAX(A9:A53) -> 1135
E3: =E5 -> 611.5 | F3: =SUM($E$5:F5) -> 1016.5 | G3: =SUM($E$5:G5) -> 1089.5 | H3: =SUM($E$5:H5) -> 1191 | I3: =SUM($E$5:I5) -> 1322.5 | J3: =SUM($E$5:J5) -> 1524.5 | K3: =SUM($E$5:K5) -> 2064 | L3: =SUM($E$5:L5) -> 2156.25 | M3: =SUM($E$5:M5) -> 2354.25 | N3: =SUM($E$5:N5) -> 2452 | O3: =SUM($E$5:O5) -> 2768 | P3: =SUM($E$5:P5) -> 3096 | Q3: =SUM($E$5:Q5) -> 3575 | R3: =SUM($E$5:R5) -> 4159 | S3: =SUM($E$5:S5) -> 4287.75 | T3: =SUM($E$5:T5) -> 4563.55 | U3: =SUM($E$5:U5) -> 4810.55 | V3: =SUM($E$5:V5) -> 4852.55 | W3: =SUM($E$5:W5) -> 5029.05 | X3: =SUM($E$5:X5) -> 5250.05 | Y3: =SUM($E$5:Y5) -> 5552.3 | Z3: =SUM($E$5:Z5) -> 5686.8 | AA3: =SUM($E$5:AA5) -> 5686.8 | AB3: =SUM($E$5:AB5) -> 6027.05 | AC3: =SUM($E$5:AC5) -> 6192.55 | AD3: =SUM($E$5:AD5) -> 7002.55 | AE3: =SUM($E$5:AE5) -> 7352.8 | AF3: =SUM($E$5:AF5) -> 7604 | AG3: =SUM($E$5:AG5) -> 7913.75 | AH3: =SUM($E$5:AH5) -> 8294.7 | AI3: =SUM($E$5:AI5) -> 8294.7
D4: العدد | E4: =SUBTOTAL(2,E9:E103) -> 7 | F4: =SUBTOTAL(2,F9:F103) -> 5 | G4: 3 | H4: 3 | I4: 2 | J4: 3 | K4: 6 | L4: 4 | M4: 3 | N4: 3 | O4: 2 | P4: 6 | Q4: 9 | R4: 8 | S4: 5 | T4: 4 | U4: 4 | V4: 1 | W4: 3 | X4: 6 | Y4: 6 | Z4: 6 | AA4: 0 | AB4: 6 | AC4: 5 | AD4: 4 | AE4: 6 | AF4: 5 | AG4: 5 | AH4: 8 | AI4: 0 | AJ4: 0 | AK4: =SUM(E4:AI4) -> 138 | AL4: العدد
D5: الاجمالي | E5: =SUM(E9:E128) -> 611.5 | F5: =SUM(F9:F128) -> 405 | G5: 73 | H5: 101.5 | I5: 131.5 | J5: 202 | K5: 539.5 | L5: 92.25 | M5: 198 | N5: 97.75 | O5: 316 | P5: 328 | Q5: 479 | R5: 584 | S5: 128.75 | T5: 275.8 | U5: 247 | V5: 42 | W5: 176.5 | X5: 221 | Y5: 302.25 | Z5: 134.5 | AA5: 0 | AB5: 340.25 | AC5: 165.5 | AD5: 810 | AE5: 350.25 | AF5: 251.2 | AG5: 309.75 | AH5: 380.95 | AI5: 0 | AK5: =SUM(E5:AI5) -> 8294.7 | AL5: الاجمالي
A6: الكود | B6: م | C6: الاسم | D6: اجمالي الحساب | E6: =IF(E7="","",CHOOSE(WEEKDAY(E7),"الاحد","الاثنين","الثلاثاء","الاربعاء","الخميس","الجمعة","السبت")) -> الاثنين | F6: =IF(F7="","",CHOOSE(WEEKDAY(F7),"الاحد","الاثنين","الثلاثاء","الاربعاء","الخميس","الجمعة","السبت")) -> الثلاثاء | G6: الاربعاء | H6: الخميس | I6: الجمعة | J6: السبت | K6: الاحد | L6: الاثنين | M6: الثلاثاء | N6: الاربعاء | O6: الخميس | P6: الجمعة | Q6: السبت | R6: الاحد | S6: الاثنين | T6: الثلاثاء | U6: الاربعاء | V6: الخميس | W6: الجمعة | X6: السبت | Y6: الاحد | Z6: الاثنين | AA6: الثلاثاء | AB6: الاربعاء | AC6: الخميس | AD6: الجمعة | AE6: السبت | AF6: الاحد | AG6: الاثنين | AH6: الثلاثاء | AK6: الاجمالي
E7: 2020-06-01 | F7: 2020-06-02 | G7: 2020-06-03 | H7: 2020-06-04 | I7: 2020-06-05 | J7: 2020-06-06 | K7: 2020-06-07 | L7: 2020-06-08 | M7: 2020-06-09 | N7: 2020-06-10 | O7: 2020-06-11 | P7: 2020-06-12 | Q7: 2020-06-13 | R7: 2020-06-14 | S7: 2020-06-15 | T7: 2020-06-16 | U7: 2020-06-17 | V7: 2020-06-18 | W7: 2020-06-19 | X7: 2020-06-20 | Y7: 2020-06-21 | Z7: 2020-06-22 | AA7: 2020-06-23 | AB7: 2020-06-24 | AC7: 2020-06-25 | AD7: 2020-06-26 | AE7: 2020-06-27 | AF7: 2020-06-28 | AG7: 2020-06-29 | AH7: 2020-06-30
AL8: عدد المرات
A9: 1121 | B9: =IF(C9="","",SUBTOTAL(3,$C$9:C9)) -> 1 | C9: =IFERROR(VLOOKUP(A9,ورقة1!$A$9:$C$258,3,0),"اضافة ") -> وليد رجب | D9: =IFERROR(VLOOKUP($A9,ورقة1!$A$9:$AE$139,4,FALSE),"") -> 1763.5 | E9: 5 | N9: 19.25 | Q9: 21.5 | U9: 120 | X9: 32.5 | Y9: =8+93 -> 101 | Z9: 25 | AF9: 50 | AK9: =SUM(E9:AI9) -> 374.25 | AL9: =SUBTOTAL(3,E9:AJ9) -> 8
A10: 1015 | B10: =IF(C10="","",SUBTOTAL(3,$C$9:C10)) -> 2 | C10: =IFERROR(VLOOKUP(A10,ورقة1!$A$9:$C$258,3,0),"اضافة ") -> هيثم عزام | D10: =IFERROR(VLOOKUP($A10,ورقة1!$A$9:$AE$139,4,FALSE),"") -> 250.5 | E10: 17.5 | G10: 16 | I10: 96.5 | J10: 29 | L10: 5 | M10: 110 | N10: 41 | O10: 26 | P10: 15 | R10: =79.75+12+10 -> 101.75 | S10: 14 | U10: 22 | X10: 3 | Y10: 111 | AB10: 102 | AC10: 47 | AK10: =SUM(E10:AI10) -> 756.75 | AL10: =SUBTOTAL(3,E10:AJ10) -> 16
A11: 1013 | B11: =IF(C11="","",SUBTOTAL(3,$C$9:C11)) -> 3 | C11: =IFERROR(VLOOKUP(A11,ورقة1!$A$9:$C$258,3,0),"اضافة ") -> احمد الشيخ عيد | D11: =IFERROR(VLOOKUP($A11,ورقة1!$A$9:$AE$139,4,FALSE),"") -> 508.75 | E11: 377.5 | F11: 80 | L11: 15.75 | AK11: 473.25 | AL11: 3
A12: 1024 | B12: =IF(C12="","",SUBTOTAL(3,$C$9:C12)) -> 4 | C12: =IFERROR(VLOOKUP(A12,ورقة1!$A$9:$C$258,3,0),"اضافة ") -> ابو وائل حسن محمود | D12: =IFERROR(VLOOKUP($A12,ورقة1!$A$9:$AE$139,4,FALSE),"") -> 282 | E12: 135 | AK12: 135 | AL12: 1
A13: 1135 | B13: =IF(C13="","",SUBTOTAL(3,$C$9:C13)) -> 5 | C13: =IFERROR(VLOOKUP(A13,ورقة1!$A$9:$C$258,3,0),"اضافة ") -> مرات نجم | D13: =IFERROR(VLOOKUP($A13,ورقة1!$A$9:$D$205,4,FALSE),"") -> 305.5 | E13: 6.5 | G13: 30 | H13: 34.5 | Q13: 111.5 | S13: 18 | T13: 99.5 | AK13: 300 | AL13: 6
A14: 1107 | B14: =IF(C14="","",SUBTOTAL(3,$C$9:C14)) -> 6 | C14: رضا طه برعي | D14: =IFERROR(VLOOKUP($A14,ورقة1!$A$9:$D$205,4,FALSE),"") -> 20 | E14: 20 | AK14: 20 | AL14: 1
A15: 1099 | B15: =IF(C15="","",SUBTOTAL(3,$C$9:C15)) -> 7 | C15: مرات مصطفي جمعة | D15: =IFERROR(VLOOKUP($A15,ورقة1!$A$9:$D$205,4,FALSE),"") -> 50 | E15: 50 | AK15: 50 | AL15: 1
A16: 1066 | B16: =IF(C16="","",SUBTOTAL(3,$C$9:C16)) -> 8 | C16: =IFERROR(VLOOKUP(A16,ورقة1!$A$9:$C$258,3,0),"اضافة ") -> احمد ابراهيم محمد ابراهيم | D16: =IFERROR(VLOOKUP($A16,ورقة1!$A$9:$D$205,4,FALSE),"") -> 397.5 | F16: 6 | K16: 37 | Q16: =55.5+96 -> 151.5 | T16: 35 | Z16: 7 | AB16: 6.75 | AF16: 15 | AK16: 258.25 | AL16: 7
A17: 1054 | B17: =IF(C17="","",SUBTOTAL(3,$C$9:C17)) -> 9 | C17: =IFERROR(VLOOKUP(A17,ورقة1!$A$9:$C$258,3,0),"اضافة ") -> خليفة كبدة | D17: =IFERROR(VLOOKUP($A17,ورقة1!$A$9:$D$205,4,FALSE),"") -> 121 | F17: 13 | M17: 18 | AK17: 31 | AL17: 2
A18: 1073 | B18: =IF(C18="","",SUBTOTAL(3,$C$9:C18)) -> 10 | C18: =IFERROR(VLOOKUP(A18,ورقة1!$A$9:$C$258,3,0),"اضافة ") -> يسري محمود | D18: =IFERROR(VLOOKUP($A18,ورقة1!$A$9:$D$205,4,FALSE),"") -> 670.5 | F18: =215+63 -> 278 | P18: 200 | R18: 147 | W18: 15 | AD18: 637 | AE18: 148 | AK18: 1425 | AL18: 6
A19: 1043 | B19: =IF(C19="","",SUBTOTAL(3,$C$9:C19)) -> 11 | C19: =IFERROR(VLOOKUP(A19,ورقة1!$A$9:$C$258,3,0),"اضافة ") -> احمد الجغل | D19: =IFERROR(VLOOKUP($A19,ورقة1!$A$9:$D$205,4,FALSE),"") -> 706.75 | F19: 28 | AB19: 133 | AK19: 161 | AL19: 2
A20: 1126 | B20: =IF(C20="","",SUBTOTAL(3,$C$9:C20)) -> 12 | C20: =IFERROR(VLOOKUP(A20,ورقة1!$A$9:$C$258,3,0),"اضافة ") -> مرات الشيخ حسان | D20: =IFERROR(VLOOKUP($A20,ورقة1!$A$9:$D$205,4,FALSE),"") -> 47 | G20: 27 | AB20: 8 | AK20: 35 | AL20: 2
A21: 1039 | B21: =IF(C21="","",SUBTOTAL(3,$C$9:C21)) -> 13 | C21: =IFERROR(VLOOKUP(A21,ورقة1!$A$9:$C$258,3,0),"اضافة ") -> مرات محمود عادل | D21: =IFERROR(VLOOKUP($A21,ورقة1!$A$9:$D$205,4,FALSE),"") -> 805.25 | H21: 12 | Z21: 47.5 | AK21: 59.5 | AL21: 2
A22: 1074 | B22: =IF(C22="","",SUBTOTAL(3,$C$9:C22)) -> 14 | C22: رجب سلامة | D22: =IFERROR(VLOOKUP($A22,ورقة1!$A$9:$D$205,4,FALSE),"") -> 26 | I22: 35 | AK22: 35 | AL22: 1
A23: 1095 | B23: =IF(C23="","",SUBTOTAL(3,$C$9:C23)) -> 15 | C23: =IFERROR(VLOOKUP(A23,ورقة1!$A$9:$C$258,3,0),"اضافة ") -> محمد خميس | D23: =IFERROR(VLOOKUP($A23,ورقة1!$A$9:$D$205,4,FALSE),"") -> 508 | J23: 113 | L23: 19.5 | M23: 70 | P23: 70 | S23: 70 | X23: 70 | Y23: 7.5 | AK23: 420 | AL23: 7
A24: 1084 | B24: =IF(C24="","",SUBTOTAL(3,$C$9:C24)) -> 16 | C24: عادل عبد الحسيب | D24: =IFERROR(VLOOKUP($A24,ورقة1!$A$9:$D$205,4,FALSE),"") -> 60 | J24: 60 | AK24: 60 | AL24: 1
A25: 1128 | B25: =IF(C25="","",SUBTOTAL(3,$C$9:C25)) -> 17 | C25: =IFERROR(VLOOKUP(A25,ورقة1!$A$9:$C$258,3,0),"اضافة ") -> ربيع محمد السيد | D25: =IFERROR(VLOOKUP($A25,ورقة1!$A$9:$D$205,4,FALSE),"") -> 525 | H25: 55 | K25: 293 | AK25: 348 | AL25: 2
A26: 1109 | B26: =IF(C26="","",SUBTOTAL(3,$C$9:C26)) -> 18 | C26: =IFERROR(VLOOKUP(A26,ورقة1!$A$9:$C$258,3,0),"اضافة ") -> ام حارث | D26: =IFERROR(VLOOKUP($A26,ورقة1!$A$9:$D$205,4,FALSE),"") -> 104 | K26: 65 | AK26: 65 | AL26: 1
A27: 1133 | B27: =IF(C27="","",SUBTOTAL(3,$C$9:C27)) -> 19 | C27: ام محمد صبري | D27: =IFERROR(VLOOKUP($A27,ورقة1!$A$9:$D$205,4,FALSE),"") -> 25 | K27: 75 | AK27: 75 | AL27: 1
A28: 1134 | B28: =IF(C28="","",SUBTOTAL(3,$C$9:C28)) -> 20 | C28: ابراهيم الحاج عيسي | D28: =IFERROR(VLOOKUP($A28,ورقة1!$A$9:$D$205,4,FALSE),"") -> 45.5 | K28: 31.5 | Q28: 69.5 | S28: 21.75 | AD28: 53.5 | AH28: 134 | AK28: 310.25 | AL28: 5
A29: 1072 | B29: =IF(C29="","",SUBTOTAL(3,$C$9:C29)) -> 21 | C29: =IFERROR(VLOOKUP(A29,ورقة1!$A$9:$C$258,3,0),"اضافة ") -> محمود احمد عبد الواحد | D29: =IFERROR(VLOOKUP($A29,ورقة1!$A$9:$D$205,4,FALSE),"") -> 564.55 | K29: 38 | W29: 155 | X29: =3+32 -> 35 | AK29: 228 | AL29: 3
A30: 1030 | B30: =IF(C30="","",SUBTOTAL(3,$C$9:C30)) -> 22 | C30: =IFERROR(VLOOKUP(A30,ورقة1!$A$9:$C$258,3,0),"اضافة ") -> كمال محمد مهني | D30: =IFERROR(VLOOKUP($A30,ورقة1!$A$9:$D$205,4,FALSE),"") -> 258 | L30: 52 | Q30: 36 | AK30: 88 | AL30: 2
A31: 1026 | B31: =IF(C31="","",SUBTOTAL(3,$C$9:C31)) -> 23 | C31: =IFERROR(VLOOKUP(A31,ورقة1!$A$9:$C$258,3,0),"اضافة ") -> سحر | D31: =IFERROR(VLOOKUP($A31,ورقة1!$A$9:$D$205,4,FALSE),"") -> 75 | N31: 37.5 | S31: 5 | W31: 6.5 | Y31: =5+9 -> 14 | AC31: 10 | AH31: 21 | AK31: 94 | AL31: 6
A32: 1130 | B32: =IF(C32="","",SUBTOTAL(3,$C$9:C32)) -> 24 | C32: =IFERROR(VLOOKUP(A32,ورقة1!$A$9:$C$258,3,0),"اضافة ") -> بيت الحاج ع الظاهر | D32: =IFERROR(VLOOKUP($A32,ورقة1!$A$9:$D$205,4,FALSE),"") -> 23 | O32: 290 | R32: 22 | T32: 34.8 | AC32: 71 | AE32: 75 | AF32: 79.7 | AK32: 572.5 | AL32: 6
A33: 1058 | B33: =IF(C33="","",SUBTOTAL(3,$C$9:C33)) -> 25 | C33: =IFERROR(VLOOKUP(A33,ورقة1!$A$9:$C$258,3,0),"اضافة ") -> محمد نصر | D33: =IFERROR(VLOOKUP($A33,ورقة1!$A$9:$D$205,4,FALSE),"") -> 16 | P33: 12 | Z33: 16 | AE33: 62 | AK33: 90 | AL33: 3
A34: 1119 | B34: =IF(C34="","",SUBTOTAL(3,$C$9:C34)) -> 26 | C34: =IFERROR(VLOOKUP(A34,ورقة1!$A$9:$C$258,3,0),"اضافة ") -> مرات احمد شقراني | D34: =IFERROR(VLOOKUP($A34,ورقة1!$A$9:$D$205,4,FALSE),"") -> 27 | P34: 12 | AK34: 12 | AL34: 1
A35: 1082 | B35: =IF(C35="","",SUBTOTAL(3,$C$9:C35)) -> 27 | C35: =IFERROR(VLOOKUP(A35,ورقة1!$A$9:$C$258,3,0),"اضافة ") -> نادية شقلوف | D35: =IFERROR(VLOOKUP($A35,ورقة1!$A$9:$D$205,4,FALSE),"") -> 122 | P35: 19 | AK35: 19 | AL35: 1
A36: 1079 | B36: =IF(C36="","",SUBTOTAL(3,$C$9:C36)) -> 28 | C36: =IFERROR(VLOOKUP(A36,ورقة1!$A$9:$C$258,3,0),"اضافة ") -> ام مجدى | D36: =IFERROR(VLOOKUP($A36,ورقة1!$A$9:$D$205,4,FALSE),"") -> 46.5 | Q36: 32.5 | AB36: 42.5 | AK36: 75 | AL36: 2
A37: 1025 | B37: =IF(C37="","",SUBTOTAL(3,$C$9:C37)) -> 29 | C37: =IFERROR(VLOOKUP(A37,ورقة1!$A$9:$C$258,3,0),"اضافة ") -> ام ربيع محمد شحاتة | D37: =IFERROR(VLOOKUP($A37,ورقة1!$A$9:$D$205,4,FALSE),"") -> 75 | Q37: 12 | Z37: 10 | AK37: 22 | AL37: 2
A38: 1018 | B38: =IF(C38="","",SUBTOTAL(3,$C$9:C38)) -> 30 | C38: =IFERROR(VLOOKUP(A38,ورقة1!$A$9:$C$258,3,0),"اضافة ") -> عبد الرحمن احمد | D38: =IFERROR(VLOOKUP($A38,ورقة1!$A$9:$D$205,4,FALSE),"") -> 460.5 | Q38: 35.5 | AK38: 35.5 | AL38: 1
A39: 1092 | B39: =IF(C39="","",SUBTOTAL(3,$C$9:C39)) -> 31 | C39: ام محمود سطوحي | D39: =IFERROR(VLOOKUP($A39,ورقة1!$A$9:$D$205,4,FALSE),"") -> 164 | Q39: 9 | AK39: 9 | AL39: 1
A40: 1127 | B40: =IF(C40="","",SUBTOTAL(3,$C$9:C40)) -> 32 | C40: =IFERROR(VLOOKUP(A40,ورقة1!$A$9:$C$258,3,0),"اضافة ") -> سعيد عدلي | D40: =IFERROR(VLOOKUP($A40,ورقة1!$A$9:$D$205,4,FALSE),"") -> 316 | R40: 33.5 | X40: 1 | Y40: 3.25 | AG40: 14 | AH40: 4 | AK40: 55.75 | AL40: 5
A41: 1021 | B41: =IF(C41="","",SUBTOTAL(3,$C$9:C41)) -> 33 | C41: =IFERROR(VLOOKUP(A41,ورقة1!$A$9:$C$258,3,0),"اضافة ") -> رضا محمد احمد | D41: =IFERROR(VLOOKUP($A41,ورقة1!$A$9:$D$205,4,FALSE),"") -> 134.25 | R41: 11 | AK41: 11 | AL41: 1
A42: 1042 | B42: =IF(C42="","",SUBTOTAL(3,$C$9:C42)) -> 34 | C42: =IFERROR(VLOOKUP(A42,ورقة1!$A$9:$C$258,3,0),"اضافة ") -> محمد راضي ع العليم | D42: =IFERROR(VLOOKUP($A42,ورقة1!$A$9:$D$205,4,FALSE),"") -> 82 | R42: 33.75 | AC42: 22.5 | AE42: 28.5 | AF42: 19.5 | AK42: 104.25 | AL42: 4
A43: 1123 | B43: =IF(C43="","",SUBTOTAL(3,$C$9:C43)) -> 35 | C43: =IFERROR(VLOOKUP(A43,ورقة1!$A$9:$C$258,3,0),"اضافة ") -> احمد راضي ع الصالحين | D43: =IFERROR(VLOOKUP($A43,ورقة1!$A$9:$D$205,4,FALSE),"") -> 133 | R43: 120 | AK43: 120 | AL43: 1
A44: 1048 | B44: =IF(C44="","",SUBTOTAL(3,$C$9:C44)) -> 36 | C44: =IFERROR(VLOOKUP(A44,ورقة1!$A$9:$C$258,3,0),"اضافة ") -> وائل خلف | D44: =IFERROR(VLOOKUP($A44,ورقة1!$A$9:$D$205,4,FALSE),"") -> 347.25 | R44: 115 | AK44: 115 | AL44: 1
A45: 1093 | B45: =IF(C45="","",SUBTOTAL(3,$C$9:C45)) -> 37 | C45: =IFERROR(VLOOKUP(A45,ورقة1!$A$9:$C$258,3,0),"اضافة ") -> عمي ناجي محمد علي | D45: =IFERROR(VLOOKUP($A45,ورقة1!$A$9:$D$205,4,FALSE),"") -> 525 | T45: =77+29.5 -> 106.5 | U45: 98 | V45: 42 | AK45: 246.5 | AL45: 3
A46: 1111 | B46: =IF(C46="","",SUBTOTAL(3,$C$9:C46)) -> 38 | C46: =IFERROR(VLOOKUP(A46,ورقة1!$A$9:$C$258,3,0),"اضافة ") -> مرات بليغ عبد الله | D46: =IFERROR(VLOOKUP($A46,ورقة1!$A$9:$D$205,4,FALSE),"") -> 22 | U46: 7 | AK46: 7 | AL46: 1
A47: 1050 | B47: =IF(C47="","",SUBTOTAL(3,$C$9:C47)) -> 39 | C47: احمد عبد الحافظ | D47: =IFERROR(VLOOKUP($A47,ورقة1!$A$9:$D$205,4,FALSE),"") -> 79.5 | X47: 79.5 | AK47: 79.5 | AL47: 1
A48: 1090 | B48: =IF(C48="","",SUBTOTAL(3,$C$9:C48)) -> 40 | C48: =IFERROR(VLOOKUP(A48,ورقة1!$A$9:$C$258,3,0),"اضافة ") -> ياسين عبد الله | D48: =IFERROR(VLOOKUP($A48,ورقة1!$A$9:$D$205,4,FALSE),"") -> 64.75 | Y48: 65.5 | AG48: 113.5 | AK48: 179 | AL48: 2
A49: 1106 | B49: =IF(C49="","",SUBTOTAL(3,$C$9:C49)) -> 41 | C49: خالد عبد الحميد يونس | D49: =IFERROR(VLOOKUP($A49,ورقة1!$A$9:$D$205,4,FALSE),"") -> 29 | Z49: 29 | AK49: 29 | AL49: 1
A50: 1034 | B50: =IF(C50="","",SUBTOTAL(3,$C$9:C50)) -> 42 | C50: عاطف خشاب | D50: =IFERROR(VLOOKUP($A50,ورقة1!$A$9:$D$205,4,FALSE),"") -> 59.5 | AB50: 48 | AK50: =SUM(E50:AI50) -> 48 | AL50: =SUBTOTAL(3,E50:AJ50) -> 1
A51: 1002 | B51: =IF(C51="","",SUBTOTAL(3,$C$9:C51)) -> 43 | C51: =IFERROR(VLOOKUP(A51,ورقة1!$A$9:$C$258,3,0),"اضافة ") -> محمد عبد الناصر ابو بكر | D51: =IFERROR(VLOOKUP($A51,ورقة1!$A$9:$D$205,4,FALSE),"") -> 282.5 | AC51: 15 | AK51: =SUM(E51:AI51) -> 15 | AL51: 1
A52: 1063 | B52: =IF(C52="","",SUBTOTAL(3,$C$9:C52)) -> 44 | C52: =IFERROR(VLOOKUP(A52,ورقة1!$A$9:$C$258,3,0),"اضافة ") -> محمد عصمت | D52: =IFERROR(VLOOKUP($A52,ورقة1!$A$9:$D$205,4,FALSE),"") -> 325 | AD52: 79.5 | AK52: =SUM(E52:AI52) -> 79.5 | AL52: 1
A53: 1117 | B53: =IF(C53="","",SUBTOTAL(3,$C$9:C53)) -> 45 | C53: =IFERROR(VLOOKUP(A53,ورقة1!$A$9:$C$258,3,0),"اضافة ") -> الشيخ جمال | D53: =IFERROR(VLOOKUP($A53,ورقة1!$A$9:$D$205,4,FALSE),"") -> 24 | AD53: 40 | AK53: =SUM(E53:AI53) -> 40 | AL53: 1
A54: 1033 | B54: =IF(C54="","",SUBTOTAL(3,$C$9:C54)) -> 46 | C54: =IFERROR(VLOOKUP(A54,ورقة1!$A$9:$C$258,3,0),"اضافة ") -> ام عمار | D54: =IFERROR(VLOOKUP($A54,ورقة1!$A$9:$D$205,4,FALSE),"") -> 468 | AE54: 15 | AG54: 10.25 | AK54: =SUM(E54:AI54) -> 25.25 | AL54: 2
A55: 1036 | B55: =IF(C55="","",SUBTOTAL(3,$C$9:C55)) -> 47 | C55: =IFERROR(VLOOKUP(A55,ورقة1!$A$9:$C$258,3,0),"اضافة ") -> مرات عبد الحميد | D55: =IFERROR(VLOOKUP($A55,ورقة1!$A$9:$D$205,4,FALSE),"") -> 146 | AE55: 21.75 | AK55: 21.75 | AL55: 1
A56: 1087 | B56: =IF(C56="","",SUBTOTAL(3,$C$9:C56)) -> 48 | C56: محمد جمال خلف | D56: =IFERROR(VLOOKUP($A56,ورقة1!$A$9:$D$205,4,FALSE),"") -> 130 | AF56: 87 | AG56: 72 | AK56: 159 | AL56: 2
A57: 1029 | B57: =IF(C57="","",SUBTOTAL(3,$C$9:C57)) -> 49 | C57: الحاجه فكرية ام صلاح ع الرحمن | D57: =IFERROR(VLOOKUP($A57,ورقة1!$A$9:$D$205,4,FALSE),"") -> 47.5 | AG57: 100 | AK57: 100 | AL57: 1
A58: 1019 | B58: =IF(C58="","",SUBTOTAL(3,$C$9:C58)) -> 50 | C58: =IFERROR(VLOOKUP(A58,ورقة1!$A$9:$C$258,3,0),"اضافة ") -> فتحي بردونة | D58: =IFERROR(VLOOKUP($A58,ورقة1!$A$9:$D$205,4,FALSE),"") -> 226.5 | AH58: 47 | AK58: 47 | AL58: 1
A59: 1051 | B59: =IF(C59="","",SUBTOTAL(3,$C$9:C59)) -> 51 | C59: =IFERROR(VLOOKUP(A59,ورقة1!$A$9:$C$258,3,0),"اضافة ") -> نادر ابو الوفا | D59: =IFERROR(VLOOKUP($A59,ورقة1!$A$9:$D$205,4,FALSE),"") -> 127.25 | AH59: 31.2 | AK59: 31.2 | AL59: 1
A60: 1069 | B60: =IF(C60="","",SUBTOTAL(3,$C$9:C60)) -> 52 | C60: =IFERROR(VLOOKUP(A60,ورقة1!$A$9:$C$258,3,0),"اضافة ") -> ربيع هنداوي | D60: =IFERROR(VLOOKUP($A60,ورقة1!$A$9:$D$205,4,FALSE),"") -> 102.5 | AH60: 44 | AK60: 44 | AL60: 1
A61: 1131 | B61: =IF(C61="","",SUBTOTAL(3,$C$9:C61)) -> 53 | C61: عماد محمد السيد | D61: =IFERROR(VLOOKUP($A61,ورقة1!$A$9:$D$205,4,FALSE),"") -> 26 | AH61: =39.75+8+3 -> 50.75 | AK61: 50.75 | AL61: 1
A62: 1132 | B62: =IF(C62="","",SUBTOTAL(3,$C$9:C62)) -> 54 | C62: بنت عبد الناصر ابوبكر | D62: =IFERROR(VLOOKUP($A62,ورقة1!$A$9:$D$205,4,FALSE),"") -> 49 | AH62: 49 | AK62: 49 | AL62: 1
A66: اجمالي الشهر | C66: =AK5 -> 8294.7
A67: اجمالي التنزيلات الشهر
A68: عدد الافراد | C68: =AK4 -> 138
A69: تنزيلات فعلية من الشهر
A70: الباقي من الشهر | C70: =C66-C69 -> 8294.7
A71: تنزيل من السابق | C71: =C67-C69 -> 0

Sheet شهر 7
A1: شهر يوليو 2020 | E1: كود البداية | G1: =MIN(A9:A82) -> 1003
E2: كود النهاية | G2: =MAX(A9:A82) -> 1145
E3: =E5 -> 176.75 | F3: =SUM($E$5:F5) -> 363.75 | G3: =SUM($E$5:G5) -> 476.75 | H3: =SUM($E$5:H5) -> 578.75 | I3: =SUM($E$5:I5) -> 995.25 | J3: =SUM($E$5:J5) -> 1253.25 | K3: =SUM($E$5:K5) -> 2016.75 | L3: =SUM($E$5:L5) -> 2766 | M3: =SUM($E$5:M5) -> 2988.5 | N3: =SUM($E$5:N5) -> 3115.25 | O3: =SUM($E$5:O5) -> 3248.75 | P3: =SUM($E$5:P5) -> 3572 | Q3: =SUM($E$5:Q5) -> 3622.5 | R3: =SUM($E$5:R5) -> 4135.25 | S3: =SUM($E$5:S5) -> 4424.25 | T3: =SUM($E$5:T5) -> 4720.75 | U3: =SUM($E$5:U5) -> 4970.75 | V3: =SUM($E$5:V5) -> 5160.25 | W3: =SUM($E$5:W5) -> 5541.75 | X3: =SUM($E$5:X5) -> 5805.5 | Y3: =SUM($E$5:Y5) -> 5912.75 | Z3: =SUM($E$5:Z5) -> 6239.75 | AA3: =SUM($E$5:AA5) -> 6606.75 | AB3: =SUM($E$5:AB5) -> 6757 | AC3: =SUM($E$5:AC5) -> 7455.25 | AD3: =SUM($E$5:AD5) -> 7571.75 | AE3: =SUM($E$5:AE5) -> 7787 | AF3: =SUM($E$5:AF5) -> 8036 | AG3: =SUM($E$5:AG5) -> 8076 | AH3: =SUM($E$5:AH5) -> 8679.25 | AI3: =SUM($E$5:AI5) -> 9054.25
D4: العدد | E4: =SUBTOTAL(2,E9:E125) -> 5 | F4: 7 | G4: 5 | H4: 4 | I4: 2 | J4: 10 | K4: 16 | L4: 10 | M4: 4 | N4: 3 | O4: 3 | P4: 7 | Q4: 4 | R4: 9 | S4: 9 | T4: 3 | U4: 8 | V4: 6 | W4: 5 | X4: 7 | Y4: 5 | Z4: 6 | AA4: 6 | AB4: 5 | AC4: 6 | AD4: 6 | AE4: 5 | AF4: 5 | AG4: 2 | AH4: 4 | AI4: 8 | AJ4: 0 | AK4: =SUM(E4:AI4) -> 185 | AL4: العدد
D5: الاجمالي | E5: =SUM(E9:E150) -> 176.75 | F5: 187 | G5: 113 | H5: 102 | I5: 416.5 | J5: 258 | K5: 763.5 | L5: 749.25 | M5: 222.5 | N5: 126.75 | O5: 133.5 | P5: 323.25 | Q5: 50.5 | R5: 512.75 | S5: 289 | T5: 296.5 | U5: 250 | V5: 189.5 | W5: 381.5 | X5: 263.75 | Y5: 107.25 | Z5: 327 | AA5: 367 | AB5: 150.25 | AC5: 698.25 | AD5: 116.5 | AE5: 215.25 | AF5: 249 | AG5: 40 | AH5: 603.25 | AI5: 375 | AK5: =SUM(E5:AI5) -> 9054.25 | AL5: الاجمالي
A6: الكود | B6: م | C6: الاسم | D6: اجمالي الحساب | E6: =IF(E7="","",CHOOSE(WEEKDAY(E7),"الاحد","الاثنين","الثلاثاء","الاربعاء","الخميس","الجمعة","السبت")) -> الاربعاء | F6: =IF(F7="","",CHOOSE(WEEKDAY(F7),"الاحد","الاثنين","الثلاثاء","الاربعاء","الخميس","الجمعة","السبت")) -> الخميس | G6: الجمعة | H6: السبت | I6: الاحد | J6: الاثنين | K6: الثلاثاء | L6: الاربعاء | M6: الخميس | N6: الجمعة | O6: السبت | P6: الاحد | Q6: الاثنين | R6: الثلاثاء | S6: الاربعاء | T6: الخميس | U6: الجمعة | V6: السبت | W6: الاحد | X6: الاثنين | Y6: الثلاثاء | Z6: الاربعاء | AA6: الخميس | AB6: الجمعة | AC6: السبت | AD6: الاحد | AE6: الاثنين | AF6: الثلاثاء | AG6: الاربعاء | AH6: الخميس | AI6: الجمعة | AK6: الاجمالي
E7: 2020-07-01 | F7: 2020-07-02 | G7: 2020-07-03 | H7: 2020-07-04 | I7: 2020-07-05 | J7: 2020-07-06 | K7: 2020-07-07 | L7: 2020-07-08 | M7: 2020-07-09 | N7: 2020-07-10 | O7: 2020-07-11 | P7: 2020-07-12 | Q7: 2020-07-13 | R7: 2020-07-14 | S7: 2020-07-15 | T7: 2020-07-16 | U7: 2020-07-17 | V7: 2020-07-18 | W7: 2020-07-19 | X7: 2020-07-20 | Y7: 2020-07-21 | Z7: 2020-07-22 | AA7: 2020-07-23 | AB7: 2020-07-24 | AC7: 2020-07-25 | AD7: 2020-07-26 | AE7: 2020-07-27 | AF7: 2020-07-28 | AG7: 2020-07-29 | AH7: 2020-07-30 | AI7: 2020-07-31
AL8: عدد المرات
A9: 1003 | B9: =IF(C9="","",SUBTOTAL(3,$C$9:C9)) -> 1 | C9: =IFERROR(VLOOKUP(A9,ورقة1!$A$9:$C$258,3,0),"اضافة ") -> رضا جمعة حسين | D9: =IFERROR(VLOOKUP($A9,ورقة1!$A$9:$AE$239,4,FALSE),"") -> 1056.3 | E9: 6 | S9: 16 | AK9: =SUM(E9:AI9) -> 22 | AL9: =SUBTOTAL(3,E9:AJ9) -> 2
A10: 1127 | B10: =IF(C10="","",SUBTOTAL(3,$C$9:C10)) -> 2 | C10: =IFERROR(VLOOKUP(A10,ورقة1!$A$9:$C$258,3,0),"اضافة ") -> سعيد عدلي | D10: =IFERROR(VLOOKUP($A10,ورقة1!$A$9:$AE$239,4,FALSE),"") -> 316 | E10: 2.75 | F10: 13 | G10: 6 | J10: 16.5 | K10: 40 | M10: 10.5 | R10: 13.5 | U10: 19 | Z10: 30 | AD10: 9.5 | AG10: 21 | AK10: 181.75 | AL10: 11
A11: 1015 | B11: =IF(C11="","",SUBTOTAL(3,$C$9:C11)) -> 3 | C11: =IFERROR(VLOOKUP(A11,ورقة1!$A$9:$C$258,3,0),"اضافة ") -> هيثم عزام | D11: =IFERROR(VLOOKUP($A11,ورقة1!$A$9:$AE$239,4,FALSE),"") -> 250.5 | E11: 35.5 | F11: 8 | H11: 13 | J11: =4.5+13.5 -> 18 | K11: 7.5 | L11: 21.25 | P11: 69.5 | Q11: 13 | X11: 45 | Z11: 6 | AB11: =9.5+39 -> 48.5 | AF11: =25+37.5 -> 62.5 | AG11: =14+5 -> 19 | AK11: 366.75 | AL11: 13
A12: 1011 | B12: =IF(C12="","",SUBTOTAL(3,$C$9:C12)) -> 4 | C12: جمال صدقي | D12: =IFERROR(VLOOKUP($A12,ورقة1!$A$9:$AE$239,4,FALSE),"") -> 69.5 | E12: 94.5 | AF12: 10 | AI12: 17.5 | AK12: 122 | AL12: 3
A13: 1022 | B13: =IF(C13="","",SUBTOTAL(3,$C$9:C13)) -> 5 | C13: بنت عاطف محمد ع الرزاق | D13: =IFERROR(VLOOKUP($A13,ورقة1!$A$9:$AE$239,4,FALSE),"") -> 38 | E13: 38 | AK13: 38 | AL13: 1
A14: 1091 | B14: =IF(C14="","",SUBTOTAL(3,$C$9:C14)) -> 6 | C14: سعيد راضي | D14: =IFERROR(VLOOKUP($A14,ورقة1!$A$9:$AE$239,4,FALSE),"") -> 89 | F14: 10 | L14: 54.5 | Q14: 30 | S14: 24.5 | Y14: 18 | AF14: 46 | AI14: 25 | AK14: 208 | AL14: 7
A15: 1087 | B15: =IF(C15="","",SUBTOTAL(3,$C$9:C15)) -> 7 | C15: =IFERROR(VLOOKUP(A15,ورقة1!$A$9:$C$258,3,0),"اضافة ") -> محمد جمال خلف | D15: =IFERROR(VLOOKUP($A15,ورقة1!$A$9:$AE$239,4,FALSE),"") -> 130 | F15: 96 | G15: 35 | AK15: 131 | AL15: 2
A16: 1125 | B16: =IF(C16="","",SUBTOTAL(3,$C$9:C16)) -> 8 | C16: سارة عادل | D16: =IFERROR(VLOOKUP($A16,ورقة1!$A$9:$AE$239,4,FALSE),"") -> 18 | F16: 18 | AK16: 18 | AL16: 1
A17: 1128 | B17: =IF(C17="","",SUBTOTAL(3,$C$9:C17)) -> 9 | C17: =IFERROR(VLOOKUP(A17,ورقة1!$A$9:$C$258,3,0),"اضافة ") -> ربيع محمد السيد | D17: =IFERROR(VLOOKUP($A17,ورقة1!$A$9:$AE$239,4,FALSE),"") -> 525 | F17: 33 | I17: 245.5 | AK17: 278.5 | AL17: 2
A18: 1059 | B18: =IF(C18="","",SUBTOTAL(3,$C$9:C18)) -> 10 | C18: =IFERROR(VLOOKUP(A18,ورقة1!$A$9:$C$258,3,0),"اضافة ") -> مرات طارق عبد الله | D18: =IFERROR(VLOOKUP($A18,ورقة1!$A$9:$AE$239,4,FALSE),"") -> 207 | F18: 9 | K18: 29 | Y18: 31.5 | AE18: 29.5 | AK18: 99 | AL18: 4
A19: 1058 | B19: =IF(C19="","",SUBTOTAL(3,$C$9:C19)) -> 11 | C19: =IFERROR(VLOOKUP(A19,ورقة1!$A$9:$C$258,3,0),"اضافة ") -> محمد نصر | D19: =IFERROR(VLOOKUP($A19,ورقة1!$A$9:$AE$239,4,FALSE),"") -> 16 | G19: 58 | L19: 23 | AK19: 81 | AL19: 2
A20: 1073 | B20: =IF(C20="","",SUBTOTAL(3,$C$9:C20)) -> 12 | C20: =IFERROR(VLOOKUP(A20,ورقة1!$A$9:$C$258,3,0),"اضافة ") -> يسري محمود | D20: =IFERROR(VLOOKUP($A20,ورقة1!$A$9:$AE$239,4,FALSE),"") -> 670.5 | G20: 7 | J20: 5.5 | R20: 204.75 | AC20: 637 | AH20: 65.75 | AI20: 25.5 | AK20: 945.5 | AL20: 6
A21: 1034 | B21: =IF(C21="","",SUBTOTAL(3,$C$9:C21)) -> 13 | C21: =IFERROR(VLOOKUP(A21,ورقة1!$A$9:$C$258,3,0),"اضافة ") -> عاطف خشاب | D21: =IFERROR(VLOOKUP($A21,ورقة1!$A$9:$AE$239,4,FALSE),"") -> 59.5 | H21: 17 | V21: 48 | AA21: 40 | AK21: 105 | AL21: 3
A22: 1012 | B22: =IF(C22="","",SUBTOTAL(3,$C$9:C22)) -> 14 | C22: =IFERROR(VLOOKUP(A22,ورقة1!$A$9:$C$258,3,0),"اضافة ") -> ام سعودي عبد الله | D22: =IFERROR(VLOOKUP($A22,ورقة1!$A$9:$AE$239,4,FALSE),"") -> 552 | H22: 45 | P22: 8 | AD22: 10 | AK22: 63 | AL22: 3
A23: 1021 | B23: =IF(C23="","",SUBTOTAL(3,$C$9:C23)) -> 15 | C23: =IFERROR(VLOOKUP(A23,ورقة1!$A$9:$C$258,3,0),"اضافة ") -> رضا محمد احمد | D23: =IFERROR(VLOOKUP($A23,ورقة1!$A$9:$AE$239,4,FALSE),"") -> 134.25 | H23: 27 | S23: 1.5 | AH23: 10.5 | AK23: 39 | AL23: 3
A24: 1100 | B24: =IF(C24="","",SUBTOTAL(3,$C$9:C24)) -> 16 | C24: =IFERROR(VLOOKUP(A24,ورقة1!$A$9:$C$258,3,0),"اضافة ") -> ام وحيد | D24: =IFERROR(VLOOKUP($A24,ورقة1!$A$9:$AE$239,4,FALSE),"") -> 246.5 | I24: 171 | T24: 40 | AK24: 211 | AL24: 2
A25: 1141 | B25: =IF(C25="","",SUBTOTAL(3,$C$9:C25)) -> 17 | C25: عيد عز | D25: =IFERROR(VLOOKUP($A25,ورقة1!$A$9:$AE$239,4,FALSE),"") -> 14 | J25: 14 | AK25: 14 | AL25: 1
A26: 1019 | B26: =IF(C26="","",SUBTOTAL(3,$C$9:C26)) -> 18 | C26: =IFERROR(VLOOKUP(A26,ورقة1!$A$9:$C$258,3,0),"اضافة ") -> فتحي بردونة | D26: =IFERROR(VLOOKUP($A26,ورقة1!$A$9:$AE$239,4,FALSE),"") -> 226.5 | J26: 106.5 | AK26: 106.5 | AL26: 1
A27: 1051 | B27: =IF(C27="","",SUBTOTAL(3,$C$9:C27)) -> 19 | C27: =IFERROR(VLOOKUP(A27,ورقة1!$A$9:$C$258,3,0),"اضافة ") -> نادر ابو الوفا | D27: =IFERROR(VLOOKUP($A27,ورقة1!$A$9:$AE$239,4,FALSE),"") -> 127.25 | G27: 7 | L27: 12 | AK27: 19 | AL27: 2
A28: 1136 | B28: =IF(C28="","",SUBTOTAL(3,$C$9:C28)) -> 20 | C28: احمد اسماعيل الجزار | D28: =IFERROR(VLOOKUP($A28,ورقة1!$A$9:$AE$239,4,FALSE),"") -> 12 | J28: 12 | AK28: 12 | AL28: 1
A29: 1137 | B29: =IF(C29="","",SUBTOTAL(3,$C$9:C29)) -> 21 | C29: محمود عيسي حسن | D29: =IFERROR(VLOOKUP($A29,ورقة1!$A$9:$AE$239,4,FALSE),"") -> 267 | J29: 30 | M29: 69 | O29: =46+69 -> 115 | S29: 53 | AK29: 267 | AL29: 4
A30: 1121 | B30: =IF(C30="","",SUBTOTAL(3,$C$9:C30)) -> 22 | C30: =IFERROR(VLOOKUP(A30,ورقة1!$A$9:$C$258,3,0),"اضافة ") -> وليد رجب | D30: =IFERROR(VLOOKUP($A30,ورقة1!$A$9:$AE$239,4,FALSE),"") -> 1763.5 | J30: 24 | L30: 54 | N30: 92.25 | X30: 36 | AK30: 206.25 | AL30: 4
A31: 1010 | B31: =IF(C31="","",SUBTOTAL(3,$C$9:C31)) -> 23 | C31: =IFERROR(VLOOKUP(A31,ورقة1!$A$9:$C$258,3,0),"اضافة ") -> شعبان احمد طه | D31: =IFERROR(VLOOKUP($A31,ورقة1!$A$9:$AE$239,4,FALSE),"") -> 83 | J31: 16.5 | AK31: 16.5 | AL31: 1
A32: 1026 | B32: =IF(C32="","",SUBTOTAL(3,$C$9:C32)) -> 24 | C32: سحر | D32: =IFERROR(VLOOKUP($A32,ورقة1!$A$9:$AE$239,4,FALSE),"") -> 75 | K32: 78 | P32: 10 | R32: 3 | V32: 43 | AB32: 10 | AI32: 10 | AK32: 154 | AL32: 6
A33: 1029 | B33: =IF(C33="","",SUBTOTAL(3,$C$9:C33)) -> 25 | C33: =IFERROR(VLOOKUP(A33,ورقة1!$A$9:$C$258,3,0),"اضافة ") -> الحاجه فكرية ام صلاح ع الرحمن | D33: =IFERROR(VLOOKUP($A33,ورقة1!$A$9:$AE$239,4,FALSE),"") -> 47.5 | K33: 6.5 | AB33: 21 | AK33: 27.5 | AL33: 2
A34: 1095 | B34: =IF(C34="","",SUBTOTAL(3,$C$9:C34)) -> 26 | C34: =IFERROR(VLOOKUP(A34,ورقة1!$A$9:$C$258,3,0),"اضافة ") -> محمد خميس | D34: =IFERROR(VLOOKUP($A34,ورقة1!$A$9:$AE$239,4,FALSE),"") -> 508 | K34: 15 | L34: 9.5 | R34: 3.75 | Y34: 3.75 | AK34: 32 | AL34: 4
A35: 1111 | B35: =IF(C35="","",SUBTOTAL(3,$C$9:C35)) -> 27 | C35: =IFERROR(VLOOKUP(A35,ورقة1!$A$9:$C$258,3,0),"اضافة ") -> مرات بليغ عبد الله | D35: =IFERROR(VLOOKUP($A35,ورقة1!$A$9:$AE$239,4,FALSE),"") -> 22 | K35: 18 | AK35: 18 | AL35: 1
A36: 1082 | B36: =IF(C36="","",SUBTOTAL(3,$C$9:C36)) -> 28 | C36: =IFERROR(VLOOKUP(A36,ورقة1!$A$9:$C$258,3,0),"اضافة ") -> نادية شقلوف | D36: =IFERROR(VLOOKUP($A36,ورقة1!$A$9:$AE$239,4,FALSE),"") -> 122 | K36: 53.5 | W36: 68.5 | AK36: 122 | AL36: 2
A37: 1072 | B37: =IF(C37="","",SUBTOTAL(3,$C$9:C37)) -> 29 | C37: =IFERROR(VLOOKUP(A37,ورقة1!$A$9:$C$258,3,0),"اضافة ") -> محمود احمد عبد الواحد | D37: =IFERROR(VLOOKUP($A37,ورقة1!$A$9:$AE$239,4,FALSE),"") -> 564.55 | K37: 33 | Q37: 3 | S37: 15 | Z37: =157+19 -> 176 | AC37: 6.75 | AK37: 233.75 | AL37: 5
A38: 1066 | B38: =IF(C38="","",SUBTOTAL(3,$C$9:C38)) -> 30 | C38: =IFERROR(VLOOKUP(A38,ورقة1!$A$9:$C$258,3,0),"اضافة ") -> احمد ابراهيم محمد ابراهيم | D38: =IFERROR(VLOOKUP($A38,ورقة1!$A$9:$AE$239,4,FALSE),"") -> 397.5 | K38: 4 | P38: 45 | Q38: 4.5 | R38: 92 | T38: 250 | AK38: 395.5 | AL38: 5
A39: 1042 | B39: =IF(C39="","",SUBTOTAL(3,$C$9:C39)) -> 31 | C39: =IFERROR(VLOOKUP(A39,ورقة1!$A$9:$C$258,3,0),"اضافة ") -> محمد راضي ع العليم | D39: =IFERROR(VLOOKUP($A39,ورقة1!$A$9:$AE$239,4,FALSE),"") -> 82 | K39: 30 | P39: 30.75 | U39: 28.5 | W39: 25 | Z39: 5 | AD39: 18 | AE39: 64 | AK39: 201.25 | AL39: 7
A40: 1025 | B40: =IF(C40="","",SUBTOTAL(3,$C$9:C40)) -> 32 | C40: =IFERROR(VLOOKUP(A40,ورقة1!$A$9:$C$258,3,0),"اضافة ") -> ام ربيع محمد شحاتة | D40: =IFERROR(VLOOKUP($A40,ورقة1!$A$9:$AE$239,4,FALSE),"") -> 75 | K40: 15.5 | O40: 11.5 | W40: 11.5 | AK40: 38.5 | AL40: 3
A41: 1131 | B41: =IF(C41="","",SUBTOTAL(3,$C$9:C41)) -> 33 | C41: =IFERROR(VLOOKUP(A41,ورقة1!$A$9:$C$258,3,0),"اضافة ") -> عماد محمد السيد | D41: =IFERROR(VLOOKUP($A41,ورقة1!$A$9:$AE$239,4,FALSE),"") -> 26 | K41: 128 | U41: 12.5 | X41: 10.5 | AC41: 15.5 | AK41: 166.5 | AL41: 4
A42: 1138 | B42: =IF(C42="","",SUBTOTAL(3,$C$9:C42)) -> 34 | C42: احمد الكتات | D42: =IFERROR(VLOOKUP($A42,ورقة1!$A$9:$AE$239,4,FALSE),"") -> 68 | K42: 68 | AK42: 68 | AL42: 1
A43: 1140 | B43: =IF(C43="","",SUBTOTAL(3,$C$9:C43)) -> 35 | C43: عادل عبد الرحمن | D43: =IFERROR(VLOOKUP($A43,ورقة1!$A$9:$AE$239,4,FALSE),"") -> 212.5 | K43: 205 | AK43: 205 | AL43: 1
A44: 1036 | B44: =IF(C44="","",SUBTOTAL(3,$C$9:C44)) -> 36 | C44: =IFERROR(VLOOKUP(A44,ورقة1!$A$9:$C$258,3,0),"اضافة ") -> مرات عبد الحميد | D44: =IFERROR(VLOOKUP($A44,ورقة1!$A$9:$AE$239,4,FALSE),"") -> 146 | J44: 15 | K44: 32.5 | AB44: 21.75 | AK44: 69.25 | AL44: 3
A45: 1139 | B45: =IF(C45="","",SUBTOTAL(3,$C$9:C45)) -> 37 | C45: د/ محمد احمد ع الجواد | D45: =IFERROR(VLOOKUP($A45,ورقة1!$A$9:$AE$239,4,FALSE),"") -> 440 | L45: 440 | AK45: 440 | AL45: 1
A46: 1142 | B46: =IF(C46="","",SUBTOTAL(3,$C$9:C46)) -> 38 | C46: الحاجة شربات | D46: =IFERROR(VLOOKUP($A46,ورقة1!$A$9:$AE$239,4,FALSE),"") -> 23 | L46: 23 | AK46: 23 | AL46: 1
A47: 1063 | B47: =IF(C47="","",SUBTOTAL(3,$C$9:C47)) -> 39 | C47: =IFERROR(VLOOKUP(A47,ورقة1!$A$9:$C$258,3,0),"اضافة ") -> محمد عصمت | D47: =IFERROR(VLOOKUP($A47,ورقة1!$A$9:$AE$239,4,FALSE),"") -> 325 | L47: 76 | M47: 79.5 | Z47: 90 | AK47: 245.5 | AL47: 3
A48: 1134 | B48: =IF(C48="","",SUBTOTAL(3,$C$9:C48)) -> 40 | C48: =IFERROR(VLOOKUP(A48,ورقة1!$A$9:$C$258,3,0),"اضافة ") -> ابراهيم الحاج عيسي | D48: =IFERROR(VLOOKUP($A48,ورقة1!$A$9:$AE$239,4,FALSE),"") -> 45.5 | L48: 36 | AK48: 36 | AL48: 1
A49: 1046 | B49: =IF(C49="","",SUBTOTAL(3,$C$9:C49)) -> 41 | C49: =IFERROR(VLOOKUP(A49,ورقة1!$A$9:$C$258,3,0),"اضافة ") -> ام ياسين | D49: =IFERROR(VLOOKUP($A49,ورقة1!$A$9:$AE$239,4,FALSE),"") -> 285.2 | M49: 63.5 | R49: 91.75 | AA49: =16+25 -> 41 | AE49: 5.25 | AK49: 201.5 | AL49: 4
A50: 1074 | B50: =IF(C50="","",SUBTOTAL(3,$C$9:C50)) -> 42 | C50: =IFERROR(VLOOKUP(A50,ورقة1!$A$9:$C$258,3,0),"اضافة ") -> رجب سلامة | D50: =IFERROR(VLOOKUP($A50,ورقة1!$A$9:$AE$239,4,FALSE),"") -> 26 | N50: 26 | AK50: 26 | AL50: 1
A51: 1068 | B51: =IF(C51="","",SUBTOTAL(3,$C$9:C51)) -> 43 | C51: =IFERROR(VLOOKUP(A51,ورقة1!$A$9:$C$258,3,0),"اضافة ") -> محمد رجب ابو طاقية | D51: =IFERROR(VLOOKUP($A51,ورقة1!$A$9:$AE$239,4,FALSE),"") -> 73.25 | N51: 8.5 | AK51: 8.5 | AL51: 1
A52: 1020 | B52: =IF(C52="","",SUBTOTAL(3,$C$9:C52)) -> 44 | C52: مرات محمود علي | D52: =IFERROR(VLOOKUP($A52,ورقة1!$A$9:$AE$239,4,FALSE),"") -> 7 | O52: 7 | AK52: 7 | AL52: 1
A53: 1103 | B53: =IF(C53="","",SUBTOTAL(3,$C$9:C53)) -> 45 | C53: احمد راضي عبد العليم | D53: =IFERROR(VLOOKUP($A53,ورقة1!$A$9:$AE$239,4,FALSE),"") -> 9 | P53: 20 | AK53: 20 | AL53: 1
A54: 1130 | B54: =IF(C54="","",SUBTOTAL(3,$C$9:C54)) -> 46 | C54: =IFERROR(VLOOKUP(A54,ورقة1!$A$9:$C$258,3,0),"اضافة ") -> بيت الحاج ع الظاهر | D54: =IFERROR(VLOOKUP($A54,ورقة1!$A$9:$AE$239,4,FALSE),"") -> 23 | P54: 140 | W54: 143 | AK54: 283 | AL54: 2
A55: 1033 | B55: =IF(C55="","",SUBTOTAL(3,$C$9:C55)) -> 47 | C55: =IFERROR(VLOOKUP(A55,ورقة1!$A$9:$C$258,3,0),"اضافة ") -> ام عمار | D55: =IFERROR(VLOOKUP($A55,ورقة1!$A$9:$AE$239,4,FALSE),"") -> 468 | R55: 60 | AK55: 60 | AL55: 1
A56: 1079 | B56: =IF(C56="","",SUBTOTAL(3,$C$9:C56)) -> 48 | C56: =IFERROR(VLOOKUP(A56,ورقة1!$A$9:$C$258,3,0),"اضافة ") -> ام مجدى | D56: =IFERROR(VLOOKUP($A56,ورقة1!$A$9:$AE$239,4,FALSE),"") -> 46.5 | R56: 17 | U56: 65 | AK56: 82 | AL56: 2
A57: 1024 | B57: =IF(C57="","",SUBTOTAL(3,$C$9:C57)) -> 49 | C57: =IFERROR(VLOOKUP(A57,ورقة1!$A$9:$C$258,3,0),"اضافة ") -> ابو وائل حسن محمود | D57: =IFERROR(VLOOKUP($A57,ورقة1!$A$9:$AE$239,4,FALSE),"") -> 282 | S57: 60 | AK57: 60 | AL57: 1
A58: 1143 | B58: =IF(C58="","",SUBTOTAL(3,$C$9:C58)) -> 50 | C58: مرات الشيخ عمر حسين | D58: =IFERROR(VLOOKUP($A58,ورقة1!$A$9:$AE$239,4,FALSE),"") -> 15 | S58: 15 | AK58: 15 | AL58: 1
A59: 1075 | B59: =IF(C59="","",SUBTOTAL(3,$C$9:C59)) -> 51 | C59: =IFERROR(VLOOKUP(A59,ورقة1!$A$9:$C$258,3,0),"اضافة ") -> محمد صبحي ع التواب | D59: =IFERROR(VLOOKUP($A59,ورقة1!$A$9:$AE$239,4,FALSE),"") -> 150 | S59: 44 | AK59: 44 | AL59: 1
A60: 1032 | B60: =IF(C60="","",SUBTOTAL(3,$C$9:C60)) -> 52 | C60: =IFERROR(VLOOKUP(A60,ورقة1!$A$9:$C$258,3,0),"اضافة ") -> مرات عمرو عادل | D60: =IFERROR(VLOOKUP($A60,ورقة1!$A$9:$AE$239,4,FALSE),"") -> 140 | S60: 60 | Y60: 39 | AC60: 29 | AD60: 12 | AK60: 140 | AL60: 4
A61: 1048 | B61: =IF(C61="","",SUBTOTAL(3,$C$9:C61)) -> 53 | C61: =IFERROR(VLOOKUP(A61,ورقة1!$A$9:$C$258,3,0),"اضافة ") -> وائل خلف | D61: =IFERROR(VLOOKUP($A61,ورقة1!$A$9:$AE$239,4,FALSE),"") -> 347.25 | R61: 27 | V61: 46.5 | AA61: 61 | AK61: 134.5 | AL61: 3
A62: 1069 | B62: =IF(C62="","",SUBTOTAL(3,$C$9:C62)) -> 54 | C62: =IFERROR(VLOOKUP(A62,ورقة1!$A$9:$C$258,3,0),"اضافة ") -> ربيع هنداوي | D62: =IFERROR(VLOOKUP($A62,ورقة1!$A$9:$AE$239,4,FALSE),"") -> 102.5 | T62: 6.5 | AK62: =SUM(E62:AI62) -> 6.5 | AL62: =SUBTOTAL(3,E62:AJ62) -> 1
A63: 1039 | B63: =IF(C63="","",SUBTOTAL(3,$C$9:C63)) -> 55 | C63: =IFERROR(VLOOKUP(A63,ورقة1!$A$9:$C$258,3,0),"اضافة ") -> مرات محمود عادل | D63: =IFERROR(VLOOKUP($A63,ورقة1!$A$9:$AE$239,4,FALSE),"") -> 805.25 | U63: 36.5 | AK63: 36.5 | AL63: 1
A64: 1145 | B64: =IF(C64="","",SUBTOTAL(3,$C$9:C64)) -> 56 | C64: مرات الحاج جابر | D64: =IFERROR(VLOOKUP($A64,ورقة1!$A$9:$AE$239,4,FALSE),"") -> 20 | U64: 20 | AK64: 20 | AL64: 1
A65: 1092 | B65: =IF(C65="","",SUBTOTAL(3,$C$9:C65)) -> 57 | C65: صلاح سطوحي | D65: =IFERROR(VLOOKUP($A65,ورقة1!$A$9:$AE$239,4,FALSE),"") -> 164 | U65: 21.5 | W65: 133.5 | AK65: 155 | AL65: 2
A66: 1018 | B66: =IF(C66="","",SUBTOTAL(3,$C$9:C66)) -> 58 | C66: =IFERROR(VLOOKUP(A66,ورقة1!$A$9:$C$258,3,0),"اضافة ") -> عبد الرحمن احمد | D66: =IFERROR(VLOOKUP($A66,ورقة1!$A$9:$AE$239,4,FALSE),"") -> 460.5 | V66: 23 | AK66: 23 | AL66: 1
A67: 1126 | B67: =IF(C67="","",SUBTOTAL(3,$C$9:C67)) -> 59 | C67: =IFERROR(VLOOKUP(A67,ورقة1!$A$9:$C$258,3,0),"اضافة ") -> مرات الشيخ حسان | D67: =IFERROR(VLOOKUP($A67,ورقة1!$A$9:$AE$239,4,FALSE),"") -> 47 | V67: 5 | AK67: 5 | AL67: 1
A68: 1077 | B68: =IF(C68="","",SUBTOTAL(3,$C$9:C68)) -> 60 | C68: ام رودينا | D68: =IFERROR(VLOOKUP($A68,ورقة1!$A$9:$AE$239,4,FALSE),"") -> 24 | V68: 24 | AK68: 24 | AL68: 1
A69: 1040 | B69: =IF(C69="","",SUBTOTAL(3,$C$9:C69)) -> 61 | C69: =IFERROR(VLOOKUP(A69,ورقة1!$A$9:$C$258,3,0),"اضافة ") -> اعتماد سعد | D69: =IFERROR(VLOOKUP($A69,ورقة1!$A$9:$AE$239,4,FALSE),"") -> 421.25 | X69: 39.75 | AK69: 39.75 | AL69: 1
A70: 1054 | B70: =IF(C70="","",SUBTOTAL(3,$C$9:C70)) -> 62 | C70: =IFERROR(VLOOKUP(A70,ورقة1!$A$9:$C$258,3,0),"اضافة ") -> خليفة كبدة | D70: =IFERROR(VLOOKUP($A70,ورقة1!$A$9:$AE$239,4,FALSE),"") -> 121 | X70: 11.5 | Y70: 15 | AC70: 4 | AD70: 35 | AK70: 65.5 | AL70: 4
A71: 1089 | B71: =IF(C71="","",SUBTOTAL(3,$C$9:C71)) -> 63 | C71: محمد عبد السميع | D71: =IFERROR(VLOOKUP($A71,ورقة1!$A$9:$AE$239,4,FALSE),"") -> 105 | U71: 47 | X71: 58 | AK71: 105 | AL71: 2
A72: 1118 | B72: =IF(C72="","",SUBTOTAL(3,$C$9:C72)) -> 64 | C72: عبد الناصر ناجي | D72: =IFERROR(VLOOKUP($A72,ورقة1!$A$9:$AE$239,4,FALSE),"") -> 96 | X72: 63 | AA72: 70 | AD72: 32 | AK72: 165 | AL72: 3
A73: 1041 | B73: =IF(C73="","",SUBTOTAL(3,$C$9:C73)) -> 65 | C73: حسام النجار | D73: =IFERROR(VLOOKUP($A73,ورقة1!$A$9:$AE$239,4,FALSE),"") -> 69.5 | Z73: 20 | AF73: 49.5 | AK73: 69.5 | AL73: 2
A74: 1081 | B74: =IF(C74="","",SUBTOTAL(3,$C$9:C74)) -> 66 | C74: حمادة محمد شلقامي | D74: =IFERROR(VLOOKUP($A74,ورقة1!$A$9:$AE$239,4,FALSE),"") -> 96 | AA74: 96 | AK74: 96 | AL74: 1
A75: 1120 | B75: =IF(C75="","",SUBTOTAL(3,$C$9:C75)) -> 67 | C75: ربيع خالد جمال | D75: =IFERROR(VLOOKUP($A75,ورقة1!$A$9:$AE$239,4,FALSE),"") -> 101.5 | AA75: 59 | AK75: 59 | AL75: 1
A76: 1122 | B76: =IF(C76="","",SUBTOTAL(3,$C$9:C76)) -> 68 | C76: الحاج مصطفي المزين | D76: =IFERROR(VLOOKUP($A76,ورقة1!$A$9:$AE$239,4,FALSE),"") -> 59 | AB76: 49 | AI76: 10 | AK76: 59 | AL76: 2
A77: 1076 | B77: =IF(C77="","",SUBTOTAL(3,$C$9:C77)) -> 69 | C77: محمد حلمي ع التواب | D77: =IFERROR(VLOOKUP($A77,ورقة1!$A$9:$AE$239,4,FALSE),"") -> 6 | AC77: 6 | AK77: 6 | AL77: 1
A78: 1094 | B78: =IF(C78="","",SUBTOTAL(3,$C$9:C78)) -> 70 | C78: مرات الشيخ خلف | D78: =IFERROR(VLOOKUP($A78,ورقة1!$A$9:$AE$239,4,FALSE),"") -> 89 | AE78: 92.5 | AK78: 92.5 | AL78: 1
A79: 1117 | B79: =IF(C79="","",SUBTOTAL(3,$C$9:C79)) -> 71 | C79: الشيخ جمال | D79: =IFERROR(VLOOKUP($A79,ورقة1!$A$9:$AE$239,4,FALSE),"") -> 24 | AE79: 24 | AK79: 24 | AL79: 1
A80: 1129 | B80: =IF(C80="","",SUBTOTAL(3,$C$9:C80)) -> 72 | C80: هاله صلاح ابو الليل | D80: =IFERROR(VLOOKUP($A80,ورقة1!$A$9:$AE$239,4,FALSE),"") -> 81 | AF80: 81 | AK80: 81 | AL80: 1
A81: 1049 | B81: =IF(C81="","",SUBTOTAL(3,$C$9:C81)) -> 73 | C81: تبع بيت مهدي عبد الجيد | D81: =IFERROR(VLOOKUP($A81,ورقة1!$A$9:$AE$239,4,FALSE),"") -> 267 | AH81: 217 | AI81: 50 | AK81: =SUM(E81:AI81) -> 267 | AL81: =SUBTOTAL(3,E81:AJ81) -> 2
A82: 1055 | B82: =IF(C82="","",SUBTOTAL(3,$C$9:C82)) -> 74 | C82: الشيخ ناجي صابر | D82: =IFERROR(VLOOKUP($A82,ورقة1!$A$9:$AE$239,4,FALSE),"") -> -510 | AH82: 310 | AK82: 310 | AL82: 1
A83: 1144 | B83: =IF(C83="","",SUBTOTAL(3,$C$9:C83)) -> 75 | C83: ام ابراهيم | D83: =IFERROR(VLOOKUP($A83,ورقة1!$A$9:$AE$239,4,FALSE),"") -> 39 | AI83: 39 | AK83: 39 | AL83: 1
A84: 1146 | B84: =IF(C84="","",SUBTOTAL(3,$C$9:C84)) -> 76 | C84: ابوامير | D84: =IFERROR(VLOOKUP($A84,ورقة1!$A$9:$AE$239,4,FALSE),"") -> 198 | AI84: 198 | AK84: 198 | AL84: 1
A88: اجمالي الشهر | C88: =AK5 -> 9054.25
A89: اجمالي التنزيلات الشهر
A90: عدد الافراد | C90: =AK4 -> 185
A91: تنزيلات فعلية من الشهر
A92: الباقي من الشهر | C92: =C88-C91 -> 9054.25
A93: تنزيل من السابق | C93: =C89-C91 -> 0

Sheet شهر 8
A1: شهر اغسطس 2020 | E1: كود البداية | G1: =MIN(A9:A77) -> 1025
E2: كود النهاية | G2: =MAX(A9:A77) -> 1140
E3: =E5 -> 385.5 | F3: =SUM($E$5:F5) -> 714.5 | G3: =SUM($E$5:G5) -> 1191 | H3: =SUM($E$5:H5) -> 1191 | I3: =SUM($E$5:I5) -> 1191 | J3: =SUM($E$5:J5) -> 1191 | K3: =SUM($E$5:K5) -> 1191 | L3: =SUM($E$5:L5) -> 1191 | M3: =SUM($E$5:M5) -> 1191 | N3: =SUM($E$5:N5) -> 1191 | O3: =SUM($E$5:O5) -> 1191 | P3: =SUM($E$5:P5) -> 1191 | Q3: =SUM($E$5:Q5) -> 1191 | R3: =SUM($E$5:R5) -> 1191 | S3: =SUM($E$5:S5) -> 1191 | T3: =SUM($E$5:T5) -> 1191 | U3: =SUM($E$5:U5) -> 1191 | V3: =SUM($E$5:V5) -> 1191 | W3: =SUM($E$5:W5) -> 1191 | X3: =SUM($E$5:X5) -> 1191 | Y3: =SUM($E$5:Y5) -> 1191 | Z3: =SUM($E$5:Z5) -> 1191 | AA3: =SUM($E$5:AA5) -> 1191 | AB3: =SUM($E$5:AB5) -> 1191 | AC3: =SUM($E$5:AC5) -> 1191 | AD3: =SUM($E$5:AD5) -> 1191 | AE3: =SUM($E$5:AE5) -> 1191 | AF3: =SUM($E$5:AF5) -> 1191 | AG3: =SUM($E$5:AG5) -> 1191 | AH3: =SUM($E$5:AH5) -> 1191 | AI3: =SUM($E$5:AI5) -> 1191
D4: العدد | E4: =SUBTOTAL(2,E9:E119) -> 8 | F4: =SUBTOTAL(2,F9:F119) -> 5 | G4: 10 | H4: 0 | I4: 0 | J4: 0 | K4: 0 | L4: 0 | M4: 0 | N4: 0 | O4: 0 | P4: 0 | Q4: 0 | R4: 0 | S4: 0 | T4: 0 | U4: 0 | V4: 0 | W4: 0 | X4: 0 | Y4: 0 | Z4: 0 | AA4: 0 | AB4: 0 | AC4: 0 | AD4: 0 | AE4: 0 | AF4: 0 | AG4: 0 | AH4: 0 | AI4: 0 | AJ4: 0 | AK4: =SUM(E4:AI4) -> 23 | AL4: العدد
D5: الاجمالي | E5: =SUM(E9:E144) -> 385.5 | F5: =SUM(F9:F144) -> 329 | G5: 476.5 | H5: 0 | I5: 0 | J5: 0 | K5: 0 | L5: 0 | M5: 0 | N5: 0 | O5: 0 | P5: 0 | Q5: 0 | R5: 0 | S5: 0 | T5: 0 | U5: 0 | V5: 0 | W5: 0 | X5: 0 | Y5: 0 | Z5: 0 | AA5: 0 | AB5: 0 | AC5: 0 | AD5: 0 | AE5: 0 | AF5: 0 | AG5: 0 | AH5: 0 | AI5: 0 | AK5: =SUM(E5:AI5) -> 1191 | AL5: الاجمالي
A6: الكود | B6: م | C6: الاسم | D6: اجمالي الحساب | E6: =IF(E7="","",CHOOSE(WEEKDAY(E7),"الاحد","الاثنين","الثلاثاء","الاربعاء","الخميس","الجمعة","السبت")) -> السبت | F6: =IF(F7="","",CHOOSE(WEEKDAY(F7),"الاحد","الاثنين","الثلاثاء","الاربعاء","الخميس","الجمعة","السبت")) -> الاحد | G6: الاثنين | H6: الثلاثاء | I6: الاربعاء | J6: الخميس | K6: الجمعة | L6: السبت | M6: الاحد | N6: الاثنين | O6: الثلاثاء | P6: الاربعاء | Q6: الخميس | R6: الجمعة | S6: السبت | T6: الاحد | U6: الاثنين | V6: الثلاثاء | W6: الاربعاء | X6: الخميس | Y6: الجمعة | Z6: السبت | AA6: الاحد | AB6: الاثنين | AC6: الثلاثاء | AD6: الاربعاء | AE6: الخميس | AF6: الجمعة | AG6: السبت | AH6: الاحد | AI6: الاثنين | AK6: الاجمالي
E7: 2020-08-01 | F7: 2020-08-02 | G7: 2020-08-03 | H7: 2020-08-04 | I7: 2020-08-05 | J7: 2020-08-06 | K7: 2020-08-07 | L7: 2020-08-08 | M7: 2020-08-09 | N7: 2020-08-10 | O7: 2020-08-11 | P7: 2020-08-12 | Q7: 2020-08-13 | R7: 2020-08-14 | S7: 2020-08-15 | T7: 2020-08-16 | U7: 2020-08-17 | V7: 2020-08-18 | W7: 2020-08-19 | X7: 2020-08-20 | Y7: 2020-08-21 | Z7: 2020-08-22 | AA7: 2020-08-23 | AB7: 2020-08-24 | AC7: 2020-08-25 | AD7: 2020-08-26 | AE7: 2020-08-27 | AF7: 2020-08-28 | AG7: 2020-08-29 | AH7: 2020-08-30 | AI7: 2020-08-31
AL8: عدد المرات
A9: 1025 | B9: =IF(C9="","",SUBTOTAL(3,$C$9:C9)) -> 1 | C9: =IFERROR(VLOOKUP(A9,ورقة1!$A$9:$C$258,3,0),"اضافة ") -> ام ربيع محمد شحاتة | D9: =IFERROR(VLOOKUP($A9,ورقة1!$A$9:$AE$160,4,FALSE),"") -> 75 | E9: 14.5 | AK9: =SUM(E9:AI9) -> 14.5 | AL9: =SUBTOTAL(3,E9:AJ9) -> 1
A10: 1140 | B10: =IF(C10="","",SUBTOTAL(3,$C$9:C10)) -> 2 | C10: =IFERROR(VLOOKUP(A10,ورقة1!$A$9:$C$258,3,0),"اضافة ") -> عادل عبد الرحمن | D10: =IFERROR(VLOOKUP($A10,ورقة1!$A$9:$AE$160,4,FALSE),"") -> 212.5 | E10: 7.5 | AK10: =SUM(E10:AI10) -> 7.5 | AL10: =SUBTOTAL(3,E10:AJ10) -> 1
A11: 1026 | B11: =IF(C11="","",SUBTOTAL(3,$C$9:C11)) -> 3 | C11: =IFERROR(VLOOKUP(A11,ورقة1!$A$9:$C$258,3,0),"اضافة ") -> سحر | D11: =IFERROR(VLOOKUP($A11,ورقة1!$A$9:$AE$160,4,FALSE),"") -> 75 | E11: 9 | AK11: 9 | AL11: 1
A12: 1072 | B12: =IF(C12="","",SUBTOTAL(3,$C$9:C12)) -> 4 | C12: =IFERROR(VLOOKUP(A12,ورقة1!$A$9:$C$258,3,0),"اضافة ") -> محمود احمد عبد الواحد | D12: =IFERROR(VLOOKUP($A12,ورقة1!$A$9:$AE$160,4,FALSE),"") -> 564.55 | E12: 21 | AK12: 21 | AL12: 1
